Workbook

Sheet Control
A1: Sheets | B1: Text File Names | C1: Description | E1: Notes: 50 sheets maximum
A2: P_SW002 | B2: Concentrations\SW002_Conc_Output.txt | C2: Project concentrations in the Partridge River at SW-002 | E2: Referenced text files must be in same root folder as this spreadsheet
A3: P_SW003 | B3: Concentrations\SW003_Conc_Output.txt | C3: Project concentrations in the Partridge River at SW-003
A4: P_SW004 | B4: Concentrations\SW004_Conc_Output.txt | C4: Project concentrations in the Partridge River at SW-004
A5: P_SW004a | B5: Concentrations\SW004a_Conc_Output.txt | C5: Project concentrations in the Partridge River at SW-004a
A6: P_SW004b | B6: Concentrations\SW004b_Conc_Output.txt | C6: Project concentrations in the Partridge River at SW-005b
A7: P_SW005 | B7: Concentrations\SW005_Conc_Output.txt | C7: Project concentrations in the Partridge River at SW-005b
A8: P_SW006 | B8: Concentrations\SW006_Conc_Output.txt | C8: Project concentrations in the Partridge River at SW-006 | F8: Run Time Min: | G8: =MIN(P_SW002!B5,P_SW003!B5,P_SW004!B5,P_SW004a!B5,P_SW004b!B5,P_SW005!B5,P_SW006!B5,P_ColbyLake!B5) -> 2014-12-15T22:56:18 | I8: FEIS Output
A9: P_ColbyLake | B9: Concentrations\Colby_Conc_Output.txt | C9: Project concentrations in the Partridge River at Colby Lake | F9: Run Time Max: | G9: =MAX(P_SW002!B5,P_SW003!B5,P_SW004!B5,P_SW004a!B5,P_SW004b!B5,P_SW005!B5,P_SW006!B5,P_ColbyLake!B5) -> 2014-12-15T22:56:18
A10: SDEIS_SW002 | B10: SDEIS\Concentrations\SW002_Conc_Output.txt | C10: SDEIS Project concentrations in the Partridge River at SW-002
A11: SDEIS_SW003 | B11: SDEIS\Concentrations\SW003_Conc_Output.txt | C11: SDEIS Project concentrations in the Partridge River at SW-003 | F11: Run Time Min: | G11: =MIN(SDEIS_SW002!B5,SDEIS_SW003!B5,SDEIS_SW004!B5,SDEIS_SW004a!B5,SDEIS_SW004b!B5,SDEIS_SW005!B5,SDEIS_SW006!B5,SDEIS_ColbyLake!B5) -> 2013-01-28T18:20:45 | I11: SDEIS Output
A12: SDEIS_SW004 | B12: SDEIS\Concentrations\SW004_Conc_Output.txt | C12: SDEIS Project concentrations in the Partridge River at SW-004 | F12: Run Time Max: | G12: =MAX(SDEIS_SW002!B5,SDEIS_SW003!B5,SDEIS_SW004!B5,SDEIS_SW004a!B5,SDEIS_SW004b!B5,SDEIS_SW005!B5,SDEIS_SW006!B5,SDEIS_ColbyLake!B5) -> 2013-01-28T18:20:45
A13: SDEIS_SW004a | B13: SDEIS\Concentrations\SW004a_Conc_Output.txt | C13: SDEIS Project concentrations in the Partridge River at SW-004a
A14: SDEIS_SW004b | B14: SDEIS\Concentrations\SW004b_Conc_Output.txt | C14: SDEIS Project concentrations in the Partridge River at SW-004b
A15: SDEIS_SW005 | B15: SDEIS\Concentrations\SW005_Conc_Output.txt | C15: SDEIS Project concentrations in the Partridge River at SW-005
A16: SDEIS_SW006 | B16: SDEIS\Concentrations\SW006_Conc_Output.txt | C16: SDEIS Project concentrations in the Partridge River at SW-006
A17: SDEIS_ColbyLake | B17: SDEIS\Concentrations\Colby_Conc_Output.txt | C17: SDEIS Project concentrations in the Partridge River at Colby Lake

Sheet PlotControl
A2: Model Name: | B2: Mine Site Version 6.0
A4: Plot: | B4: Annual Max | C4: =B2 & " Model vs. SDEIS (v5.0) " & IF(B4="Annual Max", "Annual Maximum", B4) & " of Concentration Statistics " & B6 & " in " & IF(B8=A22,A22, "the Partridge River at " & B8) -> Mine Site Version 6.0 Model vs. SDEIS (v5.0) Annual Maximum of Concentration Statistics SO4 in the Partridge River at SW004a | V4: Directory to save PDFs to: | W4: C:\Users\cda\Desktop\temp
C5: =B2 & " Model vs. SDEIS (v5.0) Monthly Concentration Statistics " & B6 & " in " & IF(B8=A22,A22, "the Partridge River at " & B8) -> Mine Site Version 6.0 Model vs. SDEIS (v5.0) Monthly Concentration Statistics SO4 in the Partridge River at SW004a | V5: Starting figure caption | W5: Figure K-08-28.2
A6: Constituent to Plot (dropdown): | B6: SO4 | C6: =MATCH(B6,$A$25:$A$52,0) -> 24
V7: Note: This loops through the plots, constituent, and location drop down menus.
A8: Location to Plot (dropdown): | B8: SW004a | C8: =MATCH(B8,$A$15:$A$22,0) -> 4
A10: Initial Time for Monthly Plot (yr): | B10: 0
B11: =B10+20 -> 20
A14: Locations | B14: Number
A15: SW002 | B15: 1
A16: SW003 | B16: 2
A17: SW004 | B17: 3 | D17: Note: Hardness-based standards are computed based on annual average hardness P10, P50, and P90. Low hardness concentrations may not correspond to high solute concentrations. For locations SW-004 and SW-004a, the median observed hardness (102.5 and 105.5 mg/L, respectively) is used to evaluate hardness-based standards.
A18: SW004a | B18: 4
A19: SW004b | B19: 5
A20: SW005 | B20: 6
A21: SW006 | B21: 7
A22: Colby Lake | B22: 8
I23: Annual Project Results | L23: Annual SDEIS Project Results | O23: SW Standard | T23: Monthly Project Results | W23: Monthly SDEIS Project Results
A24: Constituent | B24: Partridge Standard (ug/L) | C24: Colby Standard (ug/L) | D24: Hardness Based "A" | E24: Hardness Based "B" | F24: Hardness Based Known Value (ug/L) | H24: Time | I24: P10 | J24: P50 | K24: P90 | L24: P10 | M24: P50 | N24: P90 | O24: P10 Hardness | P24: P50 Hardness or Constant | Q24: P90 Hardness | S24: Time | T24: P10 | U24: P50 | V24: P90 | W24: P10 | X24: P50 | Y24: P90 | Z24: SW Standard
A25: Ag | B25: 1 | C25: 1 | F25: =EXP(D25*LN(100)+E25) ->  | H25: 1 | I25: =VLOOKUP($H25,P_All!$A$5:$Y$204,3*($C$8-1)+2) -> 15857 | J25: =VLOOKUP($H25,P_All!$A$5:$Y$204,3*($C$8-1)+3) -> 21850 | K25: =VLOOKUP($H25,P_All!$A$5:$Y$204,3*($C$8-1)+4) -> 24217 | L25: =VLOOKUP($H25,NA_All!$A$5:$Y$204,3*($C$8-1)+2) -> 15876 | M25: =VLOOKUP($H25,NA_All!$A$5:$Y$204,3*($C$8-1)+3) -> 15876 | N25: =VLOOKUP($H25,NA_All!$A$5:$Y$204,3*($C$8-1)+4) -> 19267 | O25: =IF(ISNA(VLOOKUP($B$6,$A$25:$E$52,IF($B$8=$A$22,3,2))),EXP(VLOOKUP($B$6,$A$25:$E$52,4)*LN(VLOOKUP($H25,P_Hard!$A$5:$Y$204,3*($C$8-1)+2)/1000)+VLOOKUP($B$6,$A$25:$E$52,5)),NA()) ->  | P25: =IF(AND($B$8=$A$20,$B$6=$A$48),$B$54,IF(ISNA(VLOOKUP($B$6,$A$25:$F$52,IF($B$8=$A$22,3,2),FALSE)),VLOOKUP($B$6,$A$25:$F$52,6),VLOOKUP($B$6,$A$25:$F$52,IF($B$8=$A$22,3,2),FALSE))) ->  | Q25: =IF(ISNA(VLOOKUP($B$6,$A$25:$E$52,IF($B$8=$A$22,3,2))),EXP(VLOOKUP($B$6,$A$25:$E$52,4)*LN(VLOOKUP($H25,P_Hard!$A$5:$Y$204,3*($C$8-1)+4)/1000)+VLOOKUP($B$6,$A$25:$E$52,5)),NA()) ->  | S25: =B10 -> 0 | T25: =VLOOKUP($S25,P_All!$AA$5:$AY$245,3*($C$8-1)+2) -> 15857 | U25: =VLOOKUP($S25,P_All!$AA$5:$AY$245,3*($C$8-1)+3) -> 15857 | V25: =VLOOKUP($S25,P_All!$AA$5:$AY$245,3*($C$8-1)+4) -> 15857 | W25: =VLOOKUP($S25,NA_All!$AA$5:$AY$245,3*($C$8-1)+2) -> 15876 | X25: =VLOOKUP($S25,NA_All!$AA$5:$AY$245,3*($C$8-1)+3) -> 15876 | Y25: =VLOOKUP($S25,NA_All!$AA$5:$AY$245,3*($C$8-1)+4) -> 15876 | Z25: =IF(AND($B$8=$A$20,$B$6=$A$48),$B$54,IF(ISNA(VLOOKUP($B$6,$A$25:$E$52,IF($B$8=$A$22,3,2),FALSE)),EXP(VLOOKUP($B$6,$A$25:$E$52,4,FALSE)*LN(VLOOKUP($H25,P_Hard!$A$5:$Y$204,3*($C$8-1)+3,FALSE)/1000)+VLOOKUP($B$6,$A$25:$E$52,5,FALSE)),VLOOKUP($B$6,$A$25:$E$52,IF($B$8=$A$22,3,2),FALSE))) ->  | AB25: =(V25-Y25)/Y25 -> -0.001196775006
A26: Al | B26: 125 | C26: 125 | F26: =EXP(D26*LN(100)+E26) ->  | H26: 2 | I26: =VLOOKUP($H26,P_All!$A$5:$Y$204,3*($C$8-1)+2) -> 13095 | J26: =VLOOKUP($H26,P_All!$A$5:$Y$204,3*($C$8-1)+3) -> 21512 | K26: =VLOOKUP($H26,P_All!$A$5:$Y$204,3*($C$8-1)+4) -> 24203 | L26: =VLOOKUP($H26,NA_All!$A$5:$Y$204,3*($C$8-1)+2) -> 7882.9 | M26: =VLOOKUP($H26,NA_All!$A$5:$Y$204,3*($C$8-1)+3) -> 14328 | N26: =VLOOKUP($H26,NA_All!$A$5:$Y$204,3*($C$8-1)+4) -> 19427 | O26: =IF(ISNA(VLOOKUP($B$6,$A$25:$E$52,IF($B$8=$A$22,3,2))),EXP(VLOOKUP($B$6,$A$25:$E$52,4)*LN(VLOOKUP($H26,P_Hard!$A$5:$Y$204,3*($C$8-1)+2)/1000)+VLOOKUP($B$6,$A$25:$E$52,5)),NA()) ->  | P26: =IF(AND($B$8=$A$20,$B$6=$A$48),$B$54,IF(ISNA(VLOOKUP($B$6,$A$25:$F$52,IF($B$8=$A$22,3,2),FALSE)),VLOOKUP($B$6,$A$25:$F$52,6),VLOOKUP($B$6,$A$25:$F$52,IF($B$8=$A$22,3,2),FALSE))) ->  | Q26: =IF(ISNA(VLOOKUP($B$6,$A$25:$E$52,IF($B$8=$A$22,3,2))),EXP(VLOOKUP($B$6,$A$25:$E$52,4)*LN(VLOOKUP($H26,P_Hard!$A$5:$Y$204,3*($C$8-1)+4)/1000)+VLOOKUP($B$6,$A$25:$E$52,5)),NA()) ->  | S26: =S25+1/12 -> 0.08333333333 | T26: =VLOOKUP($S26,P_All!$AA$5:$AY$245,3*($C$8-1)+2) -> 11983 | U26: =VLOOKUP($S26,P_All!$AA$5:$AY$245,3*($C$8-1)+3) -> 16629 | V26: =VLOOKUP($S26,P_All!$AA$5:$AY$245,3*($C$8-1)+4) -> 21231 | W26: =VLOOKUP($S26,NA_All!$AA$5:$AY$245,3*($C$8-1)+2) -> 7330.5 | X26: =VLOOKUP($S26,NA_All!$AA$5:$AY$245,3*($C$8-1)+3) -> 12090 | Y26: =VLOOKUP($S26,NA_All!$AA$5:$AY$245,3*($C$8-1)+4) -> 14506 | Z26: =IF(AND($B$8=$A$20,$B$6=$A$48),$B$54,IF(ISNA(VLOOKUP($B$6,$A$25:$E$52,IF($B$8=$A$22,3,2),FALSE)),EXP(VLOOKUP($B$6,$A$25:$E$52,4,FALSE)*LN(VLOOKUP($H26,P_Hard!$A$5:$Y$204,3*($C$8-1)+3,FALSE)/1000)+VLOOKUP($B$6,$A$25:$E$52,5,FALSE)),VLOOKUP($B$6,$A$25:$E$52,IF($B$8=$A$22,3,2),FALSE))) ->  | AB26: =(V26-Y26)/Y26 -> 0.4636012684
A27: Alkalinity | H27: 3 | I27: =VLOOKUP($H27,P_All!$A$5:$Y$204,3*($C$8-1)+2) -> 13803 | J27: =VLOOKUP($H27,P_All!$A$5:$Y$204,3*($C$8-1)+3) -> 21681 | K27: =VLOOKUP($H27,P_All!$A$5:$Y$204,3*($C$8-1)+4) -> 24096 | L27: =VLOOKUP($H27,NA_All!$A$5:$Y$204,3*($C$8-1)+2) -> 7901.5 | M27: =VLOOKUP($H27,NA_All!$A$5:$Y$204,3*($C$8-1)+3) -> 14201 | N27: =VLOOKUP($H27,NA_All!$A$5:$Y$204,3*($C$8-1)+4) -> 19145 | O27: =IF(ISNA(VLOOKUP($B$6,$A$25:$E$52,IF($B$8=$A$22,3,2))),EXP(VLOOKUP($B$6,$A$25:$E$52,4)*LN(VLOOKUP($H27,P_Hard!$A$5:$Y$204,3*($C$8-1)+2)/1000)+VLOOKUP($B$6,$A$25:$E$52,5)),NA()) ->  | Q27: =IF(ISNA(VLOOKUP($B$6,$A$25:$E$52,IF($B$8=$A$22,3,2))),EXP(VLOOKUP($B$6,$A$25:$E$52,4)*LN(VLOOKUP($H27,P_Hard!$A$5:$Y$204,3*($C$8-1)+4)/1000)+VLOOKUP($B$6,$A$25:$E$52,5)),NA()) ->  | S27: =S26+1/12 -> 0.1666666667 | T27: =VLOOKUP($S27,P_All!$AA$5:$AY$245,3*($C$8-1)+2) -> 13180 | U27: =VLOOKUP($S27,P_All!$AA$5:$AY$245,3*($C$8-1)+3) -> 21850 | V27: =VLOOKUP($S27,P_All!$AA$5:$AY$245,3*($C$8-1)+4) -> 23685 | W27: =VLOOKUP($S27,NA_All!$AA$5:$AY$245,3*($C$8-1)+2) -> 7824.3 | X27: =VLOOKUP($S27,NA_All!$AA$5:$AY$245,3*($C$8-1)+3) -> 14237 | Y27: =VLOOKUP($S27,NA_All!$AA$5:$AY$245,3*($C$8-1)+4) -> 16423 | Z27: =IF(AND($B$8=$A$20,$B$6=$A$48),$B$54,IF(ISNA(VLOOKUP($B$6,$A$25:$E$52,IF($B$8=$A$22,3,2),FALSE)),EXP(VLOOKUP($B$6,$A$25:$E$52,4,FALSE)*LN(VLOOKUP($H27,P_Hard!$A$5:$Y$204,3*($C$8-1)+3,FALSE)/1000)+VLOOKUP($B$6,$A$25:$E$52,5,FALSE)),VLOOKUP($B$6,$A$25:$E$52,IF($B$8=$A$22,3,2),FALSE))) ->  | AB27: 0.4421847409
A28: As | B28: 53 | C28: 2 | H28: 4 | I28: =VLOOKUP($H28,P_All!$A$5:$Y$204,3*($C$8-1)+2) -> 13156 | J28: =VLOOKUP($H28,P_All!$A$5:$Y$204,3*($C$8-1)+3) -> 21368 | K28: =VLOOKUP($H28,P_All!$A$5:$Y$204,3*($C$8-1)+4) -> 24124 | L28: =VLOOKUP($H28,NA_All!$A$5:$Y$204,3*($C$8-1)+2) -> 7722.8 | M28: =VLOOKUP($H28,NA_All!$A$5:$Y$204,3*($C$8-1)+3) -> 14229 | N28: =VLOOKUP($H28,NA_All!$A$5:$Y$204,3*($C$8-1)+4) -> 19004 | O28: =IF(ISNA(VLOOKUP($B$6,$A$25:$E$52,IF($B$8=$A$22,3,2))),EXP(VLOOKUP($B$6,$A$25:$E$52,4)*LN(VLOOKUP($H28,P_Hard!$A$5:$Y$204,3*($C$8-1)+2)/1000)+VLOOKUP($B$6,$A$25:$E$52,5)),NA()) ->  | Q28: =IF(ISNA(VLOOKUP($B$6,$A$25:$E$52,IF($B$8=$A$22,3,2))),EXP(VLOOKUP($B$6,$A$25:$E$52,4)*LN(VLOOKUP($H28,P_Hard!$A$5:$Y$204,3*($C$8-1)+4)/1000)+VLOOKUP($B$6,$A$25:$E$52,5)),NA()) ->  | S28: 0.25 | T28: =VLOOKUP($S28,P_All!$AA$5:$AY$245,3*($C$8-1)+2) -> 6635.3 | U28: =VLOOKUP($S28,P_All!$AA$5:$AY$245,3*($C$8-1)+3) -> 18240 | V28: =VLOOKUP($S28,P_All!$AA$5:$AY$245,3*($C$8-1)+4) -> 24217 | W28: =VLOOKUP($S28,NA_All!$AA$5:$AY$245,3*($C$8-1)+2) -> 3672.6 | X28: =VLOOKUP($S28,NA_All!$AA$5:$AY$245,3*($C$8-1)+3) -> 12672 | Y28: =VLOOKUP($S28,NA_All!$AA$5:$AY$245,3*($C$8-1)+4) -> 17527 | Z28: =IF(AND($B$8=$A$20,$B$6=$A$48),$B$54,IF(ISNA(VLOOKUP($B$6,$A$25:$E$52,IF($B$8=$A$22,3,2),FALSE)),EXP(VLOOKUP($B$6,$A$25:$E$52,4,FALSE)*LN(VLOOKUP($H28,P_Hard!$A$5:$Y$204,3*($C$8-1)+3,FALSE)/1000)+VLOOKUP($B$6,$A$25:$E$52,5,FALSE)),VLOOKUP($B$6,$A$25:$E$52,IF($B$8=$A$22,3,2),FALSE))) ->  | AB28: 0.3816968106
A29: B | B29: 500 | C29: 500 | H29: 5 | I29: =VLOOKUP($H29,P_All!$A$5:$Y$204,3*($C$8-1)+2) -> 13347 | J29: =VLOOKUP($H29,P_All!$A$5:$Y$204,3*($C$8-1)+3) -> 21349 | K29: =VLOOKUP($H29,P_All!$A$5:$Y$204,3*($C$8-1)+4) -> 23937 | L29: =VLOOKUP($H29,NA_All!$A$5:$Y$204,3*($C$8-1)+2) -> 8086.3 | M29: =VLOOKUP($H29,NA_All!$A$5:$Y$204,3*($C$8-1)+3) -> 14152 | N29: =VLOOKUP($H29,NA_All!$A$5:$Y$204,3*($C$8-1)+4) -> 19034 | O29: =IF(ISNA(VLOOKUP($B$6,$A$25:$E$52,IF($B$8=$A$22,3,2))),EXP(VLOOKUP($B$6,$A$25:$E$52,4)*LN(VLOOKUP($H29,P_Hard!$A$5:$Y$204,3*($C$8-1)+2)/1000)+VLOOKUP($B$6,$A$25:$E$52,5)),NA()) ->  | Q29: =IF(ISNA(VLOOKUP($B$6,$A$25:$E$52,IF($B$8=$A$22,3,2))),EXP(VLOOKUP($B$6,$A$25:$E$52,4)*LN(VLOOKUP($H29,P_Hard!$A$5:$Y$204,3*($C$8-1)+4)/1000)+VLOOKUP($B$6,$A$25:$E$52,5)),NA()) ->  | S29: 0.3333333333 | T29: =VLOOKUP($S29,P_All!$AA$5:$AY$245,3*($C$8-1)+2) -> 2883.6 | U29: =VLOOKUP($S29,P_All!$AA$5:$AY$245,3*($C$8-1)+3) -> 6870.9 | V29: =VLOOKUP($S29,P_All!$AA$5:$AY$245,3*($C$8-1)+4) -> 16686 | W29: =VLOOKUP($S29,NA_All!$AA$5:$AY$245,3*($C$8-1)+2) -> 1336.1 | X29: =VLOOKUP($S29,NA_All!$AA$5:$AY$245,3*($C$8-1)+3) -> 4560.1 | Y29: =VLOOKUP($S29,NA_All!$AA$5:$AY$245,3*($C$8-1)+4) -> 18957 | Z29: =IF(AND($B$8=$A$20,$B$6=$A$48),$B$54,IF(ISNA(VLOOKUP($B$6,$A$25:$E$52,IF($B$8=$A$22,3,2),FALSE)),EXP(VLOOKUP($B$6,$A$25:$E$52,4,FALSE)*LN(VLOOKUP($H29,P_Hard!$A$5:$Y$204,3*($C$8-1)+3,FALSE)/1000)+VLOOKUP($B$6,$A$25:$E$52,5,FALSE)),VLOOKUP($B$6,$A$25:$E$52,IF($B$8=$A$22,3,2),FALSE))) ->  | AB29: -0.1197974363
A30: Ba | C30: 2000 | H30: 6 | I30: =VLOOKUP($H30,P_All!$A$5:$Y$204,3*($C$8-1)+2) -> 12832 | J30: =VLOOKUP($H30,P_All!$A$5:$Y$204,3*($C$8-1)+3) -> 21271 | K30: =VLOOKUP($H30,P_All!$A$5:$Y$204,3*($C$8-1)+4) -> 23744 | L30: =VLOOKUP($H30,NA_All!$A$5:$Y$204,3*($C$8-1)+2) -> 7770.3 | M30: =VLOOKUP($H30,NA_All!$A$5:$Y$204,3*($C$8-1)+3) -> 14160 | N30: =VLOOKUP($H30,NA_All!$A$5:$Y$204,3*($C$8-1)+4) -> 19075 | O30: =IF(ISNA(VLOOKUP($B$6,$A$25:$E$52,IF($B$8=$A$22,3,2))),EXP(VLOOKUP($B$6,$A$25:$E$52,4)*LN(VLOOKUP($H30,P_Hard!$A$5:$Y$204,3*($C$8-1)+2)/1000)+VLOOKUP($B$6,$A$25:$E$52,5)),NA()) ->  | Q30: =IF(ISNA(VLOOKUP($B$6,$A$25:$E$52,IF($B$8=$A$22,3,2))),EXP(VLOOKUP($B$6,$A$25:$E$52,4)*LN(VLOOKUP($H30,P_Hard!$A$5:$Y$204,3*($C$8-1)+4)/1000)+VLOOKUP($B$6,$A$25:$E$52,5)),NA()) ->  | S30: 0.4166666667 | T30: =VLOOKUP($S30,P_All!$AA$5:$AY$245,3*($C$8-1)+2) -> 2746.3 | U30: =VLOOKUP($S30,P_All!$AA$5:$AY$245,3*($C$8-1)+3) -> 7035.7 | V30: =VLOOKUP($S30,P_All!$AA$5:$AY$245,3*($C$8-1)+4) -> 17506 | W30: =VLOOKUP($S30,NA_All!$AA$5:$AY$245,3*($C$8-1)+2) -> 1328.7 | X30: =VLOOKUP($S30,NA_All!$AA$5:$AY$245,3*($C$8-1)+3) -> 4402.1 | Y30: =VLOOKUP($S30,NA_All!$AA$5:$AY$245,3*($C$8-1)+4) -> 19267 | Z30: =IF(AND($B$8=$A$20,$B$6=$A$48),$B$54,IF(ISNA(VLOOKUP($B$6,$A$25:$E$52,IF($B$8=$A$22,3,2),FALSE)),EXP(VLOOKUP($B$6,$A$25:$E$52,4,FALSE)*LN(VLOOKUP($H30,P_Hard!$A$5:$Y$204,3*($C$8-1)+3,FALSE)/1000)+VLOOKUP($B$6,$A$25:$E$52,5,FALSE)),VLOOKUP($B$6,$A$25:$E$52,IF($B$8=$A$22,3,2),FALSE))) ->  | AB30: -0.09139980277
A31: Be | C31: 4 | H31: 7 | I31: =VLOOKUP($H31,P_All!$A$5:$Y$204,3*($C$8-1)+2) -> 13377 | J31: =VLOOKUP($H31,P_All!$A$5:$Y$204,3*($C$8-1)+3) -> 21406 | K31: =VLOOKUP($H31,P_All!$A$5:$Y$204,3*($C$8-1)+4) -> 24057 | L31: =VLOOKUP($H31,NA_All!$A$5:$Y$204,3*($C$8-1)+2) -> 8403.8 | M31: =VLOOKUP($H31,NA_All!$A$5:$Y$204,3*($C$8-1)+3) -> 14299 | N31: =VLOOKUP($H31,NA_All!$A$5:$Y$204,3*($C$8-1)+4) -> 18887 | O31: =IF(ISNA(VLOOKUP($B$6,$A$25:$E$52,IF($B$8=$A$22,3,2))),EXP(VLOOKUP($B$6,$A$25:$E$52,4)*LN(VLOOKUP($H31,P_Hard!$A$5:$Y$204,3*($C$8-1)+2)/1000)+VLOOKUP($B$6,$A$25:$E$52,5)),NA()) ->  | Q31: =IF(ISNA(VLOOKUP($B$6,$A$25:$E$52,IF($B$8=$A$22,3,2))),EXP(VLOOKUP($B$6,$A$25:$E$52,4)*LN(VLOOKUP($H31,P_Hard!$A$5:$Y$204,3*($C$8-1)+4)/1000)+VLOOKUP($B$6,$A$25:$E$52,5)),NA()) ->  | S31: 0.5 | T31: =VLOOKUP($S31,P_All!$AA$5:$AY$245,3*($C$8-1)+2) -> 3204.2 | U31: =VLOOKUP($S31,P_All!$AA$5:$AY$245,3*($C$8-1)+3) -> 8215.7 | V31: =VLOOKUP($S31,P_All!$AA$5:$AY$245,3*($C$8-1)+4) -> 15899 | W31: =VLOOKUP($S31,NA_All!$AA$5:$AY$245,3*($C$8-1)+2) -> 1808.9 | X31: =VLOOKUP($S31,NA_All!$AA$5:$AY$245,3*($C$8-1)+3) -> 5377.6 | Y31: =VLOOKUP($S31,NA_All!$AA$5:$AY$245,3*($C$8-1)+4) -> 18761 | Z31: =IF(AND($B$8=$A$20,$B$6=$A$48),$B$54,IF(ISNA(VLOOKUP($B$6,$A$25:$E$52,IF($B$8=$A$22,3,2),FALSE)),EXP(VLOOKUP($B$6,$A$25:$E$52,4,FALSE)*LN(VLOOKUP($H31,P_Hard!$A$5:$Y$204,3*($C$8-1)+3,FALSE)/1000)+VLOOKUP($B$6,$A$25:$E$52,5,FALSE)),VLOOKUP($B$6,$A$25:$E$52,IF($B$8=$A$22,3,2),FALSE))) ->  | AB31: -0.1525505037
A32: Ca | H32: 8 | I32: =VLOOKUP($H32,P_All!$A$5:$Y$204,3*($C$8-1)+2) -> 13935 | J32: =VLOOKUP($H32,P_All!$A$5:$Y$204,3*($C$8-1)+3) -> 21595 | K32: =VLOOKUP($H32,P_All!$A$5:$Y$204,3*($C$8-1)+4) -> 23987 | L32: =VLOOKUP($H32,NA_All!$A$5:$Y$204,3*($C$8-1)+2) -> 8798.9 | M32: =VLOOKUP($H32,NA_All!$A$5:$Y$204,3*($C$8-1)+3) -> 14325 | N32: =VLOOKUP($H32,NA_All!$A$5:$Y$204,3*($C$8-1)+4) -> 19044 | O32: =IF(ISNA(VLOOKUP($B$6,$A$25:$E$52,IF($B$8=$A$22,3,2))),EXP(VLOOKUP($B$6,$A$25:$E$52,4)*LN(VLOOKUP($H32,P_Hard!$A$5:$Y$204,3*($C$8-1)+2)/1000)+VLOOKUP($B$6,$A$25:$E$52,5)),NA()) ->  | Q32: =IF(ISNA(VLOOKUP($B$6,$A$25:$E$52,IF($B$8=$A$22,3,2))),EXP(VLOOKUP($B$6,$A$25:$E$52,4)*LN(VLOOKUP($H32,P_Hard!$A$5:$Y$204,3*($C$8-1)+4)/1000)+VLOOKUP($B$6,$A$25:$E$52,5)),NA()) ->  | S32: 0.5833333333 | T32: =VLOOKUP($S32,P_All!$AA$5:$AY$245,3*($C$8-1)+2) -> 4030.5 | U32: =VLOOKUP($S32,P_All!$AA$5:$AY$245,3*($C$8-1)+3) -> 10339 | V32: =VLOOKUP($S32,P_All!$AA$5:$AY$245,3*($C$8-1)+4) -> 20309 | W32: =VLOOKUP($S32,NA_All!$AA$5:$AY$245,3*($C$8-1)+2) -> 2023 | X32: =VLOOKUP($S32,NA_All!$AA$5:$AY$245,3*($C$8-1)+3) -> 7449.7 | Y32: =VLOOKUP($S32,NA_All!$AA$5:$AY$245,3*($C$8-1)+4) -> 17658 | Z32: =IF(AND($B$8=$A$20,$B$6=$A$48),$B$54,IF(ISNA(VLOOKUP($B$6,$A$25:$E$52,IF($B$8=$A$22,3,2),FALSE)),EXP(VLOOKUP($B$6,$A$25:$E$52,4,FALSE)*LN(VLOOKUP($H32,P_Hard!$A$5:$Y$204,3*($C$8-1)+3,FALSE)/1000)+VLOOKUP($B$6,$A$25:$E$52,5,FALSE)),VLOOKUP($B$6,$A$25:$E$52,IF($B$8=$A$22,3,2),FALSE))) ->  | AB32: 0.1501302526
A33: Cd | D33: 0.7852 | E33: -2.715 | F33: =EXP(D33*LN(IF($B$8=$A$17,$C$65,IF($B$8=$A$18,$C$66,NA())))+E33) -> 2.567723838 | H33: 9 | I33: =VLOOKUP($H33,P_All!$A$5:$Y$204,3*($C$8-1)+2) -> 13600 | J33: =VLOOKUP($H33,P_All!$A$5:$Y$204,3*($C$8-1)+3) -> 21613 | K33: =VLOOKUP($H33,P_All!$A$5:$Y$204,3*($C$8-1)+4) -> 24244 | L33: =VLOOKUP($H33,NA_All!$A$5:$Y$204,3*($C$8-1)+2) -> 7902.5 | M33: =VLOOKUP($H33,NA_All!$A$5:$Y$204,3*($C$8-1)+3) -> 14294 | N33: =VLOOKUP($H33,NA_All!$A$5:$Y$204,3*($C$8-1)+4) -> 18972 | O33: =IF(ISNA(VLOOKUP($B$6,$A$25:$E$52,IF($B$8=$A$22,3,2))),EXP(VLOOKUP($B$6,$A$25:$E$52,4)*LN(VLOOKUP($H33,P_Hard!$A$5:$Y$204,3*($C$8-1)+2)/1000)+VLOOKUP($B$6,$A$25:$E$52,5)),NA()) ->  | Q33: =IF(ISNA(VLOOKUP($B$6,$A$25:$E$52,IF($B$8=$A$22,3,2))),EXP(VLOOKUP($B$6,$A$25:$E$52,4)*LN(VLOOKUP($H33,P_Hard!$A$5:$Y$204,3*($C$8-1)+4)/1000)+VLOOKUP($B$6,$A$25:$E$52,5)),NA()) ->  | S33: 0.6666666667 | T33: =VLOOKUP($S33,P_All!$AA$5:$AY$245,3*($C$8-1)+2) -> 3574.2 | U33: =VLOOKUP($S33,P_All!$AA$5:$AY$245,3*($C$8-1)+3) -> 10192 | V33: =VLOOKUP($S33,P_All!$AA$5:$AY$245,3*($C$8-1)+4) -> 19681 | W33: =VLOOKUP($S33,NA_All!$AA$5:$AY$245,3*($C$8-1)+2) -> 1752.7 | X33: =VLOOKUP($S33,NA_All!$AA$5:$AY$245,3*($C$8-1)+3) -> 6715.7 | Y33: =VLOOKUP($S33,NA_All!$AA$5:$AY$245,3*($C$8-1)+4) -> 18513 | Z33: =IF(AND($B$8=$A$20,$B$6=$A$48),$B$54,IF(ISNA(VLOOKUP($B$6,$A$25:$E$52,IF($B$8=$A$22,3,2),FALSE)),EXP(VLOOKUP($B$6,$A$25:$E$52,4,FALSE)*LN(VLOOKUP($H33,P_Hard!$A$5:$Y$204,3*($C$8-1)+3,FALSE)/1000)+VLOOKUP($B$6,$A$25:$E$52,5,FALSE)),VLOOKUP($B$6,$A$25:$E$52,IF($B$8=$A$22,3,2),FALSE))) ->  | AB33: 0.06309080106
A34: Cl | B34: 230000 | C34: 230000 | H34: 10 | I34: =VLOOKUP($H34,P_All!$A$5:$Y$204,3*($C$8-1)+2) -> 13405 | J34: =VLOOKUP($H34,P_All!$A$5:$Y$204,3*($C$8-1)+3) -> 21816 | K34: =VLOOKUP($H34,P_All!$A$5:$Y$204,3*($C$8-1)+4) -> 23931 | L34: =VLOOKUP($H34,NA_All!$A$5:$Y$204,3*($C$8-1)+2) -> 7888.7 | M34: =VLOOKUP($H34,NA_All!$A$5:$Y$204,3*($C$8-1)+3) -> 14465 | N34: =VLOOKUP($H34,NA_All!$A$5:$Y$204,3*($C$8-1)+4) -> 19156 | O34: =IF(ISNA(VLOOKUP($B$6,$A$25:$E$52,IF($B$8=$A$22,3,2))),EXP(VLOOKUP($B$6,$A$25:$E$52,4)*LN(VLOOKUP($H34,P_Hard!$A$5:$Y$204,3*($C$8-1)+2)/1000)+VLOOKUP($B$6,$A$25:$E$52,5)),NA()) ->  | Q34: =IF(ISNA(VLOOKUP($B$6,$A$25:$E$52,IF($B$8=$A$22,3,2))),EXP(VLOOKUP($B$6,$A$25:$E$52,4)*LN(VLOOKUP($H34,P_Hard!$A$5:$Y$204,3*($C$8-1)+4)/1000)+VLOOKUP($B$6,$A$25:$E$52,5)),NA()) ->  | S34: 0.75 | T34: =VLOOKUP($S34,P_All!$AA$5:$AY$245,3*($C$8-1)+2) -> 4387.4 | U34: =VLOOKUP($S34,P_All!$AA$5:$AY$245,3*($C$8-1)+3) -> 9514.4 | V34: =VLOOKUP($S34,P_All!$AA$5:$AY$245,3*($C$8-1)+4) -> 18176 | W34: =VLOOKUP($S34,NA_All!$AA$5:$AY$245,3*($C$8-1)+2) -> 2048.5 | X34: =VLOOKUP($S34,NA_All!$AA$5:$AY$245,3*($C$8-1)+3) -> 6704.9 | Y34: =VLOOKUP($S34,NA_All!$AA$5:$AY$245,3*($C$8-1)+4) -> 18474 | Z34: =IF(AND($B$8=$A$20,$B$6=$A$48),$B$54,IF(ISNA(VLOOKUP($B$6,$A$25:$E$52,IF($B$8=$A$22,3,2),FALSE)),EXP(VLOOKUP($B$6,$A$25:$E$52,4,FALSE)*LN(VLOOKUP($H34,P_Hard!$A$5:$Y$204,3*($C$8-1)+3,FALSE)/1000)+VLOOKUP($B$6,$A$25:$E$52,5,FALSE)),VLOOKUP($B$6,$A$25:$E$52,IF($B$8=$A$22,3,2),FALSE))) ->  | AB34: -0.01613077839
A35: Co | B35: 5 | C35: 2.8 | H35: 11 | I35: =VLOOKUP($H35,P_All!$A$5:$Y$204,3*($C$8-1)+2) -> 13472 | J35: =VLOOKUP($H35,P_All!$A$5:$Y$204,3*($C$8-1)+3) -> 21756 | K35: =VLOOKUP($H35,P_All!$A$5:$Y$204,3*($C$8-1)+4) -> 24139 | L35: =VLOOKUP($H35,NA_All!$A$5:$Y$204,3*($C$8-1)+2) -> 8470.7 | M35: =VLOOKUP($H35,NA_All!$A$5:$Y$204,3*($C$8-1)+3) -> 14362 | N35: =VLOOKUP($H35,NA_All!$A$5:$Y$204,3*($C$8-1)+4) -> 19033 | O35: =IF(ISNA(VLOOKUP($B$6,$A$25:$E$52,IF($B$8=$A$22,3,2))),EXP(VLOOKUP($B$6,$A$25:$E$52,4)*LN(VLOOKUP($H35,P_Hard!$A$5:$Y$204,3*($C$8-1)+2)/1000)+VLOOKUP($B$6,$A$25:$E$52,5)),NA()) ->  | Q35: =IF(ISNA(VLOOKUP($B$6,$A$25:$E$52,IF($B$8=$A$22,3,2))),EXP(VLOOKUP($B$6,$A$25:$E$52,4)*LN(VLOOKUP($H35,P_Hard!$A$5:$Y$204,3*($C$8-1)+4)/1000)+VLOOKUP($B$6,$A$25:$E$52,5)),NA()) ->  | S35: 0.8333333333 | T35: =VLOOKUP($S35,P_All!$AA$5:$AY$245,3*($C$8-1)+2) -> 3783.3 | U35: =VLOOKUP($S35,P_All!$AA$5:$AY$245,3*($C$8-1)+3) -> 8638.9 | V35: =VLOOKUP($S35,P_All!$AA$5:$AY$245,3*($C$8-1)+4) -> 15233 | W35: =VLOOKUP($S35,NA_All!$AA$5:$AY$245,3*($C$8-1)+2) -> 1879.8 | X35: =VLOOKUP($S35,NA_All!$AA$5:$AY$245,3*($C$8-1)+3) -> 5165.8 | Y35: =VLOOKUP($S35,NA_All!$AA$5:$AY$245,3*($C$8-1)+4) -> 18955 | Z35: =IF(AND($B$8=$A$20,$B$6=$A$48),$B$54,IF(ISNA(VLOOKUP($B$6,$A$25:$E$52,IF($B$8=$A$22,3,2),FALSE)),EXP(VLOOKUP($B$6,$A$25:$E$52,4,FALSE)*LN(VLOOKUP($H35,P_Hard!$A$5:$Y$204,3*($C$8-1)+3,FALSE)/1000)+VLOOKUP($B$6,$A$25:$E$52,5,FALSE)),VLOOKUP($B$6,$A$25:$E$52,IF($B$8=$A$22,3,2),FALSE))) ->  | AB35: -0.1963597995
A36: Cr | B36: 11 | C36: 11 | H36: 12 | I36: =VLOOKUP($H36,P_All!$A$5:$Y$204,3*($C$8-1)+2) -> 13561 | J36: =VLOOKUP($H36,P_All!$A$5:$Y$204,3*($C$8-1)+3) -> 21846 | K36: =VLOOKUP($H36,P_All!$A$5:$Y$204,3*($C$8-1)+4) -> 24148 | L36: =VLOOKUP($H36,NA_All!$A$5:$Y$204,3*($C$8-1)+2) -> 8391 | M36: =VLOOKUP($H36,NA_All!$A$5:$Y$204,3*($C$8-1)+3) -> 14425 | N36: =VLOOKUP($H36,NA_All!$A$5:$Y$204,3*($C$8-1)+4) -> 19178 | O36: =IF(ISNA(VLOOKUP($B$6,$A$25:$E$52,IF($B$8=$A$22,3,2))),EXP(VLOOKUP($B$6,$A$25:$E$52,4)*LN(VLOOKUP($H36,P_Hard!$A$5:$Y$204,3*($C$8-1)+2)/1000)+VLOOKUP($B$6,$A$25:$E$52,5)),NA()) ->  | Q36: =IF(ISNA(VLOOKUP($B$6,$A$25:$E$52,IF($B$8=$A$22,3,2))),EXP(VLOOKUP($B$6,$A$25:$E$52,4)*LN(VLOOKUP($H36,P_Hard!$A$5:$Y$204,3*($C$8-1)+4)/1000)+VLOOKUP($B$6,$A$25:$E$52,5)),NA()) ->  | S36: 0.9166666667 | T36: =VLOOKUP($S36,P_All!$AA$5:$AY$245,3*($C$8-1)+2) -> 4798.4 | U36: =VLOOKUP($S36,P_All!$AA$5:$AY$245,3*($C$8-1)+3) -> 9364.7 | V36: =VLOOKUP($S36,P_All!$AA$5:$AY$245,3*($C$8-1)+4) -> 15480 | W36: =VLOOKUP($S36,NA_All!$AA$5:$AY$245,3*($C$8-1)+2) -> 2366.2 | X36: =VLOOKUP($S36,NA_All!$AA$5:$AY$245,3*($C$8-1)+3) -> 6133.3 | Y36: =VLOOKUP($S36,NA_All!$AA$5:$AY$245,3*($C$8-1)+4) -> 18347 | Z36: =IF(AND($B$8=$A$20,$B$6=$A$48),$B$54,IF(ISNA(VLOOKUP($B$6,$A$25:$E$52,IF($B$8=$A$22,3,2),FALSE)),EXP(VLOOKUP($B$6,$A$25:$E$52,4,FALSE)*LN(VLOOKUP($H36,P_Hard!$A$5:$Y$204,3*($C$8-1)+3,FALSE)/1000)+VLOOKUP($B$6,$A$25:$E$52,5,FALSE)),VLOOKUP($B$6,$A$25:$E$52,IF($B$8=$A$22,3,2),FALSE))) ->  | AB36: -0.1562653295
A37: Cu | D37: 0.8545 | E37: -1.702 | F37: =EXP(D37*LN(IF($B$8=$A$17,$C$65,IF($B$8=$A$18,$C$66,NA())))+E37) -> 9.765624442 | H37: 13 | I37: =VLOOKUP($H37,P_All!$A$5:$Y$204,3*($C$8-1)+2) -> 13232 | J37: =VLOOKUP($H37,P_All!$A$5:$Y$204,3*($C$8-1)+3) -> 20860 | K37: =VLOOKUP($H37,P_All!$A$5:$Y$204,3*($C$8-1)+4) -> 24188 | L37: =VLOOKUP($H37,NA_All!$A$5:$Y$204,3*($C$8-1)+2) -> 7873.2 | M37: =VLOOKUP($H37,NA_All!$A$5:$Y$204,3*($C$8-1)+3) -> 14019 | N37: =VLOOKUP($H37,NA_All!$A$5:$Y$204,3*($C$8-1)+4) -> 19433 | O37: =IF(ISNA(VLOOKUP($B$6,$A$25:$E$52,IF($B$8=$A$22,3,2))),EXP(VLOOKUP($B$6,$A$25:$E$52,4)*LN(VLOOKUP($H37,P_Hard!$A$5:$Y$204,3*($C$8-1)+2)/1000)+VLOOKUP($B$6,$A$25:$E$52,5)),NA()) ->  | Q37: =IF(ISNA(VLOOKUP($B$6,$A$25:$E$52,IF($B$8=$A$22,3,2))),EXP(VLOOKUP($B$6,$A$25:$E$52,4)*LN(VLOOKUP($H37,P_Hard!$A$5:$Y$204,3*($C$8-1)+4)/1000)+VLOOKUP($B$6,$A$25:$E$52,5)),NA()) ->  | S37: 1 | T37: =VLOOKUP($S37,P_All!$AA$5:$AY$245,3*($C$8-1)+2) -> 8801.4 | U37: =VLOOKUP($S37,P_All!$AA$5:$AY$245,3*($C$8-1)+3) -> 14144 | V37: =VLOOKUP($S37,P_All!$AA$5:$AY$245,3*($C$8-1)+4) -> 17623 | W37: =VLOOKUP($S37,NA_All!$AA$5:$AY$245,3*($C$8-1)+2) -> 4774 | X37: =VLOOKUP($S37,NA_All!$AA$5:$AY$245,3*($C$8-1)+3) -> 9150.7 | Y37: =VLOOKUP($S37,NA_All!$AA$5:$AY$245,3*($C$8-1)+4) -> 16037 | Z37: =IF(AND($B$8=$A$20,$B$6=$A$48),$B$54,IF(ISNA(VLOOKUP($B$6,$A$25:$E$52,IF($B$8=$A$22,3,2),FALSE)),EXP(VLOOKUP($B$6,$A$25:$E$52,4,FALSE)*LN(VLOOKUP($H37,P_Hard!$A$5:$Y$204,3*($C$8-1)+3,FALSE)/1000)+VLOOKUP($B$6,$A$25:$E$52,5,FALSE)),VLOOKUP($B$6,$A$25:$E$52,IF($B$8=$A$22,3,2),FALSE))) ->  | AB37: 0.0988963023
A38: F | C38: 4000 | H38: 14 | I38: =VLOOKUP($H38,P_All!$A$5:$Y$204,3*($C$8-1)+2) -> 13799 | J38: =VLOOKUP($H38,P_All!$A$5:$Y$204,3*($C$8-1)+3) -> 21560 | K38: =VLOOKUP($H38,P_All!$A$5:$Y$204,3*($C$8-1)+4) -> 23926 | L38: =VLOOKUP($H38,NA_All!$A$5:$Y$204,3*($C$8-1)+2) -> 8744.8 | M38: =VLOOKUP($H38,NA_All!$A$5:$Y$204,3*($C$8-1)+3) -> 14351 | N38: =VLOOKUP($H38,NA_All!$A$5:$Y$204,3*($C$8-1)+4) -> 19156 | O38: =IF(ISNA(VLOOKUP($B$6,$A$25:$E$52,IF($B$8=$A$22,3,2))),EXP(VLOOKUP($B$6,$A$25:$E$52,4)*LN(VLOOKUP($H38,P_Hard!$A$5:$Y$204,3*($C$8-1)+2)/1000)+VLOOKUP($B$6,$A$25:$E$52,5)),NA()) ->  | Q38: =IF(ISNA(VLOOKUP($B$6,$A$25:$E$52,IF($B$8=$A$22,3,2))),EXP(VLOOKUP($B$6,$A$25:$E$52,4)*LN(VLOOKUP($H38,P_Hard!$A$5:$Y$204,3*($C$8-1)+4)/1000)+VLOOKUP($B$6,$A$25:$E$52,5)),NA()) ->  | S38: 1.083333333 | T38: =VLOOKUP($S38,P_All!$AA$5:$AY$245,3*($C$8-1)+2) -> 11710 | U38: =VLOOKUP($S38,P_All!$AA$5:$AY$245,3*($C$8-1)+3) -> 16705 | V38: =VLOOKUP($S38,P_All!$AA$5:$AY$245,3*($C$8-1)+4) -> 21752 | W38: =VLOOKUP($S38,NA_All!$AA$5:$AY$245,3*($C$8-1)+2) -> 7069.5 | X38: =VLOOKUP($S38,NA_All!$AA$5:$AY$245,3*($C$8-1)+3) -> 11803 | Y38: =VLOOKUP($S38,NA_All!$AA$5:$AY$245,3*($C$8-1)+4) -> 16145 | Z38: =IF(AND($B$8=$A$20,$B$6=$A$48),$B$54,IF(ISNA(VLOOKUP($B$6,$A$25:$E$52,IF($B$8=$A$22,3,2),FALSE)),EXP(VLOOKUP($B$6,$A$25:$E$52,4,FALSE)*LN(VLOOKUP($H38,P_Hard!$A$5:$Y$204,3*($C$8-1)+3,FALSE)/1000)+VLOOKUP($B$6,$A$25:$E$52,5,FALSE)),VLOOKUP($B$6,$A$25:$E$52,IF($B$8=$A$22,3,2),FALSE))) -> 
A39: Fe | C39: 300 | H39: 15 | I39: =VLOOKUP($H39,P_All!$A$5:$Y$204,3*($C$8-1)+2) -> 13394 | J39: =VLOOKUP($H39,P_All!$A$5:$Y$204,3*($C$8-1)+3) -> 21798 | K39: =VLOOKUP($H39,P_All!$A$5:$Y$204,3*($C$8-1)+4) -> 24153 | L39: =VLOOKUP($H39,NA_All!$A$5:$Y$204,3*($C$8-1)+2) -> 8194.2 | M39: =VLOOKUP($H39,NA_All!$A$5:$Y$204,3*($C$8-1)+3) -> 14358 | N39: =VLOOKUP($H39,NA_All!$A$5:$Y$204,3*($C$8-1)+4) -> 19085 | O39: =IF(ISNA(VLOOKUP($B$6,$A$25:$E$52,IF($B$8=$A$22,3,2))),EXP(VLOOKUP($B$6,$A$25:$E$52,4)*LN(VLOOKUP($H39,P_Hard!$A$5:$Y$204,3*($C$8-1)+2)/1000)+VLOOKUP($B$6,$A$25:$E$52,5)),NA()) ->  | Q39: =IF(ISNA(VLOOKUP($B$6,$A$25:$E$52,IF($B$8=$A$22,3,2))),EXP(VLOOKUP($B$6,$A$25:$E$52,4)*LN(VLOOKUP($H39,P_Hard!$A$5:$Y$204,3*($C$8-1)+4)/1000)+VLOOKUP($B$6,$A$25:$E$52,5)),NA()) ->  | S39: 1.166666667 | T39: =VLOOKUP($S39,P_All!$AA$5:$AY$245,3*($C$8-1)+2) -> 13095 | U39: =VLOOKUP($S39,P_All!$AA$5:$AY$245,3*($C$8-1)+3) -> 21512 | V39: =VLOOKUP($S39,P_All!$AA$5:$AY$245,3*($C$8-1)+4) -> 23506 | W39: =VLOOKUP($S39,NA_All!$AA$5:$AY$245,3*($C$8-1)+2) -> 7882.9 | X39: =VLOOKUP($S39,NA_All!$AA$5:$AY$245,3*($C$8-1)+3) -> 14328 | Y39: =VLOOKUP($S39,NA_All!$AA$5:$AY$245,3*($C$8-1)+4) -> 16835 | Z39: =IF(AND($B$8=$A$20,$B$6=$A$48),$B$54,IF(ISNA(VLOOKUP($B$6,$A$25:$E$52,IF($B$8=$A$22,3,2),FALSE)),EXP(VLOOKUP($B$6,$A$25:$E$52,4,FALSE)*LN(VLOOKUP($H39,P_Hard!$A$5:$Y$204,3*($C$8-1)+3,FALSE)/1000)+VLOOKUP($B$6,$A$25:$E$52,5,FALSE)),VLOOKUP($B$6,$A$25:$E$52,IF($B$8=$A$22,3,2),FALSE))) -> 
A40: K | H40: 16 | I40: =VLOOKUP($H40,P_All!$A$5:$Y$204,3*($C$8-1)+2) -> 13057 | J40: =VLOOKUP($H40,P_All!$A$5:$Y$204,3*($C$8-1)+3) -> 21285 | K40: =VLOOKUP($H40,P_All!$A$5:$Y$204,3*($C$8-1)+4) -> 23942 | L40: =VLOOKUP($H40,NA_All!$A$5:$Y$204,3*($C$8-1)+2) -> 7855 | M40: =VLOOKUP($H40,NA_All!$A$5:$Y$204,3*($C$8-1)+3) -> 14264 | N40: =VLOOKUP($H40,NA_All!$A$5:$Y$204,3*($C$8-1)+4) -> 19154 | O40: =IF(ISNA(VLOOKUP($B$6,$A$25:$E$52,IF($B$8=$A$22,3,2))),EXP(VLOOKUP($B$6,$A$25:$E$52,4)*LN(VLOOKUP($H40,P_Hard!$A$5:$Y$204,3*($C$8-1)+2)/1000)+VLOOKUP($B$6,$A$25:$E$52,5)),NA()) ->  | Q40: =IF(ISNA(VLOOKUP($B$6,$A$25:$E$52,IF($B$8=$A$22,3,2))),EXP(VLOOKUP($B$6,$A$25:$E$52,4)*LN(VLOOKUP($H40,P_Hard!$A$5:$Y$204,3*($C$8-1)+4)/1000)+VLOOKUP($B$6,$A$25:$E$52,5)),NA()) ->  | S40: 1.25 | T40: =VLOOKUP($S40,P_All!$AA$5:$AY$245,3*($C$8-1)+2) -> 7050.7 | U40: =VLOOKUP($S40,P_All!$AA$5:$AY$245,3*($C$8-1)+3) -> 18801 | V40: =VLOOKUP($S40,P_All!$AA$5:$AY$245,3*($C$8-1)+4) -> 24203 | W40: =VLOOKUP($S40,NA_All!$AA$5:$AY$245,3*($C$8-1)+2) -> 4244.6 | X40: =VLOOKUP($S40,NA_All!$AA$5:$AY$245,3*($C$8-1)+3) -> 13169 | Y40: =VLOOKUP($S40,NA_All!$AA$5:$AY$245,3*($C$8-1)+4) -> 17381 | Z40: =IF(AND($B$8=$A$20,$B$6=$A$48),$B$54,IF(ISNA(VLOOKUP($B$6,$A$25:$E$52,IF($B$8=$A$22,3,2),FALSE)),EXP(VLOOKUP($B$6,$A$25:$E$52,4,FALSE)*LN(VLOOKUP($H40,P_Hard!$A$5:$Y$204,3*($C$8-1)+3,FALSE)/1000)+VLOOKUP($B$6,$A$25:$E$52,5,FALSE)),VLOOKUP($B$6,$A$25:$E$52,IF($B$8=$A$22,3,2),FALSE))) -> 
A41: Mg | H41: 17 | I41: =VLOOKUP($H41,P_All!$A$5:$Y$204,3*($C$8-1)+2) -> 13447 | J41: =VLOOKUP($H41,P_All!$A$5:$Y$204,3*($C$8-1)+3) -> 20895 | K41: =VLOOKUP($H41,P_All!$A$5:$Y$204,3*($C$8-1)+4) -> 24073 | L41: =VLOOKUP($H41,NA_All!$A$5:$Y$204,3*($C$8-1)+2) -> 8120.7 | M41: =VLOOKUP($H41,NA_All!$A$5:$Y$204,3*($C$8-1)+3) -> 14072 | N41: =VLOOKUP($H41,NA_All!$A$5:$Y$204,3*($C$8-1)+4) -> 19232 | O41: =IF(ISNA(VLOOKUP($B$6,$A$25:$E$52,IF($B$8=$A$22,3,2))),EXP(VLOOKUP($B$6,$A$25:$E$52,4)*LN(VLOOKUP($H41,P_Hard!$A$5:$Y$204,3*($C$8-1)+2)/1000)+VLOOKUP($B$6,$A$25:$E$52,5)),NA()) ->  | Q41: =IF(ISNA(VLOOKUP($B$6,$A$25:$E$52,IF($B$8=$A$22,3,2))),EXP(VLOOKUP($B$6,$A$25:$E$52,4)*LN(VLOOKUP($H41,P_Hard!$A$5:$Y$204,3*($C$8-1)+4)/1000)+VLOOKUP($B$6,$A$25:$E$52,5)),NA()) ->  | S41: 1.333333333 | T41: =VLOOKUP($S41,P_All!$AA$5:$AY$245,3*($C$8-1)+2) -> 2954.5 | U41: =VLOOKUP($S41,P_All!$AA$5:$AY$245,3*($C$8-1)+3) -> 7292.1 | V41: =VLOOKUP($S41,P_All!$AA$5:$AY$245,3*($C$8-1)+4) -> 15498 | W41: =VLOOKUP($S41,NA_All!$AA$5:$AY$245,3*($C$8-1)+2) -> 1383.4 | X41: =VLOOKUP($S41,NA_All!$AA$5:$AY$245,3*($C$8-1)+3) -> 4733 | Y41: =VLOOKUP($S41,NA_All!$AA$5:$AY$245,3*($C$8-1)+4) -> 19427 | Z41: =IF(AND($B$8=$A$20,$B$6=$A$48),$B$54,IF(ISNA(VLOOKUP($B$6,$A$25:$E$52,IF($B$8=$A$22,3,2),FALSE)),EXP(VLOOKUP($B$6,$A$25:$E$52,4,FALSE)*LN(VLOOKUP($H41,P_Hard!$A$5:$Y$204,3*($C$8-1)+3,FALSE)/1000)+VLOOKUP($B$6,$A$25:$E$52,5,FALSE)),VLOOKUP($B$6,$A$25:$E$52,IF($B$8=$A$22,3,2),FALSE))) -> 
A42: Mn | C42: 50 | H42: 18 | I42: =VLOOKUP($H42,P_All!$A$5:$Y$204,3*($C$8-1)+2) -> 13447 | J42: =VLOOKUP($H42,P_All!$A$5:$Y$204,3*($C$8-1)+3) -> 21619 | K42: =VLOOKUP($H42,P_All!$A$5:$Y$204,3*($C$8-1)+4) -> 24064 | L42: =VLOOKUP($H42,NA_All!$A$5:$Y$204,3*($C$8-1)+2) -> 8302 | M42: =VLOOKUP($H42,NA_All!$A$5:$Y$204,3*($C$8-1)+3) -> 14333 | N42: =VLOOKUP($H42,NA_All!$A$5:$Y$204,3*($C$8-1)+4) -> 19332 | O42: =IF(ISNA(VLOOKUP($B$6,$A$25:$E$52,IF($B$8=$A$22,3,2))),EXP(VLOOKUP($B$6,$A$25:$E$52,4)*LN(VLOOKUP($H42,P_Hard!$A$5:$Y$204,3*($C$8-1)+2)/1000)+VLOOKUP($B$6,$A$25:$E$52,5)),NA()) ->  | Q42: =IF(ISNA(VLOOKUP($B$6,$A$25:$E$52,IF($B$8=$A$22,3,2))),EXP(VLOOKUP($B$6,$A$25:$E$52,4)*LN(VLOOKUP($H42,P_Hard!$A$5:$Y$204,3*($C$8-1)+4)/1000)+VLOOKUP($B$6,$A$25:$E$52,5)),NA()) ->  | S42: 1.416666667 | T42: =VLOOKUP($S42,P_All!$AA$5:$AY$245,3*($C$8-1)+2) -> 3031.3 | U42: =VLOOKUP($S42,P_All!$AA$5:$AY$245,3*($C$8-1)+3) -> 6780.4 | V42: =VLOOKUP($S42,P_All!$AA$5:$AY$245,3*($C$8-1)+4) -> 15225 | W42: =VLOOKUP($S42,NA_All!$AA$5:$AY$245,3*($C$8-1)+2) -> 1255.4 | X42: =VLOOKUP($S42,NA_All!$AA$5:$AY$245,3*($C$8-1)+3) -> 4458.7 | Y42: =VLOOKUP($S42,NA_All!$AA$5:$AY$245,3*($C$8-1)+4) -> 19223 | Z42: =IF(AND($B$8=$A$20,$B$6=$A$48),$B$54,IF(ISNA(VLOOKUP($B$6,$A$25:$E$52,IF($B$8=$A$22,3,2),FALSE)),EXP(VLOOKUP($B$6,$A$25:$E$52,4,FALSE)*LN(VLOOKUP($H42,P_Hard!$A$5:$Y$204,3*($C$8-1)+3,FALSE)/1000)+VLOOKUP($B$6,$A$25:$E$52,5,FALSE)),VLOOKUP($B$6,$A$25:$E$52,IF($B$8=$A$22,3,2),FALSE))) -> 
A43: Na | H43: 19 | I43: =VLOOKUP($H43,P_All!$A$5:$Y$204,3*($C$8-1)+2) -> 13478 | J43: =VLOOKUP($H43,P_All!$A$5:$Y$204,3*($C$8-1)+3) -> 21863 | K43: =VLOOKUP($H43,P_All!$A$5:$Y$204,3*($C$8-1)+4) -> 24040 | L43: =VLOOKUP($H43,NA_All!$A$5:$Y$204,3*($C$8-1)+2) -> 8272.7 | M43: =VLOOKUP($H43,NA_All!$A$5:$Y$204,3*($C$8-1)+3) -> 14233 | N43: =VLOOKUP($H43,NA_All!$A$5:$Y$204,3*($C$8-1)+4) -> 19032 | O43: =IF(ISNA(VLOOKUP($B$6,$A$25:$E$52,IF($B$8=$A$22,3,2))),EXP(VLOOKUP($B$6,$A$25:$E$52,4)*LN(VLOOKUP($H43,P_Hard!$A$5:$Y$204,3*($C$8-1)+2)/1000)+VLOOKUP($B$6,$A$25:$E$52,5)),NA()) ->  | Q43: =IF(ISNA(VLOOKUP($B$6,$A$25:$E$52,IF($B$8=$A$22,3,2))),EXP(VLOOKUP($B$6,$A$25:$E$52,4)*LN(VLOOKUP($H43,P_Hard!$A$5:$Y$204,3*($C$8-1)+4)/1000)+VLOOKUP($B$6,$A$25:$E$52,5)),NA()) ->  | S43: 1.5 | T43: =VLOOKUP($S43,P_All!$AA$5:$AY$245,3*($C$8-1)+2) -> 3573.7 | U43: =VLOOKUP($S43,P_All!$AA$5:$AY$245,3*($C$8-1)+3) -> 8555.5 | V43: =VLOOKUP($S43,P_All!$AA$5:$AY$245,3*($C$8-1)+4) -> 16790 | W43: =VLOOKUP($S43,NA_All!$AA$5:$AY$245,3*($C$8-1)+2) -> 1918.3 | X43: =VLOOKUP($S43,NA_All!$AA$5:$AY$245,3*($C$8-1)+3) -> 6053.3 | Y43: =VLOOKUP($S43,NA_All!$AA$5:$AY$245,3*($C$8-1)+4) -> 18642 | Z43: =IF(AND($B$8=$A$20,$B$6=$A$48),$B$54,IF(ISNA(VLOOKUP($B$6,$A$25:$E$52,IF($B$8=$A$22,3,2),FALSE)),EXP(VLOOKUP($B$6,$A$25:$E$52,4,FALSE)*LN(VLOOKUP($H43,P_Hard!$A$5:$Y$204,3*($C$8-1)+3,FALSE)/1000)+VLOOKUP($B$6,$A$25:$E$52,5,FALSE)),VLOOKUP($B$6,$A$25:$E$52,IF($B$8=$A$22,3,2),FALSE))) -> 
A44: Ni | D44: 0.846 | E44: 0.0584 | F44: =EXP(D44*LN(IF($B$8=$A$17,$C$65,IF($B$8=$A$18,$C$66,NA())))+E44) -> 54.58010648 | H44: 20 | I44: =VLOOKUP($H44,P_All!$A$5:$Y$204,3*($C$8-1)+2) -> 13225 | J44: =VLOOKUP($H44,P_All!$A$5:$Y$204,3*($C$8-1)+3) -> 21544 | K44: =VLOOKUP($H44,P_All!$A$5:$Y$204,3*($C$8-1)+4) -> 24174 | L44: =VLOOKUP($H44,NA_All!$A$5:$Y$204,3*($C$8-1)+2) -> 8723.9 | M44: =VLOOKUP($H44,NA_All!$A$5:$Y$204,3*($C$8-1)+3) -> 14255 | N44: =VLOOKUP($H44,NA_All!$A$5:$Y$204,3*($C$8-1)+4) -> 19127 | O44: =IF(ISNA(VLOOKUP($B$6,$A$25:$E$52,IF($B$8=$A$22,3,2))),EXP(VLOOKUP($B$6,$A$25:$E$52,4)*LN(VLOOKUP($H44,P_Hard!$A$5:$Y$204,3*($C$8-1)+2)/1000)+VLOOKUP($B$6,$A$25:$E$52,5)),NA()) ->  | Q44: =IF(ISNA(VLOOKUP($B$6,$A$25:$E$52,IF($B$8=$A$22,3,2))),EXP(VLOOKUP($B$6,$A$25:$E$52,4)*LN(VLOOKUP($H44,P_Hard!$A$5:$Y$204,3*($C$8-1)+4)/1000)+VLOOKUP($B$6,$A$25:$E$52,5)),NA()) ->  | S44: 1.583333333 | T44: =VLOOKUP($S44,P_All!$AA$5:$AY$245,3*($C$8-1)+2) -> 4219.4 | U44: =VLOOKUP($S44,P_All!$AA$5:$AY$245,3*($C$8-1)+3) -> 10958 | V44: =VLOOKUP($S44,P_All!$AA$5:$AY$245,3*($C$8-1)+4) -> 20118 | W44: =VLOOKUP($S44,NA_All!$AA$5:$AY$245,3*($C$8-1)+2) -> 2167.3 | X44: =VLOOKUP($S44,NA_All!$AA$5:$AY$245,3*($C$8-1)+3) -> 7918.4 | Y44: =VLOOKUP($S44,NA_All!$AA$5:$AY$245,3*($C$8-1)+4) -> 17232 | Z44: =IF(AND($B$8=$A$20,$B$6=$A$48),$B$54,IF(ISNA(VLOOKUP($B$6,$A$25:$E$52,IF($B$8=$A$22,3,2),FALSE)),EXP(VLOOKUP($B$6,$A$25:$E$52,4,FALSE)*LN(VLOOKUP($H44,P_Hard!$A$5:$Y$204,3*($C$8-1)+3,FALSE)/1000)+VLOOKUP($B$6,$A$25:$E$52,5,FALSE)),VLOOKUP($B$6,$A$25:$E$52,IF($B$8=$A$22,3,2),FALSE))) -> 
A45: Pb | D45: 1.273 | E45: -4.705 | F45: =EXP(D45*LN(IF($B$8=$A$17,$C$65,IF($B$8=$A$18,$C$66,NA())))+E45) -> 3.40600157 | H45: 21 | I45: =VLOOKUP($H45,P_All!$A$5:$Y$204,3*($C$8-1)+2) -> 13070 | J45: =VLOOKUP($H45,P_All!$A$5:$Y$204,3*($C$8-1)+3) -> 21410 | K45: =VLOOKUP($H45,P_All!$A$5:$Y$204,3*($C$8-1)+4) -> 23820 | L45: =VLOOKUP($H45,NA_All!$A$5:$Y$204,3*($C$8-1)+2) -> 7749.8 | M45: =VLOOKUP($H45,NA_All!$A$5:$Y$204,3*($C$8-1)+3) -> 14243 | N45: =VLOOKUP($H45,NA_All!$A$5:$Y$204,3*($C$8-1)+4) -> 19344 | O45: =IF(ISNA(VLOOKUP($B$6,$A$25:$E$52,IF($B$8=$A$22,3,2))),EXP(VLOOKUP($B$6,$A$25:$E$52,4)*LN(VLOOKUP($H45,P_Hard!$A$5:$Y$204,3*($C$8-1)+2)/1000)+VLOOKUP($B$6,$A$25:$E$52,5)),NA()) ->  | Q45: =IF(ISNA(VLOOKUP($B$6,$A$25:$E$52,IF($B$8=$A$22,3,2))),EXP(VLOOKUP($B$6,$A$25:$E$52,4)*LN(VLOOKUP($H45,P_Hard!$A$5:$Y$204,3*($C$8-1)+4)/1000)+VLOOKUP($B$6,$A$25:$E$52,5)),NA()) ->  | S45: 1.666666667 | T45: =VLOOKUP($S45,P_All!$AA$5:$AY$245,3*($C$8-1)+2) -> 3867.7 | U45: =VLOOKUP($S45,P_All!$AA$5:$AY$245,3*($C$8-1)+3) -> 10243 | V45: =VLOOKUP($S45,P_All!$AA$5:$AY$245,3*($C$8-1)+4) -> 21177 | W45: =VLOOKUP($S45,NA_All!$AA$5:$AY$245,3*($C$8-1)+2) -> 1880.5 | X45: =VLOOKUP($S45,NA_All!$AA$5:$AY$245,3*($C$8-1)+3) -> 6416.9 | Y45: =VLOOKUP($S45,NA_All!$AA$5:$AY$245,3*($C$8-1)+4) -> 18314 | Z45: =IF(AND($B$8=$A$20,$B$6=$A$48),$B$54,IF(ISNA(VLOOKUP($B$6,$A$25:$E$52,IF($B$8=$A$22,3,2),FALSE)),EXP(VLOOKUP($B$6,$A$25:$E$52,4,FALSE)*LN(VLOOKUP($H45,P_Hard!$A$5:$Y$204,3*($C$8-1)+3,FALSE)/1000)+VLOOKUP($B$6,$A$25:$E$52,5,FALSE)),VLOOKUP($B$6,$A$25:$E$52,IF($B$8=$A$22,3,2),FALSE))) -> 
A46: Sb | B46: 31 | C46: 5.5 | H46: 22 | I46: =VLOOKUP($H46,P_All!$A$5:$Y$204,3*($C$8-1)+2) -> 13365 | J46: =VLOOKUP($H46,P_All!$A$5:$Y$204,3*($C$8-1)+3) -> 21727 | K46: =VLOOKUP($H46,P_All!$A$5:$Y$204,3*($C$8-1)+4) -> 23833 | L46: =VLOOKUP($H46,NA_All!$A$5:$Y$204,3*($C$8-1)+2) -> 8536.3 | M46: =VLOOKUP($H46,NA_All!$A$5:$Y$204,3*($C$8-1)+3) -> 14457 | N46: =VLOOKUP($H46,NA_All!$A$5:$Y$204,3*($C$8-1)+4) -> 19271 | O46: =IF(ISNA(VLOOKUP($B$6,$A$25:$E$52,IF($B$8=$A$22,3,2))),EXP(VLOOKUP($B$6,$A$25:$E$52,4)*LN(VLOOKUP($H46,P_Hard!$A$5:$Y$204,3*($C$8-1)+2)/1000)+VLOOKUP($B$6,$A$25:$E$52,5)),NA()) ->  | Q46: =IF(ISNA(VLOOKUP($B$6,$A$25:$E$52,IF($B$8=$A$22,3,2))),EXP(VLOOKUP($B$6,$A$25:$E$52,4)*LN(VLOOKUP($H46,P_Hard!$A$5:$Y$204,3*($C$8-1)+4)/1000)+VLOOKUP($B$6,$A$25:$E$52,5)),NA()) ->  | S46: 1.75 | T46: =VLOOKUP($S46,P_All!$AA$5:$AY$245,3*($C$8-1)+2) -> 4414.4 | U46: =VLOOKUP($S46,P_All!$AA$5:$AY$245,3*($C$8-1)+3) -> 9731.5 | V46: =VLOOKUP($S46,P_All!$AA$5:$AY$245,3*($C$8-1)+4) -> 17816 | W46: =VLOOKUP($S46,NA_All!$AA$5:$AY$245,3*($C$8-1)+2) -> 1998.3 | X46: =VLOOKUP($S46,NA_All!$AA$5:$AY$245,3*($C$8-1)+3) -> 6087.9 | Y46: =VLOOKUP($S46,NA_All!$AA$5:$AY$245,3*($C$8-1)+4) -> 18009 | Z46: =IF(AND($B$8=$A$20,$B$6=$A$48),$B$54,IF(ISNA(VLOOKUP($B$6,$A$25:$E$52,IF($B$8=$A$22,3,2),FALSE)),EXP(VLOOKUP($B$6,$A$25:$E$52,4,FALSE)*LN(VLOOKUP($H46,P_Hard!$A$5:$Y$204,3*($C$8-1)+3,FALSE)/1000)+VLOOKUP($B$6,$A$25:$E$52,5,FALSE)),VLOOKUP($B$6,$A$25:$E$52,IF($B$8=$A$22,3,2),FALSE))) -> 
A47: Se | B47: 5 | C47: 5 | H47: 23 | I47: =VLOOKUP($H47,P_All!$A$5:$Y$204,3*($C$8-1)+2) -> 13293 | J47: =VLOOKUP($H47,P_All!$A$5:$Y$204,3*($C$8-1)+3) -> 21407 | K47: =VLOOKUP($H47,P_All!$A$5:$Y$204,3*($C$8-1)+4) -> 24068 | L47: =VLOOKUP($H47,NA_All!$A$5:$Y$204,3*($C$8-1)+2) -> 8588.5 | M47: =VLOOKUP($H47,NA_All!$A$5:$Y$204,3*($C$8-1)+3) -> 14257 | N47: =VLOOKUP($H47,NA_All!$A$5:$Y$204,3*($C$8-1)+4) -> 18783 | O47: =IF(ISNA(VLOOKUP($B$6,$A$25:$E$52,IF($B$8=$A$22,3,2))),EXP(VLOOKUP($B$6,$A$25:$E$52,4)*LN(VLOOKUP($H47,P_Hard!$A$5:$Y$204,3*($C$8-1)+2)/1000)+VLOOKUP($B$6,$A$25:$E$52,5)),NA()) ->  | Q47: =IF(ISNA(VLOOKUP($B$6,$A$25:$E$52,IF($B$8=$A$22,3,2))),EXP(VLOOKUP($B$6,$A$25:$E$52,4)*LN(VLOOKUP($H47,P_Hard!$A$5:$Y$204,3*($C$8-1)+4)/1000)+VLOOKUP($B$6,$A$25:$E$52,5)),NA()) ->  | S47: 1.833333333 | T47: =VLOOKUP($S47,P_All!$AA$5:$AY$245,3*($C$8-1)+2) -> 4027.9 | U47: =VLOOKUP($S47,P_All!$AA$5:$AY$245,3*($C$8-1)+3) -> 8942.8 | V47: =VLOOKUP($S47,P_All!$AA$5:$AY$245,3*($C$8-1)+4) -> 16494 | W47: =VLOOKUP($S47,NA_All!$AA$5:$AY$245,3*($C$8-1)+2) -> 1879.6 | X47: =VLOOKUP($S47,NA_All!$AA$5:$AY$245,3*($C$8-1)+3) -> 5370.6 | Y47: =VLOOKUP($S47,NA_All!$AA$5:$AY$245,3*($C$8-1)+4) -> 18240 | Z47: =IF(AND($B$8=$A$20,$B$6=$A$48),$B$54,IF(ISNA(VLOOKUP($B$6,$A$25:$E$52,IF($B$8=$A$22,3,2),FALSE)),EXP(VLOOKUP($B$6,$A$25:$E$52,4,FALSE)*LN(VLOOKUP($H47,P_Hard!$A$5:$Y$204,3*($C$8-1)+3,FALSE)/1000)+VLOOKUP($B$6,$A$25:$E$52,5,FALSE)),VLOOKUP($B$6,$A$25:$E$52,IF($B$8=$A$22,3,2),FALSE))) -> 
A48: SO4 | C48: 250000 | H48: 24 | I48: =VLOOKUP($H48,P_All!$A$5:$Y$204,3*($C$8-1)+2) -> 13858 | J48: =VLOOKUP($H48,P_All!$A$5:$Y$204,3*($C$8-1)+3) -> 21808 | K48: =VLOOKUP($H48,P_All!$A$5:$Y$204,3*($C$8-1)+4) -> 24064 | L48: =VLOOKUP($H48,NA_All!$A$5:$Y$204,3*($C$8-1)+2) -> 8281.2 | M48: =VLOOKUP($H48,NA_All!$A$5:$Y$204,3*($C$8-1)+3) -> 14294 | N48: =VLOOKUP($H48,NA_All!$A$5:$Y$204,3*($C$8-1)+4) -> 19296 | O48: =IF(ISNA(VLOOKUP($B$6,$A$25:$E$52,IF($B$8=$A$22,3,2))),EXP(VLOOKUP($B$6,$A$25:$E$52,4)*LN(VLOOKUP($H48,P_Hard!$A$5:$Y$204,3*($C$8-1)+2)/1000)+VLOOKUP($B$6,$A$25:$E$52,5)),NA()) ->  | Q48: =IF(ISNA(VLOOKUP($B$6,$A$25:$E$52,IF($B$8=$A$22,3,2))),EXP(VLOOKUP($B$6,$A$25:$E$52,4)*LN(VLOOKUP($H48,P_Hard!$A$5:$Y$204,3*($C$8-1)+4)/1000)+VLOOKUP($B$6,$A$25:$E$52,5)),NA()) ->  | S48: 1.916666667 | T48: =VLOOKUP($S48,P_All!$AA$5:$AY$245,3*($C$8-1)+2) -> 4922.5 | U48: =VLOOKUP($S48,P_All!$AA$5:$AY$245,3*($C$8-1)+3) -> 10046 | V48: =VLOOKUP($S48,P_All!$AA$5:$AY$245,3*($C$8-1)+4) -> 15792 | W48: =VLOOKUP($S48,NA_All!$AA$5:$AY$245,3*($C$8-1)+2) -> 2466.8 | X48: =VLOOKUP($S48,NA_All!$AA$5:$AY$245,3*($C$8-1)+3) -> 6252.3 | Y48: =VLOOKUP($S48,NA_All!$AA$5:$AY$245,3*($C$8-1)+4) -> 18270 | Z48: =IF(AND($B$8=$A$20,$B$6=$A$48),$B$54,IF(ISNA(VLOOKUP($B$6,$A$25:$E$52,IF($B$8=$A$22,3,2),FALSE)),EXP(VLOOKUP($B$6,$A$25:$E$52,4,FALSE)*LN(VLOOKUP($H48,P_Hard!$A$5:$Y$204,3*($C$8-1)+3,FALSE)/1000)+VLOOKUP($B$6,$A$25:$E$52,5,FALSE)),VLOOKUP($B$6,$A$25:$E$52,IF($B$8=$A$22,3,2),FALSE))) -> 
A49: Tl | B49: 0.56 | C49: 0.28 | H49: 25 | I49: =VLOOKUP($H49,P_All!$A$5:$Y$204,3*($C$8-1)+2) -> 12945 | J49: =VLOOKUP($H49,P_All!$A$5:$Y$204,3*($C$8-1)+3) -> 21691 | K49: =VLOOKUP($H49,P_All!$A$5:$Y$204,3*($C$8-1)+4) -> 23744 | L49: =VLOOKUP($H49,NA_All!$A$5:$Y$204,3*($C$8-1)+2) -> 7613.2 | M49: =VLOOKUP($H49,NA_All!$A$5:$Y$204,3*($C$8-1)+3) -> 14403 | N49: =VLOOKUP($H49,NA_All!$A$5:$Y$204,3*($C$8-1)+4) -> 19123 | O49: =IF(ISNA(VLOOKUP($B$6,$A$25:$E$52,IF($B$8=$A$22,3,2))),EXP(VLOOKUP($B$6,$A$25:$E$52,4)*LN(VLOOKUP($H49,P_Hard!$A$5:$Y$204,3*($C$8-1)+2)/1000)+VLOOKUP($B$6,$A$25:$E$52,5)),NA()) ->  | Q49: =IF(ISNA(VLOOKUP($B$6,$A$25:$E$52,IF($B$8=$A$22,3,2))),EXP(VLOOKUP($B$6,$A$25:$E$52,4)*LN(VLOOKUP($H49,P_Hard!$A$5:$Y$204,3*($C$8-1)+4)/1000)+VLOOKUP($B$6,$A$25:$E$52,5)),NA()) ->  | S49: 2 | T49: =VLOOKUP($S49,P_All!$AA$5:$AY$245,3*($C$8-1)+2) -> 8755.9 | U49: =VLOOKUP($S49,P_All!$AA$5:$AY$245,3*($C$8-1)+3) -> 13838 | V49: =VLOOKUP($S49,P_All!$AA$5:$AY$245,3*($C$8-1)+4) -> 17685 | W49: =VLOOKUP($S49,NA_All!$AA$5:$AY$245,3*($C$8-1)+2) -> 4765.6 | X49: =VLOOKUP($S49,NA_All!$AA$5:$AY$245,3*($C$8-1)+3) -> 8974.4 | Y49: =VLOOKUP($S49,NA_All!$AA$5:$AY$245,3*($C$8-1)+4) -> 16104 | Z49: =IF(AND($B$8=$A$20,$B$6=$A$48),$B$54,IF(ISNA(VLOOKUP($B$6,$A$25:$E$52,IF($B$8=$A$22,3,2),FALSE)),EXP(VLOOKUP($B$6,$A$25:$E$52,4,FALSE)*LN(VLOOKUP($H49,P_Hard!$A$5:$Y$204,3*($C$8-1)+3,FALSE)/1000)+VLOOKUP($B$6,$A$25:$E$52,5,FALSE)),VLOOKUP($B$6,$A$25:$E$52,IF($B$8=$A$22,3,2),FALSE))) -> 
A50: V | H50: 26 | I50: =VLOOKUP($H50,P_All!$A$5:$Y$204,3*($C$8-1)+2) -> 13468 | J50: =VLOOKUP($H50,P_All!$A$5:$Y$204,3*($C$8-1)+3) -> 21413 | K50: =VLOOKUP($H50,P_All!$A$5:$Y$204,3*($C$8-1)+4) -> 23925 | L50: =VLOOKUP($H50,NA_All!$A$5:$Y$204,3*($C$8-1)+2) -> 7975.7 | M50: =VLOOKUP($H50,NA_All!$A$5:$Y$204,3*($C$8-1)+3) -> 14165 | N50: =VLOOKUP($H50,NA_All!$A$5:$Y$204,3*($C$8-1)+4) -> 18816 | O50: =IF(ISNA(VLOOKUP($B$6,$A$25:$E$52,IF($B$8=$A$22,3,2))),EXP(VLOOKUP($B$6,$A$25:$E$52,4)*LN(VLOOKUP($H50,P_Hard!$A$5:$Y$204,3*($C$8-1)+2)/1000)+VLOOKUP($B$6,$A$25:$E$52,5)),NA()) ->  | Q50: =IF(ISNA(VLOOKUP($B$6,$A$25:$E$52,IF($B$8=$A$22,3,2))),EXP(VLOOKUP($B$6,$A$25:$E$52,4)*LN(VLOOKUP($H50,P_Hard!$A$5:$Y$204,3*($C$8-1)+4)/1000)+VLOOKUP($B$6,$A$25:$E$52,5)),NA()) ->  | S50: 2.083333333 | T50: =VLOOKUP($S50,P_All!$AA$5:$AY$245,3*($C$8-1)+2) -> 12404 | U50: =VLOOKUP($S50,P_All!$AA$5:$AY$245,3*($C$8-1)+3) -> 16848 | V50: =VLOOKUP($S50,P_All!$AA$5:$AY$245,3*($C$8-1)+4) -> 21590 | W50: =VLOOKUP($S50,NA_All!$AA$5:$AY$245,3*($C$8-1)+2) -> 7045.7 | X50: =VLOOKUP($S50,NA_All!$AA$5:$AY$245,3*($C$8-1)+3) -> 11785 | Y50: =VLOOKUP($S50,NA_All!$AA$5:$AY$245,3*($C$8-1)+4) -> 15752 | Z50: =IF(AND($B$8=$A$20,$B$6=$A$48),$B$54,IF(ISNA(VLOOKUP($B$6,$A$25:$E$52,IF($B$8=$A$22,3,2),FALSE)),EXP(VLOOKUP($B$6,$A$25:$E$52,4,FALSE)*LN(VLOOKUP($H50,P_Hard!$A$5:$Y$204,3*($C$8-1)+3,FALSE)/1000)+VLOOKUP($B$6,$A$25:$E$52,5,FALSE)),VLOOKUP($B$6,$A$25:$E$52,IF($B$8=$A$22,3,2),FALSE))) -> 
A51: Zn | D51: 0.8473 | E51: 0.884 | F51: =EXP(D51*LN(IF($B$8=$A$17,$C$65,IF($B$8=$A$18,$C$66,NA())))+E51) -> 125.3770742 | H51: 27 | I51: =VLOOKUP($H51,P_All!$A$5:$Y$204,3*($C$8-1)+2) -> 13358 | J51: =VLOOKUP($H51,P_All!$A$5:$Y$204,3*($C$8-1)+3) -> 21251 | K51: =VLOOKUP($H51,P_All!$A$5:$Y$204,3*($C$8-1)+4) -> 23993 | L51: =VLOOKUP($H51,NA_All!$A$5:$Y$204,3*($C$8-1)+2) -> 8163 | M51: =VLOOKUP($H51,NA_All!$A$5:$Y$204,3*($C$8-1)+3) -> 14295 | N51: =VLOOKUP($H51,NA_All!$A$5:$Y$204,3*($C$8-1)+4) -> 19150 | O51: =IF(ISNA(VLOOKUP($B$6,$A$25:$E$52,IF($B$8=$A$22,3,2))),EXP(VLOOKUP($B$6,$A$25:$E$52,4)*LN(VLOOKUP($H51,P_Hard!$A$5:$Y$204,3*($C$8-1)+2)/1000)+VLOOKUP($B$6,$A$25:$E$52,5)),NA()) ->  | Q51: =IF(ISNA(VLOOKUP($B$6,$A$25:$E$52,IF($B$8=$A$22,3,2))),EXP(VLOOKUP($B$6,$A$25:$E$52,4)*LN(VLOOKUP($H51,P_Hard!$A$5:$Y$204,3*($C$8-1)+4)/1000)+VLOOKUP($B$6,$A$25:$E$52,5)),NA()) ->  | S51: 2.166666667 | T51: =VLOOKUP($S51,P_All!$AA$5:$AY$245,3*($C$8-1)+2) -> 13803 | U51: =VLOOKUP($S51,P_All!$AA$5:$AY$245,3*($C$8-1)+3) -> 21681 | V51: =VLOOKUP($S51,P_All!$AA$5:$AY$245,3*($C$8-1)+4) -> 23771 | W51: =VLOOKUP($S51,NA_All!$AA$5:$AY$245,3*($C$8-1)+2) -> 7901.5 | X51: =VLOOKUP($S51,NA_All!$AA$5:$AY$245,3*($C$8-1)+3) -> 14201 | Y51: =VLOOKUP($S51,NA_All!$AA$5:$AY$245,3*($C$8-1)+4) -> 16834 | Z51: =IF(AND($B$8=$A$20,$B$6=$A$48),$B$54,IF(ISNA(VLOOKUP($B$6,$A$25:$E$52,IF($B$8=$A$22,3,2),FALSE)),EXP(VLOOKUP($B$6,$A$25:$E$52,4,FALSE)*LN(VLOOKUP($H51,P_Hard!$A$5:$Y$204,3*($C$8-1)+3,FALSE)/1000)+VLOOKUP($B$6,$A$25:$E$52,5,FALSE)),VLOOKUP($B$6,$A$25:$E$52,IF($B$8=$A$22,3,2),FALSE))) -> 
A52: Hardness | B52: 500000 | C52: 500000 | H52: 28 | I52: =VLOOKUP($H52,P_All!$A$5:$Y$204,3*($C$8-1)+2) -> 13391 | J52: =VLOOKUP($H52,P_All!$A$5:$Y$204,3*($C$8-1)+3) -> 21686 | K52: =VLOOKUP($H52,P_All!$A$5:$Y$204,3*($C$8-1)+4) -> 24272 | L52: =VLOOKUP($H52,NA_All!$A$5:$Y$204,3*($C$8-1)+2) -> 8010.4 | M52: =VLOOKUP($H52,NA_All!$A$5:$Y$204,3*($C$8-1)+3) -> 14374 | N52: =VLOOKUP($H52,NA_All!$A$5:$Y$204,3*($C$8-1)+4) -> 19192 | O52: =IF(ISNA(VLOOKUP($B$6,$A$25:$E$52,IF($B$8=$A$22,3,2))),EXP(VLOOKUP($B$6,$A$25:$E$52,4)*LN(VLOOKUP($H52,P_Hard!$A$5:$Y$204,3*($C$8-1)+2)/1000)+VLOOKUP($B$6,$A$25:$E$52,5)),NA()) ->  | Q52: =IF(ISNA(VLOOKUP($B$6,$A$25:$E$52,IF($B$8=$A$22,3,2))),EXP(VLOOKUP($B$6,$A$25:$E$52,4)*LN(VLOOKUP($H52,P_Hard!$A$5:$Y$204,3*($C$8-1)+4)/1000)+VLOOKUP($B$6,$A$25:$E$52,5)),NA()) ->  | S52: 2.25 | T52: =VLOOKUP($S52,P_All!$AA$5:$AY$245,3*($C$8-1)+2) -> 6360.4 | U52: =VLOOKUP($S52,P_All!$AA$5:$AY$245,3*($C$8-1)+3) -> 17914 | V52: =VLOOKUP($S52,P_All!$AA$5:$AY$245,3*($C$8-1)+4) -> 24096 | W52: =VLOOKUP($S52,NA_All!$AA$5:$AY$245,3*($C$8-1)+2) -> 3698.1 | X52: =VLOOKUP($S52,NA_All!$AA$5:$AY$245,3*($C$8-1)+3) -> 13021 | Y52: =VLOOKUP($S52,NA_All!$AA$5:$AY$245,3*($C$8-1)+4) -> 17363 | Z52: =IF(AND($B$8=$A$20,$B$6=$A$48),$B$54,IF(ISNA(VLOOKUP($B$6,$A$25:$E$52,IF($B$8=$A$22,3,2),FALSE)),EXP(VLOOKUP($B$6,$A$25:$E$52,4,FALSE)*LN(VLOOKUP($H52,P_Hard!$A$5:$Y$204,3*($C$8-1)+3,FALSE)/1000)+VLOOKUP($B$6,$A$25:$E$52,5,FALSE)),VLOOKUP($B$6,$A$25:$E$52,IF($B$8=$A$22,3,2),FALSE))) -> 
H53: 29 | I53: =VLOOKUP($H53,P_All!$A$5:$Y$204,3*($C$8-1)+2) -> 13664 | J53: =VLOOKUP($H53,P_All!$A$5:$Y$204,3*($C$8-1)+3) -> 21574 | K53: =VLOOKUP($H53,P_All!$A$5:$Y$204,3*($C$8-1)+4) -> 23778 | L53: =VLOOKUP($H53,NA_All!$A$5:$Y$204,3*($C$8-1)+2) -> 8276.5 | M53: =VLOOKUP($H53,NA_All!$A$5:$Y$204,3*($C$8-1)+3) -> 14344 | N53: =VLOOKUP($H53,NA_All!$A$5:$Y$204,3*($C$8-1)+4) -> 19248 | O53: =IF(ISNA(VLOOKUP($B$6,$A$25:$E$52,IF($B$8=$A$22,3,2))),EXP(VLOOKUP($B$6,$A$25:$E$52,4)*LN(VLOOKUP($H53,P_Hard!$A$5:$Y$204,3*($C$8-1)+2)/1000)+VLOOKUP($B$6,$A$25:$E$52,5)),NA()) ->  | Q53: =IF(ISNA(VLOOKUP($B$6,$A$25:$E$52,IF($B$8=$A$22,3,2))),EXP(VLOOKUP($B$6,$A$25:$E$52,4)*LN(VLOOKUP($H53,P_Hard!$A$5:$Y$204,3*($C$8-1)+4)/1000)+VLOOKUP($B$6,$A$25:$E$52,5)),NA()) ->  | S53: 2.333333333 | T53: =VLOOKUP($S53,P_All!$AA$5:$AY$245,3*($C$8-1)+2) -> 2996.3 | U53: =VLOOKUP($S53,P_All!$AA$5:$AY$245,3*($C$8-1)+3) -> 7420 | V53: =VLOOKUP($S53,P_All!$AA$5:$AY$245,3*($C$8-1)+4) -> 16914 | W53: =VLOOKUP($S53,NA_All!$AA$5:$AY$245,3*($C$8-1)+2) -> 1333.3 | X53: =VLOOKUP($S53,NA_All!$AA$5:$AY$245,3*($C$8-1)+3) -> 4775.2 | Y53: =VLOOKUP($S53,NA_All!$AA$5:$AY$245,3*($C$8-1)+4) -> 18795 | Z53: =IF(AND($B$8=$A$20,$B$6=$A$48),$B$54,IF(ISNA(VLOOKUP($B$6,$A$25:$E$52,IF($B$8=$A$22,3,2),FALSE)),EXP(VLOOKUP($B$6,$A$25:$E$52,4,FALSE)*LN(VLOOKUP($H53,P_Hard!$A$5:$Y$204,3*($C$8-1)+3,FALSE)/1000)+VLOOKUP($B$6,$A$25:$E$52,5,FALSE)),VLOOKUP($B$6,$A$25:$E$52,IF($B$8=$A$22,3,2),FALSE))) -> 
A54: SO4 wild rice | B54: 10000 | C54: applies at SW-005 only, April-August | H54: 30 | I54: =VLOOKUP($H54,P_All!$A$5:$Y$204,3*($C$8-1)+2) -> 12838 | J54: =VLOOKUP($H54,P_All!$A$5:$Y$204,3*($C$8-1)+3) -> 21170 | K54: =VLOOKUP($H54,P_All!$A$5:$Y$204,3*($C$8-1)+4) -> 23989 | L54: =VLOOKUP($H54,NA_All!$A$5:$Y$204,3*($C$8-1)+2) -> 7873.2 | M54: =VLOOKUP($H54,NA_All!$A$5:$Y$204,3*($C$8-1)+3) -> 14232 | N54: =VLOOKUP($H54,NA_All!$A$5:$Y$204,3*($C$8-1)+4) -> 19094 | O54: =IF(ISNA(VLOOKUP($B$6,$A$25:$E$52,IF($B$8=$A$22,3,2))),EXP(VLOOKUP($B$6,$A$25:$E$52,4)*LN(VLOOKUP($H54,P_Hard!$A$5:$Y$204,3*($C$8-1)+2)/1000)+VLOOKUP($B$6,$A$25:$E$52,5)),NA()) ->  | Q54: =IF(ISNA(VLOOKUP($B$6,$A$25:$E$52,IF($B$8=$A$22,3,2))),EXP(VLOOKUP($B$6,$A$25:$E$52,4)*LN(VLOOKUP($H54,P_Hard!$A$5:$Y$204,3*($C$8-1)+4)/1000)+VLOOKUP($B$6,$A$25:$E$52,5)),NA()) ->  | S54: 2.416666667 | T54: =VLOOKUP($S54,P_All!$AA$5:$AY$245,3*($C$8-1)+2) -> 2818.3 | U54: =VLOOKUP($S54,P_All!$AA$5:$AY$245,3*($C$8-1)+3) -> 6825.2 | V54: =VLOOKUP($S54,P_All!$AA$5:$AY$245,3*($C$8-1)+4) -> 14877 | W54: =VLOOKUP($S54,NA_All!$AA$5:$AY$245,3*($C$8-1)+2) -> 1365.4 | X54: =VLOOKUP($S54,NA_All!$AA$5:$AY$245,3*($C$8-1)+3) -> 4619.3 | Y54: =VLOOKUP($S54,NA_All!$AA$5:$AY$245,3*($C$8-1)+4) -> 19145 | Z54: =IF(AND($B$8=$A$20,$B$6=$A$48),$B$54,IF(ISNA(VLOOKUP($B$6,$A$25:$E$52,IF($B$8=$A$22,3,2),FALSE)),EXP(VLOOKUP($B$6,$A$25:$E$52,4,FALSE)*LN(VLOOKUP($H54,P_Hard!$A$5:$Y$204,3*($C$8-1)+3,FALSE)/1000)+VLOOKUP($B$6,$A$25:$E$52,5,FALSE)),VLOOKUP($B$6,$A$25:$E$52,IF($B$8=$A$22,3,2),FALSE))) -> 
H55: 31 | I55: =VLOOKUP($H55,P_All!$A$5:$Y$204,3*($C$8-1)+2) -> 12873 | J55: =VLOOKUP($H55,P_All!$A$5:$Y$204,3*($C$8-1)+3) -> 21549 | K55: =VLOOKUP($H55,P_All!$A$5:$Y$204,3*($C$8-1)+4) -> 24264 | L55: =VLOOKUP($H55,NA_All!$A$5:$Y$204,3*($C$8-1)+2) -> 7901.1 | M55: =VLOOKUP($H55,NA_All!$A$5:$Y$204,3*($C$8-1)+3) -> 14288 | N55: =VLOOKUP($H55,NA_All!$A$5:$Y$204,3*($C$8-1)+4) -> 19084 | O55: =IF(ISNA(VLOOKUP($B$6,$A$25:$E$52,IF($B$8=$A$22,3,2))),EXP(VLOOKUP($B$6,$A$25:$E$52,4)*LN(VLOOKUP($H55,P_Hard!$A$5:$Y$204,3*($C$8-1)+2)/1000)+VLOOKUP($B$6,$A$25:$E$52,5)),NA()) ->  | Q55: =IF(ISNA(VLOOKUP($B$6,$A$25:$E$52,IF($B$8=$A$22,3,2))),EXP(VLOOKUP($B$6,$A$25:$E$52,4)*LN(VLOOKUP($H55,P_Hard!$A$5:$Y$204,3*($C$8-1)+4)/1000)+VLOOKUP($B$6,$A$25:$E$52,5)),NA()) ->  | S55: 2.5 | T55: =VLOOKUP($S55,P_All!$AA$5:$AY$245,3*($C$8-1)+2) -> 3663.4 | U55: =VLOOKUP($S55,P_All!$AA$5:$AY$245,3*($C$8-1)+3) -> 8077.2 | V55: =VLOOKUP($S55,P_All!$AA$5:$AY$245,3*($C$8-1)+4) -> 16335 | W55: =VLOOKUP($S55,NA_All!$AA$5:$AY$245,3*($C$8-1)+2) -> 1774.4 | X55: =VLOOKUP($S55,NA_All!$AA$5:$AY$245,3*($C$8-1)+3) -> 5677.6 | Y55: =VLOOKUP($S55,NA_All!$AA$5:$AY$245,3*($C$8-1)+4) -> 18378 | Z55: =IF(AND($B$8=$A$20,$B$6=$A$48),$B$54,IF(ISNA(VLOOKUP($B$6,$A$25:$E$52,IF($B$8=$A$22,3,2),FALSE)),EXP(VLOOKUP($B$6,$A$25:$E$52,4,FALSE)*LN(VLOOKUP($H55,P_Hard!$A$5:$Y$204,3*($C$8-1)+3,FALSE)/1000)+VLOOKUP($B$6,$A$25:$E$52,5,FALSE)),VLOOKUP($B$6,$A$25:$E$52,IF($B$8=$A$22,3,2),FALSE))) -> 
H56: 32 | I56: =VLOOKUP($H56,P_All!$A$5:$Y$204,3*($C$8-1)+2) -> 13548 | J56: =VLOOKUP($H56,P_All!$A$5:$Y$204,3*($C$8-1)+3) -> 21544 | K56: =VLOOKUP($H56,P_All!$A$5:$Y$204,3*($C$8-1)+4) -> 24006 | L56: =VLOOKUP($H56,NA_All!$A$5:$Y$204,3*($C$8-1)+2) -> 7810.4 | M56: =VLOOKUP($H56,NA_All!$A$5:$Y$204,3*($C$8-1)+3) -> 14344 | N56: =VLOOKUP($H56,NA_All!$A$5:$Y$204,3*($C$8-1)+4) -> 18819 | O56: =IF(ISNA(VLOOKUP($B$6,$A$25:$E$52,IF($B$8=$A$22,3,2))),EXP(VLOOKUP($B$6,$A$25:$E$52,4)*LN(VLOOKUP($H56,P_Hard!$A$5:$Y$204,3*($C$8-1)+2)/1000)+VLOOKUP($B$6,$A$25:$E$52,5)),NA()) ->  | Q56: =IF(ISNA(VLOOKUP($B$6,$A$25:$E$52,IF($B$8=$A$22,3,2))),EXP(VLOOKUP($B$6,$A$25:$E$52,4)*LN(VLOOKUP($H56,P_Hard!$A$5:$Y$204,3*($C$8-1)+4)/1000)+VLOOKUP($B$6,$A$25:$E$52,5)),NA()) ->  | S56: 2.583333333 | T56: =VLOOKUP($S56,P_All!$AA$5:$AY$245,3*($C$8-1)+2) -> 3911.1 | U56: =VLOOKUP($S56,P_All!$AA$5:$AY$245,3*($C$8-1)+3) -> 10608 | V56: =VLOOKUP($S56,P_All!$AA$5:$AY$245,3*($C$8-1)+4) -> 19952 | W56: =VLOOKUP($S56,NA_All!$AA$5:$AY$245,3*($C$8-1)+2) -> 2061.8 | X56: =VLOOKUP($S56,NA_All!$AA$5:$AY$245,3*($C$8-1)+3) -> 7915.9 | Y56: =VLOOKUP($S56,NA_All!$AA$5:$AY$245,3*($C$8-1)+4) -> 17470 | Z56: =IF(AND($B$8=$A$20,$B$6=$A$48),$B$54,IF(ISNA(VLOOKUP($B$6,$A$25:$E$52,IF($B$8=$A$22,3,2),FALSE)),EXP(VLOOKUP($B$6,$A$25:$E$52,4,FALSE)*LN(VLOOKUP($H56,P_Hard!$A$5:$Y$204,3*($C$8-1)+3,FALSE)/1000)+VLOOKUP($B$6,$A$25:$E$52,5,FALSE)),VLOOKUP($B$6,$A$25:$E$52,IF($B$8=$A$22,3,2),FALSE))) -> 
A57: Plots | H57: 33 | I57: =VLOOKUP($H57,P_All!$A$5:$Y$204,3*($C$8-1)+2) -> 13189 | J57: =VLOOKUP($H57,P_All!$A$5:$Y$204,3*($C$8-1)+3) -> 21357 | K57: =VLOOKUP($H57,P_All!$A$5:$Y$204,3*($C$8-1)+4) -> 24068 | L57: =VLOOKUP($H57,NA_All!$A$5:$Y$204,3*($C$8-1)+2) -> 7978.2 | M57: =VLOOKUP($H57,NA_All!$A$5:$Y$204,3*($C$8-1)+3) -> 14279 | N57: =VLOOKUP($H57,NA_All!$A$5:$Y$204,3*($C$8-1)+4) -> 19268 | O57: =IF(ISNA(VLOOKUP($B$6,$A$25:$E$52,IF($B$8=$A$22,3,2))),EXP(VLOOKUP($B$6,$A$25:$E$52,4)*LN(VLOOKUP($H57,P_Hard!$A$5:$Y$204,3*($C$8-1)+2)/1000)+VLOOKUP($B$6,$A$25:$E$52,5)),NA()) ->  | Q57: =IF(ISNA(VLOOKUP($B$6,$A$25:$E$52,IF($B$8=$A$22,3,2))),EXP(VLOOKUP($B$6,$A$25:$E$52,4)*LN(VLOOKUP($H57,P_Hard!$A$5:$Y$204,3*($C$8-1)+4)/1000)+VLOOKUP($B$6,$A$25:$E$52,5)),NA()) ->  | S57: 2.666666667 | T57: =VLOOKUP($S57,P_All!$AA$5:$AY$245,3*($C$8-1)+2) -> 3611.5 | U57: =VLOOKUP($S57,P_All!$AA$5:$AY$245,3*($C$8-1)+3) -> 9901.5 | V57: =VLOOKUP($S57,P_All!$AA$5:$AY$245,3*($C$8-1)+4) -> 19898 | W57: =VLOOKUP($S57,NA_All!$AA$5:$AY$245,3*($C$8-1)+2) -> 1831.8 | X57: =VLOOKUP($S57,NA_All!$AA$5:$AY$245,3*($C$8-1)+3) -> 6431.7 | Y57: =VLOOKUP($S57,NA_All!$AA$5:$AY$245,3*($C$8-1)+4) -> 18343 | Z57: =IF(AND($B$8=$A$20,$B$6=$A$48),$B$54,IF(ISNA(VLOOKUP($B$6,$A$25:$E$52,IF($B$8=$A$22,3,2),FALSE)),EXP(VLOOKUP($B$6,$A$25:$E$52,4,FALSE)*LN(VLOOKUP($H57,P_Hard!$A$5:$Y$204,3*($C$8-1)+3,FALSE)/1000)+VLOOKUP($B$6,$A$25:$E$52,5,FALSE)),VLOOKUP($B$6,$A$25:$E$52,IF($B$8=$A$22,3,2),FALSE))) -> 
A58: Annual Max | H58: 34 | I58: =VLOOKUP($H58,P_All!$A$5:$Y$204,3*($C$8-1)+2) -> 13207 | J58: =VLOOKUP($H58,P_All!$A$5:$Y$204,3*($C$8-1)+3) -> 21659 | K58: =VLOOKUP($H58,P_All!$A$5:$Y$204,3*($C$8-1)+4) -> 23887 | L58: =VLOOKUP($H58,NA_All!$A$5:$Y$204,3*($C$8-1)+2) -> 7987.8 | M58: =VLOOKUP($H58,NA_All!$A$5:$Y$204,3*($C$8-1)+3) -> 14317 | N58: =VLOOKUP($H58,NA_All!$A$5:$Y$204,3*($C$8-1)+4) -> 18966 | O58: =IF(ISNA(VLOOKUP($B$6,$A$25:$E$52,IF($B$8=$A$22,3,2))),EXP(VLOOKUP($B$6,$A$25:$E$52,4)*LN(VLOOKUP($H58,P_Hard!$A$5:$Y$204,3*($C$8-1)+2)/1000)+VLOOKUP($B$6,$A$25:$E$52,5)),NA()) ->  | Q58: =IF(ISNA(VLOOKUP($B$6,$A$25:$E$52,IF($B$8=$A$22,3,2))),EXP(VLOOKUP($B$6,$A$25:$E$52,4)*LN(VLOOKUP($H58,P_Hard!$A$5:$Y$204,3*($C$8-1)+4)/1000)+VLOOKUP($B$6,$A$25:$E$52,5)),NA()) ->  | S58: 2.75 | T58: =VLOOKUP($S58,P_All!$AA$5:$AY$245,3*($C$8-1)+2) -> 4155.1 | U58: =VLOOKUP($S58,P_All!$AA$5:$AY$245,3*($C$8-1)+3) -> 10063 | V58: =VLOOKUP($S58,P_All!$AA$5:$AY$245,3*($C$8-1)+4) -> 17806 | W58: =VLOOKUP($S58,NA_All!$AA$5:$AY$245,3*($C$8-1)+2) -> 2000 | X58: =VLOOKUP($S58,NA_All!$AA$5:$AY$245,3*($C$8-1)+3) -> 6704.9 | Y58: =VLOOKUP($S58,NA_All!$AA$5:$AY$245,3*($C$8-1)+4) -> 17895 | Z58: =IF(AND($B$8=$A$20,$B$6=$A$48),$B$54,IF(ISNA(VLOOKUP($B$6,$A$25:$E$52,IF($B$8=$A$22,3,2),FALSE)),EXP(VLOOKUP($B$6,$A$25:$E$52,4,FALSE)*LN(VLOOKUP($H58,P_Hard!$A$5:$Y$204,3*($C$8-1)+3,FALSE)/1000)+VLOOKUP($B$6,$A$25:$E$52,5,FALSE)),VLOOKUP($B$6,$A$25:$E$52,IF($B$8=$A$22,3,2),FALSE))) -> 
A59: Annual Average | H59: 35 | I59: =VLOOKUP($H59,P_All!$A$5:$Y$204,3*($C$8-1)+2) -> 12783 | J59: =VLOOKUP($H59,P_All!$A$5:$Y$204,3*($C$8-1)+3) -> 21112 | K59: =VLOOKUP($H59,P_All!$A$5:$Y$204,3*($C$8-1)+4) -> 24202 | L59: =VLOOKUP($H59,NA_All!$A$5:$Y$204,3*($C$8-1)+2) -> 8148.2 | M59: =VLOOKUP($H59,NA_All!$A$5:$Y$204,3*($C$8-1)+3) -> 14312 | N59: =VLOOKUP($H59,NA_All!$A$5:$Y$204,3*($C$8-1)+4) -> 19326 | O59: =IF(ISNA(VLOOKUP($B$6,$A$25:$E$52,IF($B$8=$A$22,3,2))),EXP(VLOOKUP($B$6,$A$25:$E$52,4)*LN(VLOOKUP($H59,P_Hard!$A$5:$Y$204,3*($C$8-1)+2)/1000)+VLOOKUP($B$6,$A$25:$E$52,5)),NA()) ->  | Q59: =IF(ISNA(VLOOKUP($B$6,$A$25:$E$52,IF($B$8=$A$22,3,2))),EXP(VLOOKUP($B$6,$A$25:$E$52,4)*LN(VLOOKUP($H59,P_Hard!$A$5:$Y$204,3*($C$8-1)+4)/1000)+VLOOKUP($B$6,$A$25:$E$52,5)),NA()) ->  | S59: 2.833333333 | T59: =VLOOKUP($S59,P_All!$AA$5:$AY$245,3*($C$8-1)+2) -> 3836.1 | U59: =VLOOKUP($S59,P_All!$AA$5:$AY$245,3*($C$8-1)+3) -> 8805.3 | V59: =VLOOKUP($S59,P_All!$AA$5:$AY$245,3*($C$8-1)+4) -> 16489 | W59: =VLOOKUP($S59,NA_All!$AA$5:$AY$245,3*($C$8-1)+2) -> 1771.9 | X59: =VLOOKUP($S59,NA_All!$AA$5:$AY$245,3*($C$8-1)+3) -> 5323.4 | Y59: =VLOOKUP($S59,NA_All!$AA$5:$AY$245,3*($C$8-1)+4) -> 18400 | Z59: =IF(AND($B$8=$A$20,$B$6=$A$48),$B$54,IF(ISNA(VLOOKUP($B$6,$A$25:$E$52,IF($B$8=$A$22,3,2),FALSE)),EXP(VLOOKUP($B$6,$A$25:$E$52,4,FALSE)*LN(VLOOKUP($H59,P_Hard!$A$5:$Y$204,3*($C$8-1)+3,FALSE)/1000)+VLOOKUP($B$6,$A$25:$E$52,5,FALSE)),VLOOKUP($B$6,$A$25:$E$52,IF($B$8=$A$22,3,2),FALSE))) -> 
H60: 36 | I60: =VLOOKUP($H60,P_All!$A$5:$Y$204,3*($C$8-1)+2) -> 13332 | J60: =VLOOKUP($H60,P_All!$A$5:$Y$204,3*($C$8-1)+3) -> 21317 | K60: =VLOOKUP($H60,P_All!$A$5:$Y$204,3*($C$8-1)+4) -> 23796 | L60: =VLOOKUP($H60,NA_All!$A$5:$Y$204,3*($C$8-1)+2) -> 8404.3 | M60: =VLOOKUP($H60,NA_All!$A$5:$Y$204,3*($C$8-1)+3) -> 14356 | N60: =VLOOKUP($H60,NA_All!$A$5:$Y$204,3*($C$8-1)+4) -> 19025 | O60: =IF(ISNA(VLOOKUP($B$6,$A$25:$E$52,IF($B$8=$A$22,3,2))),EXP(VLOOKUP($B$6,$A$25:$E$52,4)*LN(VLOOKUP($H60,P_Hard!$A$5:$Y$204,3*($C$8-1)+2)/1000)+VLOOKUP($B$6,$A$25:$E$52,5)),NA()) ->  | Q60: =IF(ISNA(VLOOKUP($B$6,$A$25:$E$52,IF($B$8=$A$22,3,2))),EXP(VLOOKUP($B$6,$A$25:$E$52,4)*LN(VLOOKUP($H60,P_Hard!$A$5:$Y$204,3*($C$8-1)+4)/1000)+VLOOKUP($B$6,$A$25:$E$52,5)),NA()) ->  | S60: 2.916666667 | T60: =VLOOKUP($S60,P_All!$AA$5:$AY$245,3*($C$8-1)+2) -> 5158.9 | U60: =VLOOKUP($S60,P_All!$AA$5:$AY$245,3*($C$8-1)+3) -> 10348 | V60: =VLOOKUP($S60,P_All!$AA$5:$AY$245,3*($C$8-1)+4) -> 15375 | W60: =VLOOKUP($S60,NA_All!$AA$5:$AY$245,3*($C$8-1)+2) -> 2503.6 | X60: =VLOOKUP($S60,NA_All!$AA$5:$AY$245,3*($C$8-1)+3) -> 6266.4 | Y60: =VLOOKUP($S60,NA_All!$AA$5:$AY$245,3*($C$8-1)+4) -> 17832 | Z60: =IF(AND($B$8=$A$20,$B$6=$A$48),$B$54,IF(ISNA(VLOOKUP($B$6,$A$25:$E$52,IF($B$8=$A$22,3,2),FALSE)),EXP(VLOOKUP($B$6,$A$25:$E$52,4,FALSE)*LN(VLOOKUP($H60,P_Hard!$A$5:$Y$204,3*($C$8-1)+3,FALSE)/1000)+VLOOKUP($B$6,$A$25:$E$52,5,FALSE)),VLOOKUP($B$6,$A$25:$E$52,IF($B$8=$A$22,3,2),FALSE))) -> 
A61: Partridge River Evaluation Point | B61: [Wild_Rice_Locs] Wild Rice Location? | C61: [Hardness_forStandard] Hardness used for Evaluating Standards (mg/L)* | H61: 37 | I61: =VLOOKUP($H61,P_All!$A$5:$Y$204,3*($C$8-1)+2) -> 13458 | J61: =VLOOKUP($H61,P_All!$A$5:$Y$204,3*($C$8-1)+3) -> 21729 | K61: =VLOOKUP($H61,P_All!$A$5:$Y$204,3*($C$8-1)+4) -> 24095 | L61: =VLOOKUP($H61,NA_All!$A$5:$Y$204,3*($C$8-1)+2) -> 8356.9 | M61: =VLOOKUP($H61,NA_All!$A$5:$Y$204,3*($C$8-1)+3) -> 14345 | N61: =VLOOKUP($H61,NA_All!$A$5:$Y$204,3*($C$8-1)+4) -> 19217 | O61: =IF(ISNA(VLOOKUP($B$6,$A$25:$E$52,IF($B$8=$A$22,3,2))),EXP(VLOOKUP($B$6,$A$25:$E$52,4)*LN(VLOOKUP($H61,P_Hard!$A$5:$Y$204,3*($C$8-1)+2)/1000)+VLOOKUP($B$6,$A$25:$E$52,5)),NA()) ->  | Q61: =IF(ISNA(VLOOKUP($B$6,$A$25:$E$52,IF($B$8=$A$22,3,2))),EXP(VLOOKUP($B$6,$A$25:$E$52,4)*LN(VLOOKUP($H61,P_Hard!$A$5:$Y$204,3*($C$8-1)+4)/1000)+VLOOKUP($B$6,$A$25:$E$52,5)),NA()) ->  | S61: 3 | T61: =VLOOKUP($S61,P_All!$AA$5:$AY$245,3*($C$8-1)+2) -> 8781.9 | U61: =VLOOKUP($S61,P_All!$AA$5:$AY$245,3*($C$8-1)+3) -> 14160 | V61: =VLOOKUP($S61,P_All!$AA$5:$AY$245,3*($C$8-1)+4) -> 17955 | W61: =VLOOKUP($S61,NA_All!$AA$5:$AY$245,3*($C$8-1)+2) -> 4579.4 | X61: =VLOOKUP($S61,NA_All!$AA$5:$AY$245,3*($C$8-1)+3) -> 9162.5 | Y61: =VLOOKUP($S61,NA_All!$AA$5:$AY$245,3*($C$8-1)+4) -> 15830 | Z61: =IF(AND($B$8=$A$20,$B$6=$A$48),$B$54,IF(ISNA(VLOOKUP($B$6,$A$25:$E$52,IF($B$8=$A$22,3,2),FALSE)),EXP(VLOOKUP($B$6,$A$25:$E$52,4,FALSE)*LN(VLOOKUP($H61,P_Hard!$A$5:$Y$204,3*($C$8-1)+3,FALSE)/1000)+VLOOKUP($B$6,$A$25:$E$52,5,FALSE)),VLOOKUP($B$6,$A$25:$E$52,IF($B$8=$A$22,3,2),FALSE))) -> 
A62: SW-001 | B62: No | C62: -- | H62: 38 | I62: =VLOOKUP($H62,P_All!$A$5:$Y$204,3*($C$8-1)+2) -> 13382 | J62: =VLOOKUP($H62,P_All!$A$5:$Y$204,3*($C$8-1)+3) -> 21128 | K62: =VLOOKUP($H62,P_All!$A$5:$Y$204,3*($C$8-1)+4) -> 24032 | L62: =VLOOKUP($H62,NA_All!$A$5:$Y$204,3*($C$8-1)+2) -> 8227.2 | M62: =VLOOKUP($H62,NA_All!$A$5:$Y$204,3*($C$8-1)+3) -> 14159 | N62: =VLOOKUP($H62,NA_All!$A$5:$Y$204,3*($C$8-1)+4) -> 19200 | O62: =IF(ISNA(VLOOKUP($B$6,$A$25:$E$52,IF($B$8=$A$22,3,2))),EXP(VLOOKUP($B$6,$A$25:$E$52,4)*LN(VLOOKUP($H62,P_Hard!$A$5:$Y$204,3*($C$8-1)+2)/1000)+VLOOKUP($B$6,$A$25:$E$52,5)),NA()) ->  | Q62: =IF(ISNA(VLOOKUP($B$6,$A$25:$E$52,IF($B$8=$A$22,3,2))),EXP(VLOOKUP($B$6,$A$25:$E$52,4)*LN(VLOOKUP($H62,P_Hard!$A$5:$Y$204,3*($C$8-1)+4)/1000)+VLOOKUP($B$6,$A$25:$E$52,5)),NA()) ->  | S62: 3.083333333 | T62: =VLOOKUP($S62,P_All!$AA$5:$AY$245,3*($C$8-1)+2) -> 12477 | U62: =VLOOKUP($S62,P_All!$AA$5:$AY$245,3*($C$8-1)+3) -> 17304 | V62: =VLOOKUP($S62,P_All!$AA$5:$AY$245,3*($C$8-1)+4) -> 21895 | W62: =VLOOKUP($S62,NA_All!$AA$5:$AY$245,3*($C$8-1)+2) -> 7262.5 | X62: =VLOOKUP($S62,NA_All!$AA$5:$AY$245,3*($C$8-1)+3) -> 11954 | Y62: =VLOOKUP($S62,NA_All!$AA$5:$AY$245,3*($C$8-1)+4) -> 15951 | Z62: =IF(AND($B$8=$A$20,$B$6=$A$48),$B$54,IF(ISNA(VLOOKUP($B$6,$A$25:$E$52,IF($B$8=$A$22,3,2),FALSE)),EXP(VLOOKUP($B$6,$A$25:$E$52,4,FALSE)*LN(VLOOKUP($H62,P_Hard!$A$5:$Y$204,3*($C$8-1)+3,FALSE)/1000)+VLOOKUP($B$6,$A$25:$E$52,5,FALSE)),VLOOKUP($B$6,$A$25:$E$52,IF($B$8=$A$22,3,2),FALSE))) -> 
A63: SW-002 | B63: No | C63: -- | H63: 39 | I63: =VLOOKUP($H63,P_All!$A$5:$Y$204,3*($C$8-1)+2) -> 12795 | J63: =VLOOKUP($H63,P_All!$A$5:$Y$204,3*($C$8-1)+3) -> 21472 | K63: =VLOOKUP($H63,P_All!$A$5:$Y$204,3*($C$8-1)+4) -> 24071 | L63: =VLOOKUP($H63,NA_All!$A$5:$Y$204,3*($C$8-1)+2) -> 7777.4 | M63: =VLOOKUP($H63,NA_All!$A$5:$Y$204,3*($C$8-1)+3) -> 14384 | N63: =VLOOKUP($H63,NA_All!$A$5:$Y$204,3*($C$8-1)+4) -> 19108 | O63: =IF(ISNA(VLOOKUP($B$6,$A$25:$E$52,IF($B$8=$A$22,3,2))),EXP(VLOOKUP($B$6,$A$25:$E$52,4)*LN(VLOOKUP($H63,P_Hard!$A$5:$Y$204,3*($C$8-1)+2)/1000)+VLOOKUP($B$6,$A$25:$E$52,5)),NA()) ->  | Q63: =IF(ISNA(VLOOKUP($B$6,$A$25:$E$52,IF($B$8=$A$22,3,2))),EXP(VLOOKUP($B$6,$A$25:$E$52,4)*LN(VLOOKUP($H63,P_Hard!$A$5:$Y$204,3*($C$8-1)+4)/1000)+VLOOKUP($B$6,$A$25:$E$52,5)),NA()) ->  | S63: 3.166666667 | T63: =VLOOKUP($S63,P_All!$AA$5:$AY$245,3*($C$8-1)+2) -> 13156 | U63: =VLOOKUP($S63,P_All!$AA$5:$AY$245,3*($C$8-1)+3) -> 21368 | V63: =VLOOKUP($S63,P_All!$AA$5:$AY$245,3*($C$8-1)+4) -> 23705 | W63: =VLOOKUP($S63,NA_All!$AA$5:$AY$245,3*($C$8-1)+2) -> 7722.8 | X63: =VLOOKUP($S63,NA_All!$AA$5:$AY$245,3*($C$8-1)+3) -> 14229 | Y63: =VLOOKUP($S63,NA_All!$AA$5:$AY$245,3*($C$8-1)+4) -> 16929 | Z63: =IF(AND($B$8=$A$20,$B$6=$A$48),$B$54,IF(ISNA(VLOOKUP($B$6,$A$25:$E$52,IF($B$8=$A$22,3,2),FALSE)),EXP(VLOOKUP($B$6,$A$25:$E$52,4,FALSE)*LN(VLOOKUP($H63,P_Hard!$A$5:$Y$204,3*($C$8-1)+3,FALSE)/1000)+VLOOKUP($B$6,$A$25:$E$52,5,FALSE)),VLOOKUP($B$6,$A$25:$E$52,IF($B$8=$A$22,3,2),FALSE))) -> 
A64: SW-003 | B64: No | C64: -- | H64: 40 | I64: =VLOOKUP($H64,P_All!$A$5:$Y$204,3*($C$8-1)+2) -> 13447 | J64: =VLOOKUP($H64,P_All!$A$5:$Y$204,3*($C$8-1)+3) -> 21797 | K64: =VLOOKUP($H64,P_All!$A$5:$Y$204,3*($C$8-1)+4) -> 24122 | L64: =VLOOKUP($H64,NA_All!$A$5:$Y$204,3*($C$8-1)+2) -> 8216.7 | M64: =VLOOKUP($H64,NA_All!$A$5:$Y$204,3*($C$8-1)+3) -> 14280 | N64: =VLOOKUP($H64,NA_All!$A$5:$Y$204,3*($C$8-1)+4) -> 19205 | O64: =IF(ISNA(VLOOKUP($B$6,$A$25:$E$52,IF($B$8=$A$22,3,2))),EXP(VLOOKUP($B$6,$A$25:$E$52,4)*LN(VLOOKUP($H64,P_Hard!$A$5:$Y$204,3*($C$8-1)+2)/1000)+VLOOKUP($B$6,$A$25:$E$52,5)),NA()) ->  | Q64: =IF(ISNA(VLOOKUP($B$6,$A$25:$E$52,IF($B$8=$A$22,3,2))),EXP(VLOOKUP($B$6,$A$25:$E$52,4)*LN(VLOOKUP($H64,P_Hard!$A$5:$Y$204,3*($C$8-1)+4)/1000)+VLOOKUP($B$6,$A$25:$E$52,5)),NA()) ->  | S64: 3.25 | T64: =VLOOKUP($S64,P_All!$AA$5:$AY$245,3*($C$8-1)+2) -> 7492.3 | U64: =VLOOKUP($S64,P_All!$AA$5:$AY$245,3*($C$8-1)+3) -> 18631 | V64: =VLOOKUP($S64,P_All!$AA$5:$AY$245,3*($C$8-1)+4) -> 24124 | W64: =VLOOKUP($S64,NA_All!$AA$5:$AY$245,3*($C$8-1)+2) -> 3886.6 | X64: =VLOOKUP($S64,NA_All!$AA$5:$AY$245,3*($C$8-1)+3) -> 13393 | Y64: =VLOOKUP($S64,NA_All!$AA$5:$AY$245,3*($C$8-1)+4) -> 17675 | Z64: =IF(AND($B$8=$A$20,$B$6=$A$48),$B$54,IF(ISNA(VLOOKUP($B$6,$A$25:$E$52,IF($B$8=$A$22,3,2),FALSE)),EXP(VLOOKUP($B$6,$A$25:$E$52,4,FALSE)*LN(VLOOKUP($H64,P_Hard!$A$5:$Y$204,3*($C$8-1)+3,FALSE)/1000)+VLOOKUP($B$6,$A$25:$E$52,5,FALSE)),VLOOKUP($B$6,$A$25:$E$52,IF($B$8=$A$22,3,2),FALSE))) -> 
A65: SW-004 | B65: No | C65: 102.5 | H65: 41 | I65: =VLOOKUP($H65,P_All!$A$5:$Y$204,3*($C$8-1)+2) -> 13076 | J65: =VLOOKUP($H65,P_All!$A$5:$Y$204,3*($C$8-1)+3) -> 21641 | K65: =VLOOKUP($H65,P_All!$A$5:$Y$204,3*($C$8-1)+4) -> 24097 | L65: =VLOOKUP($H65,NA_All!$A$5:$Y$204,3*($C$8-1)+2) -> 8097.1 | M65: =VLOOKUP($H65,NA_All!$A$5:$Y$204,3*($C$8-1)+3) -> 13787 | N65: =VLOOKUP($H65,NA_All!$A$5:$Y$204,3*($C$8-1)+4) -> 19029 | O65: =IF(ISNA(VLOOKUP($B$6,$A$25:$E$52,IF($B$8=$A$22,3,2))),EXP(VLOOKUP($B$6,$A$25:$E$52,4)*LN(VLOOKUP($H65,P_Hard!$A$5:$Y$204,3*($C$8-1)+2)/1000)+VLOOKUP($B$6,$A$25:$E$52,5)),NA()) ->  | Q65: =IF(ISNA(VLOOKUP($B$6,$A$25:$E$52,IF($B$8=$A$22,3,2))),EXP(VLOOKUP($B$6,$A$25:$E$52,4)*LN(VLOOKUP($H65,P_Hard!$A$5:$Y$204,3*($C$8-1)+4)/1000)+VLOOKUP($B$6,$A$25:$E$52,5)),NA()) ->  | S65: 3.333333333 | T65: =VLOOKUP($S65,P_All!$AA$5:$AY$245,3*($C$8-1)+2) -> 2762 | U65: =VLOOKUP($S65,P_All!$AA$5:$AY$245,3*($C$8-1)+3) -> 7052.4 | V65: =VLOOKUP($S65,P_All!$AA$5:$AY$245,3*($C$8-1)+4) -> 16724 | W65: =VLOOKUP($S65,NA_All!$AA$5:$AY$245,3*($C$8-1)+2) -> 1449.2 | X65: =VLOOKUP($S65,NA_All!$AA$5:$AY$245,3*($C$8-1)+3) -> 4830.2 | Y65: =VLOOKUP($S65,NA_All!$AA$5:$AY$245,3*($C$8-1)+4) -> 18663 | Z65: =IF(AND($B$8=$A$20,$B$6=$A$48),$B$54,IF(ISNA(VLOOKUP($B$6,$A$25:$E$52,IF($B$8=$A$22,3,2),FALSE)),EXP(VLOOKUP($B$6,$A$25:$E$52,4,FALSE)*LN(VLOOKUP($H65,P_Hard!$A$5:$Y$204,3*($C$8-1)+3,FALSE)/1000)+VLOOKUP($B$6,$A$25:$E$52,5,FALSE)),VLOOKUP($B$6,$A$25:$E$52,IF($B$8=$A$22,3,2),FALSE))) -> 
A66: SW-004a | B66: No | C66: 105.5 | H66: 42 | I66: =VLOOKUP($H66,P_All!$A$5:$Y$204,3*($C$8-1)+2) -> 12994 | J66: =VLOOKUP($H66,P_All!$A$5:$Y$204,3*($C$8-1)+3) -> 21684 | K66: =VLOOKUP($H66,P_All!$A$5:$Y$204,3*($C$8-1)+4) -> 24266 | L66: =VLOOKUP($H66,NA_All!$A$5:$Y$204,3*($C$8-1)+2) -> 8488.3 | M66: =VLOOKUP($H66,NA_All!$A$5:$Y$204,3*($C$8-1)+3) -> 13373 | N66: =VLOOKUP($H66,NA_All!$A$5:$Y$204,3*($C$8-1)+4) -> 19286 | O66: =IF(ISNA(VLOOKUP($B$6,$A$25:$E$52,IF($B$8=$A$22,3,2))),EXP(VLOOKUP($B$6,$A$25:$E$52,4)*LN(VLOOKUP($H66,P_Hard!$A$5:$Y$204,3*($C$8-1)+2)/1000)+VLOOKUP($B$6,$A$25:$E$52,5)),NA()) ->  | Q66: =IF(ISNA(VLOOKUP($B$6,$A$25:$E$52,IF($B$8=$A$22,3,2))),EXP(VLOOKUP($B$6,$A$25:$E$52,4)*LN(VLOOKUP($H66,P_Hard!$A$5:$Y$204,3*($C$8-1)+4)/1000)+VLOOKUP($B$6,$A$25:$E$52,5)),NA()) ->  | S66: 3.416666667 | T66: =VLOOKUP($S66,P_All!$AA$5:$AY$245,3*($C$8-1)+2) -> 3096.9 | U66: =VLOOKUP($S66,P_All!$AA$5:$AY$245,3*($C$8-1)+3) -> 6905 | V66: =VLOOKUP($S66,P_All!$AA$5:$AY$245,3*($C$8-1)+4) -> 15626 | W66: =VLOOKUP($S66,NA_All!$AA$5:$AY$245,3*($C$8-1)+2) -> 1383.7 | X66: =VLOOKUP($S66,NA_All!$AA$5:$AY$245,3*($C$8-1)+3) -> 4629.3 | Y66: =VLOOKUP($S66,NA_All!$AA$5:$AY$245,3*($C$8-1)+4) -> 19004 | Z66: =IF(AND($B$8=$A$20,$B$6=$A$48),$B$54,IF(ISNA(VLOOKUP($B$6,$A$25:$E$52,IF($B$8=$A$22,3,2),FALSE)),EXP(VLOOKUP($B$6,$A$25:$E$52,4,FALSE)*LN(VLOOKUP($H66,P_Hard!$A$5:$Y$204,3*($C$8-1)+3,FALSE)/1000)+VLOOKUP($B$6,$A$25:$E$52,5,FALSE)),VLOOKUP($B$6,$A$25:$E$52,IF($B$8=$A$22,3,2),FALSE))) -> 
A67: SW-004b | B67: No | C67: -- | H67: 43 | I67: =VLOOKUP($H67,P_All!$A$5:$Y$204,3*($C$8-1)+2) -> 13418 | J67: =VLOOKUP($H67,P_All!$A$5:$Y$204,3*($C$8-1)+3) -> 21531 | K67: =VLOOKUP($H67,P_All!$A$5:$Y$204,3*($C$8-1)+4) -> 23989 | L67: =VLOOKUP($H67,NA_All!$A$5:$Y$204,3*($C$8-1)+2) -> 8453.3 | M67: =VLOOKUP($H67,NA_All!$A$5:$Y$204,3*($C$8-1)+3) -> 13209 | N67: =VLOOKUP($H67,NA_All!$A$5:$Y$204,3*($C$8-1)+4) -> 18741 | O67: =IF(ISNA(VLOOKUP($B$6,$A$25:$E$52,IF($B$8=$A$22,3,2))),EXP(VLOOKUP($B$6,$A$25:$E$52,4)*LN(VLOOKUP($H67,P_Hard!$A$5:$Y$204,3*($C$8-1)+2)/1000)+VLOOKUP($B$6,$A$25:$E$52,5)),NA()) ->  | Q67: =IF(ISNA(VLOOKUP($B$6,$A$25:$E$52,IF($B$8=$A$22,3,2))),EXP(VLOOKUP($B$6,$A$25:$E$52,4)*LN(VLOOKUP($H67,P_Hard!$A$5:$Y$204,3*($C$8-1)+4)/1000)+VLOOKUP($B$6,$A$25:$E$52,5)),NA()) ->  | S67: 3.5 | T67: =VLOOKUP($S67,P_All!$AA$5:$AY$245,3*($C$8-1)+2) -> 3594.1 | U67: =VLOOKUP($S67,P_All!$AA$5:$AY$245,3*($C$8-1)+3) -> 8838.9 | V67: =VLOOKUP($S67,P_All!$AA$5:$AY$245,3*($C$8-1)+4) -> 16185 | W67: =VLOOKUP($S67,NA_All!$AA$5:$AY$245,3*($C$8-1)+2) -> 1834.7 | X67: =VLOOKUP($S67,NA_All!$AA$5:$AY$245,3*($C$8-1)+3) -> 5710.8 | Y67: =VLOOKUP($S67,NA_All!$AA$5:$AY$245,3*($C$8-1)+4) -> 17805 | Z67: =IF(AND($B$8=$A$20,$B$6=$A$48),$B$54,IF(ISNA(VLOOKUP($B$6,$A$25:$E$52,IF($B$8=$A$22,3,2),FALSE)),EXP(VLOOKUP($B$6,$A$25:$E$52,4,FALSE)*LN(VLOOKUP($H67,P_Hard!$A$5:$Y$204,3*($C$8-1)+3,FALSE)/1000)+VLOOKUP($B$6,$A$25:$E$52,5,FALSE)),VLOOKUP($B$6,$A$25:$E$52,IF($B$8=$A$22,3,2),FALSE))) -> 
A68: SW-005 | B68: Yes | C68: -- | H68: 44 | I68: =VLOOKUP($H68,P_All!$A$5:$Y$204,3*($C$8-1)+2) -> 13099 | J68: =VLOOKUP($H68,P_All!$A$5:$Y$204,3*($C$8-1)+3) -> 21277 | K68: =VLOOKUP($H68,P_All!$A$5:$Y$204,3*($C$8-1)+4) -> 23778 | L68: =VLOOKUP($H68,NA_All!$A$5:$Y$204,3*($C$8-1)+2) -> 8257.9 | M68: =VLOOKUP($H68,NA_All!$A$5:$Y$204,3*($C$8-1)+3) -> 13343 | N68: =VLOOKUP($H68,NA_All!$A$5:$Y$204,3*($C$8-1)+4) -> 18953 | O68: =IF(ISNA(VLOOKUP($B$6,$A$25:$E$52,IF($B$8=$A$22,3,2))),EXP(VLOOKUP($B$6,$A$25:$E$52,4)*LN(VLOOKUP($H68,P_Hard!$A$5:$Y$204,3*($C$8-1)+2)/1000)+VLOOKUP($B$6,$A$25:$E$52,5)),NA()) ->  | Q68: =IF(ISNA(VLOOKUP($B$6,$A$25:$E$52,IF($B$8=$A$22,3,2))),EXP(VLOOKUP($B$6,$A$25:$E$52,4)*LN(VLOOKUP($H68,P_Hard!$A$5:$Y$204,3*($C$8-1)+4)/1000)+VLOOKUP($B$6,$A$25:$E$52,5)),NA()) ->  | S68: 3.583333333 | T68: =VLOOKUP($S68,P_All!$AA$5:$AY$245,3*($C$8-1)+2) -> 4172.5 | U68: =VLOOKUP($S68,P_All!$AA$5:$AY$245,3*($C$8-1)+3) -> 10811 | V68: =VLOOKUP($S68,P_All!$AA$5:$AY$245,3*($C$8-1)+4) -> 20547 | W68: =VLOOKUP($S68,NA_All!$AA$5:$AY$245,3*($C$8-1)+2) -> 2005.9 | X68: =VLOOKUP($S68,NA_All!$AA$5:$AY$245,3*($C$8-1)+3) -> 7339.3 | Y68: =VLOOKUP($S68,NA_All!$AA$5:$AY$245,3*($C$8-1)+4) -> 16849 | Z68: =IF(AND($B$8=$A$20,$B$6=$A$48),$B$54,IF(ISNA(VLOOKUP($B$6,$A$25:$E$52,IF($B$8=$A$22,3,2),FALSE)),EXP(VLOOKUP($B$6,$A$25:$E$52,4,FALSE)*LN(VLOOKUP($H68,P_Hard!$A$5:$Y$204,3*($C$8-1)+3,FALSE)/1000)+VLOOKUP($B$6,$A$25:$E$52,5,FALSE)),VLOOKUP($B$6,$A$25:$E$52,IF($B$8=$A$22,3,2),FALSE))) -> 
A69: SW-006 | B69: No | C69: -- | H69: 45 | I69: =VLOOKUP($H69,P_All!$A$5:$Y$204,3*($C$8-1)+2) -> 13200 | J69: =VLOOKUP($H69,P_All!$A$5:$Y$204,3*($C$8-1)+3) -> 21573 | K69: =VLOOKUP($H69,P_All!$A$5:$Y$204,3*($C$8-1)+4) -> 24117 | L69: =VLOOKUP($H69,NA_All!$A$5:$Y$204,3*($C$8-1)+2) -> 8230.7 | M69: =VLOOKUP($H69,NA_All!$A$5:$Y$204,3*($C$8-1)+3) -> 13228 | N69: =VLOOKUP($H69,NA_All!$A$5:$Y$204,3*($C$8-1)+4) -> 19241 | O69: =IF(ISNA(VLOOKUP($B$6,$A$25:$E$52,IF($B$8=$A$22,3,2))),EXP(VLOOKUP($B$6,$A$25:$E$52,4)*LN(VLOOKUP($H69,P_Hard!$A$5:$Y$204,3*($C$8-1)+2)/1000)+VLOOKUP($B$6,$A$25:$E$52,5)),NA()) ->  | Q69: =IF(ISNA(VLOOKUP($B$6,$A$25:$E$52,IF($B$8=$A$22,3,2))),EXP(VLOOKUP($B$6,$A$25:$E$52,4)*LN(VLOOKUP($H69,P_Hard!$A$5:$Y$204,3*($C$8-1)+4)/1000)+VLOOKUP($B$6,$A$25:$E$52,5)),NA()) ->  | S69: 3.666666667 | T69: =VLOOKUP($S69,P_All!$AA$5:$AY$245,3*($C$8-1)+2) -> 4011.1 | U69: =VLOOKUP($S69,P_All!$AA$5:$AY$245,3*($C$8-1)+3) -> 9495 | V69: =VLOOKUP($S69,P_All!$AA$5:$AY$245,3*($C$8-1)+4) -> 18196 | W69: =VLOOKUP($S69,NA_All!$AA$5:$AY$245,3*($C$8-1)+2) -> 1683.2 | X69: =VLOOKUP($S69,NA_All!$AA$5:$AY$245,3*($C$8-1)+3) -> 6338.1 | Y69: =VLOOKUP($S69,NA_All!$AA$5:$AY$245,3*($C$8-1)+4) -> 17543 | Z69: =IF(AND($B$8=$A$20,$B$6=$A$48),$B$54,IF(ISNA(VLOOKUP($B$6,$A$25:$E$52,IF($B$8=$A$22,3,2),FALSE)),EXP(VLOOKUP($B$6,$A$25:$E$52,4,FALSE)*LN(VLOOKUP($H69,P_Hard!$A$5:$Y$204,3*($C$8-1)+3,FALSE)/1000)+VLOOKUP($B$6,$A$25:$E$52,5,FALSE)),VLOOKUP($B$6,$A$25:$E$52,IF($B$8=$A$22,3,2),FALSE))) -> 
A70: Colby Lake | B70: No | C70: -- | H70: 46 | I70: =VLOOKUP($H70,P_All!$A$5:$Y$204,3*($C$8-1)+2) -> 13134 | J70: =VLOOKUP($H70,P_All!$A$5:$Y$204,3*($C$8-1)+3) -> 21622 | K70: =VLOOKUP($H70,P_All!$A$5:$Y$204,3*($C$8-1)+4) -> 23898 | L70: =VLOOKUP($H70,NA_All!$A$5:$Y$204,3*($C$8-1)+2) -> 8039.1 | M70: =VLOOKUP($H70,NA_All!$A$5:$Y$204,3*($C$8-1)+3) -> 13288 | N70: =VLOOKUP($H70,NA_All!$A$5:$Y$204,3*($C$8-1)+4) -> 18987 | O70: =IF(ISNA(VLOOKUP($B$6,$A$25:$E$52,IF($B$8=$A$22,3,2))),EXP(VLOOKUP($B$6,$A$25:$E$52,4)*LN(VLOOKUP($H70,P_Hard!$A$5:$Y$204,3*($C$8-1)+2)/1000)+VLOOKUP($B$6,$A$25:$E$52,5)),NA()) ->  | Q70: =IF(ISNA(VLOOKUP($B$6,$A$25:$E$52,IF($B$8=$A$22,3,2))),EXP(VLOOKUP($B$6,$A$25:$E$52,4)*LN(VLOOKUP($H70,P_Hard!$A$5:$Y$204,3*($C$8-1)+4)/1000)+VLOOKUP($B$6,$A$25:$E$52,5)),NA()) ->  | S70: 3.75 | T70: =VLOOKUP($S70,P_All!$AA$5:$AY$245,3*($C$8-1)+2) -> 4251 | U70: =VLOOKUP($S70,P_All!$AA$5:$AY$245,3*($C$8-1)+3) -> 9636.5 | V70: =VLOOKUP($S70,P_All!$AA$5:$AY$245,3*($C$8-1)+4) -> 17197 | W70: =VLOOKUP($S70,NA_All!$AA$5:$AY$245,3*($C$8-1)+2) -> 1887.2 | X70: =VLOOKUP($S70,NA_All!$AA$5:$AY$245,3*($C$8-1)+3) -> 6417.1 | Y70: =VLOOKUP($S70,NA_All!$AA$5:$AY$245,3*($C$8-1)+4) -> 17967 | Z70: =IF(AND($B$8=$A$20,$B$6=$A$48),$B$54,IF(ISNA(VLOOKUP($B$6,$A$25:$E$52,IF($B$8=$A$22,3,2),FALSE)),EXP(VLOOKUP($B$6,$A$25:$E$52,4,FALSE)*LN(VLOOKUP($H70,P_Hard!$A$5:$Y$204,3*($C$8-1)+3,FALSE)/1000)+VLOOKUP($B$6,$A$25:$E$52,5,FALSE)),VLOOKUP($B$6,$A$25:$E$52,IF($B$8=$A$22,3,2),FALSE))) -> 
H71: 47 | I71: =VLOOKUP($H71,P_All!$A$5:$Y$204,3*($C$8-1)+2) -> 13433 | J71: =VLOOKUP($H71,P_All!$A$5:$Y$204,3*($C$8-1)+3) -> 21601 | K71: =VLOOKUP($H71,P_All!$A$5:$Y$204,3*($C$8-1)+4) -> 24103 | L71: =VLOOKUP($H71,NA_All!$A$5:$Y$204,3*($C$8-1)+2) -> 8227.2 | M71: =VLOOKUP($H71,NA_All!$A$5:$Y$204,3*($C$8-1)+3) -> 13285 | N71: =VLOOKUP($H71,NA_All!$A$5:$Y$204,3*($C$8-1)+4) -> 19082 | O71: =IF(ISNA(VLOOKUP($B$6,$A$25:$E$52,IF($B$8=$A$22,3,2))),EXP(VLOOKUP($B$6,$A$25:$E$52,4)*LN(VLOOKUP($H71,P_Hard!$A$5:$Y$204,3*($C$8-1)+2)/1000)+VLOOKUP($B$6,$A$25:$E$52,5)),NA()) ->  | Q71: =IF(ISNA(VLOOKUP($B$6,$A$25:$E$52,IF($B$8=$A$22,3,2))),EXP(VLOOKUP($B$6,$A$25:$E$52,4)*LN(VLOOKUP($H71,P_Hard!$A$5:$Y$204,3*($C$8-1)+4)/1000)+VLOOKUP($B$6,$A$25:$E$52,5)),NA()) ->  | S71: 3.833333333 | T71: =VLOOKUP($S71,P_All!$AA$5:$AY$245,3*($C$8-1)+2) -> 3742.6 | U71: =VLOOKUP($S71,P_All!$AA$5:$AY$245,3*($C$8-1)+3) -> 8855.9 | V71: =VLOOKUP($S71,P_All!$AA$5:$AY$245,3*($C$8-1)+4) -> 15749 | W71: =VLOOKUP($S71,NA_All!$AA$5:$AY$245,3*($C$8-1)+2) -> 1937.1 | X71: =VLOOKUP($S71,NA_All!$AA$5:$AY$245,3*($C$8-1)+3) -> 5447.1 | Y71: =VLOOKUP($S71,NA_All!$AA$5:$AY$245,3*($C$8-1)+4) -> 18646 | Z71: =IF(AND($B$8=$A$20,$B$6=$A$48),$B$54,IF(ISNA(VLOOKUP($B$6,$A$25:$E$52,IF($B$8=$A$22,3,2),FALSE)),EXP(VLOOKUP($B$6,$A$25:$E$52,4,FALSE)*LN(VLOOKUP($H71,P_Hard!$A$5:$Y$204,3*($C$8-1)+3,FALSE)/1000)+VLOOKUP($B$6,$A$25:$E$52,5,FALSE)),VLOOKUP($B$6,$A$25:$E$52,IF($B$8=$A$22,3,2),FALSE))) -> 
H72: 48 | I72: =VLOOKUP($H72,P_All!$A$5:$Y$204,3*($C$8-1)+2) -> 13288 | J72: =VLOOKUP($H72,P_All!$A$5:$Y$204,3*($C$8-1)+3) -> 21286 | K72: =VLOOKUP($H72,P_All!$A$5:$Y$204,3*($C$8-1)+4) -> 24163 | L72: =VLOOKUP($H72,NA_All!$A$5:$Y$204,3*($C$8-1)+2) -> 8248.3 | M72: =VLOOKUP($H72,NA_All!$A$5:$Y$204,3*($C$8-1)+3) -> 13271 | N72: =VLOOKUP($H72,NA_All!$A$5:$Y$204,3*($C$8-1)+4) -> 19078 | O72: =IF(ISNA(VLOOKUP($B$6,$A$25:$E$52,IF($B$8=$A$22,3,2))),EXP(VLOOKUP($B$6,$A$25:$E$52,4)*LN(VLOOKUP($H72,P_Hard!$A$5:$Y$204,3*($C$8-1)+2)/1000)+VLOOKUP($B$6,$A$25:$E$52,5)),NA()) ->  | Q72: =IF(ISNA(VLOOKUP($B$6,$A$25:$E$52,IF($B$8=$A$22,3,2))),EXP(VLOOKUP($B$6,$A$25:$E$52,4)*LN(VLOOKUP($H72,P_Hard!$A$5:$Y$204,3*($C$8-1)+4)/1000)+VLOOKUP($B$6,$A$25:$E$52,5)),NA()) ->  | S72: 3.916666667 | T72: =VLOOKUP($S72,P_All!$AA$5:$AY$245,3*($C$8-1)+2) -> 5044.8 | U72: =VLOOKUP($S72,P_All!$AA$5:$AY$245,3*($C$8-1)+3) -> 9958.8 | V72: =VLOOKUP($S72,P_All!$AA$5:$AY$245,3*($C$8-1)+4) -> 16408 | W72: =VLOOKUP($S72,NA_All!$AA$5:$AY$245,3*($C$8-1)+2) -> 2635.2 | X72: =VLOOKUP($S72,NA_All!$AA$5:$AY$245,3*($C$8-1)+3) -> 6238.9 | Y72: =VLOOKUP($S72,NA_All!$AA$5:$AY$245,3*($C$8-1)+4) -> 18069 | Z72: =IF(AND($B$8=$A$20,$B$6=$A$48),$B$54,IF(ISNA(VLOOKUP($B$6,$A$25:$E$52,IF($B$8=$A$22,3,2),FALSE)),EXP(VLOOKUP($B$6,$A$25:$E$52,4,FALSE)*LN(VLOOKUP($H72,P_Hard!$A$5:$Y$204,3*($C$8-1)+3,FALSE)/1000)+VLOOKUP($B$6,$A$25:$E$52,5,FALSE)),VLOOKUP($B$6,$A$25:$E$52,IF($B$8=$A$22,3,2),FALSE))) -> 
H73: 49 | I73: =VLOOKUP($H73,P_All!$A$5:$Y$204,3*($C$8-1)+2) -> 13199 | J73: =VLOOKUP($H73,P_All!$A$5:$Y$204,3*($C$8-1)+3) -> 21560 | K73: =VLOOKUP($H73,P_All!$A$5:$Y$204,3*($C$8-1)+4) -> 24011 | L73: =VLOOKUP($H73,NA_All!$A$5:$Y$204,3*($C$8-1)+2) -> 8175 | M73: =VLOOKUP($H73,NA_All!$A$5:$Y$204,3*($C$8-1)+3) -> 13380 | N73: =VLOOKUP($H73,NA_All!$A$5:$Y$204,3*($C$8-1)+4) -> 19084 | O73: =IF(ISNA(VLOOKUP($B$6,$A$25:$E$52,IF($B$8=$A$22,3,2))),EXP(VLOOKUP($B$6,$A$25:$E$52,4)*LN(VLOOKUP($H73,P_Hard!$A$5:$Y$204,3*($C$8-1)+2)/1000)+VLOOKUP($B$6,$A$25:$E$52,5)),NA()) ->  | Q73: =IF(ISNA(VLOOKUP($B$6,$A$25:$E$52,IF($B$8=$A$22,3,2))),EXP(VLOOKUP($B$6,$A$25:$E$52,4)*LN(VLOOKUP($H73,P_Hard!$A$5:$Y$204,3*($C$8-1)+4)/1000)+VLOOKUP($B$6,$A$25:$E$52,5)),NA()) ->  | S73: 4 | T73: =VLOOKUP($S73,P_All!$AA$5:$AY$245,3*($C$8-1)+2) -> 8344.5 | U73: =VLOOKUP($S73,P_All!$AA$5:$AY$245,3*($C$8-1)+3) -> 13379 | V73: =VLOOKUP($S73,P_All!$AA$5:$AY$245,3*($C$8-1)+4) -> 17376 | W73: =VLOOKUP($S73,NA_All!$AA$5:$AY$245,3*($C$8-1)+2) -> 4901 | X73: =VLOOKUP($S73,NA_All!$AA$5:$AY$245,3*($C$8-1)+3) -> 8722.7 | Y73: =VLOOKUP($S73,NA_All!$AA$5:$AY$245,3*($C$8-1)+4) -> 16419 | Z73: =IF(AND($B$8=$A$20,$B$6=$A$48),$B$54,IF(ISNA(VLOOKUP($B$6,$A$25:$E$52,IF($B$8=$A$22,3,2),FALSE)),EXP(VLOOKUP($B$6,$A$25:$E$52,4,FALSE)*LN(VLOOKUP($H73,P_Hard!$A$5:$Y$204,3*($C$8-1)+3,FALSE)/1000)+VLOOKUP($B$6,$A$25:$E$52,5,FALSE)),VLOOKUP($B$6,$A$25:$E$52,IF($B$8=$A$22,3,2),FALSE))) -> 
H74: 50 | I74: =VLOOKUP($H74,P_All!$A$5:$Y$204,3*($C$8-1)+2) -> 13138 | J74: =VLOOKUP($H74,P_All!$A$5:$Y$204,3*($C$8-1)+3) -> 20918 | K74: =VLOOKUP($H74,P_All!$A$5:$Y$204,3*($C$8-1)+4) -> 23720 | L74: =VLOOKUP($H74,NA_All!$A$5:$Y$204,3*($C$8-1)+2) -> 8078.7 | M74: =VLOOKUP($H74,NA_All!$A$5:$Y$204,3*($C$8-1)+3) -> 13124 | N74: =VLOOKUP($H74,NA_All!$A$5:$Y$204,3*($C$8-1)+4) -> 18836 | O74: =IF(ISNA(VLOOKUP($B$6,$A$25:$E$52,IF($B$8=$A$22,3,2))),EXP(VLOOKUP($B$6,$A$25:$E$52,4)*LN(VLOOKUP($H74,P_Hard!$A$5:$Y$204,3*($C$8-1)+2)/1000)+VLOOKUP($B$6,$A$25:$E$52,5)),NA()) ->  | Q74: =IF(ISNA(VLOOKUP($B$6,$A$25:$E$52,IF($B$8=$A$22,3,2))),EXP(VLOOKUP($B$6,$A$25:$E$52,4)*LN(VLOOKUP($H74,P_Hard!$A$5:$Y$204,3*($C$8-1)+4)/1000)+VLOOKUP($B$6,$A$25:$E$52,5)),NA()) ->  | S74: 4.083333333 | T74: =VLOOKUP($S74,P_All!$AA$5:$AY$245,3*($C$8-1)+2) -> 12124 | U74: =VLOOKUP($S74,P_All!$AA$5:$AY$245,3*($C$8-1)+3) -> 17089 | V74: =VLOOKUP($S74,P_All!$AA$5:$AY$245,3*($C$8-1)+4) -> 21712 | W74: =VLOOKUP($S74,NA_All!$AA$5:$AY$245,3*($C$8-1)+2) -> 7218.8 | X74: =VLOOKUP($S74,NA_All!$AA$5:$AY$245,3*($C$8-1)+3) -> 11702 | Y74: =VLOOKUP($S74,NA_All!$AA$5:$AY$245,3*($C$8-1)+4) -> 15977 | Z74: =IF(AND($B$8=$A$20,$B$6=$A$48),$B$54,IF(ISNA(VLOOKUP($B$6,$A$25:$E$52,IF($B$8=$A$22,3,2),FALSE)),EXP(VLOOKUP($B$6,$A$25:$E$52,4,FALSE)*LN(VLOOKUP($H74,P_Hard!$A$5:$Y$204,3*($C$8-1)+3,FALSE)/1000)+VLOOKUP($B$6,$A$25:$E$52,5,FALSE)),VLOOKUP($B$6,$A$25:$E$52,IF($B$8=$A$22,3,2),FALSE))) -> 
H75: 51 | I75: =VLOOKUP($H75,P_All!$A$5:$Y$204,3*($C$8-1)+2) -> 13115 | J75: =VLOOKUP($H75,P_All!$A$5:$Y$204,3*($C$8-1)+3) -> 20428 | K75: =VLOOKUP($H75,P_All!$A$5:$Y$204,3*($C$8-1)+4) -> 23659 | L75: =VLOOKUP($H75,NA_All!$A$5:$Y$204,3*($C$8-1)+2) -> 8485.3 | M75: =VLOOKUP($H75,NA_All!$A$5:$Y$204,3*($C$8-1)+3) -> 13178 | N75: =VLOOKUP($H75,NA_All!$A$5:$Y$204,3*($C$8-1)+4) -> 19038 | O75: =IF(ISNA(VLOOKUP($B$6,$A$25:$E$52,IF($B$8=$A$22,3,2))),EXP(VLOOKUP($B$6,$A$25:$E$52,4)*LN(VLOOKUP($H75,P_Hard!$A$5:$Y$204,3*($C$8-1)+2)/1000)+VLOOKUP($B$6,$A$25:$E$52,5)),NA()) ->  | Q75: =IF(ISNA(VLOOKUP($B$6,$A$25:$E$52,IF($B$8=$A$22,3,2))),EXP(VLOOKUP($B$6,$A$25:$E$52,4)*LN(VLOOKUP($H75,P_Hard!$A$5:$Y$204,3*($C$8-1)+4)/1000)+VLOOKUP($B$6,$A$25:$E$52,5)),NA()) ->  | S75: 4.166666667 | T75: =VLOOKUP($S75,P_All!$AA$5:$AY$245,3*($C$8-1)+2) -> 13347 | U75: =VLOOKUP($S75,P_All!$AA$5:$AY$245,3*($C$8-1)+3) -> 21349 | V75: =VLOOKUP($S75,P_All!$AA$5:$AY$245,3*($C$8-1)+4) -> 23734 | W75: =VLOOKUP($S75,NA_All!$AA$5:$AY$245,3*($C$8-1)+2) -> 8086.3 | X75: =VLOOKUP($S75,NA_All!$AA$5:$AY$245,3*($C$8-1)+3) -> 14152 | Y75: =VLOOKUP($S75,NA_All!$AA$5:$AY$245,3*($C$8-1)+4) -> 16976 | Z75: =IF(AND($B$8=$A$20,$B$6=$A$48),$B$54,IF(ISNA(VLOOKUP($B$6,$A$25:$E$52,IF($B$8=$A$22,3,2),FALSE)),EXP(VLOOKUP($B$6,$A$25:$E$52,4,FALSE)*LN(VLOOKUP($H75,P_Hard!$A$5:$Y$204,3*($C$8-1)+3,FALSE)/1000)+VLOOKUP($B$6,$A$25:$E$52,5,FALSE)),VLOOKUP($B$6,$A$25:$E$52,IF($B$8=$A$22,3,2),FALSE))) -> 
H76: 52 | I76: =VLOOKUP($H76,P_All!$A$5:$Y$204,3*($C$8-1)+2) -> 13287 | J76: =VLOOKUP($H76,P_All!$A$5:$Y$204,3*($C$8-1)+3) -> 20465 | K76: =VLOOKUP($H76,P_All!$A$5:$Y$204,3*($C$8-1)+4) -> 23534 | L76: =VLOOKUP($H76,NA_All!$A$5:$Y$204,3*($C$8-1)+2) -> 8385.4 | M76: =VLOOKUP($H76,NA_All!$A$5:$Y$204,3*($C$8-1)+3) -> 13264 | N76: =VLOOKUP($H76,NA_All!$A$5:$Y$204,3*($C$8-1)+4) -> 18997 | O76: =IF(ISNA(VLOOKUP($B$6,$A$25:$E$52,IF($B$8=$A$22,3,2))),EXP(VLOOKUP($B$6,$A$25:$E$52,4)*LN(VLOOKUP($H76,P_Hard!$A$5:$Y$204,3*($C$8-1)+2)/1000)+VLOOKUP($B$6,$A$25:$E$52,5)),NA()) ->  | Q76: =IF(ISNA(VLOOKUP($B$6,$A$25:$E$52,IF($B$8=$A$22,3,2))),EXP(VLOOKUP($B$6,$A$25:$E$52,4)*LN(VLOOKUP($H76,P_Hard!$A$5:$Y$204,3*($C$8-1)+4)/1000)+VLOOKUP($B$6,$A$25:$E$52,5)),NA()) ->  | S76: 4.25 | T76: =VLOOKUP($S76,P_All!$AA$5:$AY$245,3*($C$8-1)+2) -> 7206.4 | U76: =VLOOKUP($S76,P_All!$AA$5:$AY$245,3*($C$8-1)+3) -> 18069 | V76: =VLOOKUP($S76,P_All!$AA$5:$AY$245,3*($C$8-1)+4) -> 23937 | W76: =VLOOKUP($S76,NA_All!$AA$5:$AY$245,3*($C$8-1)+2) -> 4100.5 | X76: =VLOOKUP($S76,NA_All!$AA$5:$AY$245,3*($C$8-1)+3) -> 13145 | Y76: =VLOOKUP($S76,NA_All!$AA$5:$AY$245,3*($C$8-1)+4) -> 17499 | Z76: =IF(AND($B$8=$A$20,$B$6=$A$48),$B$54,IF(ISNA(VLOOKUP($B$6,$A$25:$E$52,IF($B$8=$A$22,3,2),FALSE)),EXP(VLOOKUP($B$6,$A$25:$E$52,4,FALSE)*LN(VLOOKUP($H76,P_Hard!$A$5:$Y$204,3*($C$8-1)+3,FALSE)/1000)+VLOOKUP($B$6,$A$25:$E$52,5,FALSE)),VLOOKUP($B$6,$A$25:$E$52,IF($B$8=$A$22,3,2),FALSE))) -> 
H77: 53 | I77: =VLOOKUP($H77,P_All!$A$5:$Y$204,3*($C$8-1)+2) -> 13562 | J77: =VLOOKUP($H77,P_All!$A$5:$Y$204,3*($C$8-1)+3) -> 20262 | K77: =VLOOKUP($H77,P_All!$A$5:$Y$204,3*($C$8-1)+4) -> 23006 | L77: =VLOOKUP($H77,NA_All!$A$5:$Y$204,3*($C$8-1)+2) -> 8132 | M77: =VLOOKUP($H77,NA_All!$A$5:$Y$204,3*($C$8-1)+3) -> 13396 | N77: =VLOOKUP($H77,NA_All!$A$5:$Y$204,3*($C$8-1)+4) -> 19002 | O77: =IF(ISNA(VLOOKUP($B$6,$A$25:$E$52,IF($B$8=$A$22,3,2))),EXP(VLOOKUP($B$6,$A$25:$E$52,4)*LN(VLOOKUP($H77,P_Hard!$A$5:$Y$204,3*($C$8-1)+2)/1000)+VLOOKUP($B$6,$A$25:$E$52,5)),NA()) ->  | Q77: =IF(ISNA(VLOOKUP($B$6,$A$25:$E$52,IF($B$8=$A$22,3,2))),EXP(VLOOKUP($B$6,$A$25:$E$52,4)*LN(VLOOKUP($H77,P_Hard!$A$5:$Y$204,3*($C$8-1)+4)/1000)+VLOOKUP($B$6,$A$25:$E$52,5)),NA()) ->  | S77: 4.333333333 | T77: =VLOOKUP($S77,P_All!$AA$5:$AY$245,3*($C$8-1)+2) -> 3057.8 | U77: =VLOOKUP($S77,P_All!$AA$5:$AY$245,3*($C$8-1)+3) -> 6936.8 | V77: =VLOOKUP($S77,P_All!$AA$5:$AY$245,3*($C$8-1)+4) -> 17334 | W77: =VLOOKUP($S77,NA_All!$AA$5:$AY$245,3*($C$8-1)+2) -> 1374.3 | X77: =VLOOKUP($S77,NA_All!$AA$5:$AY$245,3*($C$8-1)+3) -> 4673.8 | Y77: =VLOOKUP($S77,NA_All!$AA$5:$AY$245,3*($C$8-1)+4) -> 18389 | Z77: =IF(AND($B$8=$A$20,$B$6=$A$48),$B$54,IF(ISNA(VLOOKUP($B$6,$A$25:$E$52,IF($B$8=$A$22,3,2),FALSE)),EXP(VLOOKUP($B$6,$A$25:$E$52,4,FALSE)*LN(VLOOKUP($H77,P_Hard!$A$5:$Y$204,3*($C$8-1)+3,FALSE)/1000)+VLOOKUP($B$6,$A$25:$E$52,5,FALSE)),VLOOKUP($B$6,$A$25:$E$52,IF($B$8=$A$22,3,2),FALSE))) -> 
H78: 54 | I78: =VLOOKUP($H78,P_All!$A$5:$Y$204,3*($C$8-1)+2) -> 13013 | J78: =VLOOKUP($H78,P_All!$A$5:$Y$204,3*($C$8-1)+3) -> 19918 | K78: =VLOOKUP($H78,P_All!$A$5:$Y$204,3*($C$8-1)+4) -> 22372 | L78: =VLOOKUP($H78,NA_All!$A$5:$Y$204,3*($C$8-1)+2) -> 8422.8 | M78: =VLOOKUP($H78,NA_All!$A$5:$Y$204,3*($C$8-1)+3) -> 13423 | N78: =VLOOKUP($H78,NA_All!$A$5:$Y$204,3*($C$8-1)+4) -> 19069 | O78: =IF(ISNA(VLOOKUP($B$6,$A$25:$E$52,IF($B$8=$A$22,3,2))),EXP(VLOOKUP($B$6,$A$25:$E$52,4)*LN(VLOOKUP($H78,P_Hard!$A$5:$Y$204,3*($C$8-1)+2)/1000)+VLOOKUP($B$6,$A$25:$E$52,5)),NA()) ->  | Q78: =IF(ISNA(VLOOKUP($B$6,$A$25:$E$52,IF($B$8=$A$22,3,2))),EXP(VLOOKUP($B$6,$A$25:$E$52,4)*LN(VLOOKUP($H78,P_Hard!$A$5:$Y$204,3*($C$8-1)+4)/1000)+VLOOKUP($B$6,$A$25:$E$52,5)),NA()) ->  | S78: 4.416666667 | T78: =VLOOKUP($S78,P_All!$AA$5:$AY$245,3*($C$8-1)+2) -> 3132.2 | U78: =VLOOKUP($S78,P_All!$AA$5:$AY$245,3*($C$8-1)+3) -> 7300.2 | V78: =VLOOKUP($S78,P_All!$AA$5:$AY$245,3*($C$8-1)+4) -> 15334 | W78: =VLOOKUP($S78,NA_All!$AA$5:$AY$245,3*($C$8-1)+2) -> 1321.6 | X78: =VLOOKUP($S78,NA_All!$AA$5:$AY$245,3*($C$8-1)+3) -> 4373.3 | Y78: =VLOOKUP($S78,NA_All!$AA$5:$AY$245,3*($C$8-1)+4) -> 19034 | Z78: =IF(AND($B$8=$A$20,$B$6=$A$48),$B$54,IF(ISNA(VLOOKUP($B$6,$A$25:$E$52,IF($B$8=$A$22,3,2),FALSE)),EXP(VLOOKUP($B$6,$A$25:$E$52,4,FALSE)*LN(VLOOKUP($H78,P_Hard!$A$5:$Y$204,3*($C$8-1)+3,FALSE)/1000)+VLOOKUP($B$6,$A$25:$E$52,5,FALSE)),VLOOKUP($B$6,$A$25:$E$52,IF($B$8=$A$22,3,2),FALSE))) -> 
H79: 55 | I79: =VLOOKUP($H79,P_All!$A$5:$Y$204,3*($C$8-1)+2) -> 13065 | J79: =VLOOKUP($H79,P_All!$A$5:$Y$204,3*($C$8-1)+3) -> 19894 | K79: =VLOOKUP($H79,P_All!$A$5:$Y$204,3*($C$8-1)+4) -> 22037 | L79: =VLOOKUP($H79,NA_All!$A$5:$Y$204,3*($C$8-1)+2) -> 8231.5 | M79: =VLOOKUP($H79,NA_All!$A$5:$Y$204,3*($C$8-1)+3) -> 13291 | N79: =VLOOKUP($H79,NA_All!$A$5:$Y$204,3*($C$8-1)+4) -> 19123 | O79: =IF(ISNA(VLOOKUP($B$6,$A$25:$E$52,IF($B$8=$A$22,3,2))),EXP(VLOOKUP($B$6,$A$25:$E$52,4)*LN(VLOOKUP($H79,P_Hard!$A$5:$Y$204,3*($C$8-1)+2)/1000)+VLOOKUP($B$6,$A$25:$E$52,5)),NA()) ->  | Q79: =IF(ISNA(VLOOKUP($B$6,$A$25:$E$52,IF($B$8=$A$22,3,2))),EXP(VLOOKUP($B$6,$A$25:$E$52,4)*LN(VLOOKUP($H79,P_Hard!$A$5:$Y$204,3*($C$8-1)+4)/1000)+VLOOKUP($B$6,$A$25:$E$52,5)),NA()) ->  | S79: 4.5 | T79: =VLOOKUP($S79,P_All!$AA$5:$AY$245,3*($C$8-1)+2) -> 3871.3 | U79: =VLOOKUP($S79,P_All!$AA$5:$AY$245,3*($C$8-1)+3) -> 8652.2 | V79: =VLOOKUP($S79,P_All!$AA$5:$AY$245,3*($C$8-1)+4) -> 16433 | W79: =VLOOKUP($S79,NA_All!$AA$5:$AY$245,3*($C$8-1)+2) -> 1698 | X79: =VLOOKUP($S79,NA_All!$AA$5:$AY$245,3*($C$8-1)+3) -> 5478.8 | Y79: =VLOOKUP($S79,NA_All!$AA$5:$AY$245,3*($C$8-1)+4) -> 18230 | Z79: =IF(AND($B$8=$A$20,$B$6=$A$48),$B$54,IF(ISNA(VLOOKUP($B$6,$A$25:$E$52,IF($B$8=$A$22,3,2),FALSE)),EXP(VLOOKUP($B$6,$A$25:$E$52,4,FALSE)*LN(VLOOKUP($H79,P_Hard!$A$5:$Y$204,3*($C$8-1)+3,FALSE)/1000)+VLOOKUP($B$6,$A$25:$E$52,5,FALSE)),VLOOKUP($B$6,$A$25:$E$52,IF($B$8=$A$22,3,2),FALSE))) -> 
H80: 56 | I80: =VLOOKUP($H80,P_All!$A$5:$Y$204,3*($C$8-1)+2) -> 11390 | J80: =VLOOKUP($H80,P_All!$A$5:$Y$204,3*($C$8-1)+3) -> 15808 | K80: =VLOOKUP($H80,P_All!$A$5:$Y$204,3*($C$8-1)+4) -> 20067 | L80: =VLOOKUP($H80,NA_All!$A$5:$Y$204,3*($C$8-1)+2) -> 8325.6 | M80: =VLOOKUP($H80,NA_All!$A$5:$Y$204,3*($C$8-1)+3) -> 13217 | N80: =VLOOKUP($H80,NA_All!$A$5:$Y$204,3*($C$8-1)+4) -> 19093 | O80: =IF(ISNA(VLOOKUP($B$6,$A$25:$E$52,IF($B$8=$A$22,3,2))),EXP(VLOOKUP($B$6,$A$25:$E$52,4)*LN(VLOOKUP($H80,P_Hard!$A$5:$Y$204,3*($C$8-1)+2)/1000)+VLOOKUP($B$6,$A$25:$E$52,5)),NA()) ->  | Q80: =IF(ISNA(VLOOKUP($B$6,$A$25:$E$52,IF($B$8=$A$22,3,2))),EXP(VLOOKUP($B$6,$A$25:$E$52,4)*LN(VLOOKUP($H80,P_Hard!$A$5:$Y$204,3*($C$8-1)+4)/1000)+VLOOKUP($B$6,$A$25:$E$52,5)),NA()) ->  | S80: 4.583333333 | T80: =VLOOKUP($S80,P_All!$AA$5:$AY$245,3*($C$8-1)+2) -> 3800.8 | U80: =VLOOKUP($S80,P_All!$AA$5:$AY$245,3*($C$8-1)+3) -> 10317 | V80: =VLOOKUP($S80,P_All!$AA$5:$AY$245,3*($C$8-1)+4) -> 20032 | W80: =VLOOKUP($S80,NA_All!$AA$5:$AY$245,3*($C$8-1)+2) -> 1886.7 | X80: =VLOOKUP($S80,NA_All!$AA$5:$AY$245,3*($C$8-1)+3) -> 7703.2 | Y80: =VLOOKUP($S80,NA_All!$AA$5:$AY$245,3*($C$8-1)+4) -> 17319 | Z80: =IF(AND($B$8=$A$20,$B$6=$A$48),$B$54,IF(ISNA(VLOOKUP($B$6,$A$25:$E$52,IF($B$8=$A$22,3,2),FALSE)),EXP(VLOOKUP($B$6,$A$25:$E$52,4,FALSE)*LN(VLOOKUP($H80,P_Hard!$A$5:$Y$204,3*($C$8-1)+3,FALSE)/1000)+VLOOKUP($B$6,$A$25:$E$52,5,FALSE)),VLOOKUP($B$6,$A$25:$E$52,IF($B$8=$A$22,3,2),FALSE))) -> 
H81: 57 | I81: =VLOOKUP($H81,P_All!$A$5:$Y$204,3*($C$8-1)+2) -> 7035.7 | J81: =VLOOKUP($H81,P_All!$A$5:$Y$204,3*($C$8-1)+3) -> 9021.7 | K81: =VLOOKUP($H81,P_All!$A$5:$Y$204,3*($C$8-1)+4) -> 15728 | L81: =VLOOKUP($H81,NA_All!$A$5:$Y$204,3*($C$8-1)+2) -> 8327.7 | M81: =VLOOKUP($H81,NA_All!$A$5:$Y$204,3*($C$8-1)+3) -> 13355 | N81: =VLOOKUP($H81,NA_All!$A$5:$Y$204,3*($C$8-1)+4) -> 19179 | O81: =IF(ISNA(VLOOKUP($B$6,$A$25:$E$52,IF($B$8=$A$22,3,2))),EXP(VLOOKUP($B$6,$A$25:$E$52,4)*LN(VLOOKUP($H81,P_Hard!$A$5:$Y$204,3*($C$8-1)+2)/1000)+VLOOKUP($B$6,$A$25:$E$52,5)),NA()) ->  | Q81: =IF(ISNA(VLOOKUP($B$6,$A$25:$E$52,IF($B$8=$A$22,3,2))),EXP(VLOOKUP($B$6,$A$25:$E$52,4)*LN(VLOOKUP($H81,P_Hard!$A$5:$Y$204,3*($C$8-1)+4)/1000)+VLOOKUP($B$6,$A$25:$E$52,5)),NA()) ->  | S81: 4.666666667 | T81: =VLOOKUP($S81,P_All!$AA$5:$AY$245,3*($C$8-1)+2) -> 3869.1 | U81: =VLOOKUP($S81,P_All!$AA$5:$AY$245,3*($C$8-1)+3) -> 10074 | V81: =VLOOKUP($S81,P_All!$AA$5:$AY$245,3*($C$8-1)+4) -> 19898 | W81: =VLOOKUP($S81,NA_All!$AA$5:$AY$245,3*($C$8-1)+2) -> 1694.7 | X81: =VLOOKUP($S81,NA_All!$AA$5:$AY$245,3*($C$8-1)+3) -> 6419.8 | Y81: =VLOOKUP($S81,NA_All!$AA$5:$AY$245,3*($C$8-1)+4) -> 18130 | Z81: =IF(AND($B$8=$A$20,$B$6=$A$48),$B$54,IF(ISNA(VLOOKUP($B$6,$A$25:$E$52,IF($B$8=$A$22,3,2),FALSE)),EXP(VLOOKUP($B$6,$A$25:$E$52,4,FALSE)*LN(VLOOKUP($H81,P_Hard!$A$5:$Y$204,3*($C$8-1)+3,FALSE)/1000)+VLOOKUP($B$6,$A$25:$E$52,5,FALSE)),VLOOKUP($B$6,$A$25:$E$52,IF($B$8=$A$22,3,2),FALSE))) -> 
H82: 58 | I82: =VLOOKUP($H82,P_All!$A$5:$Y$204,3*($C$8-1)+2) -> 6644.3 | J82: =VLOOKUP($H82,P_All!$A$5:$Y$204,3*($C$8-1)+3) -> 9014.9 | K82: =VLOOKUP($H82,P_All!$A$5:$Y$204,3*($C$8-1)+4) -> 15667 | L82: =VLOOKUP($H82,NA_All!$A$5:$Y$204,3*($C$8-1)+2) -> 8354.2 | M82: =VLOOKUP($H82,NA_All!$A$5:$Y$204,3*($C$8-1)+3) -> 13217 | N82: =VLOOKUP($H82,NA_All!$A$5:$Y$204,3*($C$8-1)+4) -> 18927 | O82: =IF(ISNA(VLOOKUP($B$6,$A$25:$E$52,IF($B$8=$A$22,3,2))),EXP(VLOOKUP($B$6,$A$25:$E$52,4)*LN(VLOOKUP($H82,P_Hard!$A$5:$Y$204,3*($C$8-1)+2)/1000)+VLOOKUP($B$6,$A$25:$E$52,5)),NA()) ->  | Q82: =IF(ISNA(VLOOKUP($B$6,$A$25:$E$52,IF($B$8=$A$22,3,2))),EXP(VLOOKUP($B$6,$A$25:$E$52,4)*LN(VLOOKUP($H82,P_Hard!$A$5:$Y$204,3*($C$8-1)+4)/1000)+VLOOKUP($B$6,$A$25:$E$52,5)),NA()) ->  | S82: 4.75 | T82: =VLOOKUP($S82,P_All!$AA$5:$AY$245,3*($C$8-1)+2) -> 4145.6 | U82: =VLOOKUP($S82,P_All!$AA$5:$AY$245,3*($C$8-1)+3) -> 9560.7 | V82: =VLOOKUP($S82,P_All!$AA$5:$AY$245,3*($C$8-1)+4) -> 17761 | W82: =VLOOKUP($S82,NA_All!$AA$5:$AY$245,3*($C$8-1)+2) -> 2034.1 | X82: =VLOOKUP($S82,NA_All!$AA$5:$AY$245,3*($C$8-1)+3) -> 6029.6 | Y82: =VLOOKUP($S82,NA_All!$AA$5:$AY$245,3*($C$8-1)+4) -> 17753 | Z82: =IF(AND($B$8=$A$20,$B$6=$A$48),$B$54,IF(ISNA(VLOOKUP($B$6,$A$25:$E$52,IF($B$8=$A$22,3,2),FALSE)),EXP(VLOOKUP($B$6,$A$25:$E$52,4,FALSE)*LN(VLOOKUP($H82,P_Hard!$A$5:$Y$204,3*($C$8-1)+3,FALSE)/1000)+VLOOKUP($B$6,$A$25:$E$52,5,FALSE)),VLOOKUP($B$6,$A$25:$E$52,IF($B$8=$A$22,3,2),FALSE))) -> 
H83: 59 | I83: =VLOOKUP($H83,P_All!$A$5:$Y$204,3*($C$8-1)+2) -> 7437.1 | J83: =VLOOKUP($H83,P_All!$A$5:$Y$204,3*($C$8-1)+3) -> 9119.1 | K83: =VLOOKUP($H83,P_All!$A$5:$Y$204,3*($C$8-1)+4) -> 16373 | L83: =VLOOKUP($H83,NA_All!$A$5:$Y$204,3*($C$8-1)+2) -> 8016.2 | M83: =VLOOKUP($H83,NA_All!$A$5:$Y$204,3*($C$8-1)+3) -> 13262 | N83: =VLOOKUP($H83,NA_All!$A$5:$Y$204,3*($C$8-1)+4) -> 19175 | O83: =IF(ISNA(VLOOKUP($B$6,$A$25:$E$52,IF($B$8=$A$22,3,2))),EXP(VLOOKUP($B$6,$A$25:$E$52,4)*LN(VLOOKUP($H83,P_Hard!$A$5:$Y$204,3*($C$8-1)+2)/1000)+VLOOKUP($B$6,$A$25:$E$52,5)),NA()) ->  | Q83: =IF(ISNA(VLOOKUP($B$6,$A$25:$E$52,IF($B$8=$A$22,3,2))),EXP(VLOOKUP($B$6,$A$25:$E$52,4)*LN(VLOOKUP($H83,P_Hard!$A$5:$Y$204,3*($C$8-1)+4)/1000)+VLOOKUP($B$6,$A$25:$E$52,5)),NA()) ->  | S83: 4.833333333 | T83: =VLOOKUP($S83,P_All!$AA$5:$AY$245,3*($C$8-1)+2) -> 3871.4 | U83: =VLOOKUP($S83,P_All!$AA$5:$AY$245,3*($C$8-1)+3) -> 8454.2 | V83: =VLOOKUP($S83,P_All!$AA$5:$AY$245,3*($C$8-1)+4) -> 15956 | W83: =VLOOKUP($S83,NA_All!$AA$5:$AY$245,3*($C$8-1)+2) -> 1894.1 | X83: =VLOOKUP($S83,NA_All!$AA$5:$AY$245,3*($C$8-1)+3) -> 5454.7 | Y83: =VLOOKUP($S83,NA_All!$AA$5:$AY$245,3*($C$8-1)+4) -> 18139 | Z83: =IF(AND($B$8=$A$20,$B$6=$A$48),$B$54,IF(ISNA(VLOOKUP($B$6,$A$25:$E$52,IF($B$8=$A$22,3,2),FALSE)),EXP(VLOOKUP($B$6,$A$25:$E$52,4,FALSE)*LN(VLOOKUP($H83,P_Hard!$A$5:$Y$204,3*($C$8-1)+3,FALSE)/1000)+VLOOKUP($B$6,$A$25:$E$52,5,FALSE)),VLOOKUP($B$6,$A$25:$E$52,IF($B$8=$A$22,3,2),FALSE))) -> 
H84: 60 | I84: =VLOOKUP($H84,P_All!$A$5:$Y$204,3*($C$8-1)+2) -> 7155 | J84: =VLOOKUP($H84,P_All!$A$5:$Y$204,3*($C$8-1)+3) -> 9067.9 | K84: =VLOOKUP($H84,P_All!$A$5:$Y$204,3*($C$8-1)+4) -> 16020 | L84: =VLOOKUP($H84,NA_All!$A$5:$Y$204,3*($C$8-1)+2) -> 8041.9 | M84: =VLOOKUP($H84,NA_All!$A$5:$Y$204,3*($C$8-1)+3) -> 13339 | N84: =VLOOKUP($H84,NA_All!$A$5:$Y$204,3*($C$8-1)+4) -> 19210 | O84: =IF(ISNA(VLOOKUP($B$6,$A$25:$E$52,IF($B$8=$A$22,3,2))),EXP(VLOOKUP($B$6,$A$25:$E$52,4)*LN(VLOOKUP($H84,P_Hard!$A$5:$Y$204,3*($C$8-1)+2)/1000)+VLOOKUP($B$6,$A$25:$E$52,5)),NA()) ->  | Q84: =IF(ISNA(VLOOKUP($B$6,$A$25:$E$52,IF($B$8=$A$22,3,2))),EXP(VLOOKUP($B$6,$A$25:$E$52,4)*LN(VLOOKUP($H84,P_Hard!$A$5:$Y$204,3*($C$8-1)+4)/1000)+VLOOKUP($B$6,$A$25:$E$52,5)),NA()) ->  | S84: 4.916666667 | T84: =VLOOKUP($S84,P_All!$AA$5:$AY$245,3*($C$8-1)+2) -> 5456.5 | U84: =VLOOKUP($S84,P_All!$AA$5:$AY$245,3*($C$8-1)+3) -> 10026 | V84: =VLOOKUP($S84,P_All!$AA$5:$AY$245,3*($C$8-1)+4) -> 17025 | W84: =VLOOKUP($S84,NA_All!$AA$5:$AY$245,3*($C$8-1)+2) -> 2463.8 | X84: =VLOOKUP($S84,NA_All!$AA$5:$AY$245,3*($C$8-1)+3) -> 6259.4 | Y84: =VLOOKUP($S84,NA_All!$AA$5:$AY$245,3*($C$8-1)+4) -> 17525 | Z84: =IF(AND($B$8=$A$20,$B$6=$A$48),$B$54,IF(ISNA(VLOOKUP($B$6,$A$25:$E$52,IF($B$8=$A$22,3,2),FALSE)),EXP(VLOOKUP($B$6,$A$25:$E$52,4,FALSE)*LN(VLOOKUP($H84,P_Hard!$A$5:$Y$204,3*($C$8-1)+3,FALSE)/1000)+VLOOKUP($B$6,$A$25:$E$52,5,FALSE)),VLOOKUP($B$6,$A$25:$E$52,IF($B$8=$A$22,3,2),FALSE))) -> 
H85: 61 | I85: =VLOOKUP($H85,P_All!$A$5:$Y$204,3*($C$8-1)+2) -> 6836.6 | J85: =VLOOKUP($H85,P_All!$A$5:$Y$204,3*($C$8-1)+3) -> 9002.8 | K85: =VLOOKUP($H85,P_All!$A$5:$Y$204,3*($C$8-1)+4) -> 16482 | L85: =VLOOKUP($H85,NA_All!$A$5:$Y$204,3*($C$8-1)+2) -> 8150.7 | M85: =VLOOKUP($H85,NA_All!$A$5:$Y$204,3*($C$8-1)+3) -> 13112 | N85: =VLOOKUP($H85,NA_All!$A$5:$Y$204,3*($C$8-1)+4) -> 18634 | O85: =IF(ISNA(VLOOKUP($B$6,$A$25:$E$52,IF($B$8=$A$22,3,2))),EXP(VLOOKUP($B$6,$A$25:$E$52,4)*LN(VLOOKUP($H85,P_Hard!$A$5:$Y$204,3*($C$8-1)+2)/1000)+VLOOKUP($B$6,$A$25:$E$52,5)),NA()) ->  | Q85: =IF(ISNA(VLOOKUP($B$6,$A$25:$E$52,IF($B$8=$A$22,3,2))),EXP(VLOOKUP($B$6,$A$25:$E$52,4)*LN(VLOOKUP($H85,P_Hard!$A$5:$Y$204,3*($C$8-1)+4)/1000)+VLOOKUP($B$6,$A$25:$E$52,5)),NA()) ->  | S85: 5 | T85: =VLOOKUP($S85,P_All!$AA$5:$AY$245,3*($C$8-1)+2) -> 8958.9 | U85: =VLOOKUP($S85,P_All!$AA$5:$AY$245,3*($C$8-1)+3) -> 13582 | V85: =VLOOKUP($S85,P_All!$AA$5:$AY$245,3*($C$8-1)+4) -> 18144 | W85: =VLOOKUP($S85,NA_All!$AA$5:$AY$245,3*($C$8-1)+2) -> 4527.7 | X85: =VLOOKUP($S85,NA_All!$AA$5:$AY$245,3*($C$8-1)+3) -> 8828.5 | Y85: =VLOOKUP($S85,NA_All!$AA$5:$AY$245,3*($C$8-1)+4) -> 16672 | Z85: =IF(AND($B$8=$A$20,$B$6=$A$48),$B$54,IF(ISNA(VLOOKUP($B$6,$A$25:$E$52,IF($B$8=$A$22,3,2),FALSE)),EXP(VLOOKUP($B$6,$A$25:$E$52,4,FALSE)*LN(VLOOKUP($H85,P_Hard!$A$5:$Y$204,3*($C$8-1)+3,FALSE)/1000)+VLOOKUP($B$6,$A$25:$E$52,5,FALSE)),VLOOKUP($B$6,$A$25:$E$52,IF($B$8=$A$22,3,2),FALSE))) -> 
H86: 62 | I86: =VLOOKUP($H86,P_All!$A$5:$Y$204,3*($C$8-1)+2) -> 6831.9 | J86: =VLOOKUP($H86,P_All!$A$5:$Y$204,3*($C$8-1)+3) -> 9075.9 | K86: =VLOOKUP($H86,P_All!$A$5:$Y$204,3*($C$8-1)+4) -> 15731 | L86: =VLOOKUP($H86,NA_All!$A$5:$Y$204,3*($C$8-1)+2) -> 8809.9 | M86: =VLOOKUP($H86,NA_All!$A$5:$Y$204,3*($C$8-1)+3) -> 13372 | N86: =VLOOKUP($H86,NA_All!$A$5:$Y$204,3*($C$8-1)+4) -> 19184 | O86: =IF(ISNA(VLOOKUP($B$6,$A$25:$E$52,IF($B$8=$A$22,3,2))),EXP(VLOOKUP($B$6,$A$25:$E$52,4)*LN(VLOOKUP($H86,P_Hard!$A$5:$Y$204,3*($C$8-1)+2)/1000)+VLOOKUP($B$6,$A$25:$E$52,5)),NA()) ->  | Q86: =IF(ISNA(VLOOKUP($B$6,$A$25:$E$52,IF($B$8=$A$22,3,2))),EXP(VLOOKUP($B$6,$A$25:$E$52,4)*LN(VLOOKUP($H86,P_Hard!$A$5:$Y$204,3*($C$8-1)+4)/1000)+VLOOKUP($B$6,$A$25:$E$52,5)),NA()) ->  | S86: 5.083333333 | T86: =VLOOKUP($S86,P_All!$AA$5:$AY$245,3*($C$8-1)+2) -> 11700 | U86: =VLOOKUP($S86,P_All!$AA$5:$AY$245,3*($C$8-1)+3) -> 16843 | V86: =VLOOKUP($S86,P_All!$AA$5:$AY$245,3*($C$8-1)+4) -> 21792 | W86: =VLOOKUP($S86,NA_All!$AA$5:$AY$245,3*($C$8-1)+2) -> 6857.8 | X86: =VLOOKUP($S86,NA_All!$AA$5:$AY$245,3*($C$8-1)+3) -> 12017 | Y86: =VLOOKUP($S86,NA_All!$AA$5:$AY$245,3*($C$8-1)+4) -> 15842 | Z86: =IF(AND($B$8=$A$20,$B$6=$A$48),$B$54,IF(ISNA(VLOOKUP($B$6,$A$25:$E$52,IF($B$8=$A$22,3,2),FALSE)),EXP(VLOOKUP($B$6,$A$25:$E$52,4,FALSE)*LN(VLOOKUP($H86,P_Hard!$A$5:$Y$204,3*($C$8-1)+3,FALSE)/1000)+VLOOKUP($B$6,$A$25:$E$52,5,FALSE)),VLOOKUP($B$6,$A$25:$E$52,IF($B$8=$A$22,3,2),FALSE))) -> 
H87: 63 | I87: =VLOOKUP($H87,P_All!$A$5:$Y$204,3*($C$8-1)+2) -> 7527.5 | J87: =VLOOKUP($H87,P_All!$A$5:$Y$204,3*($C$8-1)+3) -> 9077.8 | K87: =VLOOKUP($H87,P_All!$A$5:$Y$204,3*($C$8-1)+4) -> 16853 | L87: =VLOOKUP($H87,NA_All!$A$5:$Y$204,3*($C$8-1)+2) -> 8805.3 | M87: =VLOOKUP($H87,NA_All!$A$5:$Y$204,3*($C$8-1)+3) -> 13371 | N87: =VLOOKUP($H87,NA_All!$A$5:$Y$204,3*($C$8-1)+4) -> 19399 | O87: =IF(ISNA(VLOOKUP($B$6,$A$25:$E$52,IF($B$8=$A$22,3,2))),EXP(VLOOKUP($B$6,$A$25:$E$52,4)*LN(VLOOKUP($H87,P_Hard!$A$5:$Y$204,3*($C$8-1)+2)/1000)+VLOOKUP($B$6,$A$25:$E$52,5)),NA()) ->  | Q87: =IF(ISNA(VLOOKUP($B$6,$A$25:$E$52,IF($B$8=$A$22,3,2))),EXP(VLOOKUP($B$6,$A$25:$E$52,4)*LN(VLOOKUP($H87,P_Hard!$A$5:$Y$204,3*($C$8-1)+4)/1000)+VLOOKUP($B$6,$A$25:$E$52,5)),NA()) ->  | S87: 5.166666667 | T87: =VLOOKUP($S87,P_All!$AA$5:$AY$245,3*($C$8-1)+2) -> 12832 | U87: =VLOOKUP($S87,P_All!$AA$5:$AY$245,3*($C$8-1)+3) -> 21271 | V87: =VLOOKUP($S87,P_All!$AA$5:$AY$245,3*($C$8-1)+4) -> 23672 | W87: =VLOOKUP($S87,NA_All!$AA$5:$AY$245,3*($C$8-1)+2) -> 7770.3 | X87: =VLOOKUP($S87,NA_All!$AA$5:$AY$245,3*($C$8-1)+3) -> 14160 | Y87: =VLOOKUP($S87,NA_All!$AA$5:$AY$245,3*($C$8-1)+4) -> 16852 | Z87: =IF(AND($B$8=$A$20,$B$6=$A$48),$B$54,IF(ISNA(VLOOKUP($B$6,$A$25:$E$52,IF($B$8=$A$22,3,2),FALSE)),EXP(VLOOKUP($B$6,$A$25:$E$52,4,FALSE)*LN(VLOOKUP($H87,P_Hard!$A$5:$Y$204,3*($C$8-1)+3,FALSE)/1000)+VLOOKUP($B$6,$A$25:$E$52,5,FALSE)),VLOOKUP($B$6,$A$25:$E$52,IF($B$8=$A$22,3,2),FALSE))) -> 
H88: 64 | I88: =VLOOKUP($H88,P_All!$A$5:$Y$204,3*($C$8-1)+2) -> 7296.8 | J88: =VLOOKUP($H88,P_All!$A$5:$Y$204,3*($C$8-1)+3) -> 9127 | K88: =VLOOKUP($H88,P_All!$A$5:$Y$204,3*($C$8-1)+4) -> 15159 | L88: =VLOOKUP($H88,NA_All!$A$5:$Y$204,3*($C$8-1)+2) -> 8562.2 | M88: =VLOOKUP($H88,NA_All!$A$5:$Y$204,3*($C$8-1)+3) -> 13302 | N88: =VLOOKUP($H88,NA_All!$A$5:$Y$204,3*($C$8-1)+4) -> 19024 | O88: =IF(ISNA(VLOOKUP($B$6,$A$25:$E$52,IF($B$8=$A$22,3,2))),EXP(VLOOKUP($B$6,$A$25:$E$52,4)*LN(VLOOKUP($H88,P_Hard!$A$5:$Y$204,3*($C$8-1)+2)/1000)+VLOOKUP($B$6,$A$25:$E$52,5)),NA()) ->  | Q88: =IF(ISNA(VLOOKUP($B$6,$A$25:$E$52,IF($B$8=$A$22,3,2))),EXP(VLOOKUP($B$6,$A$25:$E$52,4)*LN(VLOOKUP($H88,P_Hard!$A$5:$Y$204,3*($C$8-1)+4)/1000)+VLOOKUP($B$6,$A$25:$E$52,5)),NA()) ->  | S88: 5.25 | T88: =VLOOKUP($S88,P_All!$AA$5:$AY$245,3*($C$8-1)+2) -> 6690.5 | U88: =VLOOKUP($S88,P_All!$AA$5:$AY$245,3*($C$8-1)+3) -> 17465 | V88: =VLOOKUP($S88,P_All!$AA$5:$AY$245,3*($C$8-1)+4) -> 23744 | W88: =VLOOKUP($S88,NA_All!$AA$5:$AY$245,3*($C$8-1)+2) -> 3262.6 | X88: =VLOOKUP($S88,NA_All!$AA$5:$AY$245,3*($C$8-1)+3) -> 12473 | Y88: =VLOOKUP($S88,NA_All!$AA$5:$AY$245,3*($C$8-1)+4) -> 17413 | Z88: =IF(AND($B$8=$A$20,$B$6=$A$48),$B$54,IF(ISNA(VLOOKUP($B$6,$A$25:$E$52,IF($B$8=$A$22,3,2),FALSE)),EXP(VLOOKUP($B$6,$A$25:$E$52,4,FALSE)*LN(VLOOKUP($H88,P_Hard!$A$5:$Y$204,3*($C$8-1)+3,FALSE)/1000)+VLOOKUP($B$6,$A$25:$E$52,5,FALSE)),VLOOKUP($B$6,$A$25:$E$52,IF($B$8=$A$22,3,2),FALSE))) -> 
H89: 65 | I89: =VLOOKUP($H89,P_All!$A$5:$Y$204,3*($C$8-1)+2) -> 6974.1 | J89: =VLOOKUP($H89,P_All!$A$5:$Y$204,3*($C$8-1)+3) -> 9077 | K89: =VLOOKUP($H89,P_All!$A$5:$Y$204,3*($C$8-1)+4) -> 16025 | L89: =VLOOKUP($H89,NA_All!$A$5:$Y$204,3*($C$8-1)+2) -> 7874.1 | M89: =VLOOKUP($H89,NA_All!$A$5:$Y$204,3*($C$8-1)+3) -> 13265 | N89: =VLOOKUP($H89,NA_All!$A$5:$Y$204,3*($C$8-1)+4) -> 18713 | O89: =IF(ISNA(VLOOKUP($B$6,$A$25:$E$52,IF($B$8=$A$22,3,2))),EXP(VLOOKUP($B$6,$A$25:$E$52,4)*LN(VLOOKUP($H89,P_Hard!$A$5:$Y$204,3*($C$8-1)+2)/1000)+VLOOKUP($B$6,$A$25:$E$52,5)),NA()) ->  | Q89: =IF(ISNA(VLOOKUP($B$6,$A$25:$E$52,IF($B$8=$A$22,3,2))),EXP(VLOOKUP($B$6,$A$25:$E$52,4)*LN(VLOOKUP($H89,P_Hard!$A$5:$Y$204,3*($C$8-1)+4)/1000)+VLOOKUP($B$6,$A$25:$E$52,5)),NA()) ->  | S89: 5.333333333 | T89: =VLOOKUP($S89,P_All!$AA$5:$AY$245,3*($C$8-1)+2) -> 2929.4 | U89: =VLOOKUP($S89,P_All!$AA$5:$AY$245,3*($C$8-1)+3) -> 7390.6 | V89: =VLOOKUP($S89,P_All!$AA$5:$AY$245,3*($C$8-1)+4) -> 17473 | W89: =VLOOKUP($S89,NA_All!$AA$5:$AY$245,3*($C$8-1)+2) -> 1335 | X89: =VLOOKUP($S89,NA_All!$AA$5:$AY$245,3*($C$8-1)+3) -> 4778.8 | Y89: =VLOOKUP($S89,NA_All!$AA$5:$AY$245,3*($C$8-1)+4) -> 19022 | Z89: =IF(AND($B$8=$A$20,$B$6=$A$48),$B$54,IF(ISNA(VLOOKUP($B$6,$A$25:$E$52,IF($B$8=$A$22,3,2),FALSE)),EXP(VLOOKUP($B$6,$A$25:$E$52,4,FALSE)*LN(VLOOKUP($H89,P_Hard!$A$5:$Y$204,3*($C$8-1)+3,FALSE)/1000)+VLOOKUP($B$6,$A$25:$E$52,5,FALSE)),VLOOKUP($B$6,$A$25:$E$52,IF($B$8=$A$22,3,2),FALSE))) -> 
H90: 66 | I90: =VLOOKUP($H90,P_All!$A$5:$Y$204,3*($C$8-1)+2) -> 7498.6 | J90: =VLOOKUP($H90,P_All!$A$5:$Y$204,3*($C$8-1)+3) -> 9104 | K90: =VLOOKUP($H90,P_All!$A$5:$Y$204,3*($C$8-1)+4) -> 15811 | L90: =VLOOKUP($H90,NA_All!$A$5:$Y$204,3*($C$8-1)+2) -> 8791.2 | M90: =VLOOKUP($H90,NA_All!$A$5:$Y$204,3*($C$8-1)+3) -> 13231 | N90: =VLOOKUP($H90,NA_All!$A$5:$Y$204,3*($C$8-1)+4) -> 19267 | O90: =IF(ISNA(VLOOKUP($B$6,$A$25:$E$52,IF($B$8=$A$22,3,2))),EXP(VLOOKUP($B$6,$A$25:$E$52,4)*LN(VLOOKUP($H90,P_Hard!$A$5:$Y$204,3*($C$8-1)+2)/1000)+VLOOKUP($B$6,$A$25:$E$52,5)),NA()) ->  | P90: =IF(AND($B$8=$A$20,$B$6=$A$48),$B$54,IF(ISNA(VLOOKUP($B$6,$A$25:$F$52,IF($B$8=$A$22,3,2),FALSE)),VLOOKUP($B$6,$A$25:$F$52,6),VLOOKUP($B$6,$A$25:$F$52,IF($B$8=$A$22,3,2),FALSE))) ->  | Q90: =IF(ISNA(VLOOKUP($B$6,$A$25:$E$52,IF($B$8=$A$22,3,2))),EXP(VLOOKUP($B$6,$A$25:$E$52,4)*LN(VLOOKUP($H90,P_Hard!$A$5:$Y$204,3*($C$8-1)+4)/1000)+VLOOKUP($B$6,$A$25:$E$52,5)),NA()) ->  | S90: 5.416666667 | T90: =VLOOKUP($S90,P_All!$AA$5:$AY$245,3*($C$8-1)+2) -> 3012.4 | U90: =VLOOKUP($S90,P_All!$AA$5:$AY$245,3*($C$8-1)+3) -> 6846.1 | V90: =VLOOKUP($S90,P_All!$AA$5:$AY$245,3*($C$8-1)+4) -> 16451 | W90: =VLOOKUP($S90,NA_All!$AA$5:$AY$245,3*($C$8-1)+2) -> 1356.7 | X90: =VLOOKUP($S90,NA_All!$AA$5:$AY$245,3*($C$8-1)+3) -> 4343.9 | Y90: =VLOOKUP($S90,NA_All!$AA$5:$AY$245,3*($C$8-1)+4) -> 19075 | Z90: =IF(AND($B$8=$A$20,$B$6=$A$48),$B$54,IF(ISNA(VLOOKUP($B$6,$A$25:$E$52,IF($B$8=$A$22,3,2),FALSE)),EXP(VLOOKUP($B$6,$A$25:$E$52,4,FALSE)*LN(VLOOKUP($H90,P_Hard!$A$5:$Y$204,3*($C$8-1)+3,FALSE)/1000)+VLOOKUP($B$6,$A$25:$E$52,5,FALSE)),VLOOKUP($B$6,$A$25:$E$52,IF($B$8=$A$22,3,2),FALSE))) -> 
H91: 67 | I91: =VLOOKUP($H91,P_All!$A$5:$Y$204,3*($C$8-1)+2) -> 6546.4 | J91: =VLOOKUP($H91,P_All!$A$5:$Y$204,3*($C$8-1)+3) -> 9004.4 | K91: =VLOOKUP($H91,P_All!$A$5:$Y$204,3*($C$8-1)+4) -> 16617 | L91: =VLOOKUP($H91,NA_All!$A$5:$Y$204,3*($C$8-1)+2) -> 8357.5 | M91: =VLOOKUP($H91,NA_All!$A$5:$Y$204,3*($C$8-1)+3) -> 13277 | N91: =VLOOKUP($H91,NA_All!$A$5:$Y$204,3*($C$8-1)+4) -> 18599 | O91: =IF(ISNA(VLOOKUP($B$6,$A$25:$E$52,IF($B$8=$A$22,3,2))),EXP(VLOOKUP($B$6,$A$25:$E$52,4)*LN(VLOOKUP($H91,P_Hard!$A$5:$Y$204,3*($C$8-1)+2)/1000)+VLOOKUP($B$6,$A$25:$E$52,5)),NA()) ->  | Q91: =IF(ISNA(VLOOKUP($B$6,$A$25:$E$52,IF($B$8=$A$22,3,2))),EXP(VLOOKUP($B$6,$A$25:$E$52,4)*LN(VLOOKUP($H91,P_Hard!$A$5:$Y$204,3*($C$8-1)+4)/1000)+VLOOKUP($B$6,$A$25:$E$52,5)),NA()) ->  | S91: =S90+1/12 -> 5.5 | T91: =VLOOKUP($S91,P_All!$AA$5:$AY$245,3*($C$8-1)+2) -> 3525.9 | U91: =VLOOKUP($S91,P_All!$AA$5:$AY$245,3*($C$8-1)+3) -> 8413.9 | V91: =VLOOKUP($S91,P_All!$AA$5:$AY$245,3*($C$8-1)+4) -> 17475 | W91: =VLOOKUP($S91,NA_All!$AA$5:$AY$245,3*($C$8-1)+2) -> 1874.4 | X91: =VLOOKUP($S91,NA_All!$AA$5:$AY$245,3*($C$8-1)+3) -> 5996.1 | Y91: =VLOOKUP($S91,NA_All!$AA$5:$AY$245,3*($C$8-1)+4) -> 18046 | Z91: =IF(AND($B$8=$A$20,$B$6=$A$48),$B$54,IF(ISNA(VLOOKUP($B$6,$A$25:$E$52,IF($B$8=$A$22,3,2),FALSE)),EXP(VLOOKUP($B$6,$A$25:$E$52,4,FALSE)*LN(VLOOKUP($H91,P_Hard!$A$5:$Y$204,3*($C$8-1)+3,FALSE)/1000)+VLOOKUP($B$6,$A$25:$E$52,5,FALSE)),VLOOKUP($B$6,$A$25:$E$52,IF($B$8=$A$22,3,2),FALSE))) -> 
H92: 68 | I92: =VLOOKUP($H92,P_All!$A$5:$Y$204,3*($C$8-1)+2) -> 7039.6 | J92: =VLOOKUP($H92,P_All!$A$5:$Y$204,3*($C$8-1)+3) -> 9101.2 | K92: =VLOOKUP($H92,P_All!$A$5:$Y$204,3*($C$8-1)+4) -> 16393 | L92: =VLOOKUP($H92,NA_All!$A$5:$Y$204,3*($C$8-1)+2) -> 7884.2 | M92: =VLOOKUP($H92,NA_All!$A$5:$Y$204,3*($C$8-1)+3) -> 13199 | N92: =VLOOKUP($H92,NA_All!$A$5:$Y$204,3*($C$8-1)+4) -> 19202 | O92: =IF(ISNA(VLOOKUP($B$6,$A$25:$E$52,IF($B$8=$A$22,3,2))),EXP(VLOOKUP($B$6,$A$25:$E$52,4)*LN(VLOOKUP($H92,P_Hard!$A$5:$Y$204,3*($C$8-1)+2)/1000)+VLOOKUP($B$6,$A$25:$E$52,5)),NA()) ->  | Q92: =IF(ISNA(VLOOKUP($B$6,$A$25:$E$52,IF($B$8=$A$22,3,2))),EXP(VLOOKUP($B$6,$A$25:$E$52,4)*LN(VLOOKUP($H92,P_Hard!$A$5:$Y$204,3*($C$8-1)+4)/1000)+VLOOKUP($B$6,$A$25:$E$52,5)),NA()) ->  | S92: 5.583333333 | T92: =VLOOKUP($S92,P_All!$AA$5:$AY$245,3*($C$8-1)+2) -> 4385.1 | U92: =VLOOKUP($S92,P_All!$AA$5:$AY$245,3*($C$8-1)+3) -> 10809 | V92: =VLOOKUP($S92,P_All!$AA$5:$AY$245,3*($C$8-1)+4) -> 20466 | W92: =VLOOKUP($S92,NA_All!$AA$5:$AY$245,3*($C$8-1)+2) -> 2262.9 | X92: =VLOOKUP($S92,NA_All!$AA$5:$AY$245,3*($C$8-1)+3) -> 7494.1 | Y92: =VLOOKUP($S92,NA_All!$AA$5:$AY$245,3*($C$8-1)+4) -> 18114 | Z92: =IF(AND($B$8=$A$20,$B$6=$A$48),$B$54,IF(ISNA(VLOOKUP($B$6,$A$25:$E$52,IF($B$8=$A$22,3,2),FALSE)),EXP(VLOOKUP($B$6,$A$25:$E$52,4,FALSE)*LN(VLOOKUP($H92,P_Hard!$A$5:$Y$204,3*($C$8-1)+3,FALSE)/1000)+VLOOKUP($B$6,$A$25:$E$52,5,FALSE)),VLOOKUP($B$6,$A$25:$E$52,IF($B$8=$A$22,3,2),FALSE))) -> 
H93: 69 | I93: =VLOOKUP($H93,P_All!$A$5:$Y$204,3*($C$8-1)+2) -> 6924.8 | J93: =VLOOKUP($H93,P_All!$A$5:$Y$204,3*($C$8-1)+3) -> 9069.7 | K93: =VLOOKUP($H93,P_All!$A$5:$Y$204,3*($C$8-1)+4) -> 16135 | L93: =VLOOKUP($H93,NA_All!$A$5:$Y$204,3*($C$8-1)+2) -> 8178 | M93: =VLOOKUP($H93,NA_All!$A$5:$Y$204,3*($C$8-1)+3) -> 13353 | N93: =VLOOKUP($H93,NA_All!$A$5:$Y$204,3*($C$8-1)+4) -> 19365 | O93: =IF(ISNA(VLOOKUP($B$6,$A$25:$E$52,IF($B$8=$A$22,3,2))),EXP(VLOOKUP($B$6,$A$25:$E$52,4)*LN(VLOOKUP($H93,P_Hard!$A$5:$Y$204,3*($C$8-1)+2)/1000)+VLOOKUP($B$6,$A$25:$E$52,5)),NA()) ->  | Q93: =IF(ISNA(VLOOKUP($B$6,$A$25:$E$52,IF($B$8=$A$22,3,2))),EXP(VLOOKUP($B$6,$A$25:$E$52,4)*LN(VLOOKUP($H93,P_Hard!$A$5:$Y$204,3*($C$8-1)+4)/1000)+VLOOKUP($B$6,$A$25:$E$52,5)),NA()) ->  | S93: 5.666666667 | T93: =VLOOKUP($S93,P_All!$AA$5:$AY$245,3*($C$8-1)+2) -> 4078.8 | U93: =VLOOKUP($S93,P_All!$AA$5:$AY$245,3*($C$8-1)+3) -> 10437 | V93: =VLOOKUP($S93,P_All!$AA$5:$AY$245,3*($C$8-1)+4) -> 19635 | W93: =VLOOKUP($S93,NA_All!$AA$5:$AY$245,3*($C$8-1)+2) -> 2055.4 | X93: =VLOOKUP($S93,NA_All!$AA$5:$AY$245,3*($C$8-1)+3) -> 6741.4 | Y93: =VLOOKUP($S93,NA_All!$AA$5:$AY$245,3*($C$8-1)+4) -> 17682 | Z93: =IF(AND($B$8=$A$20,$B$6=$A$48),$B$54,IF(ISNA(VLOOKUP($B$6,$A$25:$E$52,IF($B$8=$A$22,3,2),FALSE)),EXP(VLOOKUP($B$6,$A$25:$E$52,4,FALSE)*LN(VLOOKUP($H93,P_Hard!$A$5:$Y$204,3*($C$8-1)+3,FALSE)/1000)+VLOOKUP($B$6,$A$25:$E$52,5,FALSE)),VLOOKUP($B$6,$A$25:$E$52,IF($B$8=$A$22,3,2),FALSE))) -> 
H94: 70 | I94: =VLOOKUP($H94,P_All!$A$5:$Y$204,3*($C$8-1)+2) -> 6920.9 | J94: =VLOOKUP($H94,P_All!$A$5:$Y$204,3*($C$8-1)+3) -> 9079.4 | K94: =VLOOKUP($H94,P_All!$A$5:$Y$204,3*($C$8-1)+4) -> 16079 | L94: =VLOOKUP($H94,NA_All!$A$5:$Y$204,3*($C$8-1)+2) -> 8493.1 | M94: =VLOOKUP($H94,NA_All!$A$5:$Y$204,3*($C$8-1)+3) -> 13189 | N94: =VLOOKUP($H94,NA_All!$A$5:$Y$204,3*($C$8-1)+4) -> 19243 | O94: =IF(ISNA(VLOOKUP($B$6,$A$25:$E$52,IF($B$8=$A$22,3,2))),EXP(VLOOKUP($B$6,$A$25:$E$52,4)*LN(VLOOKUP($H94,P_Hard!$A$5:$Y$204,3*($C$8-1)+2)/1000)+VLOOKUP($B$6,$A$25:$E$52,5)),NA()) ->  | Q94: =IF(ISNA(VLOOKUP($B$6,$A$25:$E$52,IF($B$8=$A$22,3,2))),EXP(VLOOKUP($B$6,$A$25:$E$52,4)*LN(VLOOKUP($H94,P_Hard!$A$5:$Y$204,3*($C$8-1)+4)/1000)+VLOOKUP($B$6,$A$25:$E$52,5)),NA()) ->  | S94: 5.75 | T94: =VLOOKUP($S94,P_All!$AA$5:$AY$245,3*($C$8-1)+2) -> 3957.3 | U94: =VLOOKUP($S94,P_All!$AA$5:$AY$245,3*($C$8-1)+3) -> 9936.9 | V94: =VLOOKUP($S94,P_All!$AA$5:$AY$245,3*($C$8-1)+4) -> 17694 | W94: =VLOOKUP($S94,NA_All!$AA$5:$AY$245,3*($C$8-1)+2) -> 1968.7 | X94: =VLOOKUP($S94,NA_All!$AA$5:$AY$245,3*($C$8-1)+3) -> 6706.1 | Y94: =VLOOKUP($S94,NA_All!$AA$5:$AY$245,3*($C$8-1)+4) -> 18026 | Z94: =IF(AND($B$8=$A$20,$B$6=$A$48),$B$54,IF(ISNA(VLOOKUP($B$6,$A$25:$E$52,IF($B$8=$A$22,3,2),FALSE)),EXP(VLOOKUP($B$6,$A$25:$E$52,4,FALSE)*LN(VLOOKUP($H94,P_Hard!$A$5:$Y$204,3*($C$8-1)+3,FALSE)/1000)+VLOOKUP($B$6,$A$25:$E$52,5,FALSE)),VLOOKUP($B$6,$A$25:$E$52,IF($B$8=$A$22,3,2),FALSE))) -> 
H95: 71 | I95: =VLOOKUP($H95,P_All!$A$5:$Y$204,3*($C$8-1)+2) -> 7131.8 | J95: =VLOOKUP($H95,P_All!$A$5:$Y$204,3*($C$8-1)+3) -> 9040.1 | K95: =VLOOKUP($H95,P_All!$A$5:$Y$204,3*($C$8-1)+4) -> 16860 | L95: =VLOOKUP($H95,NA_All!$A$5:$Y$204,3*($C$8-1)+2) -> 8186.7 | M95: =VLOOKUP($H95,NA_All!$A$5:$Y$204,3*($C$8-1)+3) -> 13271 | N95: =VLOOKUP($H95,NA_All!$A$5:$Y$204,3*($C$8-1)+4) -> 19166 | O95: =IF(ISNA(VLOOKUP($B$6,$A$25:$E$52,IF($B$8=$A$22,3,2))),EXP(VLOOKUP($B$6,$A$25:$E$52,4)*LN(VLOOKUP($H95,P_Hard!$A$5:$Y$204,3*($C$8-1)+2)/1000)+VLOOKUP($B$6,$A$25:$E$52,5)),NA()) ->  | Q95: =IF(ISNA(VLOOKUP($B$6,$A$25:$E$52,IF($B$8=$A$22,3,2))),EXP(VLOOKUP($B$6,$A$25:$E$52,4)*LN(VLOOKUP($H95,P_Hard!$A$5:$Y$204,3*($C$8-1)+4)/1000)+VLOOKUP($B$6,$A$25:$E$52,5)),NA()) ->  | S95: 5.833333333 | T95: =VLOOKUP($S95,P_All!$AA$5:$AY$245,3*($C$8-1)+2) -> 3831.2 | U95: =VLOOKUP($S95,P_All!$AA$5:$AY$245,3*($C$8-1)+3) -> 8265.4 | V95: =VLOOKUP($S95,P_All!$AA$5:$AY$245,3*($C$8-1)+4) -> 17140 | W95: =VLOOKUP($S95,NA_All!$AA$5:$AY$245,3*($C$8-1)+2) -> 1977.2 | X95: =VLOOKUP($S95,NA_All!$AA$5:$AY$245,3*($C$8-1)+3) -> 5483.4 | Y95: =VLOOKUP($S95,NA_All!$AA$5:$AY$245,3*($C$8-1)+4) -> 18126 | Z95: =IF(AND($B$8=$A$20,$B$6=$A$48),$B$54,IF(ISNA(VLOOKUP($B$6,$A$25:$E$52,IF($B$8=$A$22,3,2),FALSE)),EXP(VLOOKUP($B$6,$A$25:$E$52,4,FALSE)*LN(VLOOKUP($H95,P_Hard!$A$5:$Y$204,3*($C$8-1)+3,FALSE)/1000)+VLOOKUP($B$6,$A$25:$E$52,5,FALSE)),VLOOKUP($B$6,$A$25:$E$52,IF($B$8=$A$22,3,2),FALSE))) -> 
H96: 72 | I96: =VLOOKUP($H96,P_All!$A$5:$Y$204,3*($C$8-1)+2) -> 7129.3 | J96: =VLOOKUP($H96,P_All!$A$5:$Y$204,3*($C$8-1)+3) -> 9024.5 | K96: =VLOOKUP($H96,P_All!$A$5:$Y$204,3*($C$8-1)+4) -> 17032 | L96: =VLOOKUP($H96,NA_All!$A$5:$Y$204,3*($C$8-1)+2) -> 8445.9 | M96: =VLOOKUP($H96,NA_All!$A$5:$Y$204,3*($C$8-1)+3) -> 13296 | N96: =VLOOKUP($H96,NA_All!$A$5:$Y$204,3*($C$8-1)+4) -> 19279 | O96: =IF(ISNA(VLOOKUP($B$6,$A$25:$E$52,IF($B$8=$A$22,3,2))),EXP(VLOOKUP($B$6,$A$25:$E$52,4)*LN(VLOOKUP($H96,P_Hard!$A$5:$Y$204,3*($C$8-1)+2)/1000)+VLOOKUP($B$6,$A$25:$E$52,5)),NA()) ->  | Q96: =IF(ISNA(VLOOKUP($B$6,$A$25:$E$52,IF($B$8=$A$22,3,2))),EXP(VLOOKUP($B$6,$A$25:$E$52,4)*LN(VLOOKUP($H96,P_Hard!$A$5:$Y$204,3*($C$8-1)+4)/1000)+VLOOKUP($B$6,$A$25:$E$52,5)),NA()) ->  | S96: 5.916666667 | T96: =VLOOKUP($S96,P_All!$AA$5:$AY$245,3*($C$8-1)+2) -> 5018.6 | U96: =VLOOKUP($S96,P_All!$AA$5:$AY$245,3*($C$8-1)+3) -> 9918.1 | V96: =VLOOKUP($S96,P_All!$AA$5:$AY$245,3*($C$8-1)+4) -> 16003 | W96: =VLOOKUP($S96,NA_All!$AA$5:$AY$245,3*($C$8-1)+2) -> 2553.2 | X96: =VLOOKUP($S96,NA_All!$AA$5:$AY$245,3*($C$8-1)+3) -> 6344.5 | Y96: =VLOOKUP($S96,NA_All!$AA$5:$AY$245,3*($C$8-1)+4) -> 17387 | Z96: =IF(AND($B$8=$A$20,$B$6=$A$48),$B$54,IF(ISNA(VLOOKUP($B$6,$A$25:$E$52,IF($B$8=$A$22,3,2),FALSE)),EXP(VLOOKUP($B$6,$A$25:$E$52,4,FALSE)*LN(VLOOKUP($H96,P_Hard!$A$5:$Y$204,3*($C$8-1)+3,FALSE)/1000)+VLOOKUP($B$6,$A$25:$E$52,5,FALSE)),VLOOKUP($B$6,$A$25:$E$52,IF($B$8=$A$22,3,2),FALSE))) -> 
H97: 73 | I97: =VLOOKUP($H97,P_All!$A$5:$Y$204,3*($C$8-1)+2) -> 7058.6 | J97: =VLOOKUP($H97,P_All!$A$5:$Y$204,3*($C$8-1)+3) -> 8967.1 | K97: =VLOOKUP($H97,P_All!$A$5:$Y$204,3*($C$8-1)+4) -> 15401 | L97: =VLOOKUP($H97,NA_All!$A$5:$Y$204,3*($C$8-1)+2) -> 8078.4 | M97: =VLOOKUP($H97,NA_All!$A$5:$Y$204,3*($C$8-1)+3) -> 13222 | N97: =VLOOKUP($H97,NA_All!$A$5:$Y$204,3*($C$8-1)+4) -> 19329 | O97: =IF(ISNA(VLOOKUP($B$6,$A$25:$E$52,IF($B$8=$A$22,3,2))),EXP(VLOOKUP($B$6,$A$25:$E$52,4)*LN(VLOOKUP($H97,P_Hard!$A$5:$Y$204,3*($C$8-1)+2)/1000)+VLOOKUP($B$6,$A$25:$E$52,5)),NA()) ->  | Q97: =IF(ISNA(VLOOKUP($B$6,$A$25:$E$52,IF($B$8=$A$22,3,2))),EXP(VLOOKUP($B$6,$A$25:$E$52,4)*LN(VLOOKUP($H97,P_Hard!$A$5:$Y$204,3*($C$8-1)+4)/1000)+VLOOKUP($B$6,$A$25:$E$52,5)),NA()) ->  | S97: 6 | T97: =VLOOKUP($S97,P_All!$AA$5:$AY$245,3*($C$8-1)+2) -> 8848.4 | U97: =VLOOKUP($S97,P_All!$AA$5:$AY$245,3*($C$8-1)+3) -> 13906 | V97: =VLOOKUP($S97,P_All!$AA$5:$AY$245,3*($C$8-1)+4) -> 17498 | W97: =VLOOKUP($S97,NA_All!$AA$5:$AY$245,3*($C$8-1)+2) -> 4723.5 | X97: =VLOOKUP($S97,NA_All!$AA$5:$AY$245,3*($C$8-1)+3) -> 9273.6 | Y97: =VLOOKUP($S97,NA_All!$AA$5:$AY$245,3*($C$8-1)+4) -> 16203 | Z97: =IF(AND($B$8=$A$20,$B$6=$A$48),$B$54,IF(ISNA(VLOOKUP($B$6,$A$25:$E$52,IF($B$8=$A$22,3,2),FALSE)),EXP(VLOOKUP($B$6,$A$25:$E$52,4,FALSE)*LN(VLOOKUP($H97,P_Hard!$A$5:$Y$204,3*($C$8-1)+3,FALSE)/1000)+VLOOKUP($B$6,$A$25:$E$52,5,FALSE)),VLOOKUP($B$6,$A$25:$E$52,IF($B$8=$A$22,3,2),FALSE))) -> 
H98: 74 | I98: =VLOOKUP($H98,P_All!$A$5:$Y$204,3*($C$8-1)+2) -> 6830.4 | J98: =VLOOKUP($H98,P_All!$A$5:$Y$204,3*($C$8-1)+3) -> 9039.1 | K98: =VLOOKUP($H98,P_All!$A$5:$Y$204,3*($C$8-1)+4) -> 16804 | L98: =VLOOKUP($H98,NA_All!$A$5:$Y$204,3*($C$8-1)+2) -> 7853.2 | M98: =VLOOKUP($H98,NA_All!$A$5:$Y$204,3*($C$8-1)+3) -> 13225 | N98: =VLOOKUP($H98,NA_All!$A$5:$Y$204,3*($C$8-1)+4) -> 19201 | O98: =IF(ISNA(VLOOKUP($B$6,$A$25:$E$52,IF($B$8=$A$22,3,2))),EXP(VLOOKUP($B$6,$A$25:$E$52,4)*LN(VLOOKUP($H98,P_Hard!$A$5:$Y$204,3*($C$8-1)+2)/1000)+VLOOKUP($B$6,$A$25:$E$52,5)),NA()) ->  | Q98: =IF(ISNA(VLOOKUP($B$6,$A$25:$E$52,IF($B$8=$A$22,3,2))),EXP(VLOOKUP($B$6,$A$25:$E$52,4)*LN(VLOOKUP($H98,P_Hard!$A$5:$Y$204,3*($C$8-1)+4)/1000)+VLOOKUP($B$6,$A$25:$E$52,5)),NA()) ->  | S98: 6.083333333 | T98: =VLOOKUP($S98,P_All!$AA$5:$AY$245,3*($C$8-1)+2) -> 12029 | U98: =VLOOKUP($S98,P_All!$AA$5:$AY$245,3*($C$8-1)+3) -> 17081 | V98: =VLOOKUP($S98,P_All!$AA$5:$AY$245,3*($C$8-1)+4) -> 21754 | W98: =VLOOKUP($S98,NA_All!$AA$5:$AY$245,3*($C$8-1)+2) -> 7203.5 | X98: =VLOOKUP($S98,NA_All!$AA$5:$AY$245,3*($C$8-1)+3) -> 11797 | Y98: =VLOOKUP($S98,NA_All!$AA$5:$AY$245,3*($C$8-1)+4) -> 15604 | Z98: =IF(AND($B$8=$A$20,$B$6=$A$48),$B$54,IF(ISNA(VLOOKUP($B$6,$A$25:$E$52,IF($B$8=$A$22,3,2),FALSE)),EXP(VLOOKUP($B$6,$A$25:$E$52,4,FALSE)*LN(VLOOKUP($H98,P_Hard!$A$5:$Y$204,3*($C$8-1)+3,FALSE)/1000)+VLOOKUP($B$6,$A$25:$E$52,5,FALSE)),VLOOKUP($B$6,$A$25:$E$52,IF($B$8=$A$22,3,2),FALSE))) -> 
H99: 75 | I99: =VLOOKUP($H99,P_All!$A$5:$Y$204,3*($C$8-1)+2) -> 6968.7 | J99: =VLOOKUP($H99,P_All!$A$5:$Y$204,3*($C$8-1)+3) -> 9024.1 | K99: =VLOOKUP($H99,P_All!$A$5:$Y$204,3*($C$8-1)+4) -> 15937 | L99: =VLOOKUP($H99,NA_All!$A$5:$Y$204,3*($C$8-1)+2) -> 8171.6 | M99: =VLOOKUP($H99,NA_All!$A$5:$Y$204,3*($C$8-1)+3) -> 13209 | N99: =VLOOKUP($H99,NA_All!$A$5:$Y$204,3*($C$8-1)+4) -> 18760 | O99: =IF(ISNA(VLOOKUP($B$6,$A$25:$E$52,IF($B$8=$A$22,3,2))),EXP(VLOOKUP($B$6,$A$25:$E$52,4)*LN(VLOOKUP($H99,P_Hard!$A$5:$Y$204,3*($C$8-1)+2)/1000)+VLOOKUP($B$6,$A$25:$E$52,5)),NA()) ->  | Q99: =IF(ISNA(VLOOKUP($B$6,$A$25:$E$52,IF($B$8=$A$22,3,2))),EXP(VLOOKUP($B$6,$A$25:$E$52,4)*LN(VLOOKUP($H99,P_Hard!$A$5:$Y$204,3*($C$8-1)+4)/1000)+VLOOKUP($B$6,$A$25:$E$52,5)),NA()) ->  | S99: 6.166666667 | T99: =VLOOKUP($S99,P_All!$AA$5:$AY$245,3*($C$8-1)+2) -> 13377 | U99: =VLOOKUP($S99,P_All!$AA$5:$AY$245,3*($C$8-1)+3) -> 21406 | V99: =VLOOKUP($S99,P_All!$AA$5:$AY$245,3*($C$8-1)+4) -> 23653 | W99: =VLOOKUP($S99,NA_All!$AA$5:$AY$245,3*($C$8-1)+2) -> 8403.8 | X99: =VLOOKUP($S99,NA_All!$AA$5:$AY$245,3*($C$8-1)+3) -> 14299 | Y99: =VLOOKUP($S99,NA_All!$AA$5:$AY$245,3*($C$8-1)+4) -> 16949 | Z99: =IF(AND($B$8=$A$20,$B$6=$A$48),$B$54,IF(ISNA(VLOOKUP($B$6,$A$25:$E$52,IF($B$8=$A$22,3,2),FALSE)),EXP(VLOOKUP($B$6,$A$25:$E$52,4,FALSE)*LN(VLOOKUP($H99,P_Hard!$A$5:$Y$204,3*($C$8-1)+3,FALSE)/1000)+VLOOKUP($B$6,$A$25:$E$52,5,FALSE)),VLOOKUP($B$6,$A$25:$E$52,IF($B$8=$A$22,3,2),FALSE))) -> 
H100: 76 | I100: =VLOOKUP($H100,P_All!$A$5:$Y$204,3*($C$8-1)+2) -> 6703.7 | J100: =VLOOKUP($H100,P_All!$A$5:$Y$204,3*($C$8-1)+3) -> 9021.6 | K100: =VLOOKUP($H100,P_All!$A$5:$Y$204,3*($C$8-1)+4) -> 15216 | L100: =VLOOKUP($H100,NA_All!$A$5:$Y$204,3*($C$8-1)+2) -> 8260.5 | M100: =VLOOKUP($H100,NA_All!$A$5:$Y$204,3*($C$8-1)+3) -> 13177 | N100: =VLOOKUP($H100,NA_All!$A$5:$Y$204,3*($C$8-1)+4) -> 19063 | O100: =IF(ISNA(VLOOKUP($B$6,$A$25:$E$52,IF($B$8=$A$22,3,2))),EXP(VLOOKUP($B$6,$A$25:$E$52,4)*LN(VLOOKUP($H100,P_Hard!$A$5:$Y$204,3*($C$8-1)+2)/1000)+VLOOKUP($B$6,$A$25:$E$52,5)),NA()) ->  | Q100: =IF(ISNA(VLOOKUP($B$6,$A$25:$E$52,IF($B$8=$A$22,3,2))),EXP(VLOOKUP($B$6,$A$25:$E$52,4)*LN(VLOOKUP($H100,P_Hard!$A$5:$Y$204,3*($C$8-1)+4)/1000)+VLOOKUP($B$6,$A$25:$E$52,5)),NA()) ->  | S100: 6.25 | T100: =VLOOKUP($S100,P_All!$AA$5:$AY$245,3*($C$8-1)+2) -> 7173.5 | U100: =VLOOKUP($S100,P_All!$AA$5:$AY$245,3*($C$8-1)+3) -> 18597 | V100: =VLOOKUP($S100,P_All!$AA$5:$AY$245,3*($C$8-1)+4) -> 24057 | W100: =VLOOKUP($S100,NA_All!$AA$5:$AY$245,3*($C$8-1)+2) -> 3825.4 | X100: =VLOOKUP($S100,NA_All!$AA$5:$AY$245,3*($C$8-1)+3) -> 13173 | Y100: =VLOOKUP($S100,NA_All!$AA$5:$AY$245,3*($C$8-1)+4) -> 17402 | Z100: =IF(AND($B$8=$A$20,$B$6=$A$48),$B$54,IF(ISNA(VLOOKUP($B$6,$A$25:$E$52,IF($B$8=$A$22,3,2),FALSE)),EXP(VLOOKUP($B$6,$A$25:$E$52,4,FALSE)*LN(VLOOKUP($H100,P_Hard!$A$5:$Y$204,3*($C$8-1)+3,FALSE)/1000)+VLOOKUP($B$6,$A$25:$E$52,5,FALSE)),VLOOKUP($B$6,$A$25:$E$52,IF($B$8=$A$22,3,2),FALSE))) -> 
H101: 77 | I101: =VLOOKUP($H101,P_All!$A$5:$Y$204,3*($C$8-1)+2) -> 6984 | J101: =VLOOKUP($H101,P_All!$A$5:$Y$204,3*($C$8-1)+3) -> 9079.8 | K101: =VLOOKUP($H101,P_All!$A$5:$Y$204,3*($C$8-1)+4) -> 17142 | L101: =VLOOKUP($H101,NA_All!$A$5:$Y$204,3*($C$8-1)+2) -> 8627.5 | M101: =VLOOKUP($H101,NA_All!$A$5:$Y$204,3*($C$8-1)+3) -> 13146 | N101: =VLOOKUP($H101,NA_All!$A$5:$Y$204,3*($C$8-1)+4) -> 18759 | O101: =IF(ISNA(VLOOKUP($B$6,$A$25:$E$52,IF($B$8=$A$22,3,2))),EXP(VLOOKUP($B$6,$A$25:$E$52,4)*LN(VLOOKUP($H101,P_Hard!$A$5:$Y$204,3*($C$8-1)+2)/1000)+VLOOKUP($B$6,$A$25:$E$52,5)),NA()) ->  | Q101: =IF(ISNA(VLOOKUP($B$6,$A$25:$E$52,IF($B$8=$A$22,3,2))),EXP(VLOOKUP($B$6,$A$25:$E$52,4)*LN(VLOOKUP($H101,P_Hard!$A$5:$Y$204,3*($C$8-1)+4)/1000)+VLOOKUP($B$6,$A$25:$E$52,5)),NA()) ->  | S101: 6.333333333 | T101: =VLOOKUP($S101,P_All!$AA$5:$AY$245,3*($C$8-1)+2) -> 2928.9 | U101: =VLOOKUP($S101,P_All!$AA$5:$AY$245,3*($C$8-1)+3) -> 6922.9 | V101: =VLOOKUP($S101,P_All!$AA$5:$AY$245,3*($C$8-1)+4) -> 16113 | W101: =VLOOKUP($S101,NA_All!$AA$5:$AY$245,3*($C$8-1)+2) -> 1370.9 | X101: =VLOOKUP($S101,NA_All!$AA$5:$AY$245,3*($C$8-1)+3) -> 4661.7 | Y101: =VLOOKUP($S101,NA_All!$AA$5:$AY$245,3*($C$8-1)+4) -> 18476 | Z101: =IF(AND($B$8=$A$20,$B$6=$A$48),$B$54,IF(ISNA(VLOOKUP($B$6,$A$25:$E$52,IF($B$8=$A$22,3,2),FALSE)),EXP(VLOOKUP($B$6,$A$25:$E$52,4,FALSE)*LN(VLOOKUP($H101,P_Hard!$A$5:$Y$204,3*($C$8-1)+3,FALSE)/1000)+VLOOKUP($B$6,$A$25:$E$52,5,FALSE)),VLOOKUP($B$6,$A$25:$E$52,IF($B$8=$A$22,3,2),FALSE))) -> 
H102: 78 | I102: =VLOOKUP($H102,P_All!$A$5:$Y$204,3*($C$8-1)+2) -> 6779.1 | J102: =VLOOKUP($H102,P_All!$A$5:$Y$204,3*($C$8-1)+3) -> 9001.6 | K102: =VLOOKUP($H102,P_All!$A$5:$Y$204,3*($C$8-1)+4) -> 15927 | L102: =VLOOKUP($H102,NA_All!$A$5:$Y$204,3*($C$8-1)+2) -> 8111.5 | M102: =VLOOKUP($H102,NA_All!$A$5:$Y$204,3*($C$8-1)+3) -> 13200 | N102: =VLOOKUP($H102,NA_All!$A$5:$Y$204,3*($C$8-1)+4) -> 18393 | O102: =IF(ISNA(VLOOKUP($B$6,$A$25:$E$52,IF($B$8=$A$22,3,2))),EXP(VLOOKUP($B$6,$A$25:$E$52,4)*LN(VLOOKUP($H102,P_Hard!$A$5:$Y$204,3*($C$8-1)+2)/1000)+VLOOKUP($B$6,$A$25:$E$52,5)),NA()) ->  | Q102: =IF(ISNA(VLOOKUP($B$6,$A$25:$E$52,IF($B$8=$A$22,3,2))),EXP(VLOOKUP($B$6,$A$25:$E$52,4)*LN(VLOOKUP($H102,P_Hard!$A$5:$Y$204,3*($C$8-1)+4)/1000)+VLOOKUP($B$6,$A$25:$E$52,5)),NA()) ->  | S102: 6.416666667 | T102: =VLOOKUP($S102,P_All!$AA$5:$AY$245,3*($C$8-1)+2) -> 2854.9 | U102: =VLOOKUP($S102,P_All!$AA$5:$AY$245,3*($C$8-1)+3) -> 7453.2 | V102: =VLOOKUP($S102,P_All!$AA$5:$AY$245,3*($C$8-1)+4) -> 15945 | W102: =VLOOKUP($S102,NA_All!$AA$5:$AY$245,3*($C$8-1)+2) -> 1241.2 | X102: =VLOOKUP($S102,NA_All!$AA$5:$AY$245,3*($C$8-1)+3) -> 4444.5 | Y102: =VLOOKUP($S102,NA_All!$AA$5:$AY$245,3*($C$8-1)+4) -> 18887 | Z102: =IF(AND($B$8=$A$20,$B$6=$A$48),$B$54,IF(ISNA(VLOOKUP($B$6,$A$25:$E$52,IF($B$8=$A$22,3,2),FALSE)),EXP(VLOOKUP($B$6,$A$25:$E$52,4,FALSE)*LN(VLOOKUP($H102,P_Hard!$A$5:$Y$204,3*($C$8-1)+3,FALSE)/1000)+VLOOKUP($B$6,$A$25:$E$52,5,FALSE)),VLOOKUP($B$6,$A$25:$E$52,IF($B$8=$A$22,3,2),FALSE))) -> 
H103: 79 | I103: =VLOOKUP($H103,P_All!$A$5:$Y$204,3*($C$8-1)+2) -> 6802 | J103: =VLOOKUP($H103,P_All!$A$5:$Y$204,3*($C$8-1)+3) -> 9038.9 | K103: =VLOOKUP($H103,P_All!$A$5:$Y$204,3*($C$8-1)+4) -> 15647 | L103: =VLOOKUP($H103,NA_All!$A$5:$Y$204,3*($C$8-1)+2) -> 7799.1 | M103: =VLOOKUP($H103,NA_All!$A$5:$Y$204,3*($C$8-1)+3) -> 13118 | N103: =VLOOKUP($H103,NA_All!$A$5:$Y$204,3*($C$8-1)+4) -> 18959 | O103: =IF(ISNA(VLOOKUP($B$6,$A$25:$E$52,IF($B$8=$A$22,3,2))),EXP(VLOOKUP($B$6,$A$25:$E$52,4)*LN(VLOOKUP($H103,P_Hard!$A$5:$Y$204,3*($C$8-1)+2)/1000)+VLOOKUP($B$6,$A$25:$E$52,5)),NA()) ->  | Q103: =IF(ISNA(VLOOKUP($B$6,$A$25:$E$52,IF($B$8=$A$22,3,2))),EXP(VLOOKUP($B$6,$A$25:$E$52,4)*LN(VLOOKUP($H103,P_Hard!$A$5:$Y$204,3*($C$8-1)+4)/1000)+VLOOKUP($B$6,$A$25:$E$52,5)),NA()) ->  | S103: 6.5 | T103: =VLOOKUP($S103,P_All!$AA$5:$AY$245,3*($C$8-1)+2) -> 3802.2 | U103: =VLOOKUP($S103,P_All!$AA$5:$AY$245,3*($C$8-1)+3) -> 8156.4 | V103: =VLOOKUP($S103,P_All!$AA$5:$AY$245,3*($C$8-1)+4) -> 15338 | W103: =VLOOKUP($S103,NA_All!$AA$5:$AY$245,3*($C$8-1)+2) -> 1620.9 | X103: =VLOOKUP($S103,NA_All!$AA$5:$AY$245,3*($C$8-1)+3) -> 5668 | Y103: =VLOOKUP($S103,NA_All!$AA$5:$AY$245,3*($C$8-1)+4) -> 18255 | Z103: =IF(AND($B$8=$A$20,$B$6=$A$48),$B$54,IF(ISNA(VLOOKUP($B$6,$A$25:$E$52,IF($B$8=$A$22,3,2),FALSE)),EXP(VLOOKUP($B$6,$A$25:$E$52,4,FALSE)*LN(VLOOKUP($H103,P_Hard!$A$5:$Y$204,3*($C$8-1)+3,FALSE)/1000)+VLOOKUP($B$6,$A$25:$E$52,5,FALSE)),VLOOKUP($B$6,$A$25:$E$52,IF($B$8=$A$22,3,2),FALSE))) -> 
H104: 80 | I104: =VLOOKUP($H104,P_All!$A$5:$Y$204,3*($C$8-1)+2) -> 6970.5 | J104: =VLOOKUP($H104,P_All!$A$5:$Y$204,3*($C$8-1)+3) -> 9086.3 | K104: =VLOOKUP($H104,P_All!$A$5:$Y$204,3*($C$8-1)+4) -> 15064 | L104: =VLOOKUP($H104,NA_All!$A$5:$Y$204,3*($C$8-1)+2) -> 7974.5 | M104: =VLOOKUP($H104,NA_All!$A$5:$Y$204,3*($C$8-1)+3) -> 13116 | N104: =VLOOKUP($H104,NA_All!$A$5:$Y$204,3*($C$8-1)+4) -> 19011 | O104: =IF(ISNA(VLOOKUP($B$6,$A$25:$E$52,IF($B$8=$A$22,3,2))),EXP(VLOOKUP($B$6,$A$25:$E$52,4)*LN(VLOOKUP($H104,P_Hard!$A$5:$Y$204,3*($C$8-1)+2)/1000)+VLOOKUP($B$6,$A$25:$E$52,5)),NA()) ->  | Q104: =IF(ISNA(VLOOKUP($B$6,$A$25:$E$52,IF($B$8=$A$22,3,2))),EXP(VLOOKUP($B$6,$A$25:$E$52,4)*LN(VLOOKUP($H104,P_Hard!$A$5:$Y$204,3*($C$8-1)+4)/1000)+VLOOKUP($B$6,$A$25:$E$52,5)),NA()) ->  | S104: 6.583333333 | T104: =VLOOKUP($S104,P_All!$AA$5:$AY$245,3*($C$8-1)+2) -> 4527.4 | U104: =VLOOKUP($S104,P_All!$AA$5:$AY$245,3*($C$8-1)+3) -> 10653 | V104: =VLOOKUP($S104,P_All!$AA$5:$AY$245,3*($C$8-1)+4) -> 19681 | W104: =VLOOKUP($S104,NA_All!$AA$5:$AY$245,3*($C$8-1)+2) -> 2128.7 | X104: =VLOOKUP($S104,NA_All!$AA$5:$AY$245,3*($C$8-1)+3) -> 7280.4 | Y104: =VLOOKUP($S104,NA_All!$AA$5:$AY$245,3*($C$8-1)+4) -> 17124 | Z104: =IF(AND($B$8=$A$20,$B$6=$A$48),$B$54,IF(ISNA(VLOOKUP($B$6,$A$25:$E$52,IF($B$8=$A$22,3,2),FALSE)),EXP(VLOOKUP($B$6,$A$25:$E$52,4,FALSE)*LN(VLOOKUP($H104,P_Hard!$A$5:$Y$204,3*($C$8-1)+3,FALSE)/1000)+VLOOKUP($B$6,$A$25:$E$52,5,FALSE)),VLOOKUP($B$6,$A$25:$E$52,IF($B$8=$A$22,3,2),FALSE))) -> 
H105: 81 | I105: =VLOOKUP($H105,P_All!$A$5:$Y$204,3*($C$8-1)+2) -> 7161.3 | J105: =VLOOKUP($H105,P_All!$A$5:$Y$204,3*($C$8-1)+3) -> 9070.6 | K105: =VLOOKUP($H105,P_All!$A$5:$Y$204,3*($C$8-1)+4) -> 16717 | L105: =VLOOKUP($H105,NA_All!$A$5:$Y$204,3*($C$8-1)+2) -> 8235.7 | M105: =VLOOKUP($H105,NA_All!$A$5:$Y$204,3*($C$8-1)+3) -> 13318 | N105: =VLOOKUP($H105,NA_All!$A$5:$Y$204,3*($C$8-1)+4) -> 19206 | O105: =IF(ISNA(VLOOKUP($B$6,$A$25:$E$52,IF($B$8=$A$22,3,2))),EXP(VLOOKUP($B$6,$A$25:$E$52,4)*LN(VLOOKUP($H105,P_Hard!$A$5:$Y$204,3*($C$8-1)+2)/1000)+VLOOKUP($B$6,$A$25:$E$52,5)),NA()) ->  | Q105: =IF(ISNA(VLOOKUP($B$6,$A$25:$E$52,IF($B$8=$A$22,3,2))),EXP(VLOOKUP($B$6,$A$25:$E$52,4)*LN(VLOOKUP($H105,P_Hard!$A$5:$Y$204,3*($C$8-1)+4)/1000)+VLOOKUP($B$6,$A$25:$E$52,5)),NA()) ->  | S105: 6.666666667 | T105: =VLOOKUP($S105,P_All!$AA$5:$AY$245,3*($C$8-1)+2) -> 4025 | U105: =VLOOKUP($S105,P_All!$AA$5:$AY$245,3*($C$8-1)+3) -> 10465 | V105: =VLOOKUP($S105,P_All!$AA$5:$AY$245,3*($C$8-1)+4) -> 20141 | W105: =VLOOKUP($S105,NA_All!$AA$5:$AY$245,3*($C$8-1)+2) -> 2011.1 | X105: =VLOOKUP($S105,NA_All!$AA$5:$AY$245,3*($C$8-1)+3) -> 6564.2 | Y105: =VLOOKUP($S105,NA_All!$AA$5:$AY$245,3*($C$8-1)+4) -> 17255 | Z105: =IF(AND($B$8=$A$20,$B$6=$A$48),$B$54,IF(ISNA(VLOOKUP($B$6,$A$25:$E$52,IF($B$8=$A$22,3,2),FALSE)),EXP(VLOOKUP($B$6,$A$25:$E$52,4,FALSE)*LN(VLOOKUP($H105,P_Hard!$A$5:$Y$204,3*($C$8-1)+3,FALSE)/1000)+VLOOKUP($B$6,$A$25:$E$52,5,FALSE)),VLOOKUP($B$6,$A$25:$E$52,IF($B$8=$A$22,3,2),FALSE))) -> 
H106: 82 | I106: =VLOOKUP($H106,P_All!$A$5:$Y$204,3*($C$8-1)+2) -> 6876.8 | J106: =VLOOKUP($H106,P_All!$A$5:$Y$204,3*($C$8-1)+3) -> 9017.6 | K106: =VLOOKUP($H106,P_All!$A$5:$Y$204,3*($C$8-1)+4) -> 16440 | L106: =VLOOKUP($H106,NA_All!$A$5:$Y$204,3*($C$8-1)+2) -> 7998.1 | M106: =VLOOKUP($H106,NA_All!$A$5:$Y$204,3*($C$8-1)+3) -> 13154 | N106: =VLOOKUP($H106,NA_All!$A$5:$Y$204,3*($C$8-1)+4) -> 19029 | O106: =IF(ISNA(VLOOKUP($B$6,$A$25:$E$52,IF($B$8=$A$22,3,2))),EXP(VLOOKUP($B$6,$A$25:$E$52,4)*LN(VLOOKUP($H106,P_Hard!$A$5:$Y$204,3*($C$8-1)+2)/1000)+VLOOKUP($B$6,$A$25:$E$52,5)),NA()) ->  | Q106: =IF(ISNA(VLOOKUP($B$6,$A$25:$E$52,IF($B$8=$A$22,3,2))),EXP(VLOOKUP($B$6,$A$25:$E$52,4)*LN(VLOOKUP($H106,P_Hard!$A$5:$Y$204,3*($C$8-1)+4)/1000)+VLOOKUP($B$6,$A$25:$E$52,5)),NA()) ->  | S106: 6.75 | T106: =VLOOKUP($S106,P_All!$AA$5:$AY$245,3*($C$8-1)+2) -> 4503.4 | U106: =VLOOKUP($S106,P_All!$AA$5:$AY$245,3*($C$8-1)+3) -> 9812.1 | V106: =VLOOKUP($S106,P_All!$AA$5:$AY$245,3*($C$8-1)+4) -> 17961 | W106: =VLOOKUP($S106,NA_All!$AA$5:$AY$245,3*($C$8-1)+2) -> 2141.6 | X106: =VLOOKUP($S106,NA_All!$AA$5:$AY$245,3*($C$8-1)+3) -> 6080.7 | Y106: =VLOOKUP($S106,NA_All!$AA$5:$AY$245,3*($C$8-1)+4) -> 17634 | Z106: =IF(AND($B$8=$A$20,$B$6=$A$48),$B$54,IF(ISNA(VLOOKUP($B$6,$A$25:$E$52,IF($B$8=$A$22,3,2),FALSE)),EXP(VLOOKUP($B$6,$A$25:$E$52,4,FALSE)*LN(VLOOKUP($H106,P_Hard!$A$5:$Y$204,3*($C$8-1)+3,FALSE)/1000)+VLOOKUP($B$6,$A$25:$E$52,5,FALSE)),VLOOKUP($B$6,$A$25:$E$52,IF($B$8=$A$22,3,2),FALSE))) -> 
H107: 83 | I107: =VLOOKUP($H107,P_All!$A$5:$Y$204,3*($C$8-1)+2) -> 6938.2 | J107: =VLOOKUP($H107,P_All!$A$5:$Y$204,3*($C$8-1)+3) -> 9022.4 | K107: =VLOOKUP($H107,P_All!$A$5:$Y$204,3*($C$8-1)+4) -> 15974 | L107: =VLOOKUP($H107,NA_All!$A$5:$Y$204,3*($C$8-1)+2) -> 8061.1 | M107: =VLOOKUP($H107,NA_All!$A$5:$Y$204,3*($C$8-1)+3) -> 13135 | N107: =VLOOKUP($H107,NA_All!$A$5:$Y$204,3*($C$8-1)+4) -> 18859 | O107: =IF(ISNA(VLOOKUP($B$6,$A$25:$E$52,IF($B$8=$A$22,3,2))),EXP(VLOOKUP($B$6,$A$25:$E$52,4)*LN(VLOOKUP($H107,P_Hard!$A$5:$Y$204,3*($C$8-1)+2)/1000)+VLOOKUP($B$6,$A$25:$E$52,5)),NA()) ->  | Q107: =IF(ISNA(VLOOKUP($B$6,$A$25:$E$52,IF($B$8=$A$22,3,2))),EXP(VLOOKUP($B$6,$A$25:$E$52,4)*LN(VLOOKUP($H107,P_Hard!$A$5:$Y$204,3*($C$8-1)+4)/1000)+VLOOKUP($B$6,$A$25:$E$52,5)),NA()) ->  | S107: 6.833333333 | T107: =VLOOKUP($S107,P_All!$AA$5:$AY$245,3*($C$8-1)+2) -> 4269.7 | U107: =VLOOKUP($S107,P_All!$AA$5:$AY$245,3*($C$8-1)+3) -> 8994.3 | V107: =VLOOKUP($S107,P_All!$AA$5:$AY$245,3*($C$8-1)+4) -> 17559 | W107: =VLOOKUP($S107,NA_All!$AA$5:$AY$245,3*($C$8-1)+2) -> 1880.2 | X107: =VLOOKUP($S107,NA_All!$AA$5:$AY$245,3*($C$8-1)+3) -> 5435.7 | Y107: =VLOOKUP($S107,NA_All!$AA$5:$AY$245,3*($C$8-1)+4) -> 18588 | Z107: =IF(AND($B$8=$A$20,$B$6=$A$48),$B$54,IF(ISNA(VLOOKUP($B$6,$A$25:$E$52,IF($B$8=$A$22,3,2),FALSE)),EXP(VLOOKUP($B$6,$A$25:$E$52,4,FALSE)*LN(VLOOKUP($H107,P_Hard!$A$5:$Y$204,3*($C$8-1)+3,FALSE)/1000)+VLOOKUP($B$6,$A$25:$E$52,5,FALSE)),VLOOKUP($B$6,$A$25:$E$52,IF($B$8=$A$22,3,2),FALSE))) -> 
H108: 84 | I108: =VLOOKUP($H108,P_All!$A$5:$Y$204,3*($C$8-1)+2) -> 7166.6 | J108: =VLOOKUP($H108,P_All!$A$5:$Y$204,3*($C$8-1)+3) -> 9064.3 | K108: =VLOOKUP($H108,P_All!$A$5:$Y$204,3*($C$8-1)+4) -> 15663 | L108: =VLOOKUP($H108,NA_All!$A$5:$Y$204,3*($C$8-1)+2) -> 8205.9 | M108: =VLOOKUP($H108,NA_All!$A$5:$Y$204,3*($C$8-1)+3) -> 13375 | N108: =VLOOKUP($H108,NA_All!$A$5:$Y$204,3*($C$8-1)+4) -> 19058 | O108: =IF(ISNA(VLOOKUP($B$6,$A$25:$E$52,IF($B$8=$A$22,3,2))),EXP(VLOOKUP($B$6,$A$25:$E$52,4)*LN(VLOOKUP($H108,P_Hard!$A$5:$Y$204,3*($C$8-1)+2)/1000)+VLOOKUP($B$6,$A$25:$E$52,5)),NA()) ->  | Q108: =IF(ISNA(VLOOKUP($B$6,$A$25:$E$52,IF($B$8=$A$22,3,2))),EXP(VLOOKUP($B$6,$A$25:$E$52,4)*LN(VLOOKUP($H108,P_Hard!$A$5:$Y$204,3*($C$8-1)+4)/1000)+VLOOKUP($B$6,$A$25:$E$52,5)),NA()) ->  | S108: 6.916666667 | T108: =VLOOKUP($S108,P_All!$AA$5:$AY$245,3*($C$8-1)+2) -> 5346.3 | U108: =VLOOKUP($S108,P_All!$AA$5:$AY$245,3*($C$8-1)+3) -> 9856.7 | V108: =VLOOKUP($S108,P_All!$AA$5:$AY$245,3*($C$8-1)+4) -> 17363 | W108: =VLOOKUP($S108,NA_All!$AA$5:$AY$245,3*($C$8-1)+2) -> 2632.2 | X108: =VLOOKUP($S108,NA_All!$AA$5:$AY$245,3*($C$8-1)+3) -> 6322.1 | Y108: =VLOOKUP($S108,NA_All!$AA$5:$AY$245,3*($C$8-1)+4) -> 18240 | Z108: =IF(AND($B$8=$A$20,$B$6=$A$48),$B$54,IF(ISNA(VLOOKUP($B$6,$A$25:$E$52,IF($B$8=$A$22,3,2),FALSE)),EXP(VLOOKUP($B$6,$A$25:$E$52,4,FALSE)*LN(VLOOKUP($H108,P_Hard!$A$5:$Y$204,3*($C$8-1)+3,FALSE)/1000)+VLOOKUP($B$6,$A$25:$E$52,5,FALSE)),VLOOKUP($B$6,$A$25:$E$52,IF($B$8=$A$22,3,2),FALSE))) -> 
H109: 85 | I109: =VLOOKUP($H109,P_All!$A$5:$Y$204,3*($C$8-1)+2) -> 7112.5 | J109: =VLOOKUP($H109,P_All!$A$5:$Y$204,3*($C$8-1)+3) -> 9024.9 | K109: =VLOOKUP($H109,P_All!$A$5:$Y$204,3*($C$8-1)+4) -> 16244 | L109: =VLOOKUP($H109,NA_All!$A$5:$Y$204,3*($C$8-1)+2) -> 7979.2 | M109: =VLOOKUP($H109,NA_All!$A$5:$Y$204,3*($C$8-1)+3) -> 13187 | N109: =VLOOKUP($H109,NA_All!$A$5:$Y$204,3*($C$8-1)+4) -> 18847 | O109: =IF(ISNA(VLOOKUP($B$6,$A$25:$E$52,IF($B$8=$A$22,3,2))),EXP(VLOOKUP($B$6,$A$25:$E$52,4)*LN(VLOOKUP($H109,P_Hard!$A$5:$Y$204,3*($C$8-1)+2)/1000)+VLOOKUP($B$6,$A$25:$E$52,5)),NA()) ->  | Q109: =IF(ISNA(VLOOKUP($B$6,$A$25:$E$52,IF($B$8=$A$22,3,2))),EXP(VLOOKUP($B$6,$A$25:$E$52,4)*LN(VLOOKUP($H109,P_Hard!$A$5:$Y$204,3*($C$8-1)+4)/1000)+VLOOKUP($B$6,$A$25:$E$52,5)),NA()) ->  | S109: 7 | T109: =VLOOKUP($S109,P_All!$AA$5:$AY$245,3*($C$8-1)+2) -> 8573.9 | U109: =VLOOKUP($S109,P_All!$AA$5:$AY$245,3*($C$8-1)+3) -> 13307 | V109: =VLOOKUP($S109,P_All!$AA$5:$AY$245,3*($C$8-1)+4) -> 18121 | W109: =VLOOKUP($S109,NA_All!$AA$5:$AY$245,3*($C$8-1)+2) -> 4898.9 | X109: =VLOOKUP($S109,NA_All!$AA$5:$AY$245,3*($C$8-1)+3) -> 8802.1 | Y109: =VLOOKUP($S109,NA_All!$AA$5:$AY$245,3*($C$8-1)+4) -> 16499 | Z109: =IF(AND($B$8=$A$20,$B$6=$A$48),$B$54,IF(ISNA(VLOOKUP($B$6,$A$25:$E$52,IF($B$8=$A$22,3,2),FALSE)),EXP(VLOOKUP($B$6,$A$25:$E$52,4,FALSE)*LN(VLOOKUP($H109,P_Hard!$A$5:$Y$204,3*($C$8-1)+3,FALSE)/1000)+VLOOKUP($B$6,$A$25:$E$52,5,FALSE)),VLOOKUP($B$6,$A$25:$E$52,IF($B$8=$A$22,3,2),FALSE))) -> 
H110: 86 | I110: =VLOOKUP($H110,P_All!$A$5:$Y$204,3*($C$8-1)+2) -> 6912.9 | J110: =VLOOKUP($H110,P_All!$A$5:$Y$204,3*($C$8-1)+3) -> 9036.9 | K110: =VLOOKUP($H110,P_All!$A$5:$Y$204,3*($C$8-1)+4) -> 16774 | L110: =VLOOKUP($H110,NA_All!$A$5:$Y$204,3*($C$8-1)+2) -> 8170.8 | M110: =VLOOKUP($H110,NA_All!$A$5:$Y$204,3*($C$8-1)+3) -> 13207 | N110: =VLOOKUP($H110,NA_All!$A$5:$Y$204,3*($C$8-1)+4) -> 19127 | O110: =IF(ISNA(VLOOKUP($B$6,$A$25:$E$52,IF($B$8=$A$22,3,2))),EXP(VLOOKUP($B$6,$A$25:$E$52,4)*LN(VLOOKUP($H110,P_Hard!$A$5:$Y$204,3*($C$8-1)+2)/1000)+VLOOKUP($B$6,$A$25:$E$52,5)),NA()) ->  | Q110: =IF(ISNA(VLOOKUP($B$6,$A$25:$E$52,IF($B$8=$A$22,3,2))),EXP(VLOOKUP($B$6,$A$25:$E$52,4)*LN(VLOOKUP($H110,P_Hard!$A$5:$Y$204,3*($C$8-1)+4)/1000)+VLOOKUP($B$6,$A$25:$E$52,5)),NA()) ->  | S110: 7.083333333 | T110: =VLOOKUP($S110,P_All!$AA$5:$AY$245,3*($C$8-1)+2) -> 12096 | U110: =VLOOKUP($S110,P_All!$AA$5:$AY$245,3*($C$8-1)+3) -> 17288 | V110: =VLOOKUP($S110,P_All!$AA$5:$AY$245,3*($C$8-1)+4) -> 21694 | W110: =VLOOKUP($S110,NA_All!$AA$5:$AY$245,3*($C$8-1)+2) -> 7088.6 | X110: =VLOOKUP($S110,NA_All!$AA$5:$AY$245,3*($C$8-1)+3) -> 12034 | Y110: =VLOOKUP($S110,NA_All!$AA$5:$AY$245,3*($C$8-1)+4) -> 16277 | Z110: =IF(AND($B$8=$A$20,$B$6=$A$48),$B$54,IF(ISNA(VLOOKUP($B$6,$A$25:$E$52,IF($B$8=$A$22,3,2),FALSE)),EXP(VLOOKUP($B$6,$A$25:$E$52,4,FALSE)*LN(VLOOKUP($H110,P_Hard!$A$5:$Y$204,3*($C$8-1)+3,FALSE)/1000)+VLOOKUP($B$6,$A$25:$E$52,5,FALSE)),VLOOKUP($B$6,$A$25:$E$52,IF($B$8=$A$22,3,2),FALSE))) -> 
H111: 87 | I111: =VLOOKUP($H111,P_All!$A$5:$Y$204,3*($C$8-1)+2) -> 6702.9 | J111: =VLOOKUP($H111,P_All!$A$5:$Y$204,3*($C$8-1)+3) -> 9013.6 | K111: =VLOOKUP($H111,P_All!$A$5:$Y$204,3*($C$8-1)+4) -> 15057 | L111: =VLOOKUP($H111,NA_All!$A$5:$Y$204,3*($C$8-1)+2) -> 8412.7 | M111: =VLOOKUP($H111,NA_All!$A$5:$Y$204,3*($C$8-1)+3) -> 13308 | N111: =VLOOKUP($H111,NA_All!$A$5:$Y$204,3*($C$8-1)+4) -> 19115 | O111: =IF(ISNA(VLOOKUP($B$6,$A$25:$E$52,IF($B$8=$A$22,3,2))),EXP(VLOOKUP($B$6,$A$25:$E$52,4)*LN(VLOOKUP($H111,P_Hard!$A$5:$Y$204,3*($C$8-1)+2)/1000)+VLOOKUP($B$6,$A$25:$E$52,5)),NA()) ->  | Q111: =IF(ISNA(VLOOKUP($B$6,$A$25:$E$52,IF($B$8=$A$22,3,2))),EXP(VLOOKUP($B$6,$A$25:$E$52,4)*LN(VLOOKUP($H111,P_Hard!$A$5:$Y$204,3*($C$8-1)+4)/1000)+VLOOKUP($B$6,$A$25:$E$52,5)),NA()) ->  | S111: 7.166666667 | T111: =VLOOKUP($S111,P_All!$AA$5:$AY$245,3*($C$8-1)+2) -> 13935 | U111: =VLOOKUP($S111,P_All!$AA$5:$AY$245,3*($C$8-1)+3) -> 21595 | V111: =VLOOKUP($S111,P_All!$AA$5:$AY$245,3*($C$8-1)+4) -> 23789 | W111: =VLOOKUP($S111,NA_All!$AA$5:$AY$245,3*($C$8-1)+2) -> 8798.9 | X111: =VLOOKUP($S111,NA_All!$AA$5:$AY$245,3*($C$8-1)+3) -> 14325 | Y111: =VLOOKUP($S111,NA_All!$AA$5:$AY$245,3*($C$8-1)+4) -> 16866 | Z111: =IF(AND($B$8=$A$20,$B$6=$A$48),$B$54,IF(ISNA(VLOOKUP($B$6,$A$25:$E$52,IF($B$8=$A$22,3,2),FALSE)),EXP(VLOOKUP($B$6,$A$25:$E$52,4,FALSE)*LN(VLOOKUP($H111,P_Hard!$A$5:$Y$204,3*($C$8-1)+3,FALSE)/1000)+VLOOKUP($B$6,$A$25:$E$52,5,FALSE)),VLOOKUP($B$6,$A$25:$E$52,IF($B$8=$A$22,3,2),FALSE))) -> 
H112: 88 | I112: =VLOOKUP($H112,P_All!$A$5:$Y$204,3*($C$8-1)+2) -> 7097 | J112: =VLOOKUP($H112,P_All!$A$5:$Y$204,3*($C$8-1)+3) -> 9098 | K112: =VLOOKUP($H112,P_All!$A$5:$Y$204,3*($C$8-1)+4) -> 16255 | L112: =VLOOKUP($H112,NA_All!$A$5:$Y$204,3*($C$8-1)+2) -> 8326.4 | M112: =VLOOKUP($H112,NA_All!$A$5:$Y$204,3*($C$8-1)+3) -> 13188 | N112: =VLOOKUP($H112,NA_All!$A$5:$Y$204,3*($C$8-1)+4) -> 19001 | O112: =IF(ISNA(VLOOKUP($B$6,$A$25:$E$52,IF($B$8=$A$22,3,2))),EXP(VLOOKUP($B$6,$A$25:$E$52,4)*LN(VLOOKUP($H112,P_Hard!$A$5:$Y$204,3*($C$8-1)+2)/1000)+VLOOKUP($B$6,$A$25:$E$52,5)),NA()) ->  | Q112: =IF(ISNA(VLOOKUP($B$6,$A$25:$E$52,IF($B$8=$A$22,3,2))),EXP(VLOOKUP($B$6,$A$25:$E$52,4)*LN(VLOOKUP($H112,P_Hard!$A$5:$Y$204,3*($C$8-1)+4)/1000)+VLOOKUP($B$6,$A$25:$E$52,5)),NA()) ->  | S112: 7.25 | T112: =VLOOKUP($S112,P_All!$AA$5:$AY$245,3*($C$8-1)+2) -> 6979.2 | U112: =VLOOKUP($S112,P_All!$AA$5:$AY$245,3*($C$8-1)+3) -> 18361 | V112: =VLOOKUP($S112,P_All!$AA$5:$AY$245,3*($C$8-1)+4) -> 23987 | W112: =VLOOKUP($S112,NA_All!$AA$5:$AY$245,3*($C$8-1)+2) -> 3834.7 | X112: =VLOOKUP($S112,NA_All!$AA$5:$AY$245,3*($C$8-1)+3) -> 13436 | Y112: =VLOOKUP($S112,NA_All!$AA$5:$AY$245,3*($C$8-1)+4) -> 17632 | Z112: =IF(AND($B$8=$A$20,$B$6=$A$48),$B$54,IF(ISNA(VLOOKUP($B$6,$A$25:$E$52,IF($B$8=$A$22,3,2),FALSE)),EXP(VLOOKUP($B$6,$A$25:$E$52,4,FALSE)*LN(VLOOKUP($H112,P_Hard!$A$5:$Y$204,3*($C$8-1)+3,FALSE)/1000)+VLOOKUP($B$6,$A$25:$E$52,5,FALSE)),VLOOKUP($B$6,$A$25:$E$52,IF($B$8=$A$22,3,2),FALSE))) -> 
H113: 89 | I113: =VLOOKUP($H113,P_All!$A$5:$Y$204,3*($C$8-1)+2) -> 7390.1 | J113: =VLOOKUP($H113,P_All!$A$5:$Y$204,3*($C$8-1)+3) -> 9128.5 | K113: =VLOOKUP($H113,P_All!$A$5:$Y$204,3*($C$8-1)+4) -> 15678 | L113: =VLOOKUP($H113,NA_All!$A$5:$Y$204,3*($C$8-1)+2) -> 8507.2 | M113: =VLOOKUP($H113,NA_All!$A$5:$Y$204,3*($C$8-1)+3) -> 13298 | N113: =VLOOKUP($H113,NA_All!$A$5:$Y$204,3*($C$8-1)+4) -> 19145 | O113: =IF(ISNA(VLOOKUP($B$6,$A$25:$E$52,IF($B$8=$A$22,3,2))),EXP(VLOOKUP($B$6,$A$25:$E$52,4)*LN(VLOOKUP($H113,P_Hard!$A$5:$Y$204,3*($C$8-1)+2)/1000)+VLOOKUP($B$6,$A$25:$E$52,5)),NA()) ->  | Q113: =IF(ISNA(VLOOKUP($B$6,$A$25:$E$52,IF($B$8=$A$22,3,2))),EXP(VLOOKUP($B$6,$A$25:$E$52,4)*LN(VLOOKUP($H113,P_Hard!$A$5:$Y$204,3*($C$8-1)+4)/1000)+VLOOKUP($B$6,$A$25:$E$52,5)),NA()) ->  | S113: 7.333333333 | T113: =VLOOKUP($S113,P_All!$AA$5:$AY$245,3*($C$8-1)+2) -> 2886.8 | U113: =VLOOKUP($S113,P_All!$AA$5:$AY$245,3*($C$8-1)+3) -> 7477.4 | V113: =VLOOKUP($S113,P_All!$AA$5:$AY$245,3*($C$8-1)+4) -> 17291 | W113: =VLOOKUP($S113,NA_All!$AA$5:$AY$245,3*($C$8-1)+2) -> 1378.1 | X113: =VLOOKUP($S113,NA_All!$AA$5:$AY$245,3*($C$8-1)+3) -> 4849.6 | Y113: =VLOOKUP($S113,NA_All!$AA$5:$AY$245,3*($C$8-1)+4) -> 19044 | Z113: =IF(AND($B$8=$A$20,$B$6=$A$48),$B$54,IF(ISNA(VLOOKUP($B$6,$A$25:$E$52,IF($B$8=$A$22,3,2),FALSE)),EXP(VLOOKUP($B$6,$A$25:$E$52,4,FALSE)*LN(VLOOKUP($H113,P_Hard!$A$5:$Y$204,3*($C$8-1)+3,FALSE)/1000)+VLOOKUP($B$6,$A$25:$E$52,5,FALSE)),VLOOKUP($B$6,$A$25:$E$52,IF($B$8=$A$22,3,2),FALSE))) -> 
H114: 90 | I114: =VLOOKUP($H114,P_All!$A$5:$Y$204,3*($C$8-1)+2) -> 7071.4 | J114: =VLOOKUP($H114,P_All!$A$5:$Y$204,3*($C$8-1)+3) -> 9080.8 | K114: =VLOOKUP($H114,P_All!$A$5:$Y$204,3*($C$8-1)+4) -> 17183 | L114: =VLOOKUP($H114,NA_All!$A$5:$Y$204,3*($C$8-1)+2) -> 8400.7 | M114: =VLOOKUP($H114,NA_All!$A$5:$Y$204,3*($C$8-1)+3) -> 13264 | N114: =VLOOKUP($H114,NA_All!$A$5:$Y$204,3*($C$8-1)+4) -> 19143 | O114: =IF(ISNA(VLOOKUP($B$6,$A$25:$E$52,IF($B$8=$A$22,3,2))),EXP(VLOOKUP($B$6,$A$25:$E$52,4)*LN(VLOOKUP($H114,P_Hard!$A$5:$Y$204,3*($C$8-1)+2)/1000)+VLOOKUP($B$6,$A$25:$E$52,5)),NA()) ->  | Q114: =IF(ISNA(VLOOKUP($B$6,$A$25:$E$52,IF($B$8=$A$22,3,2))),EXP(VLOOKUP($B$6,$A$25:$E$52,4)*LN(VLOOKUP($H114,P_Hard!$A$5:$Y$204,3*($C$8-1)+4)/1000)+VLOOKUP($B$6,$A$25:$E$52,5)),NA()) ->  | S114: 7.416666667 | T114: =VLOOKUP($S114,P_All!$AA$5:$AY$245,3*($C$8-1)+2) -> 2900.1 | U114: =VLOOKUP($S114,P_All!$AA$5:$AY$245,3*($C$8-1)+3) -> 6925.6 | V114: =VLOOKUP($S114,P_All!$AA$5:$AY$245,3*($C$8-1)+4) -> 15863 | W114: =VLOOKUP($S114,NA_All!$AA$5:$AY$245,3*($C$8-1)+2) -> 1361 | X114: =VLOOKUP($S114,NA_All!$AA$5:$AY$245,3*($C$8-1)+3) -> 4566.7 | Y114: =VLOOKUP($S114,NA_All!$AA$5:$AY$245,3*($C$8-1)+4) -> 19005 | Z114: =IF(AND($B$8=$A$20,$B$6=$A$48),$B$54,IF(ISNA(VLOOKUP($B$6,$A$25:$E$52,IF($B$8=$A$22,3,2),FALSE)),EXP(VLOOKUP($B$6,$A$25:$E$52,4,FALSE)*LN(VLOOKUP($H114,P_Hard!$A$5:$Y$204,3*($C$8-1)+3,FALSE)/1000)+VLOOKUP($B$6,$A$25:$E$52,5,FALSE)),VLOOKUP($B$6,$A$25:$E$52,IF($B$8=$A$22,3,2),FALSE))) -> 
H115: 91 | I115: =VLOOKUP($H115,P_All!$A$5:$Y$204,3*($C$8-1)+2) -> 6520.4 | J115: =VLOOKUP($H115,P_All!$A$5:$Y$204,3*($C$8-1)+3) -> 9042.8 | K115: =VLOOKUP($H115,P_All!$A$5:$Y$204,3*($C$8-1)+4) -> 15803 | L115: =VLOOKUP($H115,NA_All!$A$5:$Y$204,3*($C$8-1)+2) -> 7950.9 | M115: =VLOOKUP($H115,NA_All!$A$5:$Y$204,3*($C$8-1)+3) -> 13291 | N115: =VLOOKUP($H115,NA_All!$A$5:$Y$204,3*($C$8-1)+4) -> 19022 | O115: =IF(ISNA(VLOOKUP($B$6,$A$25:$E$52,IF($B$8=$A$22,3,2))),EXP(VLOOKUP($B$6,$A$25:$E$52,4)*LN(VLOOKUP($H115,P_Hard!$A$5:$Y$204,3*($C$8-1)+2)/1000)+VLOOKUP($B$6,$A$25:$E$52,5)),NA()) ->  | Q115: =IF(ISNA(VLOOKUP($B$6,$A$25:$E$52,IF($B$8=$A$22,3,2))),EXP(VLOOKUP($B$6,$A$25:$E$52,4)*LN(VLOOKUP($H115,P_Hard!$A$5:$Y$204,3*($C$8-1)+4)/1000)+VLOOKUP($B$6,$A$25:$E$52,5)),NA()) ->  | S115: 7.5 | T115: =VLOOKUP($S115,P_All!$AA$5:$AY$245,3*($C$8-1)+2) -> 3564.6 | U115: =VLOOKUP($S115,P_All!$AA$5:$AY$245,3*($C$8-1)+3) -> 8167.6 | V115: =VLOOKUP($S115,P_All!$AA$5:$AY$245,3*($C$8-1)+4) -> 16438 | W115: =VLOOKUP($S115,NA_All!$AA$5:$AY$245,3*($C$8-1)+2) -> 1754 | X115: =VLOOKUP($S115,NA_All!$AA$5:$AY$245,3*($C$8-1)+3) -> 5771.7 | Y115: =VLOOKUP($S115,NA_All!$AA$5:$AY$245,3*($C$8-1)+4) -> 17952 | Z115: =IF(AND($B$8=$A$20,$B$6=$A$48),$B$54,IF(ISNA(VLOOKUP($B$6,$A$25:$E$52,IF($B$8=$A$22,3,2),FALSE)),EXP(VLOOKUP($B$6,$A$25:$E$52,4,FALSE)*LN(VLOOKUP($H115,P_Hard!$A$5:$Y$204,3*($C$8-1)+3,FALSE)/1000)+VLOOKUP($B$6,$A$25:$E$52,5,FALSE)),VLOOKUP($B$6,$A$25:$E$52,IF($B$8=$A$22,3,2),FALSE))) -> 
H116: 92 | I116: =VLOOKUP($H116,P_All!$A$5:$Y$204,3*($C$8-1)+2) -> 7306.8 | J116: =VLOOKUP($H116,P_All!$A$5:$Y$204,3*($C$8-1)+3) -> 9098.1 | K116: =VLOOKUP($H116,P_All!$A$5:$Y$204,3*($C$8-1)+4) -> 16215 | L116: =VLOOKUP($H116,NA_All!$A$5:$Y$204,3*($C$8-1)+2) -> 8493.3 | M116: =VLOOKUP($H116,NA_All!$A$5:$Y$204,3*($C$8-1)+3) -> 13392 | N116: =VLOOKUP($H116,NA_All!$A$5:$Y$204,3*($C$8-1)+4) -> 18840 | O116: =IF(ISNA(VLOOKUP($B$6,$A$25:$E$52,IF($B$8=$A$22,3,2))),EXP(VLOOKUP($B$6,$A$25:$E$52,4)*LN(VLOOKUP($H116,P_Hard!$A$5:$Y$204,3*($C$8-1)+2)/1000)+VLOOKUP($B$6,$A$25:$E$52,5)),NA()) ->  | Q116: =IF(ISNA(VLOOKUP($B$6,$A$25:$E$52,IF($B$8=$A$22,3,2))),EXP(VLOOKUP($B$6,$A$25:$E$52,4)*LN(VLOOKUP($H116,P_Hard!$A$5:$Y$204,3*($C$8-1)+4)/1000)+VLOOKUP($B$6,$A$25:$E$52,5)),NA()) ->  | S116: 7.583333333 | T116: =VLOOKUP($S116,P_All!$AA$5:$AY$245,3*($C$8-1)+2) -> 4321.6 | U116: =VLOOKUP($S116,P_All!$AA$5:$AY$245,3*($C$8-1)+3) -> 10315 | V116: =VLOOKUP($S116,P_All!$AA$5:$AY$245,3*($C$8-1)+4) -> 19555 | W116: =VLOOKUP($S116,NA_All!$AA$5:$AY$245,3*($C$8-1)+2) -> 2103.9 | X116: =VLOOKUP($S116,NA_All!$AA$5:$AY$245,3*($C$8-1)+3) -> 7236.9 | Y116: =VLOOKUP($S116,NA_All!$AA$5:$AY$245,3*($C$8-1)+4) -> 18134 | Z116: =IF(AND($B$8=$A$20,$B$6=$A$48),$B$54,IF(ISNA(VLOOKUP($B$6,$A$25:$E$52,IF($B$8=$A$22,3,2),FALSE)),EXP(VLOOKUP($B$6,$A$25:$E$52,4,FALSE)*LN(VLOOKUP($H116,P_Hard!$A$5:$Y$204,3*($C$8-1)+3,FALSE)/1000)+VLOOKUP($B$6,$A$25:$E$52,5,FALSE)),VLOOKUP($B$6,$A$25:$E$52,IF($B$8=$A$22,3,2),FALSE))) -> 
H117: 93 | I117: =VLOOKUP($H117,P_All!$A$5:$Y$204,3*($C$8-1)+2) -> 7212.2 | J117: =VLOOKUP($H117,P_All!$A$5:$Y$204,3*($C$8-1)+3) -> 9055.4 | K117: =VLOOKUP($H117,P_All!$A$5:$Y$204,3*($C$8-1)+4) -> 15845 | L117: =VLOOKUP($H117,NA_All!$A$5:$Y$204,3*($C$8-1)+2) -> 7972.7 | M117: =VLOOKUP($H117,NA_All!$A$5:$Y$204,3*($C$8-1)+3) -> 13272 | N117: =VLOOKUP($H117,NA_All!$A$5:$Y$204,3*($C$8-1)+4) -> 18857 | O117: =IF(ISNA(VLOOKUP($B$6,$A$25:$E$52,IF($B$8=$A$22,3,2))),EXP(VLOOKUP($B$6,$A$25:$E$52,4)*LN(VLOOKUP($H117,P_Hard!$A$5:$Y$204,3*($C$8-1)+2)/1000)+VLOOKUP($B$6,$A$25:$E$52,5)),NA()) ->  | Q117: =IF(ISNA(VLOOKUP($B$6,$A$25:$E$52,IF($B$8=$A$22,3,2))),EXP(VLOOKUP($B$6,$A$25:$E$52,4)*LN(VLOOKUP($H117,P_Hard!$A$5:$Y$204,3*($C$8-1)+4)/1000)+VLOOKUP($B$6,$A$25:$E$52,5)),NA()) ->  | S117: 7.666666667 | T117: =VLOOKUP($S117,P_All!$AA$5:$AY$245,3*($C$8-1)+2) -> 4098.2 | U117: =VLOOKUP($S117,P_All!$AA$5:$AY$245,3*($C$8-1)+3) -> 10188 | V117: =VLOOKUP($S117,P_All!$AA$5:$AY$245,3*($C$8-1)+4) -> 20004 | W117: =VLOOKUP($S117,NA_All!$AA$5:$AY$245,3*($C$8-1)+2) -> 1804.6 | X117: =VLOOKUP($S117,NA_All!$AA$5:$AY$245,3*($C$8-1)+3) -> 6858.5 | Y117: =VLOOKUP($S117,NA_All!$AA$5:$AY$245,3*($C$8-1)+4) -> 18523 | Z117: =IF(AND($B$8=$A$20,$B$6=$A$48),$B$54,IF(ISNA(VLOOKUP($B$6,$A$25:$E$52,IF($B$8=$A$22,3,2),FALSE)),EXP(VLOOKUP($B$6,$A$25:$E$52,4,FALSE)*LN(VLOOKUP($H117,P_Hard!$A$5:$Y$204,3*($C$8-1)+3,FALSE)/1000)+VLOOKUP($B$6,$A$25:$E$52,5,FALSE)),VLOOKUP($B$6,$A$25:$E$52,IF($B$8=$A$22,3,2),FALSE))) -> 
H118: 94 | I118: =VLOOKUP($H118,P_All!$A$5:$Y$204,3*($C$8-1)+2) -> 7437.4 | J118: =VLOOKUP($H118,P_All!$A$5:$Y$204,3*($C$8-1)+3) -> 9117.9 | K118: =VLOOKUP($H118,P_All!$A$5:$Y$204,3*($C$8-1)+4) -> 16145 | L118: =VLOOKUP($H118,NA_All!$A$5:$Y$204,3*($C$8-1)+2) -> 7997.5 | M118: =VLOOKUP($H118,NA_All!$A$5:$Y$204,3*($C$8-1)+3) -> 13321 | N118: =VLOOKUP($H118,NA_All!$A$5:$Y$204,3*($C$8-1)+4) -> 18993 | O118: =IF(ISNA(VLOOKUP($B$6,$A$25:$E$52,IF($B$8=$A$22,3,2))),EXP(VLOOKUP($B$6,$A$25:$E$52,4)*LN(VLOOKUP($H118,P_Hard!$A$5:$Y$204,3*($C$8-1)+2)/1000)+VLOOKUP($B$6,$A$25:$E$52,5)),NA()) ->  | Q118: =IF(ISNA(VLOOKUP($B$6,$A$25:$E$52,IF($B$8=$A$22,3,2))),EXP(VLOOKUP($B$6,$A$25:$E$52,4)*LN(VLOOKUP($H118,P_Hard!$A$5:$Y$204,3*($C$8-1)+4)/1000)+VLOOKUP($B$6,$A$25:$E$52,5)),NA()) ->  | S118: 7.75 | T118: =VLOOKUP($S118,P_All!$AA$5:$AY$245,3*($C$8-1)+2) -> 4243.3 | U118: =VLOOKUP($S118,P_All!$AA$5:$AY$245,3*($C$8-1)+3) -> 9209.3 | V118: =VLOOKUP($S118,P_All!$AA$5:$AY$245,3*($C$8-1)+4) -> 17877 | W118: =VLOOKUP($S118,NA_All!$AA$5:$AY$245,3*($C$8-1)+2) -> 1858.4 | X118: =VLOOKUP($S118,NA_All!$AA$5:$AY$245,3*($C$8-1)+3) -> 6064.7 | Y118: =VLOOKUP($S118,NA_All!$AA$5:$AY$245,3*($C$8-1)+4) -> 18143 | Z118: =IF(AND($B$8=$A$20,$B$6=$A$48),$B$54,IF(ISNA(VLOOKUP($B$6,$A$25:$E$52,IF($B$8=$A$22,3,2),FALSE)),EXP(VLOOKUP($B$6,$A$25:$E$52,4,FALSE)*LN(VLOOKUP($H118,P_Hard!$A$5:$Y$204,3*($C$8-1)+3,FALSE)/1000)+VLOOKUP($B$6,$A$25:$E$52,5,FALSE)),VLOOKUP($B$6,$A$25:$E$52,IF($B$8=$A$22,3,2),FALSE))) -> 
H119: 95 | I119: =VLOOKUP($H119,P_All!$A$5:$Y$204,3*($C$8-1)+2) -> 7317.4 | J119: =VLOOKUP($H119,P_All!$A$5:$Y$204,3*($C$8-1)+3) -> 9110.9 | K119: =VLOOKUP($H119,P_All!$A$5:$Y$204,3*($C$8-1)+4) -> 16613 | L119: =VLOOKUP($H119,NA_All!$A$5:$Y$204,3*($C$8-1)+2) -> 8751.8 | M119: =VLOOKUP($H119,NA_All!$A$5:$Y$204,3*($C$8-1)+3) -> 13358 | N119: =VLOOKUP($H119,NA_All!$A$5:$Y$204,3*($C$8-1)+4) -> 19021 | O119: =IF(ISNA(VLOOKUP($B$6,$A$25:$E$52,IF($B$8=$A$22,3,2))),EXP(VLOOKUP($B$6,$A$25:$E$52,4)*LN(VLOOKUP($H119,P_Hard!$A$5:$Y$204,3*($C$8-1)+2)/1000)+VLOOKUP($B$6,$A$25:$E$52,5)),NA()) ->  | Q119: =IF(ISNA(VLOOKUP($B$6,$A$25:$E$52,IF($B$8=$A$22,3,2))),EXP(VLOOKUP($B$6,$A$25:$E$52,4)*LN(VLOOKUP($H119,P_Hard!$A$5:$Y$204,3*($C$8-1)+4)/1000)+VLOOKUP($B$6,$A$25:$E$52,5)),NA()) ->  | S119: 7.833333333 | T119: =VLOOKUP($S119,P_All!$AA$5:$AY$245,3*($C$8-1)+2) -> 3875.3 | U119: =VLOOKUP($S119,P_All!$AA$5:$AY$245,3*($C$8-1)+3) -> 8639.4 | V119: =VLOOKUP($S119,P_All!$AA$5:$AY$245,3*($C$8-1)+4) -> 16538 | W119: =VLOOKUP($S119,NA_All!$AA$5:$AY$245,3*($C$8-1)+2) -> 2004.4 | X119: =VLOOKUP($S119,NA_All!$AA$5:$AY$245,3*($C$8-1)+3) -> 5381.6 | Y119: =VLOOKUP($S119,NA_All!$AA$5:$AY$245,3*($C$8-1)+4) -> 18775 | Z119: =IF(AND($B$8=$A$20,$B$6=$A$48),$B$54,IF(ISNA(VLOOKUP($B$6,$A$25:$E$52,IF($B$8=$A$22,3,2),FALSE)),EXP(VLOOKUP($B$6,$A$25:$E$52,4,FALSE)*LN(VLOOKUP($H119,P_Hard!$A$5:$Y$204,3*($C$8-1)+3,FALSE)/1000)+VLOOKUP($B$6,$A$25:$E$52,5,FALSE)),VLOOKUP($B$6,$A$25:$E$52,IF($B$8=$A$22,3,2),FALSE))) -> 
H120: 96 | I120: =VLOOKUP($H120,P_All!$A$5:$Y$204,3*($C$8-1)+2) -> 7282.2 | J120: =VLOOKUP($H120,P_All!$A$5:$Y$204,3*($C$8-1)+3) -> 9174.9 | K120: =VLOOKUP($H120,P_All!$A$5:$Y$204,3*($C$8-1)+4) -> 15573 | L120: =VLOOKUP($H120,NA_All!$A$5:$Y$204,3*($C$8-1)+2) -> 8624.5 | M120: =VLOOKUP($H120,NA_All!$A$5:$Y$204,3*($C$8-1)+3) -> 13355 | N120: =VLOOKUP($H120,NA_All!$A$5:$Y$204,3*($C$8-1)+4) -> 18347 | O120: =IF(ISNA(VLOOKUP($B$6,$A$25:$E$52,IF($B$8=$A$22,3,2))),EXP(VLOOKUP($B$6,$A$25:$E$52,4)*LN(VLOOKUP($H120,P_Hard!$A$5:$Y$204,3*($C$8-1)+2)/1000)+VLOOKUP($B$6,$A$25:$E$52,5)),NA()) ->  | Q120: =IF(ISNA(VLOOKUP($B$6,$A$25:$E$52,IF($B$8=$A$22,3,2))),EXP(VLOOKUP($B$6,$A$25:$E$52,4)*LN(VLOOKUP($H120,P_Hard!$A$5:$Y$204,3*($C$8-1)+4)/1000)+VLOOKUP($B$6,$A$25:$E$52,5)),NA()) ->  | S120: 7.916666667 | T120: =VLOOKUP($S120,P_All!$AA$5:$AY$245,3*($C$8-1)+2) -> 5053.1 | U120: =VLOOKUP($S120,P_All!$AA$5:$AY$245,3*($C$8-1)+3) -> 10036 | V120: =VLOOKUP($S120,P_All!$AA$5:$AY$245,3*($C$8-1)+4) -> 16882 | W120: =VLOOKUP($S120,NA_All!$AA$5:$AY$245,3*($C$8-1)+2) -> 2681 | X120: =VLOOKUP($S120,NA_All!$AA$5:$AY$245,3*($C$8-1)+3) -> 6238.3 | Y120: =VLOOKUP($S120,NA_All!$AA$5:$AY$245,3*($C$8-1)+4) -> 17765 | Z120: =IF(AND($B$8=$A$20,$B$6=$A$48),$B$54,IF(ISNA(VLOOKUP($B$6,$A$25:$E$52,IF($B$8=$A$22,3,2),FALSE)),EXP(VLOOKUP($B$6,$A$25:$E$52,4,FALSE)*LN(VLOOKUP($H120,P_Hard!$A$5:$Y$204,3*($C$8-1)+3,FALSE)/1000)+VLOOKUP($B$6,$A$25:$E$52,5,FALSE)),VLOOKUP($B$6,$A$25:$E$52,IF($B$8=$A$22,3,2),FALSE))) -> 
H121: 97 | I121: =VLOOKUP($H121,P_All!$A$5:$Y$204,3*($C$8-1)+2) -> 6980.6 | J121: =VLOOKUP($H121,P_All!$A$5:$Y$204,3*($C$8-1)+3) -> 9067.7 | K121: =VLOOKUP($H121,P_All!$A$5:$Y$204,3*($C$8-1)+4) -> 15789 | L121: =VLOOKUP($H121,NA_All!$A$5:$Y$204,3*($C$8-1)+2) -> 8218 | M121: =VLOOKUP($H121,NA_All!$A$5:$Y$204,3*($C$8-1)+3) -> 13211 | N121: =VLOOKUP($H121,NA_All!$A$5:$Y$204,3*($C$8-1)+4) -> 18855 | O121: =IF(ISNA(VLOOKUP($B$6,$A$25:$E$52,IF($B$8=$A$22,3,2))),EXP(VLOOKUP($B$6,$A$25:$E$52,4)*LN(VLOOKUP($H121,P_Hard!$A$5:$Y$204,3*($C$8-1)+2)/1000)+VLOOKUP($B$6,$A$25:$E$52,5)),NA()) ->  | Q121: =IF(ISNA(VLOOKUP($B$6,$A$25:$E$52,IF($B$8=$A$22,3,2))),EXP(VLOOKUP($B$6,$A$25:$E$52,4)*LN(VLOOKUP($H121,P_Hard!$A$5:$Y$204,3*($C$8-1)+4)/1000)+VLOOKUP($B$6,$A$25:$E$52,5)),NA()) ->  | S121: 8 | T121: =VLOOKUP($S121,P_All!$AA$5:$AY$245,3*($C$8-1)+2) -> 8644.6 | U121: =VLOOKUP($S121,P_All!$AA$5:$AY$245,3*($C$8-1)+3) -> 14332 | V121: =VLOOKUP($S121,P_All!$AA$5:$AY$245,3*($C$8-1)+4) -> 17860 | W121: =VLOOKUP($S121,NA_All!$AA$5:$AY$245,3*($C$8-1)+2) -> 4892.3 | X121: =VLOOKUP($S121,NA_All!$AA$5:$AY$245,3*($C$8-1)+3) -> 9055.5 | Y121: =VLOOKUP($S121,NA_All!$AA$5:$AY$245,3*($C$8-1)+4) -> 16653 | Z121: =IF(AND($B$8=$A$20,$B$6=$A$48),$B$54,IF(ISNA(VLOOKUP($B$6,$A$25:$E$52,IF($B$8=$A$22,3,2),FALSE)),EXP(VLOOKUP($B$6,$A$25:$E$52,4,FALSE)*LN(VLOOKUP($H121,P_Hard!$A$5:$Y$204,3*($C$8-1)+3,FALSE)/1000)+VLOOKUP($B$6,$A$25:$E$52,5,FALSE)),VLOOKUP($B$6,$A$25:$E$52,IF($B$8=$A$22,3,2),FALSE))) -> 
H122: 98 | I122: =VLOOKUP($H122,P_All!$A$5:$Y$204,3*($C$8-1)+2) -> 7585 | J122: =VLOOKUP($H122,P_All!$A$5:$Y$204,3*($C$8-1)+3) -> 9169 | K122: =VLOOKUP($H122,P_All!$A$5:$Y$204,3*($C$8-1)+4) -> 15730 | L122: =VLOOKUP($H122,NA_All!$A$5:$Y$204,3*($C$8-1)+2) -> 8354 | M122: =VLOOKUP($H122,NA_All!$A$5:$Y$204,3*($C$8-1)+3) -> 13264 | N122: =VLOOKUP($H122,NA_All!$A$5:$Y$204,3*($C$8-1)+4) -> 18823 | O122: =IF(ISNA(VLOOKUP($B$6,$A$25:$E$52,IF($B$8=$A$22,3,2))),EXP(VLOOKUP($B$6,$A$25:$E$52,4)*LN(VLOOKUP($H122,P_Hard!$A$5:$Y$204,3*($C$8-1)+2)/1000)+VLOOKUP($B$6,$A$25:$E$52,5)),NA()) ->  | Q122: =IF(ISNA(VLOOKUP($B$6,$A$25:$E$52,IF($B$8=$A$22,3,2))),EXP(VLOOKUP($B$6,$A$25:$E$52,4)*LN(VLOOKUP($H122,P_Hard!$A$5:$Y$204,3*($C$8-1)+4)/1000)+VLOOKUP($B$6,$A$25:$E$52,5)),NA()) ->  | S122: 8.083333333 | T122: =VLOOKUP($S122,P_All!$AA$5:$AY$245,3*($C$8-1)+2) -> 12501 | U122: =VLOOKUP($S122,P_All!$AA$5:$AY$245,3*($C$8-1)+3) -> 17518 | V122: =VLOOKUP($S122,P_All!$AA$5:$AY$245,3*($C$8-1)+4) -> 21962 | W122: =VLOOKUP($S122,NA_All!$AA$5:$AY$245,3*($C$8-1)+2) -> 7325.5 | X122: =VLOOKUP($S122,NA_All!$AA$5:$AY$245,3*($C$8-1)+3) -> 12058 | Y122: =VLOOKUP($S122,NA_All!$AA$5:$AY$245,3*($C$8-1)+4) -> 15896 | Z122: =IF(AND($B$8=$A$20,$B$6=$A$48),$B$54,IF(ISNA(VLOOKUP($B$6,$A$25:$E$52,IF($B$8=$A$22,3,2),FALSE)),EXP(VLOOKUP($B$6,$A$25:$E$52,4,FALSE)*LN(VLOOKUP($H122,P_Hard!$A$5:$Y$204,3*($C$8-1)+3,FALSE)/1000)+VLOOKUP($B$6,$A$25:$E$52,5,FALSE)),VLOOKUP($B$6,$A$25:$E$52,IF($B$8=$A$22,3,2),FALSE))) -> 
H123: 99 | I123: =VLOOKUP($H123,P_All!$A$5:$Y$204,3*($C$8-1)+2) -> 7165.1 | J123: =VLOOKUP($H123,P_All!$A$5:$Y$204,3*($C$8-1)+3) -> 9055.5 | K123: =VLOOKUP($H123,P_All!$A$5:$Y$204,3*($C$8-1)+4) -> 16791 | L123: =VLOOKUP($H123,NA_All!$A$5:$Y$204,3*($C$8-1)+2) -> 8038.6 | M123: =VLOOKUP($H123,NA_All!$A$5:$Y$204,3*($C$8-1)+3) -> 13413 | N123: =VLOOKUP($H123,NA_All!$A$5:$Y$204,3*($C$8-1)+4) -> 18618 | O123: =IF(ISNA(VLOOKUP($B$6,$A$25:$E$52,IF($B$8=$A$22,3,2))),EXP(VLOOKUP($B$6,$A$25:$E$52,4)*LN(VLOOKUP($H123,P_Hard!$A$5:$Y$204,3*($C$8-1)+2)/1000)+VLOOKUP($B$6,$A$25:$E$52,5)),NA()) ->  | Q123: =IF(ISNA(VLOOKUP($B$6,$A$25:$E$52,IF($B$8=$A$22,3,2))),EXP(VLOOKUP($B$6,$A$25:$E$52,4)*LN(VLOOKUP($H123,P_Hard!$A$5:$Y$204,3*($C$8-1)+4)/1000)+VLOOKUP($B$6,$A$25:$E$52,5)),NA()) ->  | S123: 8.166666667 | T123: =VLOOKUP($S123,P_All!$AA$5:$AY$245,3*($C$8-1)+2) -> 13600 | U123: =VLOOKUP($S123,P_All!$AA$5:$AY$245,3*($C$8-1)+3) -> 21613 | V123: =VLOOKUP($S123,P_All!$AA$5:$AY$245,3*($C$8-1)+4) -> 23769 | W123: =VLOOKUP($S123,NA_All!$AA$5:$AY$245,3*($C$8-1)+2) -> 7902.5 | X123: =VLOOKUP($S123,NA_All!$AA$5:$AY$245,3*($C$8-1)+3) -> 14294 | Y123: =VLOOKUP($S123,NA_All!$AA$5:$AY$245,3*($C$8-1)+4) -> 16986 | Z123: =IF(AND($B$8=$A$20,$B$6=$A$48),$B$54,IF(ISNA(VLOOKUP($B$6,$A$25:$E$52,IF($B$8=$A$22,3,2),FALSE)),EXP(VLOOKUP($B$6,$A$25:$E$52,4,FALSE)*LN(VLOOKUP($H123,P_Hard!$A$5:$Y$204,3*($C$8-1)+3,FALSE)/1000)+VLOOKUP($B$6,$A$25:$E$52,5,FALSE)),VLOOKUP($B$6,$A$25:$E$52,IF($B$8=$A$22,3,2),FALSE))) -> 
H124: 100 | I124: =VLOOKUP($H124,P_All!$A$5:$Y$204,3*($C$8-1)+2) -> 7517.2 | J124: =VLOOKUP($H124,P_All!$A$5:$Y$204,3*($C$8-1)+3) -> 9157.2 | K124: =VLOOKUP($H124,P_All!$A$5:$Y$204,3*($C$8-1)+4) -> 15585 | L124: =VLOOKUP($H124,NA_All!$A$5:$Y$204,3*($C$8-1)+2) -> 8309.1 | M124: =VLOOKUP($H124,NA_All!$A$5:$Y$204,3*($C$8-1)+3) -> 13355 | N124: =VLOOKUP($H124,NA_All!$A$5:$Y$204,3*($C$8-1)+4) -> 18842 | O124: =IF(ISNA(VLOOKUP($B$6,$A$25:$E$52,IF($B$8=$A$22,3,2))),EXP(VLOOKUP($B$6,$A$25:$E$52,4)*LN(VLOOKUP($H124,P_Hard!$A$5:$Y$204,3*($C$8-1)+2)/1000)+VLOOKUP($B$6,$A$25:$E$52,5)),NA()) ->  | Q124: =IF(ISNA(VLOOKUP($B$6,$A$25:$E$52,IF($B$8=$A$22,3,2))),EXP(VLOOKUP($B$6,$A$25:$E$52,4)*LN(VLOOKUP($H124,P_Hard!$A$5:$Y$204,3*($C$8-1)+4)/1000)+VLOOKUP($B$6,$A$25:$E$52,5)),NA()) ->  | S124: 8.25 | T124: =VLOOKUP($S124,P_All!$AA$5:$AY$245,3*($C$8-1)+2) -> 6987.2 | U124: =VLOOKUP($S124,P_All!$AA$5:$AY$245,3*($C$8-1)+3) -> 18700 | V124: =VLOOKUP($S124,P_All!$AA$5:$AY$245,3*($C$8-1)+4) -> 24244 | W124: =VLOOKUP($S124,NA_All!$AA$5:$AY$245,3*($C$8-1)+2) -> 4340 | X124: =VLOOKUP($S124,NA_All!$AA$5:$AY$245,3*($C$8-1)+3) -> 13241 | Y124: =VLOOKUP($S124,NA_All!$AA$5:$AY$245,3*($C$8-1)+4) -> 17571 | Z124: =IF(AND($B$8=$A$20,$B$6=$A$48),$B$54,IF(ISNA(VLOOKUP($B$6,$A$25:$E$52,IF($B$8=$A$22,3,2),FALSE)),EXP(VLOOKUP($B$6,$A$25:$E$52,4,FALSE)*LN(VLOOKUP($H124,P_Hard!$A$5:$Y$204,3*($C$8-1)+3,FALSE)/1000)+VLOOKUP($B$6,$A$25:$E$52,5,FALSE)),VLOOKUP($B$6,$A$25:$E$52,IF($B$8=$A$22,3,2),FALSE))) -> 
H125: 101 | I125: =VLOOKUP($H125,P_All!$A$5:$Y$204,3*($C$8-1)+2) -> 6886.4 | J125: =VLOOKUP($H125,P_All!$A$5:$Y$204,3*($C$8-1)+3) -> 9089.7 | K125: =VLOOKUP($H125,P_All!$A$5:$Y$204,3*($C$8-1)+4) -> 15127 | L125: =VLOOKUP($H125,NA_All!$A$5:$Y$204,3*($C$8-1)+2) -> 8311.3 | M125: =VLOOKUP($H125,NA_All!$A$5:$Y$204,3*($C$8-1)+3) -> 13229 | N125: =VLOOKUP($H125,NA_All!$A$5:$Y$204,3*($C$8-1)+4) -> 19017 | O125: =IF(ISNA(VLOOKUP($B$6,$A$25:$E$52,IF($B$8=$A$22,3,2))),EXP(VLOOKUP($B$6,$A$25:$E$52,4)*LN(VLOOKUP($H125,P_Hard!$A$5:$Y$204,3*($C$8-1)+2)/1000)+VLOOKUP($B$6,$A$25:$E$52,5)),NA()) ->  | Q125: =IF(ISNA(VLOOKUP($B$6,$A$25:$E$52,IF($B$8=$A$22,3,2))),EXP(VLOOKUP($B$6,$A$25:$E$52,4)*LN(VLOOKUP($H125,P_Hard!$A$5:$Y$204,3*($C$8-1)+4)/1000)+VLOOKUP($B$6,$A$25:$E$52,5)),NA()) ->  | S125: 8.333333333 | T125: =VLOOKUP($S125,P_All!$AA$5:$AY$245,3*($C$8-1)+2) -> 3140.3 | U125: =VLOOKUP($S125,P_All!$AA$5:$AY$245,3*($C$8-1)+3) -> 7292.7 | V125: =VLOOKUP($S125,P_All!$AA$5:$AY$245,3*($C$8-1)+4) -> 17294 | W125: =VLOOKUP($S125,NA_All!$AA$5:$AY$245,3*($C$8-1)+2) -> 1558.6 | X125: =VLOOKUP($S125,NA_All!$AA$5:$AY$245,3*($C$8-1)+3) -> 4562.3 | Y125: =VLOOKUP($S125,NA_All!$AA$5:$AY$245,3*($C$8-1)+4) -> 18972 | Z125: =IF(AND($B$8=$A$20,$B$6=$A$48),$B$54,IF(ISNA(VLOOKUP($B$6,$A$25:$E$52,IF($B$8=$A$22,3,2),FALSE)),EXP(VLOOKUP($B$6,$A$25:$E$52,4,FALSE)*LN(VLOOKUP($H125,P_Hard!$A$5:$Y$204,3*($C$8-1)+3,FALSE)/1000)+VLOOKUP($B$6,$A$25:$E$52,5,FALSE)),VLOOKUP($B$6,$A$25:$E$52,IF($B$8=$A$22,3,2),FALSE))) -> 
H126: 102 | I126: =VLOOKUP($H126,P_All!$A$5:$Y$204,3*($C$8-1)+2) -> 7078.8 | J126: =VLOOKUP($H126,P_All!$A$5:$Y$204,3*($C$8-1)+3) -> 9099.3 | K126: =VLOOKUP($H126,P_All!$A$5:$Y$204,3*($C$8-1)+4) -> 14629 | L126: =VLOOKUP($H126,NA_All!$A$5:$Y$204,3*($C$8-1)+2) -> 8392.4 | M126: =VLOOKUP($H126,NA_All!$A$5:$Y$204,3*($C$8-1)+3) -> 13346 | N126: =VLOOKUP($H126,NA_All!$A$5:$Y$204,3*($C$8-1)+4) -> 18884 | O126: =IF(ISNA(VLOOKUP($B$6,$A$25:$E$52,IF($B$8=$A$22,3,2))),EXP(VLOOKUP($B$6,$A$25:$E$52,4)*LN(VLOOKUP($H126,P_Hard!$A$5:$Y$204,3*($C$8-1)+2)/1000)+VLOOKUP($B$6,$A$25:$E$52,5)),NA()) ->  | Q126: =IF(ISNA(VLOOKUP($B$6,$A$25:$E$52,IF($B$8=$A$22,3,2))),EXP(VLOOKUP($B$6,$A$25:$E$52,4)*LN(VLOOKUP($H126,P_Hard!$A$5:$Y$204,3*($C$8-1)+4)/1000)+VLOOKUP($B$6,$A$25:$E$52,5)),NA()) ->  | S126: 8.416666667 | T126: =VLOOKUP($S126,P_All!$AA$5:$AY$245,3*($C$8-1)+2) -> 2890.7 | U126: =VLOOKUP($S126,P_All!$AA$5:$AY$245,3*($C$8-1)+3) -> 7003.6 | V126: =VLOOKUP($S126,P_All!$AA$5:$AY$245,3*($C$8-1)+4) -> 16489 | W126: =VLOOKUP($S126,NA_All!$AA$5:$AY$245,3*($C$8-1)+2) -> 1266.1 | X126: =VLOOKUP($S126,NA_All!$AA$5:$AY$245,3*($C$8-1)+3) -> 4706.4 | Y126: =VLOOKUP($S126,NA_All!$AA$5:$AY$245,3*($C$8-1)+4) -> 18948 | Z126: =IF(AND($B$8=$A$20,$B$6=$A$48),$B$54,IF(ISNA(VLOOKUP($B$6,$A$25:$E$52,IF($B$8=$A$22,3,2),FALSE)),EXP(VLOOKUP($B$6,$A$25:$E$52,4,FALSE)*LN(VLOOKUP($H126,P_Hard!$A$5:$Y$204,3*($C$8-1)+3,FALSE)/1000)+VLOOKUP($B$6,$A$25:$E$52,5,FALSE)),VLOOKUP($B$6,$A$25:$E$52,IF($B$8=$A$22,3,2),FALSE))) -> 
H127: 103 | I127: =VLOOKUP($H127,P_All!$A$5:$Y$204,3*($C$8-1)+2) -> 7080.2 | J127: =VLOOKUP($H127,P_All!$A$5:$Y$204,3*($C$8-1)+3) -> 9111.9 | K127: =VLOOKUP($H127,P_All!$A$5:$Y$204,3*($C$8-1)+4) -> 15360 | L127: =VLOOKUP($H127,NA_All!$A$5:$Y$204,3*($C$8-1)+2) -> 7979.9 | M127: =VLOOKUP($H127,NA_All!$A$5:$Y$204,3*($C$8-1)+3) -> 13230 | N127: =VLOOKUP($H127,NA_All!$A$5:$Y$204,3*($C$8-1)+4) -> 19370 | O127: =IF(ISNA(VLOOKUP($B$6,$A$25:$E$52,IF($B$8=$A$22,3,2))),EXP(VLOOKUP($B$6,$A$25:$E$52,4)*LN(VLOOKUP($H127,P_Hard!$A$5:$Y$204,3*($C$8-1)+2)/1000)+VLOOKUP($B$6,$A$25:$E$52,5)),NA()) ->  | Q127: =IF(ISNA(VLOOKUP($B$6,$A$25:$E$52,IF($B$8=$A$22,3,2))),EXP(VLOOKUP($B$6,$A$25:$E$52,4)*LN(VLOOKUP($H127,P_Hard!$A$5:$Y$204,3*($C$8-1)+4)/1000)+VLOOKUP($B$6,$A$25:$E$52,5)),NA()) ->  | S127: 8.5 | T127: =VLOOKUP($S127,P_All!$AA$5:$AY$245,3*($C$8-1)+2) -> 3568.9 | U127: =VLOOKUP($S127,P_All!$AA$5:$AY$245,3*($C$8-1)+3) -> 8219 | V127: =VLOOKUP($S127,P_All!$AA$5:$AY$245,3*($C$8-1)+4) -> 16692 | W127: =VLOOKUP($S127,NA_All!$AA$5:$AY$245,3*($C$8-1)+2) -> 1820.9 | X127: =VLOOKUP($S127,NA_All!$AA$5:$AY$245,3*($C$8-1)+3) -> 5691.4 | Y127: =VLOOKUP($S127,NA_All!$AA$5:$AY$245,3*($C$8-1)+4) -> 18658 | Z127: =IF(AND($B$8=$A$20,$B$6=$A$48),$B$54,IF(ISNA(VLOOKUP($B$6,$A$25:$E$52,IF($B$8=$A$22,3,2),FALSE)),EXP(VLOOKUP($B$6,$A$25:$E$52,4,FALSE)*LN(VLOOKUP($H127,P_Hard!$A$5:$Y$204,3*($C$8-1)+3,FALSE)/1000)+VLOOKUP($B$6,$A$25:$E$52,5,FALSE)),VLOOKUP($B$6,$A$25:$E$52,IF($B$8=$A$22,3,2),FALSE))) -> 
H128: 104 | I128: =VLOOKUP($H128,P_All!$A$5:$Y$204,3*($C$8-1)+2) -> 6783 | J128: =VLOOKUP($H128,P_All!$A$5:$Y$204,3*($C$8-1)+3) -> 9105.3 | K128: =VLOOKUP($H128,P_All!$A$5:$Y$204,3*($C$8-1)+4) -> 15938 | L128: =VLOOKUP($H128,NA_All!$A$5:$Y$204,3*($C$8-1)+2) -> 7937.3 | M128: =VLOOKUP($H128,NA_All!$A$5:$Y$204,3*($C$8-1)+3) -> 13530 | N128: =VLOOKUP($H128,NA_All!$A$5:$Y$204,3*($C$8-1)+4) -> 19062 | O128: =IF(ISNA(VLOOKUP($B$6,$A$25:$E$52,IF($B$8=$A$22,3,2))),EXP(VLOOKUP($B$6,$A$25:$E$52,4)*LN(VLOOKUP($H128,P_Hard!$A$5:$Y$204,3*($C$8-1)+2)/1000)+VLOOKUP($B$6,$A$25:$E$52,5)),NA()) ->  | Q128: =IF(ISNA(VLOOKUP($B$6,$A$25:$E$52,IF($B$8=$A$22,3,2))),EXP(VLOOKUP($B$6,$A$25:$E$52,4)*LN(VLOOKUP($H128,P_Hard!$A$5:$Y$204,3*($C$8-1)+4)/1000)+VLOOKUP($B$6,$A$25:$E$52,5)),NA()) ->  | S128: 8.583333333 | T128: =VLOOKUP($S128,P_All!$AA$5:$AY$245,3*($C$8-1)+2) -> 4088.3 | U128: =VLOOKUP($S128,P_All!$AA$5:$AY$245,3*($C$8-1)+3) -> 10013 | V128: =VLOOKUP($S128,P_All!$AA$5:$AY$245,3*($C$8-1)+4) -> 20066 | W128: =VLOOKUP($S128,NA_All!$AA$5:$AY$245,3*($C$8-1)+2) -> 1891 | X128: =VLOOKUP($S128,NA_All!$AA$5:$AY$245,3*($C$8-1)+3) -> 7509 | Y128: =VLOOKUP($S128,NA_All!$AA$5:$AY$245,3*($C$8-1)+4) -> 17657 | Z128: =IF(AND($B$8=$A$20,$B$6=$A$48),$B$54,IF(ISNA(VLOOKUP($B$6,$A$25:$E$52,IF($B$8=$A$22,3,2),FALSE)),EXP(VLOOKUP($B$6,$A$25:$E$52,4,FALSE)*LN(VLOOKUP($H128,P_Hard!$A$5:$Y$204,3*($C$8-1)+3,FALSE)/1000)+VLOOKUP($B$6,$A$25:$E$52,5,FALSE)),VLOOKUP($B$6,$A$25:$E$52,IF($B$8=$A$22,3,2),FALSE))) -> 
H129: 105 | I129: =VLOOKUP($H129,P_All!$A$5:$Y$204,3*($C$8-1)+2) -> 6996.5 | J129: =VLOOKUP($H129,P_All!$A$5:$Y$204,3*($C$8-1)+3) -> 9095.6 | K129: =VLOOKUP($H129,P_All!$A$5:$Y$204,3*($C$8-1)+4) -> 15447 | L129: =VLOOKUP($H129,NA_All!$A$5:$Y$204,3*($C$8-1)+2) -> 8330.4 | M129: =VLOOKUP($H129,NA_All!$A$5:$Y$204,3*($C$8-1)+3) -> 13354 | N129: =VLOOKUP($H129,NA_All!$A$5:$Y$204,3*($C$8-1)+4) -> 18696 | O129: =IF(ISNA(VLOOKUP($B$6,$A$25:$E$52,IF($B$8=$A$22,3,2))),EXP(VLOOKUP($B$6,$A$25:$E$52,4)*LN(VLOOKUP($H129,P_Hard!$A$5:$Y$204,3*($C$8-1)+2)/1000)+VLOOKUP($B$6,$A$25:$E$52,5)),NA()) ->  | Q129: =IF(ISNA(VLOOKUP($B$6,$A$25:$E$52,IF($B$8=$A$22,3,2))),EXP(VLOOKUP($B$6,$A$25:$E$52,4)*LN(VLOOKUP($H129,P_Hard!$A$5:$Y$204,3*($C$8-1)+4)/1000)+VLOOKUP($B$6,$A$25:$E$52,5)),NA()) ->  | S129: 8.666666667 | T129: =VLOOKUP($S129,P_All!$AA$5:$AY$245,3*($C$8-1)+2) -> 3909.7 | U129: =VLOOKUP($S129,P_All!$AA$5:$AY$245,3*($C$8-1)+3) -> 10110 | V129: =VLOOKUP($S129,P_All!$AA$5:$AY$245,3*($C$8-1)+4) -> 19968 | W129: =VLOOKUP($S129,NA_All!$AA$5:$AY$245,3*($C$8-1)+2) -> 1766.2 | X129: =VLOOKUP($S129,NA_All!$AA$5:$AY$245,3*($C$8-1)+3) -> 6697.7 | Y129: =VLOOKUP($S129,NA_All!$AA$5:$AY$245,3*($C$8-1)+4) -> 17938 | Z129: =IF(AND($B$8=$A$20,$B$6=$A$48),$B$54,IF(ISNA(VLOOKUP($B$6,$A$25:$E$52,IF($B$8=$A$22,3,2),FALSE)),EXP(VLOOKUP($B$6,$A$25:$E$52,4,FALSE)*LN(VLOOKUP($H129,P_Hard!$A$5:$Y$204,3*($C$8-1)+3,FALSE)/1000)+VLOOKUP($B$6,$A$25:$E$52,5,FALSE)),VLOOKUP($B$6,$A$25:$E$52,IF($B$8=$A$22,3,2),FALSE))) -> 
H130: 106 | I130: =VLOOKUP($H130,P_All!$A$5:$Y$204,3*($C$8-1)+2) -> 7119.3 | J130: =VLOOKUP($H130,P_All!$A$5:$Y$204,3*($C$8-1)+3) -> 9158.7 | K130: =VLOOKUP($H130,P_All!$A$5:$Y$204,3*($C$8-1)+4) -> 15309 | L130: =VLOOKUP($H130,NA_All!$A$5:$Y$204,3*($C$8-1)+2) -> 8668.9 | M130: =VLOOKUP($H130,NA_All!$A$5:$Y$204,3*($C$8-1)+3) -> 13319 | N130: =VLOOKUP($H130,NA_All!$A$5:$Y$204,3*($C$8-1)+4) -> 19305 | O130: =IF(ISNA(VLOOKUP($B$6,$A$25:$E$52,IF($B$8=$A$22,3,2))),EXP(VLOOKUP($B$6,$A$25:$E$52,4)*LN(VLOOKUP($H130,P_Hard!$A$5:$Y$204,3*($C$8-1)+2)/1000)+VLOOKUP($B$6,$A$25:$E$52,5)),NA()) ->  | Q130: =IF(ISNA(VLOOKUP($B$6,$A$25:$E$52,IF($B$8=$A$22,3,2))),EXP(VLOOKUP($B$6,$A$25:$E$52,4)*LN(VLOOKUP($H130,P_Hard!$A$5:$Y$204,3*($C$8-1)+4)/1000)+VLOOKUP($B$6,$A$25:$E$52,5)),NA()) ->  | S130: 8.75 | T130: =VLOOKUP($S130,P_All!$AA$5:$AY$245,3*($C$8-1)+2) -> 4071 | U130: =VLOOKUP($S130,P_All!$AA$5:$AY$245,3*($C$8-1)+3) -> 8614.9 | V130: =VLOOKUP($S130,P_All!$AA$5:$AY$245,3*($C$8-1)+4) -> 18025 | W130: =VLOOKUP($S130,NA_All!$AA$5:$AY$245,3*($C$8-1)+2) -> 1970.7 | X130: =VLOOKUP($S130,NA_All!$AA$5:$AY$245,3*($C$8-1)+3) -> 5900.7 | Y130: =VLOOKUP($S130,NA_All!$AA$5:$AY$245,3*($C$8-1)+4) -> 18267 | Z130: =IF(AND($B$8=$A$20,$B$6=$A$48),$B$54,IF(ISNA(VLOOKUP($B$6,$A$25:$E$52,IF($B$8=$A$22,3,2),FALSE)),EXP(VLOOKUP($B$6,$A$25:$E$52,4,FALSE)*LN(VLOOKUP($H130,P_Hard!$A$5:$Y$204,3*($C$8-1)+3,FALSE)/1000)+VLOOKUP($B$6,$A$25:$E$52,5,FALSE)),VLOOKUP($B$6,$A$25:$E$52,IF($B$8=$A$22,3,2),FALSE))) -> 
H131: 107 | I131: =VLOOKUP($H131,P_All!$A$5:$Y$204,3*($C$8-1)+2) -> 6894 | J131: =VLOOKUP($H131,P_All!$A$5:$Y$204,3*($C$8-1)+3) -> 9109.8 | K131: =VLOOKUP($H131,P_All!$A$5:$Y$204,3*($C$8-1)+4) -> 14865 | L131: =VLOOKUP($H131,NA_All!$A$5:$Y$204,3*($C$8-1)+2) -> 8080.3 | M131: =VLOOKUP($H131,NA_All!$A$5:$Y$204,3*($C$8-1)+3) -> 13335 | N131: =VLOOKUP($H131,NA_All!$A$5:$Y$204,3*($C$8-1)+4) -> 19139 | O131: =IF(ISNA(VLOOKUP($B$6,$A$25:$E$52,IF($B$8=$A$22,3,2))),EXP(VLOOKUP($B$6,$A$25:$E$52,4)*LN(VLOOKUP($H131,P_Hard!$A$5:$Y$204,3*($C$8-1)+2)/1000)+VLOOKUP($B$6,$A$25:$E$52,5)),NA()) ->  | Q131: =IF(ISNA(VLOOKUP($B$6,$A$25:$E$52,IF($B$8=$A$22,3,2))),EXP(VLOOKUP($B$6,$A$25:$E$52,4)*LN(VLOOKUP($H131,P_Hard!$A$5:$Y$204,3*($C$8-1)+4)/1000)+VLOOKUP($B$6,$A$25:$E$52,5)),NA()) ->  | S131: 8.833333333 | T131: =VLOOKUP($S131,P_All!$AA$5:$AY$245,3*($C$8-1)+2) -> 3858.5 | U131: =VLOOKUP($S131,P_All!$AA$5:$AY$245,3*($C$8-1)+3) -> 8480.7 | V131: =VLOOKUP($S131,P_All!$AA$5:$AY$245,3*($C$8-1)+4) -> 15936 | W131: =VLOOKUP($S131,NA_All!$AA$5:$AY$245,3*($C$8-1)+2) -> 1938.2 | X131: =VLOOKUP($S131,NA_All!$AA$5:$AY$245,3*($C$8-1)+3) -> 5455.3 | Y131: =VLOOKUP($S131,NA_All!$AA$5:$AY$245,3*($C$8-1)+4) -> 18949 | Z131: =IF(AND($B$8=$A$20,$B$6=$A$48),$B$54,IF(ISNA(VLOOKUP($B$6,$A$25:$E$52,IF($B$8=$A$22,3,2),FALSE)),EXP(VLOOKUP($B$6,$A$25:$E$52,4,FALSE)*LN(VLOOKUP($H131,P_Hard!$A$5:$Y$204,3*($C$8-1)+3,FALSE)/1000)+VLOOKUP($B$6,$A$25:$E$52,5,FALSE)),VLOOKUP($B$6,$A$25:$E$52,IF($B$8=$A$22,3,2),FALSE))) -> 
H132: 108 | I132: =VLOOKUP($H132,P_All!$A$5:$Y$204,3*($C$8-1)+2) -> 7208.4 | J132: =VLOOKUP($H132,P_All!$A$5:$Y$204,3*($C$8-1)+3) -> 9164.2 | K132: =VLOOKUP($H132,P_All!$A$5:$Y$204,3*($C$8-1)+4) -> 15918 | L132: =VLOOKUP($H132,NA_All!$A$5:$Y$204,3*($C$8-1)+2) -> 8349.8 | M132: =VLOOKUP($H132,NA_All!$A$5:$Y$204,3*($C$8-1)+3) -> 13356 | N132: =VLOOKUP($H132,NA_All!$A$5:$Y$204,3*($C$8-1)+4) -> 18965 | O132: =IF(ISNA(VLOOKUP($B$6,$A$25:$E$52,IF($B$8=$A$22,3,2))),EXP(VLOOKUP($B$6,$A$25:$E$52,4)*LN(VLOOKUP($H132,P_Hard!$A$5:$Y$204,3*($C$8-1)+2)/1000)+VLOOKUP($B$6,$A$25:$E$52,5)),NA()) ->  | Q132: =IF(ISNA(VLOOKUP($B$6,$A$25:$E$52,IF($B$8=$A$22,3,2))),EXP(VLOOKUP($B$6,$A$25:$E$52,4)*LN(VLOOKUP($H132,P_Hard!$A$5:$Y$204,3*($C$8-1)+4)/1000)+VLOOKUP($B$6,$A$25:$E$52,5)),NA()) ->  | S132: 8.916666667 | T132: =VLOOKUP($S132,P_All!$AA$5:$AY$245,3*($C$8-1)+2) -> 5447.9 | U132: =VLOOKUP($S132,P_All!$AA$5:$AY$245,3*($C$8-1)+3) -> 10284 | V132: =VLOOKUP($S132,P_All!$AA$5:$AY$245,3*($C$8-1)+4) -> 16636 | W132: =VLOOKUP($S132,NA_All!$AA$5:$AY$245,3*($C$8-1)+2) -> 2696.2 | X132: =VLOOKUP($S132,NA_All!$AA$5:$AY$245,3*($C$8-1)+3) -> 6196 | Y132: =VLOOKUP($S132,NA_All!$AA$5:$AY$245,3*($C$8-1)+4) -> 17667 | Z132: =IF(AND($B$8=$A$20,$B$6=$A$48),$B$54,IF(ISNA(VLOOKUP($B$6,$A$25:$E$52,IF($B$8=$A$22,3,2),FALSE)),EXP(VLOOKUP($B$6,$A$25:$E$52,4,FALSE)*LN(VLOOKUP($H132,P_Hard!$A$5:$Y$204,3*($C$8-1)+3,FALSE)/1000)+VLOOKUP($B$6,$A$25:$E$52,5,FALSE)),VLOOKUP($B$6,$A$25:$E$52,IF($B$8=$A$22,3,2),FALSE))) -> 
H133: 109 | I133: =VLOOKUP($H133,P_All!$A$5:$Y$204,3*($C$8-1)+2) -> 7102 | J133: =VLOOKUP($H133,P_All!$A$5:$Y$204,3*($C$8-1)+3) -> 9083 | K133: =VLOOKUP($H133,P_All!$A$5:$Y$204,3*($C$8-1)+4) -> 14578 | L133: =VLOOKUP($H133,NA_All!$A$5:$Y$204,3*($C$8-1)+2) -> 8570 | M133: =VLOOKUP($H133,NA_All!$A$5:$Y$204,3*($C$8-1)+3) -> 13402 | N133: =VLOOKUP($H133,NA_All!$A$5:$Y$204,3*($C$8-1)+4) -> 18751 | O133: =IF(ISNA(VLOOKUP($B$6,$A$25:$E$52,IF($B$8=$A$22,3,2))),EXP(VLOOKUP($B$6,$A$25:$E$52,4)*LN(VLOOKUP($H133,P_Hard!$A$5:$Y$204,3*($C$8-1)+2)/1000)+VLOOKUP($B$6,$A$25:$E$52,5)),NA()) ->  | Q133: =IF(ISNA(VLOOKUP($B$6,$A$25:$E$52,IF($B$8=$A$22,3,2))),EXP(VLOOKUP($B$6,$A$25:$E$52,4)*LN(VLOOKUP($H133,P_Hard!$A$5:$Y$204,3*($C$8-1)+4)/1000)+VLOOKUP($B$6,$A$25:$E$52,5)),NA()) ->  | S133: 9 | T133: =VLOOKUP($S133,P_All!$AA$5:$AY$245,3*($C$8-1)+2) -> 8532.2 | U133: =VLOOKUP($S133,P_All!$AA$5:$AY$245,3*($C$8-1)+3) -> 13679 | V133: =VLOOKUP($S133,P_All!$AA$5:$AY$245,3*($C$8-1)+4) -> 17624 | W133: =VLOOKUP($S133,NA_All!$AA$5:$AY$245,3*($C$8-1)+2) -> 4516.6 | X133: =VLOOKUP($S133,NA_All!$AA$5:$AY$245,3*($C$8-1)+3) -> 9062.4 | Y133: =VLOOKUP($S133,NA_All!$AA$5:$AY$245,3*($C$8-1)+4) -> 16357 | Z133: =IF(AND($B$8=$A$20,$B$6=$A$48),$B$54,IF(ISNA(VLOOKUP($B$6,$A$25:$E$52,IF($B$8=$A$22,3,2),FALSE)),EXP(VLOOKUP($B$6,$A$25:$E$52,4,FALSE)*LN(VLOOKUP($H133,P_Hard!$A$5:$Y$204,3*($C$8-1)+3,FALSE)/1000)+VLOOKUP($B$6,$A$25:$E$52,5,FALSE)),VLOOKUP($B$6,$A$25:$E$52,IF($B$8=$A$22,3,2),FALSE))) -> 
H134: 110 | I134: =VLOOKUP($H134,P_All!$A$5:$Y$204,3*($C$8-1)+2) -> 7228 | J134: =VLOOKUP($H134,P_All!$A$5:$Y$204,3*($C$8-1)+3) -> 9122.6 | K134: =VLOOKUP($H134,P_All!$A$5:$Y$204,3*($C$8-1)+4) -> 16094 | L134: =VLOOKUP($H134,NA_All!$A$5:$Y$204,3*($C$8-1)+2) -> 8541.2 | M134: =VLOOKUP($H134,NA_All!$A$5:$Y$204,3*($C$8-1)+3) -> 13297 | N134: =VLOOKUP($H134,NA_All!$A$5:$Y$204,3*($C$8-1)+4) -> 18621 | O134: =IF(ISNA(VLOOKUP($B$6,$A$25:$E$52,IF($B$8=$A$22,3,2))),EXP(VLOOKUP($B$6,$A$25:$E$52,4)*LN(VLOOKUP($H134,P_Hard!$A$5:$Y$204,3*($C$8-1)+2)/1000)+VLOOKUP($B$6,$A$25:$E$52,5)),NA()) ->  | Q134: =IF(ISNA(VLOOKUP($B$6,$A$25:$E$52,IF($B$8=$A$22,3,2))),EXP(VLOOKUP($B$6,$A$25:$E$52,4)*LN(VLOOKUP($H134,P_Hard!$A$5:$Y$204,3*($C$8-1)+4)/1000)+VLOOKUP($B$6,$A$25:$E$52,5)),NA()) ->  | S134: 9.083333333 | T134: =VLOOKUP($S134,P_All!$AA$5:$AY$245,3*($C$8-1)+2) -> 12368 | U134: =VLOOKUP($S134,P_All!$AA$5:$AY$245,3*($C$8-1)+3) -> 16914 | V134: =VLOOKUP($S134,P_All!$AA$5:$AY$245,3*($C$8-1)+4) -> 21762 | W134: =VLOOKUP($S134,NA_All!$AA$5:$AY$245,3*($C$8-1)+2) -> 7337.4 | X134: =VLOOKUP($S134,NA_All!$AA$5:$AY$245,3*($C$8-1)+3) -> 11952 | Y134: =VLOOKUP($S134,NA_All!$AA$5:$AY$245,3*($C$8-1)+4) -> 16006 | Z134: =IF(AND($B$8=$A$20,$B$6=$A$48),$B$54,IF(ISNA(VLOOKUP($B$6,$A$25:$E$52,IF($B$8=$A$22,3,2),FALSE)),EXP(VLOOKUP($B$6,$A$25:$E$52,4,FALSE)*LN(VLOOKUP($H134,P_Hard!$A$5:$Y$204,3*($C$8-1)+3,FALSE)/1000)+VLOOKUP($B$6,$A$25:$E$52,5,FALSE)),VLOOKUP($B$6,$A$25:$E$52,IF($B$8=$A$22,3,2),FALSE))) -> 
H135: 111 | I135: =VLOOKUP($H135,P_All!$A$5:$Y$204,3*($C$8-1)+2) -> 6688.1 | J135: =VLOOKUP($H135,P_All!$A$5:$Y$204,3*($C$8-1)+3) -> 9154.5 | K135: =VLOOKUP($H135,P_All!$A$5:$Y$204,3*($C$8-1)+4) -> 15722 | L135: =VLOOKUP($H135,NA_All!$A$5:$Y$204,3*($C$8-1)+2) -> 7758.6 | M135: =VLOOKUP($H135,NA_All!$A$5:$Y$204,3*($C$8-1)+3) -> 13227 | N135: =VLOOKUP($H135,NA_All!$A$5:$Y$204,3*($C$8-1)+4) -> 19426 | O135: =IF(ISNA(VLOOKUP($B$6,$A$25:$E$52,IF($B$8=$A$22,3,2))),EXP(VLOOKUP($B$6,$A$25:$E$52,4)*LN(VLOOKUP($H135,P_Hard!$A$5:$Y$204,3*($C$8-1)+2)/1000)+VLOOKUP($B$6,$A$25:$E$52,5)),NA()) ->  | Q135: =IF(ISNA(VLOOKUP($B$6,$A$25:$E$52,IF($B$8=$A$22,3,2))),EXP(VLOOKUP($B$6,$A$25:$E$52,4)*LN(VLOOKUP($H135,P_Hard!$A$5:$Y$204,3*($C$8-1)+4)/1000)+VLOOKUP($B$6,$A$25:$E$52,5)),NA()) ->  | S135: 9.166666667 | T135: =VLOOKUP($S135,P_All!$AA$5:$AY$245,3*($C$8-1)+2) -> 13405 | U135: =VLOOKUP($S135,P_All!$AA$5:$AY$245,3*($C$8-1)+3) -> 21816 | V135: =VLOOKUP($S135,P_All!$AA$5:$AY$245,3*($C$8-1)+4) -> 23720 | W135: =VLOOKUP($S135,NA_All!$AA$5:$AY$245,3*($C$8-1)+2) -> 7888.7 | X135: =VLOOKUP($S135,NA_All!$AA$5:$AY$245,3*($C$8-1)+3) -> 14465 | Y135: =VLOOKUP($S135,NA_All!$AA$5:$AY$245,3*($C$8-1)+4) -> 17003 | Z135: =IF(AND($B$8=$A$20,$B$6=$A$48),$B$54,IF(ISNA(VLOOKUP($B$6,$A$25:$E$52,IF($B$8=$A$22,3,2),FALSE)),EXP(VLOOKUP($B$6,$A$25:$E$52,4,FALSE)*LN(VLOOKUP($H135,P_Hard!$A$5:$Y$204,3*($C$8-1)+3,FALSE)/1000)+VLOOKUP($B$6,$A$25:$E$52,5,FALSE)),VLOOKUP($B$6,$A$25:$E$52,IF($B$8=$A$22,3,2),FALSE))) -> 
H136: 112 | I136: =VLOOKUP($H136,P_All!$A$5:$Y$204,3*($C$8-1)+2) -> 7121.8 | J136: =VLOOKUP($H136,P_All!$A$5:$Y$204,3*($C$8-1)+3) -> 9108.7 | K136: =VLOOKUP($H136,P_All!$A$5:$Y$204,3*($C$8-1)+4) -> 16238 | L136: =VLOOKUP($H136,NA_All!$A$5:$Y$204,3*($C$8-1)+2) -> 8391.2 | M136: =VLOOKUP($H136,NA_All!$A$5:$Y$204,3*($C$8-1)+3) -> 13425 | N136: =VLOOKUP($H136,NA_All!$A$5:$Y$204,3*($C$8-1)+4) -> 19069 | O136: =IF(ISNA(VLOOKUP($B$6,$A$25:$E$52,IF($B$8=$A$22,3,2))),EXP(VLOOKUP($B$6,$A$25:$E$52,4)*LN(VLOOKUP($H136,P_Hard!$A$5:$Y$204,3*($C$8-1)+2)/1000)+VLOOKUP($B$6,$A$25:$E$52,5)),NA()) ->  | Q136: =IF(ISNA(VLOOKUP($B$6,$A$25:$E$52,IF($B$8=$A$22,3,2))),EXP(VLOOKUP($B$6,$A$25:$E$52,4)*LN(VLOOKUP($H136,P_Hard!$A$5:$Y$204,3*($C$8-1)+4)/1000)+VLOOKUP($B$6,$A$25:$E$52,5)),NA()) ->  | S136: 9.25 | T136: =VLOOKUP($S136,P_All!$AA$5:$AY$245,3*($C$8-1)+2) -> 6581.6 | U136: =VLOOKUP($S136,P_All!$AA$5:$AY$245,3*($C$8-1)+3) -> 18204 | V136: =VLOOKUP($S136,P_All!$AA$5:$AY$245,3*($C$8-1)+4) -> 23931 | W136: =VLOOKUP($S136,NA_All!$AA$5:$AY$245,3*($C$8-1)+2) -> 3502.5 | X136: =VLOOKUP($S136,NA_All!$AA$5:$AY$245,3*($C$8-1)+3) -> 12892 | Y136: =VLOOKUP($S136,NA_All!$AA$5:$AY$245,3*($C$8-1)+4) -> 17618 | Z136: =IF(AND($B$8=$A$20,$B$6=$A$48),$B$54,IF(ISNA(VLOOKUP($B$6,$A$25:$E$52,IF($B$8=$A$22,3,2),FALSE)),EXP(VLOOKUP($B$6,$A$25:$E$52,4,FALSE)*LN(VLOOKUP($H136,P_Hard!$A$5:$Y$204,3*($C$8-1)+3,FALSE)/1000)+VLOOKUP($B$6,$A$25:$E$52,5,FALSE)),VLOOKUP($B$6,$A$25:$E$52,IF($B$8=$A$22,3,2),FALSE))) -> 
H137: 113 | I137: =VLOOKUP($H137,P_All!$A$5:$Y$204,3*($C$8-1)+2) -> 7097.2 | J137: =VLOOKUP($H137,P_All!$A$5:$Y$204,3*($C$8-1)+3) -> 9154.8 | K137: =VLOOKUP($H137,P_All!$A$5:$Y$204,3*($C$8-1)+4) -> 16601 | L137: =VLOOKUP($H137,NA_All!$A$5:$Y$204,3*($C$8-1)+2) -> 8283.8 | M137: =VLOOKUP($H137,NA_All!$A$5:$Y$204,3*($C$8-1)+3) -> 13604 | N137: =VLOOKUP($H137,NA_All!$A$5:$Y$204,3*($C$8-1)+4) -> 19196 | O137: =IF(ISNA(VLOOKUP($B$6,$A$25:$E$52,IF($B$8=$A$22,3,2))),EXP(VLOOKUP($B$6,$A$25:$E$52,4)*LN(VLOOKUP($H137,P_Hard!$A$5:$Y$204,3*($C$8-1)+2)/1000)+VLOOKUP($B$6,$A$25:$E$52,5)),NA()) ->  | Q137: =IF(ISNA(VLOOKUP($B$6,$A$25:$E$52,IF($B$8=$A$22,3,2))),EXP(VLOOKUP($B$6,$A$25:$E$52,4)*LN(VLOOKUP($H137,P_Hard!$A$5:$Y$204,3*($C$8-1)+4)/1000)+VLOOKUP($B$6,$A$25:$E$52,5)),NA()) ->  | S137: 9.333333333 | T137: =VLOOKUP($S137,P_All!$AA$5:$AY$245,3*($C$8-1)+2) -> 2906.2 | U137: =VLOOKUP($S137,P_All!$AA$5:$AY$245,3*($C$8-1)+3) -> 7123.2 | V137: =VLOOKUP($S137,P_All!$AA$5:$AY$245,3*($C$8-1)+4) -> 16228 | W137: =VLOOKUP($S137,NA_All!$AA$5:$AY$245,3*($C$8-1)+2) -> 1383.1 | X137: =VLOOKUP($S137,NA_All!$AA$5:$AY$245,3*($C$8-1)+3) -> 4732.7 | Y137: =VLOOKUP($S137,NA_All!$AA$5:$AY$245,3*($C$8-1)+4) -> 18649 | Z137: =IF(AND($B$8=$A$20,$B$6=$A$48),$B$54,IF(ISNA(VLOOKUP($B$6,$A$25:$E$52,IF($B$8=$A$22,3,2),FALSE)),EXP(VLOOKUP($B$6,$A$25:$E$52,4,FALSE)*LN(VLOOKUP($H137,P_Hard!$A$5:$Y$204,3*($C$8-1)+3,FALSE)/1000)+VLOOKUP($B$6,$A$25:$E$52,5,FALSE)),VLOOKUP($B$6,$A$25:$E$52,IF($B$8=$A$22,3,2),FALSE))) -> 
H138: 114 | I138: =VLOOKUP($H138,P_All!$A$5:$Y$204,3*($C$8-1)+2) -> 6707.7 | J138: =VLOOKUP($H138,P_All!$A$5:$Y$204,3*($C$8-1)+3) -> 9172.2 | K138: =VLOOKUP($H138,P_All!$A$5:$Y$204,3*($C$8-1)+4) -> 15881 | L138: =VLOOKUP($H138,NA_All!$A$5:$Y$204,3*($C$8-1)+2) -> 7746.3 | M138: =VLOOKUP($H138,NA_All!$A$5:$Y$204,3*($C$8-1)+3) -> 13459 | N138: =VLOOKUP($H138,NA_All!$A$5:$Y$204,3*($C$8-1)+4) -> 19125 | O138: =IF(ISNA(VLOOKUP($B$6,$A$25:$E$52,IF($B$8=$A$22,3,2))),EXP(VLOOKUP($B$6,$A$25:$E$52,4)*LN(VLOOKUP($H138,P_Hard!$A$5:$Y$204,3*($C$8-1)+2)/1000)+VLOOKUP($B$6,$A$25:$E$52,5)),NA()) ->  | Q138: =IF(ISNA(VLOOKUP($B$6,$A$25:$E$52,IF($B$8=$A$22,3,2))),EXP(VLOOKUP($B$6,$A$25:$E$52,4)*LN(VLOOKUP($H138,P_Hard!$A$5:$Y$204,3*($C$8-1)+4)/1000)+VLOOKUP($B$6,$A$25:$E$52,5)),NA()) ->  | S138: 9.416666667 | T138: =VLOOKUP($S138,P_All!$AA$5:$AY$245,3*($C$8-1)+2) -> 2753.5 | U138: =VLOOKUP($S138,P_All!$AA$5:$AY$245,3*($C$8-1)+3) -> 6931.7 | V138: =VLOOKUP($S138,P_All!$AA$5:$AY$245,3*($C$8-1)+4) -> 15479 | W138: =VLOOKUP($S138,NA_All!$AA$5:$AY$245,3*($C$8-1)+2) -> 1245.5 | X138: =VLOOKUP($S138,NA_All!$AA$5:$AY$245,3*($C$8-1)+3) -> 4305.4 | Y138: =VLOOKUP($S138,NA_All!$AA$5:$AY$245,3*($C$8-1)+4) -> 19156 | Z138: =IF(AND($B$8=$A$20,$B$6=$A$48),$B$54,IF(ISNA(VLOOKUP($B$6,$A$25:$E$52,IF($B$8=$A$22,3,2),FALSE)),EXP(VLOOKUP($B$6,$A$25:$E$52,4,FALSE)*LN(VLOOKUP($H138,P_Hard!$A$5:$Y$204,3*($C$8-1)+3,FALSE)/1000)+VLOOKUP($B$6,$A$25:$E$52,5,FALSE)),VLOOKUP($B$6,$A$25:$E$52,IF($B$8=$A$22,3,2),FALSE))) -> 
H139: 115 | I139: =VLOOKUP($H139,P_All!$A$5:$Y$204,3*($C$8-1)+2) -> 7267.3 | J139: =VLOOKUP($H139,P_All!$A$5:$Y$204,3*($C$8-1)+3) -> 9137.6 | K139: =VLOOKUP($H139,P_All!$A$5:$Y$204,3*($C$8-1)+4) -> 16202 | L139: =VLOOKUP($H139,NA_All!$A$5:$Y$204,3*($C$8-1)+2) -> 8667.4 | M139: =VLOOKUP($H139,NA_All!$A$5:$Y$204,3*($C$8-1)+3) -> 13564 | N139: =VLOOKUP($H139,NA_All!$A$5:$Y$204,3*($C$8-1)+4) -> 18983 | O139: =IF(ISNA(VLOOKUP($B$6,$A$25:$E$52,IF($B$8=$A$22,3,2))),EXP(VLOOKUP($B$6,$A$25:$E$52,4)*LN(VLOOKUP($H139,P_Hard!$A$5:$Y$204,3*($C$8-1)+2)/1000)+VLOOKUP($B$6,$A$25:$E$52,5)),NA()) ->  | Q139: =IF(ISNA(VLOOKUP($B$6,$A$25:$E$52,IF($B$8=$A$22,3,2))),EXP(VLOOKUP($B$6,$A$25:$E$52,4)*LN(VLOOKUP($H139,P_Hard!$A$5:$Y$204,3*($C$8-1)+4)/1000)+VLOOKUP($B$6,$A$25:$E$52,5)),NA()) ->  | S139: 9.5 | T139: =VLOOKUP($S139,P_All!$AA$5:$AY$245,3*($C$8-1)+2) -> 3673.6 | U139: =VLOOKUP($S139,P_All!$AA$5:$AY$245,3*($C$8-1)+3) -> 8525 | V139: =VLOOKUP($S139,P_All!$AA$5:$AY$245,3*($C$8-1)+4) -> 16467 | W139: =VLOOKUP($S139,NA_All!$AA$5:$AY$245,3*($C$8-1)+2) -> 1788.4 | X139: =VLOOKUP($S139,NA_All!$AA$5:$AY$245,3*($C$8-1)+3) -> 5591.2 | Y139: =VLOOKUP($S139,NA_All!$AA$5:$AY$245,3*($C$8-1)+4) -> 18071 | Z139: =IF(AND($B$8=$A$20,$B$6=$A$48),$B$54,IF(ISNA(VLOOKUP($B$6,$A$25:$E$52,IF($B$8=$A$22,3,2),FALSE)),EXP(VLOOKUP($B$6,$A$25:$E$52,4,FALSE)*LN(VLOOKUP($H139,P_Hard!$A$5:$Y$204,3*($C$8-1)+3,FALSE)/1000)+VLOOKUP($B$6,$A$25:$E$52,5,FALSE)),VLOOKUP($B$6,$A$25:$E$52,IF($B$8=$A$22,3,2),FALSE))) -> 
H140: 116 | I140: =VLOOKUP($H140,P_All!$A$5:$Y$204,3*($C$8-1)+2) -> 7055.1 | J140: =VLOOKUP($H140,P_All!$A$5:$Y$204,3*($C$8-1)+3) -> 9133.3 | K140: =VLOOKUP($H140,P_All!$A$5:$Y$204,3*($C$8-1)+4) -> 15494 | L140: =VLOOKUP($H140,NA_All!$A$5:$Y$204,3*($C$8-1)+2) -> 8279.6 | M140: =VLOOKUP($H140,NA_All!$A$5:$Y$204,3*($C$8-1)+3) -> 13516 | N140: =VLOOKUP($H140,NA_All!$A$5:$Y$204,3*($C$8-1)+4) -> 19186 | O140: =IF(ISNA(VLOOKUP($B$6,$A$25:$E$52,IF($B$8=$A$22,3,2))),EXP(VLOOKUP($B$6,$A$25:$E$52,4)*LN(VLOOKUP($H140,P_Hard!$A$5:$Y$204,3*($C$8-1)+2)/1000)+VLOOKUP($B$6,$A$25:$E$52,5)),NA()) ->  | Q140: =IF(ISNA(VLOOKUP($B$6,$A$25:$E$52,IF($B$8=$A$22,3,2))),EXP(VLOOKUP($B$6,$A$25:$E$52,4)*LN(VLOOKUP($H140,P_Hard!$A$5:$Y$204,3*($C$8-1)+4)/1000)+VLOOKUP($B$6,$A$25:$E$52,5)),NA()) ->  | S140: 9.583333333 | T140: =VLOOKUP($S140,P_All!$AA$5:$AY$245,3*($C$8-1)+2) -> 4393.3 | U140: =VLOOKUP($S140,P_All!$AA$5:$AY$245,3*($C$8-1)+3) -> 10629 | V140: =VLOOKUP($S140,P_All!$AA$5:$AY$245,3*($C$8-1)+4) -> 20012 | W140: =VLOOKUP($S140,NA_All!$AA$5:$AY$245,3*($C$8-1)+2) -> 2177.3 | X140: =VLOOKUP($S140,NA_All!$AA$5:$AY$245,3*($C$8-1)+3) -> 8003.9 | Y140: =VLOOKUP($S140,NA_All!$AA$5:$AY$245,3*($C$8-1)+4) -> 17265 | Z140: =IF(AND($B$8=$A$20,$B$6=$A$48),$B$54,IF(ISNA(VLOOKUP($B$6,$A$25:$E$52,IF($B$8=$A$22,3,2),FALSE)),EXP(VLOOKUP($B$6,$A$25:$E$52,4,FALSE)*LN(VLOOKUP($H140,P_Hard!$A$5:$Y$204,3*($C$8-1)+3,FALSE)/1000)+VLOOKUP($B$6,$A$25:$E$52,5,FALSE)),VLOOKUP($B$6,$A$25:$E$52,IF($B$8=$A$22,3,2),FALSE))) -> 
H141: 117 | I141: =VLOOKUP($H141,P_All!$A$5:$Y$204,3*($C$8-1)+2) -> 7320.2 | J141: =VLOOKUP($H141,P_All!$A$5:$Y$204,3*($C$8-1)+3) -> 9178.4 | K141: =VLOOKUP($H141,P_All!$A$5:$Y$204,3*($C$8-1)+4) -> 15497 | L141: =VLOOKUP($H141,NA_All!$A$5:$Y$204,3*($C$8-1)+2) -> 9100.8 | M141: =VLOOKUP($H141,NA_All!$A$5:$Y$204,3*($C$8-1)+3) -> 13640 | N141: =VLOOKUP($H141,NA_All!$A$5:$Y$204,3*($C$8-1)+4) -> 19142 | O141: =IF(ISNA(VLOOKUP($B$6,$A$25:$E$52,IF($B$8=$A$22,3,2))),EXP(VLOOKUP($B$6,$A$25:$E$52,4)*LN(VLOOKUP($H141,P_Hard!$A$5:$Y$204,3*($C$8-1)+2)/1000)+VLOOKUP($B$6,$A$25:$E$52,5)),NA()) ->  | Q141: =IF(ISNA(VLOOKUP($B$6,$A$25:$E$52,IF($B$8=$A$22,3,2))),EXP(VLOOKUP($B$6,$A$25:$E$52,4)*LN(VLOOKUP($H141,P_Hard!$A$5:$Y$204,3*($C$8-1)+4)/1000)+VLOOKUP($B$6,$A$25:$E$52,5)),NA()) ->  | S141: 9.666666667 | T141: =VLOOKUP($S141,P_All!$AA$5:$AY$245,3*($C$8-1)+2) -> 3343.4 | U141: =VLOOKUP($S141,P_All!$AA$5:$AY$245,3*($C$8-1)+3) -> 9628.3 | V141: =VLOOKUP($S141,P_All!$AA$5:$AY$245,3*($C$8-1)+4) -> 18296 | W141: =VLOOKUP($S141,NA_All!$AA$5:$AY$245,3*($C$8-1)+2) -> 1968.3 | X141: =VLOOKUP($S141,NA_All!$AA$5:$AY$245,3*($C$8-1)+3) -> 6821.6 | Y141: =VLOOKUP($S141,NA_All!$AA$5:$AY$245,3*($C$8-1)+4) -> 18301 | Z141: =IF(AND($B$8=$A$20,$B$6=$A$48),$B$54,IF(ISNA(VLOOKUP($B$6,$A$25:$E$52,IF($B$8=$A$22,3,2),FALSE)),EXP(VLOOKUP($B$6,$A$25:$E$52,4,FALSE)*LN(VLOOKUP($H141,P_Hard!$A$5:$Y$204,3*($C$8-1)+3,FALSE)/1000)+VLOOKUP($B$6,$A$25:$E$52,5,FALSE)),VLOOKUP($B$6,$A$25:$E$52,IF($B$8=$A$22,3,2),FALSE))) -> 
H142: 118 | I142: =VLOOKUP($H142,P_All!$A$5:$Y$204,3*($C$8-1)+2) -> 6803.4 | J142: =VLOOKUP($H142,P_All!$A$5:$Y$204,3*($C$8-1)+3) -> 9110.8 | K142: =VLOOKUP($H142,P_All!$A$5:$Y$204,3*($C$8-1)+4) -> 14556 | L142: =VLOOKUP($H142,NA_All!$A$5:$Y$204,3*($C$8-1)+2) -> 8062.7 | M142: =VLOOKUP($H142,NA_All!$A$5:$Y$204,3*($C$8-1)+3) -> 13351 | N142: =VLOOKUP($H142,NA_All!$A$5:$Y$204,3*($C$8-1)+4) -> 18816 | O142: =IF(ISNA(VLOOKUP($B$6,$A$25:$E$52,IF($B$8=$A$22,3,2))),EXP(VLOOKUP($B$6,$A$25:$E$52,4)*LN(VLOOKUP($H142,P_Hard!$A$5:$Y$204,3*($C$8-1)+2)/1000)+VLOOKUP($B$6,$A$25:$E$52,5)),NA()) ->  | Q142: =IF(ISNA(VLOOKUP($B$6,$A$25:$E$52,IF($B$8=$A$22,3,2))),EXP(VLOOKUP($B$6,$A$25:$E$52,4)*LN(VLOOKUP($H142,P_Hard!$A$5:$Y$204,3*($C$8-1)+4)/1000)+VLOOKUP($B$6,$A$25:$E$52,5)),NA()) ->  | S142: 9.75 | T142: =VLOOKUP($S142,P_All!$AA$5:$AY$245,3*($C$8-1)+2) -> 4111.8 | U142: =VLOOKUP($S142,P_All!$AA$5:$AY$245,3*($C$8-1)+3) -> 9045.3 | V142: =VLOOKUP($S142,P_All!$AA$5:$AY$245,3*($C$8-1)+4) -> 17758 | W142: =VLOOKUP($S142,NA_All!$AA$5:$AY$245,3*($C$8-1)+2) -> 1979.7 | X142: =VLOOKUP($S142,NA_All!$AA$5:$AY$245,3*($C$8-1)+3) -> 6069.2 | Y142: =VLOOKUP($S142,NA_All!$AA$5:$AY$245,3*($C$8-1)+4) -> 18016 | Z142: =IF(AND($B$8=$A$20,$B$6=$A$48),$B$54,IF(ISNA(VLOOKUP($B$6,$A$25:$E$52,IF($B$8=$A$22,3,2),FALSE)),EXP(VLOOKUP($B$6,$A$25:$E$52,4,FALSE)*LN(VLOOKUP($H142,P_Hard!$A$5:$Y$204,3*($C$8-1)+3,FALSE)/1000)+VLOOKUP($B$6,$A$25:$E$52,5,FALSE)),VLOOKUP($B$6,$A$25:$E$52,IF($B$8=$A$22,3,2),FALSE))) -> 
H143: 119 | I143: =VLOOKUP($H143,P_All!$A$5:$Y$204,3*($C$8-1)+2) -> 7044.3 | J143: =VLOOKUP($H143,P_All!$A$5:$Y$204,3*($C$8-1)+3) -> 9167.3 | K143: =VLOOKUP($H143,P_All!$A$5:$Y$204,3*($C$8-1)+4) -> 17364 | L143: =VLOOKUP($H143,NA_All!$A$5:$Y$204,3*($C$8-1)+2) -> 7875.8 | M143: =VLOOKUP($H143,NA_All!$A$5:$Y$204,3*($C$8-1)+3) -> 13595 | N143: =VLOOKUP($H143,NA_All!$A$5:$Y$204,3*($C$8-1)+4) -> 19322 | O143: =IF(ISNA(VLOOKUP($B$6,$A$25:$E$52,IF($B$8=$A$22,3,2))),EXP(VLOOKUP($B$6,$A$25:$E$52,4)*LN(VLOOKUP($H143,P_Hard!$A$5:$Y$204,3*($C$8-1)+2)/1000)+VLOOKUP($B$6,$A$25:$E$52,5)),NA()) ->  | Q143: =IF(ISNA(VLOOKUP($B$6,$A$25:$E$52,IF($B$8=$A$22,3,2))),EXP(VLOOKUP($B$6,$A$25:$E$52,4)*LN(VLOOKUP($H143,P_Hard!$A$5:$Y$204,3*($C$8-1)+4)/1000)+VLOOKUP($B$6,$A$25:$E$52,5)),NA()) ->  | S143: 9.833333333 | T143: =VLOOKUP($S143,P_All!$AA$5:$AY$245,3*($C$8-1)+2) -> 4057.1 | U143: =VLOOKUP($S143,P_All!$AA$5:$AY$245,3*($C$8-1)+3) -> 8740.1 | V143: =VLOOKUP($S143,P_All!$AA$5:$AY$245,3*($C$8-1)+4) -> 16398 | W143: =VLOOKUP($S143,NA_All!$AA$5:$AY$245,3*($C$8-1)+2) -> 1962.3 | X143: =VLOOKUP($S143,NA_All!$AA$5:$AY$245,3*($C$8-1)+3) -> 5430.6 | Y143: =VLOOKUP($S143,NA_All!$AA$5:$AY$245,3*($C$8-1)+4) -> 18680 | Z143: =IF(AND($B$8=$A$20,$B$6=$A$48),$B$54,IF(ISNA(VLOOKUP($B$6,$A$25:$E$52,IF($B$8=$A$22,3,2),FALSE)),EXP(VLOOKUP($B$6,$A$25:$E$52,4,FALSE)*LN(VLOOKUP($H143,P_Hard!$A$5:$Y$204,3*($C$8-1)+3,FALSE)/1000)+VLOOKUP($B$6,$A$25:$E$52,5,FALSE)),VLOOKUP($B$6,$A$25:$E$52,IF($B$8=$A$22,3,2),FALSE))) -> 
H144: 120 | I144: =VLOOKUP($H144,P_All!$A$5:$Y$204,3*($C$8-1)+2) -> 7444.6 | J144: =VLOOKUP($H144,P_All!$A$5:$Y$204,3*($C$8-1)+3) -> 9157.2 | K144: =VLOOKUP($H144,P_All!$A$5:$Y$204,3*($C$8-1)+4) -> 16569 | L144: =VLOOKUP($H144,NA_All!$A$5:$Y$204,3*($C$8-1)+2) -> 8487.9 | M144: =VLOOKUP($H144,NA_All!$A$5:$Y$204,3*($C$8-1)+3) -> 13421 | N144: =VLOOKUP($H144,NA_All!$A$5:$Y$204,3*($C$8-1)+4) -> 18749 | O144: =IF(ISNA(VLOOKUP($B$6,$A$25:$E$52,IF($B$8=$A$22,3,2))),EXP(VLOOKUP($B$6,$A$25:$E$52,4)*LN(VLOOKUP($H144,P_Hard!$A$5:$Y$204,3*($C$8-1)+2)/1000)+VLOOKUP($B$6,$A$25:$E$52,5)),NA()) ->  | Q144: =IF(ISNA(VLOOKUP($B$6,$A$25:$E$52,IF($B$8=$A$22,3,2))),EXP(VLOOKUP($B$6,$A$25:$E$52,4)*LN(VLOOKUP($H144,P_Hard!$A$5:$Y$204,3*($C$8-1)+4)/1000)+VLOOKUP($B$6,$A$25:$E$52,5)),NA()) ->  | S144: 9.916666667 | T144: =VLOOKUP($S144,P_All!$AA$5:$AY$245,3*($C$8-1)+2) -> 5316.9 | U144: =VLOOKUP($S144,P_All!$AA$5:$AY$245,3*($C$8-1)+3) -> 9958.3 | V144: =VLOOKUP($S144,P_All!$AA$5:$AY$245,3*($C$8-1)+4) -> 16598 | W144: =VLOOKUP($S144,NA_All!$AA$5:$AY$245,3*($C$8-1)+2) -> 2440.1 | X144: =VLOOKUP($S144,NA_All!$AA$5:$AY$245,3*($C$8-1)+3) -> 6301.2 | Y144: =VLOOKUP($S144,NA_All!$AA$5:$AY$245,3*($C$8-1)+4) -> 17867 | Z144: =IF(AND($B$8=$A$20,$B$6=$A$48),$B$54,IF(ISNA(VLOOKUP($B$6,$A$25:$E$52,IF($B$8=$A$22,3,2),FALSE)),EXP(VLOOKUP($B$6,$A$25:$E$52,4,FALSE)*LN(VLOOKUP($H144,P_Hard!$A$5:$Y$204,3*($C$8-1)+3,FALSE)/1000)+VLOOKUP($B$6,$A$25:$E$52,5,FALSE)),VLOOKUP($B$6,$A$25:$E$52,IF($B$8=$A$22,3,2),FALSE))) -> 
H145: 121 | I145: =VLOOKUP($H145,P_All!$A$5:$Y$204,3*($C$8-1)+2) -> 6990.1 | J145: =VLOOKUP($H145,P_All!$A$5:$Y$204,3*($C$8-1)+3) -> 9126.1 | K145: =VLOOKUP($H145,P_All!$A$5:$Y$204,3*($C$8-1)+4) -> 16041 | L145: =VLOOKUP($H145,NA_All!$A$5:$Y$204,3*($C$8-1)+2) -> 8491.8 | M145: =VLOOKUP($H145,NA_All!$A$5:$Y$204,3*($C$8-1)+3) -> 13516 | N145: =VLOOKUP($H145,NA_All!$A$5:$Y$204,3*($C$8-1)+4) -> 19124 | O145: =IF(ISNA(VLOOKUP($B$6,$A$25:$E$52,IF($B$8=$A$22,3,2))),EXP(VLOOKUP($B$6,$A$25:$E$52,4)*LN(VLOOKUP($H145,P_Hard!$A$5:$Y$204,3*($C$8-1)+2)/1000)+VLOOKUP($B$6,$A$25:$E$52,5)),NA()) ->  | Q145: =IF(ISNA(VLOOKUP($B$6,$A$25:$E$52,IF($B$8=$A$22,3,2))),EXP(VLOOKUP($B$6,$A$25:$E$52,4)*LN(VLOOKUP($H145,P_Hard!$A$5:$Y$204,3*($C$8-1)+4)/1000)+VLOOKUP($B$6,$A$25:$E$52,5)),NA()) ->  | S145: 10 | T145: =VLOOKUP($S145,P_All!$AA$5:$AY$245,3*($C$8-1)+2) -> 8542.9 | U145: =VLOOKUP($S145,P_All!$AA$5:$AY$245,3*($C$8-1)+3) -> 13836 | V145: =VLOOKUP($S145,P_All!$AA$5:$AY$245,3*($C$8-1)+4) -> 17760 | W145: =VLOOKUP($S145,NA_All!$AA$5:$AY$245,3*($C$8-1)+2) -> 4742.1 | X145: =VLOOKUP($S145,NA_All!$AA$5:$AY$245,3*($C$8-1)+3) -> 8988.4 | Y145: =VLOOKUP($S145,NA_All!$AA$5:$AY$245,3*($C$8-1)+4) -> 16866 | Z145: =IF(AND($B$8=$A$20,$B$6=$A$48),$B$54,IF(ISNA(VLOOKUP($B$6,$A$25:$E$52,IF($B$8=$A$22,3,2),FALSE)),EXP(VLOOKUP($B$6,$A$25:$E$52,4,FALSE)*LN(VLOOKUP($H145,P_Hard!$A$5:$Y$204,3*($C$8-1)+3,FALSE)/1000)+VLOOKUP($B$6,$A$25:$E$52,5,FALSE)),VLOOKUP($B$6,$A$25:$E$52,IF($B$8=$A$22,3,2),FALSE))) -> 
H146: 122 | I146: =VLOOKUP($H146,P_All!$A$5:$Y$204,3*($C$8-1)+2) -> 6946.7 | J146: =VLOOKUP($H146,P_All!$A$5:$Y$204,3*($C$8-1)+3) -> 9100.4 | K146: =VLOOKUP($H146,P_All!$A$5:$Y$204,3*($C$8-1)+4) -> 15302 | L146: =VLOOKUP($H146,NA_All!$A$5:$Y$204,3*($C$8-1)+2) -> 8476.6 | M146: =VLOOKUP($H146,NA_All!$A$5:$Y$204,3*($C$8-1)+3) -> 13533 | N146: =VLOOKUP($H146,NA_All!$A$5:$Y$204,3*($C$8-1)+4) -> 18645 | O146: =IF(ISNA(VLOOKUP($B$6,$A$25:$E$52,IF($B$8=$A$22,3,2))),EXP(VLOOKUP($B$6,$A$25:$E$52,4)*LN(VLOOKUP($H146,P_Hard!$A$5:$Y$204,3*($C$8-1)+2)/1000)+VLOOKUP($B$6,$A$25:$E$52,5)),NA()) ->  | Q146: =IF(ISNA(VLOOKUP($B$6,$A$25:$E$52,IF($B$8=$A$22,3,2))),EXP(VLOOKUP($B$6,$A$25:$E$52,4)*LN(VLOOKUP($H146,P_Hard!$A$5:$Y$204,3*($C$8-1)+4)/1000)+VLOOKUP($B$6,$A$25:$E$52,5)),NA()) ->  | S146: 10.08333333 | T146: =VLOOKUP($S146,P_All!$AA$5:$AY$245,3*($C$8-1)+2) -> 12350 | U146: =VLOOKUP($S146,P_All!$AA$5:$AY$245,3*($C$8-1)+3) -> 17164 | V146: =VLOOKUP($S146,P_All!$AA$5:$AY$245,3*($C$8-1)+4) -> 21687 | W146: =VLOOKUP($S146,NA_All!$AA$5:$AY$245,3*($C$8-1)+2) -> 7318.7 | X146: =VLOOKUP($S146,NA_All!$AA$5:$AY$245,3*($C$8-1)+3) -> 11950 | Y146: =VLOOKUP($S146,NA_All!$AA$5:$AY$245,3*($C$8-1)+4) -> 15700 | Z146: =IF(AND($B$8=$A$20,$B$6=$A$48),$B$54,IF(ISNA(VLOOKUP($B$6,$A$25:$E$52,IF($B$8=$A$22,3,2),FALSE)),EXP(VLOOKUP($B$6,$A$25:$E$52,4,FALSE)*LN(VLOOKUP($H146,P_Hard!$A$5:$Y$204,3*($C$8-1)+3,FALSE)/1000)+VLOOKUP($B$6,$A$25:$E$52,5,FALSE)),VLOOKUP($B$6,$A$25:$E$52,IF($B$8=$A$22,3,2),FALSE))) -> 
H147: 123 | I147: =VLOOKUP($H147,P_All!$A$5:$Y$204,3*($C$8-1)+2) -> 6607.9 | J147: =VLOOKUP($H147,P_All!$A$5:$Y$204,3*($C$8-1)+3) -> 9151.9 | K147: =VLOOKUP($H147,P_All!$A$5:$Y$204,3*($C$8-1)+4) -> 17134 | L147: =VLOOKUP($H147,NA_All!$A$5:$Y$204,3*($C$8-1)+2) -> 8057.2 | M147: =VLOOKUP($H147,NA_All!$A$5:$Y$204,3*($C$8-1)+3) -> 13585 | N147: =VLOOKUP($H147,NA_All!$A$5:$Y$204,3*($C$8-1)+4) -> 18718 | O147: =IF(ISNA(VLOOKUP($B$6,$A$25:$E$52,IF($B$8=$A$22,3,2))),EXP(VLOOKUP($B$6,$A$25:$E$52,4)*LN(VLOOKUP($H147,P_Hard!$A$5:$Y$204,3*($C$8-1)+2)/1000)+VLOOKUP($B$6,$A$25:$E$52,5)),NA()) ->  | Q147: =IF(ISNA(VLOOKUP($B$6,$A$25:$E$52,IF($B$8=$A$22,3,2))),EXP(VLOOKUP($B$6,$A$25:$E$52,4)*LN(VLOOKUP($H147,P_Hard!$A$5:$Y$204,3*($C$8-1)+4)/1000)+VLOOKUP($B$6,$A$25:$E$52,5)),NA()) ->  | S147: 10.16666667 | T147: =VLOOKUP($S147,P_All!$AA$5:$AY$245,3*($C$8-1)+2) -> 13472 | U147: =VLOOKUP($S147,P_All!$AA$5:$AY$245,3*($C$8-1)+3) -> 21756 | V147: =VLOOKUP($S147,P_All!$AA$5:$AY$245,3*($C$8-1)+4) -> 23775 | W147: =VLOOKUP($S147,NA_All!$AA$5:$AY$245,3*($C$8-1)+2) -> 8470.7 | X147: =VLOOKUP($S147,NA_All!$AA$5:$AY$245,3*($C$8-1)+3) -> 14362 | Y147: =VLOOKUP($S147,NA_All!$AA$5:$AY$245,3*($C$8-1)+4) -> 17013 | Z147: =IF(AND($B$8=$A$20,$B$6=$A$48),$B$54,IF(ISNA(VLOOKUP($B$6,$A$25:$E$52,IF($B$8=$A$22,3,2),FALSE)),EXP(VLOOKUP($B$6,$A$25:$E$52,4,FALSE)*LN(VLOOKUP($H147,P_Hard!$A$5:$Y$204,3*($C$8-1)+3,FALSE)/1000)+VLOOKUP($B$6,$A$25:$E$52,5,FALSE)),VLOOKUP($B$6,$A$25:$E$52,IF($B$8=$A$22,3,2),FALSE))) -> 
H148: 124 | I148: =VLOOKUP($H148,P_All!$A$5:$Y$204,3*($C$8-1)+2) -> 7066.8 | J148: =VLOOKUP($H148,P_All!$A$5:$Y$204,3*($C$8-1)+3) -> 9135.9 | K148: =VLOOKUP($H148,P_All!$A$5:$Y$204,3*($C$8-1)+4) -> 14795 | L148: =VLOOKUP($H148,NA_All!$A$5:$Y$204,3*($C$8-1)+2) -> 8559.9 | M148: =VLOOKUP($H148,NA_All!$A$5:$Y$204,3*($C$8-1)+3) -> 13260 | N148: =VLOOKUP($H148,NA_All!$A$5:$Y$204,3*($C$8-1)+4) -> 19176 | O148: =IF(ISNA(VLOOKUP($B$6,$A$25:$E$52,IF($B$8=$A$22,3,2))),EXP(VLOOKUP($B$6,$A$25:$E$52,4)*LN(VLOOKUP($H148,P_Hard!$A$5:$Y$204,3*($C$8-1)+2)/1000)+VLOOKUP($B$6,$A$25:$E$52,5)),NA()) ->  | Q148: =IF(ISNA(VLOOKUP($B$6,$A$25:$E$52,IF($B$8=$A$22,3,2))),EXP(VLOOKUP($B$6,$A$25:$E$52,4)*LN(VLOOKUP($H148,P_Hard!$A$5:$Y$204,3*($C$8-1)+4)/1000)+VLOOKUP($B$6,$A$25:$E$52,5)),NA()) ->  | S148: 10.25 | T148: =VLOOKUP($S148,P_All!$AA$5:$AY$245,3*($C$8-1)+2) -> 6694.3 | U148: =VLOOKUP($S148,P_All!$AA$5:$AY$245,3*($C$8-1)+3) -> 18364 | V148: =VLOOKUP($S148,P_All!$AA$5:$AY$245,3*($C$8-1)+4) -> 24139 | W148: =VLOOKUP($S148,NA_All!$AA$5:$AY$245,3*($C$8-1)+2) -> 4041.6 | X148: =VLOOKUP($S148,NA_All!$AA$5:$AY$245,3*($C$8-1)+3) -> 13516 | Y148: =VLOOKUP($S148,NA_All!$AA$5:$AY$245,3*($C$8-1)+4) -> 17526 | Z148: =IF(AND($B$8=$A$20,$B$6=$A$48),$B$54,IF(ISNA(VLOOKUP($B$6,$A$25:$E$52,IF($B$8=$A$22,3,2),FALSE)),EXP(VLOOKUP($B$6,$A$25:$E$52,4,FALSE)*LN(VLOOKUP($H148,P_Hard!$A$5:$Y$204,3*($C$8-1)+3,FALSE)/1000)+VLOOKUP($B$6,$A$25:$E$52,5,FALSE)),VLOOKUP($B$6,$A$25:$E$52,IF($B$8=$A$22,3,2),FALSE))) -> 
H149: 125 | I149: =VLOOKUP($H149,P_All!$A$5:$Y$204,3*($C$8-1)+2) -> 7216.7 | J149: =VLOOKUP($H149,P_All!$A$5:$Y$204,3*($C$8-1)+3) -> 9175.4 | K149: =VLOOKUP($H149,P_All!$A$5:$Y$204,3*($C$8-1)+4) -> 16534 | L149: =VLOOKUP($H149,NA_All!$A$5:$Y$204,3*($C$8-1)+2) -> 8449.3 | M149: =VLOOKUP($H149,NA_All!$A$5:$Y$204,3*($C$8-1)+3) -> 13631 | N149: =VLOOKUP($H149,NA_All!$A$5:$Y$204,3*($C$8-1)+4) -> 19218 | O149: =IF(ISNA(VLOOKUP($B$6,$A$25:$E$52,IF($B$8=$A$22,3,2))),EXP(VLOOKUP($B$6,$A$25:$E$52,4)*LN(VLOOKUP($H149,P_Hard!$A$5:$Y$204,3*($C$8-1)+2)/1000)+VLOOKUP($B$6,$A$25:$E$52,5)),NA()) ->  | Q149: =IF(ISNA(VLOOKUP($B$6,$A$25:$E$52,IF($B$8=$A$22,3,2))),EXP(VLOOKUP($B$6,$A$25:$E$52,4)*LN(VLOOKUP($H149,P_Hard!$A$5:$Y$204,3*($C$8-1)+4)/1000)+VLOOKUP($B$6,$A$25:$E$52,5)),NA()) ->  | S149: 10.33333333 | T149: =VLOOKUP($S149,P_All!$AA$5:$AY$245,3*($C$8-1)+2) -> 3119.3 | U149: =VLOOKUP($S149,P_All!$AA$5:$AY$245,3*($C$8-1)+3) -> 7154.2 | V149: =VLOOKUP($S149,P_All!$AA$5:$AY$245,3*($C$8-1)+4) -> 17683 | W149: =VLOOKUP($S149,NA_All!$AA$5:$AY$245,3*($C$8-1)+2) -> 1265.8 | X149: =VLOOKUP($S149,NA_All!$AA$5:$AY$245,3*($C$8-1)+3) -> 4687.5 | Y149: =VLOOKUP($S149,NA_All!$AA$5:$AY$245,3*($C$8-1)+4) -> 18527 | Z149: =IF(AND($B$8=$A$20,$B$6=$A$48),$B$54,IF(ISNA(VLOOKUP($B$6,$A$25:$E$52,IF($B$8=$A$22,3,2),FALSE)),EXP(VLOOKUP($B$6,$A$25:$E$52,4,FALSE)*LN(VLOOKUP($H149,P_Hard!$A$5:$Y$204,3*($C$8-1)+3,FALSE)/1000)+VLOOKUP($B$6,$A$25:$E$52,5,FALSE)),VLOOKUP($B$6,$A$25:$E$52,IF($B$8=$A$22,3,2),FALSE))) -> 
H150: 126 | I150: =VLOOKUP($H150,P_All!$A$5:$Y$204,3*($C$8-1)+2) -> 6979.2 | J150: =VLOOKUP($H150,P_All!$A$5:$Y$204,3*($C$8-1)+3) -> 9180.5 | K150: =VLOOKUP($H150,P_All!$A$5:$Y$204,3*($C$8-1)+4) -> 16662 | L150: =VLOOKUP($H150,NA_All!$A$5:$Y$204,3*($C$8-1)+2) -> 8063.2 | M150: =VLOOKUP($H150,NA_All!$A$5:$Y$204,3*($C$8-1)+3) -> 13335 | N150: =VLOOKUP($H150,NA_All!$A$5:$Y$204,3*($C$8-1)+4) -> 19092 | O150: =IF(ISNA(VLOOKUP($B$6,$A$25:$E$52,IF($B$8=$A$22,3,2))),EXP(VLOOKUP($B$6,$A$25:$E$52,4)*LN(VLOOKUP($H150,P_Hard!$A$5:$Y$204,3*($C$8-1)+2)/1000)+VLOOKUP($B$6,$A$25:$E$52,5)),NA()) ->  | Q150: =IF(ISNA(VLOOKUP($B$6,$A$25:$E$52,IF($B$8=$A$22,3,2))),EXP(VLOOKUP($B$6,$A$25:$E$52,4)*LN(VLOOKUP($H150,P_Hard!$A$5:$Y$204,3*($C$8-1)+4)/1000)+VLOOKUP($B$6,$A$25:$E$52,5)),NA()) ->  | S150: 10.41666667 | T150: =VLOOKUP($S150,P_All!$AA$5:$AY$245,3*($C$8-1)+2) -> 2981.1 | U150: =VLOOKUP($S150,P_All!$AA$5:$AY$245,3*($C$8-1)+3) -> 6919.3 | V150: =VLOOKUP($S150,P_All!$AA$5:$AY$245,3*($C$8-1)+4) -> 16523 | W150: =VLOOKUP($S150,NA_All!$AA$5:$AY$245,3*($C$8-1)+2) -> 1312.2 | X150: =VLOOKUP($S150,NA_All!$AA$5:$AY$245,3*($C$8-1)+3) -> 4482.1 | Y150: =VLOOKUP($S150,NA_All!$AA$5:$AY$245,3*($C$8-1)+4) -> 18554 | Z150: =IF(AND($B$8=$A$20,$B$6=$A$48),$B$54,IF(ISNA(VLOOKUP($B$6,$A$25:$E$52,IF($B$8=$A$22,3,2),FALSE)),EXP(VLOOKUP($B$6,$A$25:$E$52,4,FALSE)*LN(VLOOKUP($H150,P_Hard!$A$5:$Y$204,3*($C$8-1)+3,FALSE)/1000)+VLOOKUP($B$6,$A$25:$E$52,5,FALSE)),VLOOKUP($B$6,$A$25:$E$52,IF($B$8=$A$22,3,2),FALSE))) -> 
H151: 127 | I151: =VLOOKUP($H151,P_All!$A$5:$Y$204,3*($C$8-1)+2) -> 6892.7 | J151: =VLOOKUP($H151,P_All!$A$5:$Y$204,3*($C$8-1)+3) -> 9150.9 | K151: =VLOOKUP($H151,P_All!$A$5:$Y$204,3*($C$8-1)+4) -> 16459 | L151: =VLOOKUP($H151,NA_All!$A$5:$Y$204,3*($C$8-1)+2) -> 8217 | M151: =VLOOKUP($H151,NA_All!$A$5:$Y$204,3*($C$8-1)+3) -> 13374 | N151: =VLOOKUP($H151,NA_All!$A$5:$Y$204,3*($C$8-1)+4) -> 18708 | O151: =IF(ISNA(VLOOKUP($B$6,$A$25:$E$52,IF($B$8=$A$22,3,2))),EXP(VLOOKUP($B$6,$A$25:$E$52,4)*LN(VLOOKUP($H151,P_Hard!$A$5:$Y$204,3*($C$8-1)+2)/1000)+VLOOKUP($B$6,$A$25:$E$52,5)),NA()) ->  | Q151: =IF(ISNA(VLOOKUP($B$6,$A$25:$E$52,IF($B$8=$A$22,3,2))),EXP(VLOOKUP($B$6,$A$25:$E$52,4)*LN(VLOOKUP($H151,P_Hard!$A$5:$Y$204,3*($C$8-1)+4)/1000)+VLOOKUP($B$6,$A$25:$E$52,5)),NA()) ->  | S151: 10.5 | T151: =VLOOKUP($S151,P_All!$AA$5:$AY$245,3*($C$8-1)+2) -> 3623.6 | U151: =VLOOKUP($S151,P_All!$AA$5:$AY$245,3*($C$8-1)+3) -> 8340.8 | V151: =VLOOKUP($S151,P_All!$AA$5:$AY$245,3*($C$8-1)+4) -> 16398 | W151: =VLOOKUP($S151,NA_All!$AA$5:$AY$245,3*($C$8-1)+2) -> 1769.4 | X151: =VLOOKUP($S151,NA_All!$AA$5:$AY$245,3*($C$8-1)+3) -> 5426.6 | Y151: =VLOOKUP($S151,NA_All!$AA$5:$AY$245,3*($C$8-1)+4) -> 18652 | Z151: =IF(AND($B$8=$A$20,$B$6=$A$48),$B$54,IF(ISNA(VLOOKUP($B$6,$A$25:$E$52,IF($B$8=$A$22,3,2),FALSE)),EXP(VLOOKUP($B$6,$A$25:$E$52,4,FALSE)*LN(VLOOKUP($H151,P_Hard!$A$5:$Y$204,3*($C$8-1)+3,FALSE)/1000)+VLOOKUP($B$6,$A$25:$E$52,5,FALSE)),VLOOKUP($B$6,$A$25:$E$52,IF($B$8=$A$22,3,2),FALSE))) -> 
H152: 128 | I152: =VLOOKUP($H152,P_All!$A$5:$Y$204,3*($C$8-1)+2) -> 7823.6 | J152: =VLOOKUP($H152,P_All!$A$5:$Y$204,3*($C$8-1)+3) -> 9256.1 | K152: =VLOOKUP($H152,P_All!$A$5:$Y$204,3*($C$8-1)+4) -> 16516 | L152: =VLOOKUP($H152,NA_All!$A$5:$Y$204,3*($C$8-1)+2) -> 8859.7 | M152: =VLOOKUP($H152,NA_All!$A$5:$Y$204,3*($C$8-1)+3) -> 13558 | N152: =VLOOKUP($H152,NA_All!$A$5:$Y$204,3*($C$8-1)+4) -> 19024 | O152: =IF(ISNA(VLOOKUP($B$6,$A$25:$E$52,IF($B$8=$A$22,3,2))),EXP(VLOOKUP($B$6,$A$25:$E$52,4)*LN(VLOOKUP($H152,P_Hard!$A$5:$Y$204,3*($C$8-1)+2)/1000)+VLOOKUP($B$6,$A$25:$E$52,5)),NA()) ->  | Q152: =IF(ISNA(VLOOKUP($B$6,$A$25:$E$52,IF($B$8=$A$22,3,2))),EXP(VLOOKUP($B$6,$A$25:$E$52,4)*LN(VLOOKUP($H152,P_Hard!$A$5:$Y$204,3*($C$8-1)+4)/1000)+VLOOKUP($B$6,$A$25:$E$52,5)),NA()) ->  | S152: 10.58333333 | T152: =VLOOKUP($S152,P_All!$AA$5:$AY$245,3*($C$8-1)+2) -> 4027.8 | U152: =VLOOKUP($S152,P_All!$AA$5:$AY$245,3*($C$8-1)+3) -> 10128 | V152: =VLOOKUP($S152,P_All!$AA$5:$AY$245,3*($C$8-1)+4) -> 20452 | W152: =VLOOKUP($S152,NA_All!$AA$5:$AY$245,3*($C$8-1)+2) -> 2151.5 | X152: =VLOOKUP($S152,NA_All!$AA$5:$AY$245,3*($C$8-1)+3) -> 7926 | Y152: =VLOOKUP($S152,NA_All!$AA$5:$AY$245,3*($C$8-1)+4) -> 18223 | Z152: =IF(AND($B$8=$A$20,$B$6=$A$48),$B$54,IF(ISNA(VLOOKUP($B$6,$A$25:$E$52,IF($B$8=$A$22,3,2),FALSE)),EXP(VLOOKUP($B$6,$A$25:$E$52,4,FALSE)*LN(VLOOKUP($H152,P_Hard!$A$5:$Y$204,3*($C$8-1)+3,FALSE)/1000)+VLOOKUP($B$6,$A$25:$E$52,5,FALSE)),VLOOKUP($B$6,$A$25:$E$52,IF($B$8=$A$22,3,2),FALSE))) -> 
H153: 129 | I153: =VLOOKUP($H153,P_All!$A$5:$Y$204,3*($C$8-1)+2) -> 7095.8 | J153: =VLOOKUP($H153,P_All!$A$5:$Y$204,3*($C$8-1)+3) -> 9123.1 | K153: =VLOOKUP($H153,P_All!$A$5:$Y$204,3*($C$8-1)+4) -> 15800 | L153: =VLOOKUP($H153,NA_All!$A$5:$Y$204,3*($C$8-1)+2) -> 8542 | M153: =VLOOKUP($H153,NA_All!$A$5:$Y$204,3*($C$8-1)+3) -> 13567 | N153: =VLOOKUP($H153,NA_All!$A$5:$Y$204,3*($C$8-1)+4) -> 19178 | O153: =IF(ISNA(VLOOKUP($B$6,$A$25:$E$52,IF($B$8=$A$22,3,2))),EXP(VLOOKUP($B$6,$A$25:$E$52,4)*LN(VLOOKUP($H153,P_Hard!$A$5:$Y$204,3*($C$8-1)+2)/1000)+VLOOKUP($B$6,$A$25:$E$52,5)),NA()) ->  | Q153: =IF(ISNA(VLOOKUP($B$6,$A$25:$E$52,IF($B$8=$A$22,3,2))),EXP(VLOOKUP($B$6,$A$25:$E$52,4)*LN(VLOOKUP($H153,P_Hard!$A$5:$Y$204,3*($C$8-1)+4)/1000)+VLOOKUP($B$6,$A$25:$E$52,5)),NA()) ->  | S153: 10.66666667 | T153: =VLOOKUP($S153,P_All!$AA$5:$AY$245,3*($C$8-1)+2) -> 3737.6 | U153: =VLOOKUP($S153,P_All!$AA$5:$AY$245,3*($C$8-1)+3) -> 9810.1 | V153: =VLOOKUP($S153,P_All!$AA$5:$AY$245,3*($C$8-1)+4) -> 19595 | W153: =VLOOKUP($S153,NA_All!$AA$5:$AY$245,3*($C$8-1)+2) -> 2103.6 | X153: =VLOOKUP($S153,NA_All!$AA$5:$AY$245,3*($C$8-1)+3) -> 6540.5 | Y153: =VLOOKUP($S153,NA_All!$AA$5:$AY$245,3*($C$8-1)+4) -> 17961 | Z153: =IF(AND($B$8=$A$20,$B$6=$A$48),$B$54,IF(ISNA(VLOOKUP($B$6,$A$25:$E$52,IF($B$8=$A$22,3,2),FALSE)),EXP(VLOOKUP($B$6,$A$25:$E$52,4,FALSE)*LN(VLOOKUP($H153,P_Hard!$A$5:$Y$204,3*($C$8-1)+3,FALSE)/1000)+VLOOKUP($B$6,$A$25:$E$52,5,FALSE)),VLOOKUP($B$6,$A$25:$E$52,IF($B$8=$A$22,3,2),FALSE))) -> 
H154: 130 | I154: =VLOOKUP($H154,P_All!$A$5:$Y$204,3*($C$8-1)+2) -> 7290.7 | J154: =VLOOKUP($H154,P_All!$A$5:$Y$204,3*($C$8-1)+3) -> 9208.9 | K154: =VLOOKUP($H154,P_All!$A$5:$Y$204,3*($C$8-1)+4) -> 16070 | L154: =VLOOKUP($H154,NA_All!$A$5:$Y$204,3*($C$8-1)+2) -> 8793.8 | M154: =VLOOKUP($H154,NA_All!$A$5:$Y$204,3*($C$8-1)+3) -> 13621 | N154: =VLOOKUP($H154,NA_All!$A$5:$Y$204,3*($C$8-1)+4) -> 19257 | O154: =IF(ISNA(VLOOKUP($B$6,$A$25:$E$52,IF($B$8=$A$22,3,2))),EXP(VLOOKUP($B$6,$A$25:$E$52,4)*LN(VLOOKUP($H154,P_Hard!$A$5:$Y$204,3*($C$8-1)+2)/1000)+VLOOKUP($B$6,$A$25:$E$52,5)),NA()) ->  | P154: =IF(AND($B$8=$A$20,$B$6=$A$48),$B$54,IF(ISNA(VLOOKUP($B$6,$A$25:$F$52,IF($B$8=$A$22,3,2),FALSE)),VLOOKUP($B$6,$A$25:$F$52,6),VLOOKUP($B$6,$A$25:$F$52,IF($B$8=$A$22,3,2),FALSE))) ->  | Q154: =IF(ISNA(VLOOKUP($B$6,$A$25:$E$52,IF($B$8=$A$22,3,2))),EXP(VLOOKUP($B$6,$A$25:$E$52,4)*LN(VLOOKUP($H154,P_Hard!$A$5:$Y$204,3*($C$8-1)+4)/1000)+VLOOKUP($B$6,$A$25:$E$52,5)),NA()) ->  | S154: 10.75 | T154: =VLOOKUP($S154,P_All!$AA$5:$AY$245,3*($C$8-1)+2) -> 4090.7 | U154: =VLOOKUP($S154,P_All!$AA$5:$AY$245,3*($C$8-1)+3) -> 9872.7 | V154: =VLOOKUP($S154,P_All!$AA$5:$AY$245,3*($C$8-1)+4) -> 18412 | W154: =VLOOKUP($S154,NA_All!$AA$5:$AY$245,3*($C$8-1)+2) -> 2053.2 | X154: =VLOOKUP($S154,NA_All!$AA$5:$AY$245,3*($C$8-1)+3) -> 6295.7 | Y154: =VLOOKUP($S154,NA_All!$AA$5:$AY$245,3*($C$8-1)+4) -> 17775 | Z154: =IF(AND($B$8=$A$20,$B$6=$A$48),$B$54,IF(ISNA(VLOOKUP($B$6,$A$25:$E$52,IF($B$8=$A$22,3,2),FALSE)),EXP(VLOOKUP($B$6,$A$25:$E$52,4,FALSE)*LN(VLOOKUP($H154,P_Hard!$A$5:$Y$204,3*($C$8-1)+3,FALSE)/1000)+VLOOKUP($B$6,$A$25:$E$52,5,FALSE)),VLOOKUP($B$6,$A$25:$E$52,IF($B$8=$A$22,3,2),FALSE))) -> 
H155: 131 | I155: =VLOOKUP($H155,P_All!$A$5:$Y$204,3*($C$8-1)+2) -> 6642.6 | J155: =VLOOKUP($H155,P_All!$A$5:$Y$204,3*($C$8-1)+3) -> 9139.6 | K155: =VLOOKUP($H155,P_All!$A$5:$Y$204,3*($C$8-1)+4) -> 15752 | L155: =VLOOKUP($H155,NA_All!$A$5:$Y$204,3*($C$8-1)+2) -> 7626.8 | M155: =VLOOKUP($H155,NA_All!$A$5:$Y$204,3*($C$8-1)+3) -> 13354 | N155: =VLOOKUP($H155,NA_All!$A$5:$Y$204,3*($C$8-1)+4) -> 19019 | O155: =IF(ISNA(VLOOKUP($B$6,$A$25:$E$52,IF($B$8=$A$22,3,2))),EXP(VLOOKUP($B$6,$A$25:$E$52,4)*LN(VLOOKUP($H155,P_Hard!$A$5:$Y$204,3*($C$8-1)+2)/1000)+VLOOKUP($B$6,$A$25:$E$52,5)),NA()) ->  | Q155: =IF(ISNA(VLOOKUP($B$6,$A$25:$E$52,IF($B$8=$A$22,3,2))),EXP(VLOOKUP($B$6,$A$25:$E$52,4)*LN(VLOOKUP($H155,P_Hard!$A$5:$Y$204,3*($C$8-1)+4)/1000)+VLOOKUP($B$6,$A$25:$E$52,5)),NA()) ->  | S155: =S154+1/12 -> 10.83333333 | T155: =VLOOKUP($S155,P_All!$AA$5:$AY$245,3*($C$8-1)+2) -> 4192.7 | U155: =VLOOKUP($S155,P_All!$AA$5:$AY$245,3*($C$8-1)+3) -> 8717.7 | V155: =VLOOKUP($S155,P_All!$AA$5:$AY$245,3*($C$8-1)+4) -> 18140 | W155: =VLOOKUP($S155,NA_All!$AA$5:$AY$245,3*($C$8-1)+2) -> 1972.8 | X155: =VLOOKUP($S155,NA_All!$AA$5:$AY$245,3*($C$8-1)+3) -> 5255.5 | Y155: =VLOOKUP($S155,NA_All!$AA$5:$AY$245,3*($C$8-1)+4) -> 19033 | Z155: =IF(AND($B$8=$A$20,$B$6=$A$48),$B$54,IF(ISNA(VLOOKUP($B$6,$A$25:$E$52,IF($B$8=$A$22,3,2),FALSE)),EXP(VLOOKUP($B$6,$A$25:$E$52,4,FALSE)*LN(VLOOKUP($H155,P_Hard!$A$5:$Y$204,3*($C$8-1)+3,FALSE)/1000)+VLOOKUP($B$6,$A$25:$E$52,5,FALSE)),VLOOKUP($B$6,$A$25:$E$52,IF($B$8=$A$22,3,2),FALSE))) -> 
H156: 132 | I156: =VLOOKUP($H156,P_All!$A$5:$Y$204,3*($C$8-1)+2) -> 7192.1 | J156: =VLOOKUP($H156,P_All!$A$5:$Y$204,3*($C$8-1)+3) -> 9158.9 | K156: =VLOOKUP($H156,P_All!$A$5:$Y$204,3*($C$8-1)+4) -> 16198 | L156: =VLOOKUP($H156,NA_All!$A$5:$Y$204,3*($C$8-1)+2) -> 8644 | M156: =VLOOKUP($H156,NA_All!$A$5:$Y$204,3*($C$8-1)+3) -> 13553 | N156: =VLOOKUP($H156,NA_All!$A$5:$Y$204,3*($C$8-1)+4) -> 18740 | O156: =IF(ISNA(VLOOKUP($B$6,$A$25:$E$52,IF($B$8=$A$22,3,2))),EXP(VLOOKUP($B$6,$A$25:$E$52,4)*LN(VLOOKUP($H156,P_Hard!$A$5:$Y$204,3*($C$8-1)+2)/1000)+VLOOKUP($B$6,$A$25:$E$52,5)),NA()) ->  | Q156: =IF(ISNA(VLOOKUP($B$6,$A$25:$E$52,IF($B$8=$A$22,3,2))),EXP(VLOOKUP($B$6,$A$25:$E$52,4)*LN(VLOOKUP($H156,P_Hard!$A$5:$Y$204,3*($C$8-1)+4)/1000)+VLOOKUP($B$6,$A$25:$E$52,5)),NA()) ->  | S156: 10.91666667 | T156: =VLOOKUP($S156,P_All!$AA$5:$AY$245,3*($C$8-1)+2) -> 4896.6 | U156: =VLOOKUP($S156,P_All!$AA$5:$AY$245,3*($C$8-1)+3) -> 9754.7 | V156: =VLOOKUP($S156,P_All!$AA$5:$AY$245,3*($C$8-1)+4) -> 16653 | W156: =VLOOKUP($S156,NA_All!$AA$5:$AY$245,3*($C$8-1)+2) -> 2597.1 | X156: =VLOOKUP($S156,NA_All!$AA$5:$AY$245,3*($C$8-1)+3) -> 6216.2 | Y156: =VLOOKUP($S156,NA_All!$AA$5:$AY$245,3*($C$8-1)+4) -> 18011 | Z156: =IF(AND($B$8=$A$20,$B$6=$A$48),$B$54,IF(ISNA(VLOOKUP($B$6,$A$25:$E$52,IF($B$8=$A$22,3,2),FALSE)),EXP(VLOOKUP($B$6,$A$25:$E$52,4,FALSE)*LN(VLOOKUP($H156,P_Hard!$A$5:$Y$204,3*($C$8-1)+3,FALSE)/1000)+VLOOKUP($B$6,$A$25:$E$52,5,FALSE)),VLOOKUP($B$6,$A$25:$E$52,IF($B$8=$A$22,3,2),FALSE))) -> 
H157: 133 | I157: =VLOOKUP($H157,P_All!$A$5:$Y$204,3*($C$8-1)+2) -> 6910.2 | J157: =VLOOKUP($H157,P_All!$A$5:$Y$204,3*($C$8-1)+3) -> 9178.5 | K157: =VLOOKUP($H157,P_All!$A$5:$Y$204,3*($C$8-1)+4) -> 14754 | L157: =VLOOKUP($H157,NA_All!$A$5:$Y$204,3*($C$8-1)+2) -> 7934.6 | M157: =VLOOKUP($H157,NA_All!$A$5:$Y$204,3*($C$8-1)+3) -> 13447 | N157: =VLOOKUP($H157,NA_All!$A$5:$Y$204,3*($C$8-1)+4) -> 19107 | O157: =IF(ISNA(VLOOKUP($B$6,$A$25:$E$52,IF($B$8=$A$22,3,2))),EXP(VLOOKUP($B$6,$A$25:$E$52,4)*LN(VLOOKUP($H157,P_Hard!$A$5:$Y$204,3*($C$8-1)+2)/1000)+VLOOKUP($B$6,$A$25:$E$52,5)),NA()) ->  | Q157: =IF(ISNA(VLOOKUP($B$6,$A$25:$E$52,IF($B$8=$A$22,3,2))),EXP(VLOOKUP($B$6,$A$25:$E$52,4)*LN(VLOOKUP($H157,P_Hard!$A$5:$Y$204,3*($C$8-1)+4)/1000)+VLOOKUP($B$6,$A$25:$E$52,5)),NA()) ->  | S157: 11 | T157: =VLOOKUP($S157,P_All!$AA$5:$AY$245,3*($C$8-1)+2) -> 8797 | U157: =VLOOKUP($S157,P_All!$AA$5:$AY$245,3*($C$8-1)+3) -> 13970 | V157: =VLOOKUP($S157,P_All!$AA$5:$AY$245,3*($C$8-1)+4) -> 17750 | W157: =VLOOKUP($S157,NA_All!$AA$5:$AY$245,3*($C$8-1)+2) -> 5088.5 | X157: =VLOOKUP($S157,NA_All!$AA$5:$AY$245,3*($C$8-1)+3) -> 9431.3 | Y157: =VLOOKUP($S157,NA_All!$AA$5:$AY$245,3*($C$8-1)+4) -> 16807 | Z157: =IF(AND($B$8=$A$20,$B$6=$A$48),$B$54,IF(ISNA(VLOOKUP($B$6,$A$25:$E$52,IF($B$8=$A$22,3,2),FALSE)),EXP(VLOOKUP($B$6,$A$25:$E$52,4,FALSE)*LN(VLOOKUP($H157,P_Hard!$A$5:$Y$204,3*($C$8-1)+3,FALSE)/1000)+VLOOKUP($B$6,$A$25:$E$52,5,FALSE)),VLOOKUP($B$6,$A$25:$E$52,IF($B$8=$A$22,3,2),FALSE))) -> 
H158: 134 | I158: =VLOOKUP($H158,P_All!$A$5:$Y$204,3*($C$8-1)+2) -> 7431.2 | J158: =VLOOKUP($H158,P_All!$A$5:$Y$204,3*($C$8-1)+3) -> 9219.9 | K158: =VLOOKUP($H158,P_All!$A$5:$Y$204,3*($C$8-1)+4) -> 16244 | L158: =VLOOKUP($H158,NA_All!$A$5:$Y$204,3*($C$8-1)+2) -> 8420.4 | M158: =VLOOKUP($H158,NA_All!$A$5:$Y$204,3*($C$8-1)+3) -> 13545 | N158: =VLOOKUP($H158,NA_All!$A$5:$Y$204,3*($C$8-1)+4) -> 18447 | O158: =IF(ISNA(VLOOKUP($B$6,$A$25:$E$52,IF($B$8=$A$22,3,2))),EXP(VLOOKUP($B$6,$A$25:$E$52,4)*LN(VLOOKUP($H158,P_Hard!$A$5:$Y$204,3*($C$8-1)+2)/1000)+VLOOKUP($B$6,$A$25:$E$52,5)),NA()) ->  | Q158: =IF(ISNA(VLOOKUP($B$6,$A$25:$E$52,IF($B$8=$A$22,3,2))),EXP(VLOOKUP($B$6,$A$25:$E$52,4)*LN(VLOOKUP($H158,P_Hard!$A$5:$Y$204,3*($C$8-1)+4)/1000)+VLOOKUP($B$6,$A$25:$E$52,5)),NA()) ->  | S158: 11.08333333 | T158: =VLOOKUP($S158,P_All!$AA$5:$AY$245,3*($C$8-1)+2) -> 12068 | U158: =VLOOKUP($S158,P_All!$AA$5:$AY$245,3*($C$8-1)+3) -> 17139 | V158: =VLOOKUP($S158,P_All!$AA$5:$AY$245,3*($C$8-1)+4) -> 21823 | W158: =VLOOKUP($S158,NA_All!$AA$5:$AY$245,3*($C$8-1)+2) -> 7273.9 | X158: =VLOOKUP($S158,NA_All!$AA$5:$AY$245,3*($C$8-1)+3) -> 12153 | Y158: =VLOOKUP($S158,NA_All!$AA$5:$AY$245,3*($C$8-1)+4) -> 16145 | Z158: =IF(AND($B$8=$A$20,$B$6=$A$48),$B$54,IF(ISNA(VLOOKUP($B$6,$A$25:$E$52,IF($B$8=$A$22,3,2),FALSE)),EXP(VLOOKUP($B$6,$A$25:$E$52,4,FALSE)*LN(VLOOKUP($H158,P_Hard!$A$5:$Y$204,3*($C$8-1)+3,FALSE)/1000)+VLOOKUP($B$6,$A$25:$E$52,5,FALSE)),VLOOKUP($B$6,$A$25:$E$52,IF($B$8=$A$22,3,2),FALSE))) -> 
H159: 135 | I159: =VLOOKUP($H159,P_All!$A$5:$Y$204,3*($C$8-1)+2) -> 7225.7 | J159: =VLOOKUP($H159,P_All!$A$5:$Y$204,3*($C$8-1)+3) -> 9140.8 | K159: =VLOOKUP($H159,P_All!$A$5:$Y$204,3*($C$8-1)+4) -> 16453 | L159: =VLOOKUP($H159,NA_All!$A$5:$Y$204,3*($C$8-1)+2) -> 8970.5 | M159: =VLOOKUP($H159,NA_All!$A$5:$Y$204,3*($C$8-1)+3) -> 13594 | N159: =VLOOKUP($H159,NA_All!$A$5:$Y$204,3*($C$8-1)+4) -> 19095 | O159: =IF(ISNA(VLOOKUP($B$6,$A$25:$E$52,IF($B$8=$A$22,3,2))),EXP(VLOOKUP($B$6,$A$25:$E$52,4)*LN(VLOOKUP($H159,P_Hard!$A$5:$Y$204,3*($C$8-1)+2)/1000)+VLOOKUP($B$6,$A$25:$E$52,5)),NA()) ->  | Q159: =IF(ISNA(VLOOKUP($B$6,$A$25:$E$52,IF($B$8=$A$22,3,2))),EXP(VLOOKUP($B$6,$A$25:$E$52,4)*LN(VLOOKUP($H159,P_Hard!$A$5:$Y$204,3*($C$8-1)+4)/1000)+VLOOKUP($B$6,$A$25:$E$52,5)),NA()) ->  | S159: 11.16666667 | T159: =VLOOKUP($S159,P_All!$AA$5:$AY$245,3*($C$8-1)+2) -> 13561 | U159: =VLOOKUP($S159,P_All!$AA$5:$AY$245,3*($C$8-1)+3) -> 21846 | V159: =VLOOKUP($S159,P_All!$AA$5:$AY$245,3*($C$8-1)+4) -> 23772 | W159: =VLOOKUP($S159,NA_All!$AA$5:$AY$245,3*($C$8-1)+2) -> 8391 | X159: =VLOOKUP($S159,NA_All!$AA$5:$AY$245,3*($C$8-1)+3) -> 14425 | Y159: =VLOOKUP($S159,NA_All!$AA$5:$AY$245,3*($C$8-1)+4) -> 16898 | Z159: =IF(AND($B$8=$A$20,$B$6=$A$48),$B$54,IF(ISNA(VLOOKUP($B$6,$A$25:$E$52,IF($B$8=$A$22,3,2),FALSE)),EXP(VLOOKUP($B$6,$A$25:$E$52,4,FALSE)*LN(VLOOKUP($H159,P_Hard!$A$5:$Y$204,3*($C$8-1)+3,FALSE)/1000)+VLOOKUP($B$6,$A$25:$E$52,5,FALSE)),VLOOKUP($B$6,$A$25:$E$52,IF($B$8=$A$22,3,2),FALSE))) -> 
H160: 136 | I160: =VLOOKUP($H160,P_All!$A$5:$Y$204,3*($C$8-1)+2) -> 7067.9 | J160: =VLOOKUP($H160,P_All!$A$5:$Y$204,3*($C$8-1)+3) -> 9119.9 | K160: =VLOOKUP($H160,P_All!$A$5:$Y$204,3*($C$8-1)+4) -> 16850 | L160: =VLOOKUP($H160,NA_All!$A$5:$Y$204,3*($C$8-1)+2) -> 8225.7 | M160: =VLOOKUP($H160,NA_All!$A$5:$Y$204,3*($C$8-1)+3) -> 13591 | N160: =VLOOKUP($H160,NA_All!$A$5:$Y$204,3*($C$8-1)+4) -> 18947 | O160: =IF(ISNA(VLOOKUP($B$6,$A$25:$E$52,IF($B$8=$A$22,3,2))),EXP(VLOOKUP($B$6,$A$25:$E$52,4)*LN(VLOOKUP($H160,P_Hard!$A$5:$Y$204,3*($C$8-1)+2)/1000)+VLOOKUP($B$6,$A$25:$E$52,5)),NA()) ->  | Q160: =IF(ISNA(VLOOKUP($B$6,$A$25:$E$52,IF($B$8=$A$22,3,2))),EXP(VLOOKUP($B$6,$A$25:$E$52,4)*LN(VLOOKUP($H160,P_Hard!$A$5:$Y$204,3*($C$8-1)+4)/1000)+VLOOKUP($B$6,$A$25:$E$52,5)),NA()) ->  | S160: 11.25 | T160: =VLOOKUP($S160,P_All!$AA$5:$AY$245,3*($C$8-1)+2) -> 7071.8 | U160: =VLOOKUP($S160,P_All!$AA$5:$AY$245,3*($C$8-1)+3) -> 18510 | V160: =VLOOKUP($S160,P_All!$AA$5:$AY$245,3*($C$8-1)+4) -> 24148 | W160: =VLOOKUP($S160,NA_All!$AA$5:$AY$245,3*($C$8-1)+2) -> 4059.9 | X160: =VLOOKUP($S160,NA_All!$AA$5:$AY$245,3*($C$8-1)+3) -> 13131 | Y160: =VLOOKUP($S160,NA_All!$AA$5:$AY$245,3*($C$8-1)+4) -> 17533 | Z160: =IF(AND($B$8=$A$20,$B$6=$A$48),$B$54,IF(ISNA(VLOOKUP($B$6,$A$25:$E$52,IF($B$8=$A$22,3,2),FALSE)),EXP(VLOOKUP($B$6,$A$25:$E$52,4,FALSE)*LN(VLOOKUP($H160,P_Hard!$A$5:$Y$204,3*($C$8-1)+3,FALSE)/1000)+VLOOKUP($B$6,$A$25:$E$52,5,FALSE)),VLOOKUP($B$6,$A$25:$E$52,IF($B$8=$A$22,3,2),FALSE))) -> 
H161: 137 | I161: =VLOOKUP($H161,P_All!$A$5:$Y$204,3*($C$8-1)+2) -> 7079 | J161: =VLOOKUP($H161,P_All!$A$5:$Y$204,3*($C$8-1)+3) -> 9148.3 | K161: =VLOOKUP($H161,P_All!$A$5:$Y$204,3*($C$8-1)+4) -> 14999 | L161: =VLOOKUP($H161,NA_All!$A$5:$Y$204,3*($C$8-1)+2) -> 8306.2 | M161: =VLOOKUP($H161,NA_All!$A$5:$Y$204,3*($C$8-1)+3) -> 13522 | N161: =VLOOKUP($H161,NA_All!$A$5:$Y$204,3*($C$8-1)+4) -> 19016 | O161: =IF(ISNA(VLOOKUP($B$6,$A$25:$E$52,IF($B$8=$A$22,3,2))),EXP(VLOOKUP($B$6,$A$25:$E$52,4)*LN(VLOOKUP($H161,P_Hard!$A$5:$Y$204,3*($C$8-1)+2)/1000)+VLOOKUP($B$6,$A$25:$E$52,5)),NA()) ->  | Q161: =IF(ISNA(VLOOKUP($B$6,$A$25:$E$52,IF($B$8=$A$22,3,2))),EXP(VLOOKUP($B$6,$A$25:$E$52,4)*LN(VLOOKUP($H161,P_Hard!$A$5:$Y$204,3*($C$8-1)+4)/1000)+VLOOKUP($B$6,$A$25:$E$52,5)),NA()) ->  | S161: 11.33333333 | T161: =VLOOKUP($S161,P_All!$AA$5:$AY$245,3*($C$8-1)+2) -> 2942.1 | U161: =VLOOKUP($S161,P_All!$AA$5:$AY$245,3*($C$8-1)+3) -> 6515.9 | V161: =VLOOKUP($S161,P_All!$AA$5:$AY$245,3*($C$8-1)+4) -> 16601 | W161: =VLOOKUP($S161,NA_All!$AA$5:$AY$245,3*($C$8-1)+2) -> 1258.8 | X161: =VLOOKUP($S161,NA_All!$AA$5:$AY$245,3*($C$8-1)+3) -> 4862.4 | Y161: =VLOOKUP($S161,NA_All!$AA$5:$AY$245,3*($C$8-1)+4) -> 18817 | Z161: =IF(AND($B$8=$A$20,$B$6=$A$48),$B$54,IF(ISNA(VLOOKUP($B$6,$A$25:$E$52,IF($B$8=$A$22,3,2),FALSE)),EXP(VLOOKUP($B$6,$A$25:$E$52,4,FALSE)*LN(VLOOKUP($H161,P_Hard!$A$5:$Y$204,3*($C$8-1)+3,FALSE)/1000)+VLOOKUP($B$6,$A$25:$E$52,5,FALSE)),VLOOKUP($B$6,$A$25:$E$52,IF($B$8=$A$22,3,2),FALSE))) -> 
H162: 138 | I162: =VLOOKUP($H162,P_All!$A$5:$Y$204,3*($C$8-1)+2) -> 6863.2 | J162: =VLOOKUP($H162,P_All!$A$5:$Y$204,3*($C$8-1)+3) -> 9166.8 | K162: =VLOOKUP($H162,P_All!$A$5:$Y$204,3*($C$8-1)+4) -> 15811 | L162: =VLOOKUP($H162,NA_All!$A$5:$Y$204,3*($C$8-1)+2) -> 8182.5 | M162: =VLOOKUP($H162,NA_All!$A$5:$Y$204,3*($C$8-1)+3) -> 13557 | N162: =VLOOKUP($H162,NA_All!$A$5:$Y$204,3*($C$8-1)+4) -> 18883 | O162: =IF(ISNA(VLOOKUP($B$6,$A$25:$E$52,IF($B$8=$A$22,3,2))),EXP(VLOOKUP($B$6,$A$25:$E$52,4)*LN(VLOOKUP($H162,P_Hard!$A$5:$Y$204,3*($C$8-1)+2)/1000)+VLOOKUP($B$6,$A$25:$E$52,5)),NA()) ->  | Q162: =IF(ISNA(VLOOKUP($B$6,$A$25:$E$52,IF($B$8=$A$22,3,2))),EXP(VLOOKUP($B$6,$A$25:$E$52,4)*LN(VLOOKUP($H162,P_Hard!$A$5:$Y$204,3*($C$8-1)+4)/1000)+VLOOKUP($B$6,$A$25:$E$52,5)),NA()) ->  | S162: 11.41666667 | T162: =VLOOKUP($S162,P_All!$AA$5:$AY$245,3*($C$8-1)+2) -> 3127.2 | U162: =VLOOKUP($S162,P_All!$AA$5:$AY$245,3*($C$8-1)+3) -> 7284.4 | V162: =VLOOKUP($S162,P_All!$AA$5:$AY$245,3*($C$8-1)+4) -> 16330 | W162: =VLOOKUP($S162,NA_All!$AA$5:$AY$245,3*($C$8-1)+2) -> 1476.4 | X162: =VLOOKUP($S162,NA_All!$AA$5:$AY$245,3*($C$8-1)+3) -> 4459.7 | Y162: =VLOOKUP($S162,NA_All!$AA$5:$AY$245,3*($C$8-1)+4) -> 19178 | Z162: =IF(AND($B$8=$A$20,$B$6=$A$48),$B$54,IF(ISNA(VLOOKUP($B$6,$A$25:$E$52,IF($B$8=$A$22,3,2),FALSE)),EXP(VLOOKUP($B$6,$A$25:$E$52,4,FALSE)*LN(VLOOKUP($H162,P_Hard!$A$5:$Y$204,3*($C$8-1)+3,FALSE)/1000)+VLOOKUP($B$6,$A$25:$E$52,5,FALSE)),VLOOKUP($B$6,$A$25:$E$52,IF($B$8=$A$22,3,2),FALSE))) -> 
H163: 139 | I163: =VLOOKUP($H163,P_All!$A$5:$Y$204,3*($C$8-1)+2) -> 6997.3 | J163: =VLOOKUP($H163,P_All!$A$5:$Y$204,3*($C$8-1)+3) -> 9089.5 | K163: =VLOOKUP($H163,P_All!$A$5:$Y$204,3*($C$8-1)+4) -> 16278 | L163: =VLOOKUP($H163,NA_All!$A$5:$Y$204,3*($C$8-1)+2) -> 8267.7 | M163: =VLOOKUP($H163,NA_All!$A$5:$Y$204,3*($C$8-1)+3) -> 13522 | N163: =VLOOKUP($H163,NA_All!$A$5:$Y$204,3*($C$8-1)+4) -> 18640 | O163: =IF(ISNA(VLOOKUP($B$6,$A$25:$E$52,IF($B$8=$A$22,3,2))),EXP(VLOOKUP($B$6,$A$25:$E$52,4)*LN(VLOOKUP($H163,P_Hard!$A$5:$Y$204,3*($C$8-1)+2)/1000)+VLOOKUP($B$6,$A$25:$E$52,5)),NA()) ->  | Q163: =IF(ISNA(VLOOKUP($B$6,$A$25:$E$52,IF($B$8=$A$22,3,2))),EXP(VLOOKUP($B$6,$A$25:$E$52,4)*LN(VLOOKUP($H163,P_Hard!$A$5:$Y$204,3*($C$8-1)+4)/1000)+VLOOKUP($B$6,$A$25:$E$52,5)),NA()) ->  | S163: 11.5 | T163: =VLOOKUP($S163,P_All!$AA$5:$AY$245,3*($C$8-1)+2) -> 3524.9 | U163: =VLOOKUP($S163,P_All!$AA$5:$AY$245,3*($C$8-1)+3) -> 8368 | V163: =VLOOKUP($S163,P_All!$AA$5:$AY$245,3*($C$8-1)+4) -> 16596 | W163: =VLOOKUP($S163,NA_All!$AA$5:$AY$245,3*($C$8-1)+2) -> 1807.8 | X163: =VLOOKUP($S163,NA_All!$AA$5:$AY$245,3*($C$8-1)+3) -> 5827.1 | Y163: =VLOOKUP($S163,NA_All!$AA$5:$AY$245,3*($C$8-1)+4) -> 18634 | Z163: =IF(AND($B$8=$A$20,$B$6=$A$48),$B$54,IF(ISNA(VLOOKUP($B$6,$A$25:$E$52,IF($B$8=$A$22,3,2),FALSE)),EXP(VLOOKUP($B$6,$A$25:$E$52,4,FALSE)*LN(VLOOKUP($H163,P_Hard!$A$5:$Y$204,3*($C$8-1)+3,FALSE)/1000)+VLOOKUP($B$6,$A$25:$E$52,5,FALSE)),VLOOKUP($B$6,$A$25:$E$52,IF($B$8=$A$22,3,2),FALSE))) -> 
H164: 140 | I164: =VLOOKUP($H164,P_All!$A$5:$Y$204,3*($C$8-1)+2) -> 7179.6 | J164: =VLOOKUP($H164,P_All!$A$5:$Y$204,3*($C$8-1)+3) -> 9206.5 | K164: =VLOOKUP($H164,P_All!$A$5:$Y$204,3*($C$8-1)+4) -> 15227 | L164: =VLOOKUP($H164,NA_All!$A$5:$Y$204,3*($C$8-1)+2) -> 8315 | M164: =VLOOKUP($H164,NA_All!$A$5:$Y$204,3*($C$8-1)+3) -> 13439 | N164: =VLOOKUP($H164,NA_All!$A$5:$Y$204,3*($C$8-1)+4) -> 18938 | O164: =IF(ISNA(VLOOKUP($B$6,$A$25:$E$52,IF($B$8=$A$22,3,2))),EXP(VLOOKUP($B$6,$A$25:$E$52,4)*LN(VLOOKUP($H164,P_Hard!$A$5:$Y$204,3*($C$8-1)+2)/1000)+VLOOKUP($B$6,$A$25:$E$52,5)),NA()) ->  | Q164: =IF(ISNA(VLOOKUP($B$6,$A$25:$E$52,IF($B$8=$A$22,3,2))),EXP(VLOOKUP($B$6,$A$25:$E$52,4)*LN(VLOOKUP($H164,P_Hard!$A$5:$Y$204,3*($C$8-1)+4)/1000)+VLOOKUP($B$6,$A$25:$E$52,5)),NA()) ->  | S164: 11.58333333 | T164: =VLOOKUP($S164,P_All!$AA$5:$AY$245,3*($C$8-1)+2) -> 4290.6 | U164: =VLOOKUP($S164,P_All!$AA$5:$AY$245,3*($C$8-1)+3) -> 11157 | V164: =VLOOKUP($S164,P_All!$AA$5:$AY$245,3*($C$8-1)+4) -> 20511 | W164: =VLOOKUP($S164,NA_All!$AA$5:$AY$245,3*($C$8-1)+2) -> 2165.9 | X164: =VLOOKUP($S164,NA_All!$AA$5:$AY$245,3*($C$8-1)+3) -> 7952.3 | Y164: =VLOOKUP($S164,NA_All!$AA$5:$AY$245,3*($C$8-1)+4) -> 17942 | Z164: =IF(AND($B$8=$A$20,$B$6=$A$48),$B$54,IF(ISNA(VLOOKUP($B$6,$A$25:$E$52,IF($B$8=$A$22,3,2),FALSE)),EXP(VLOOKUP($B$6,$A$25:$E$52,4,FALSE)*LN(VLOOKUP($H164,P_Hard!$A$5:$Y$204,3*($C$8-1)+3,FALSE)/1000)+VLOOKUP($B$6,$A$25:$E$52,5,FALSE)),VLOOKUP($B$6,$A$25:$E$52,IF($B$8=$A$22,3,2),FALSE))) -> 
H165: 141 | I165: =VLOOKUP($H165,P_All!$A$5:$Y$204,3*($C$8-1)+2) -> 6936.2 | J165: =VLOOKUP($H165,P_All!$A$5:$Y$204,3*($C$8-1)+3) -> 9146.3 | K165: =VLOOKUP($H165,P_All!$A$5:$Y$204,3*($C$8-1)+4) -> 16019 | L165: =VLOOKUP($H165,NA_All!$A$5:$Y$204,3*($C$8-1)+2) -> 8345.7 | M165: =VLOOKUP($H165,NA_All!$A$5:$Y$204,3*($C$8-1)+3) -> 13531 | N165: =VLOOKUP($H165,NA_All!$A$5:$Y$204,3*($C$8-1)+4) -> 18963 | O165: =IF(ISNA(VLOOKUP($B$6,$A$25:$E$52,IF($B$8=$A$22,3,2))),EXP(VLOOKUP($B$6,$A$25:$E$52,4)*LN(VLOOKUP($H165,P_Hard!$A$5:$Y$204,3*($C$8-1)+2)/1000)+VLOOKUP($B$6,$A$25:$E$52,5)),NA()) ->  | Q165: =IF(ISNA(VLOOKUP($B$6,$A$25:$E$52,IF($B$8=$A$22,3,2))),EXP(VLOOKUP($B$6,$A$25:$E$52,4)*LN(VLOOKUP($H165,P_Hard!$A$5:$Y$204,3*($C$8-1)+4)/1000)+VLOOKUP($B$6,$A$25:$E$52,5)),NA()) ->  | S165: 11.66666667 | T165: =VLOOKUP($S165,P_All!$AA$5:$AY$245,3*($C$8-1)+2) -> 3810.7 | U165: =VLOOKUP($S165,P_All!$AA$5:$AY$245,3*($C$8-1)+3) -> 9919.8 | V165: =VLOOKUP($S165,P_All!$AA$5:$AY$245,3*($C$8-1)+4) -> 19452 | W165: =VLOOKUP($S165,NA_All!$AA$5:$AY$245,3*($C$8-1)+2) -> 1981.5 | X165: =VLOOKUP($S165,NA_All!$AA$5:$AY$245,3*($C$8-1)+3) -> 6801.8 | Y165: =VLOOKUP($S165,NA_All!$AA$5:$AY$245,3*($C$8-1)+4) -> 17823 | Z165: =IF(AND($B$8=$A$20,$B$6=$A$48),$B$54,IF(ISNA(VLOOKUP($B$6,$A$25:$E$52,IF($B$8=$A$22,3,2),FALSE)),EXP(VLOOKUP($B$6,$A$25:$E$52,4,FALSE)*LN(VLOOKUP($H165,P_Hard!$A$5:$Y$204,3*($C$8-1)+3,FALSE)/1000)+VLOOKUP($B$6,$A$25:$E$52,5,FALSE)),VLOOKUP($B$6,$A$25:$E$52,IF($B$8=$A$22,3,2),FALSE))) -> 
H166: 142 | I166: =VLOOKUP($H166,P_All!$A$5:$Y$204,3*($C$8-1)+2) -> 7187.2 | J166: =VLOOKUP($H166,P_All!$A$5:$Y$204,3*($C$8-1)+3) -> 9217.2 | K166: =VLOOKUP($H166,P_All!$A$5:$Y$204,3*($C$8-1)+4) -> 16050 | L166: =VLOOKUP($H166,NA_All!$A$5:$Y$204,3*($C$8-1)+2) -> 8385.2 | M166: =VLOOKUP($H166,NA_All!$A$5:$Y$204,3*($C$8-1)+3) -> 13460 | N166: =VLOOKUP($H166,NA_All!$A$5:$Y$204,3*($C$8-1)+4) -> 19127 | O166: =IF(ISNA(VLOOKUP($B$6,$A$25:$E$52,IF($B$8=$A$22,3,2))),EXP(VLOOKUP($B$6,$A$25:$E$52,4)*LN(VLOOKUP($H166,P_Hard!$A$5:$Y$204,3*($C$8-1)+2)/1000)+VLOOKUP($B$6,$A$25:$E$52,5)),NA()) ->  | Q166: =IF(ISNA(VLOOKUP($B$6,$A$25:$E$52,IF($B$8=$A$22,3,2))),EXP(VLOOKUP($B$6,$A$25:$E$52,4)*LN(VLOOKUP($H166,P_Hard!$A$5:$Y$204,3*($C$8-1)+4)/1000)+VLOOKUP($B$6,$A$25:$E$52,5)),NA()) ->  | S166: 11.75 | T166: =VLOOKUP($S166,P_All!$AA$5:$AY$245,3*($C$8-1)+2) -> 4158 | U166: =VLOOKUP($S166,P_All!$AA$5:$AY$245,3*($C$8-1)+3) -> 9737 | V166: =VLOOKUP($S166,P_All!$AA$5:$AY$245,3*($C$8-1)+4) -> 17817 | W166: =VLOOKUP($S166,NA_All!$AA$5:$AY$245,3*($C$8-1)+2) -> 1900.3 | X166: =VLOOKUP($S166,NA_All!$AA$5:$AY$245,3*($C$8-1)+3) -> 6161.8 | Y166: =VLOOKUP($S166,NA_All!$AA$5:$AY$245,3*($C$8-1)+4) -> 17725 | Z166: =IF(AND($B$8=$A$20,$B$6=$A$48),$B$54,IF(ISNA(VLOOKUP($B$6,$A$25:$E$52,IF($B$8=$A$22,3,2),FALSE)),EXP(VLOOKUP($B$6,$A$25:$E$52,4,FALSE)*LN(VLOOKUP($H166,P_Hard!$A$5:$Y$204,3*($C$8-1)+3,FALSE)/1000)+VLOOKUP($B$6,$A$25:$E$52,5,FALSE)),VLOOKUP($B$6,$A$25:$E$52,IF($B$8=$A$22,3,2),FALSE))) -> 
H167: 143 | I167: =VLOOKUP($H167,P_All!$A$5:$Y$204,3*($C$8-1)+2) -> 7067 | J167: =VLOOKUP($H167,P_All!$A$5:$Y$204,3*($C$8-1)+3) -> 9237.7 | K167: =VLOOKUP($H167,P_All!$A$5:$Y$204,3*($C$8-1)+4) -> 15075 | L167: =VLOOKUP($H167,NA_All!$A$5:$Y$204,3*($C$8-1)+2) -> 8307.5 | M167: =VLOOKUP($H167,NA_All!$A$5:$Y$204,3*($C$8-1)+3) -> 13476 | N167: =VLOOKUP($H167,NA_All!$A$5:$Y$204,3*($C$8-1)+4) -> 18778 | O167: =IF(ISNA(VLOOKUP($B$6,$A$25:$E$52,IF($B$8=$A$22,3,2))),EXP(VLOOKUP($B$6,$A$25:$E$52,4)*LN(VLOOKUP($H167,P_Hard!$A$5:$Y$204,3*($C$8-1)+2)/1000)+VLOOKUP($B$6,$A$25:$E$52,5)),NA()) ->  | Q167: =IF(ISNA(VLOOKUP($B$6,$A$25:$E$52,IF($B$8=$A$22,3,2))),EXP(VLOOKUP($B$6,$A$25:$E$52,4)*LN(VLOOKUP($H167,P_Hard!$A$5:$Y$204,3*($C$8-1)+4)/1000)+VLOOKUP($B$6,$A$25:$E$52,5)),NA()) ->  | S167: 11.83333333 | T167: =VLOOKUP($S167,P_All!$AA$5:$AY$245,3*($C$8-1)+2) -> 3660 | U167: =VLOOKUP($S167,P_All!$AA$5:$AY$245,3*($C$8-1)+3) -> 8709.4 | V167: =VLOOKUP($S167,P_All!$AA$5:$AY$245,3*($C$8-1)+4) -> 17582 | W167: =VLOOKUP($S167,NA_All!$AA$5:$AY$245,3*($C$8-1)+2) -> 1955.1 | X167: =VLOOKUP($S167,NA_All!$AA$5:$AY$245,3*($C$8-1)+3) -> 5312.3 | Y167: =VLOOKUP($S167,NA_All!$AA$5:$AY$245,3*($C$8-1)+4) -> 18586 | Z167: =IF(AND($B$8=$A$20,$B$6=$A$48),$B$54,IF(ISNA(VLOOKUP($B$6,$A$25:$E$52,IF($B$8=$A$22,3,2),FALSE)),EXP(VLOOKUP($B$6,$A$25:$E$52,4,FALSE)*LN(VLOOKUP($H167,P_Hard!$A$5:$Y$204,3*($C$8-1)+3,FALSE)/1000)+VLOOKUP($B$6,$A$25:$E$52,5,FALSE)),VLOOKUP($B$6,$A$25:$E$52,IF($B$8=$A$22,3,2),FALSE))) -> 
H168: 144 | I168: =VLOOKUP($H168,P_All!$A$5:$Y$204,3*($C$8-1)+2) -> 6954.7 | J168: =VLOOKUP($H168,P_All!$A$5:$Y$204,3*($C$8-1)+3) -> 9161.1 | K168: =VLOOKUP($H168,P_All!$A$5:$Y$204,3*($C$8-1)+4) -> 15773 | L168: =VLOOKUP($H168,NA_All!$A$5:$Y$204,3*($C$8-1)+2) -> 8404 | M168: =VLOOKUP($H168,NA_All!$A$5:$Y$204,3*($C$8-1)+3) -> 13428 | N168: =VLOOKUP($H168,NA_All!$A$5:$Y$204,3*($C$8-1)+4) -> 19021 | O168: =IF(ISNA(VLOOKUP($B$6,$A$25:$E$52,IF($B$8=$A$22,3,2))),EXP(VLOOKUP($B$6,$A$25:$E$52,4)*LN(VLOOKUP($H168,P_Hard!$A$5:$Y$204,3*($C$8-1)+2)/1000)+VLOOKUP($B$6,$A$25:$E$52,5)),NA()) ->  | Q168: =IF(ISNA(VLOOKUP($B$6,$A$25:$E$52,IF($B$8=$A$22,3,2))),EXP(VLOOKUP($B$6,$A$25:$E$52,4)*LN(VLOOKUP($H168,P_Hard!$A$5:$Y$204,3*($C$8-1)+4)/1000)+VLOOKUP($B$6,$A$25:$E$52,5)),NA()) ->  | S168: 11.91666667 | T168: =VLOOKUP($S168,P_All!$AA$5:$AY$245,3*($C$8-1)+2) -> 4765.1 | U168: =VLOOKUP($S168,P_All!$AA$5:$AY$245,3*($C$8-1)+3) -> 9804.5 | V168: =VLOOKUP($S168,P_All!$AA$5:$AY$245,3*($C$8-1)+4) -> 17273 | W168: =VLOOKUP($S168,NA_All!$AA$5:$AY$245,3*($C$8-1)+2) -> 2567.6 | X168: =VLOOKUP($S168,NA_All!$AA$5:$AY$245,3*($C$8-1)+3) -> 5987.1 | Y168: =VLOOKUP($S168,NA_All!$AA$5:$AY$245,3*($C$8-1)+4) -> 18119 | Z168: =IF(AND($B$8=$A$20,$B$6=$A$48),$B$54,IF(ISNA(VLOOKUP($B$6,$A$25:$E$52,IF($B$8=$A$22,3,2),FALSE)),EXP(VLOOKUP($B$6,$A$25:$E$52,4,FALSE)*LN(VLOOKUP($H168,P_Hard!$A$5:$Y$204,3*($C$8-1)+3,FALSE)/1000)+VLOOKUP($B$6,$A$25:$E$52,5,FALSE)),VLOOKUP($B$6,$A$25:$E$52,IF($B$8=$A$22,3,2),FALSE))) -> 
H169: 145 | I169: =VLOOKUP($H169,P_All!$A$5:$Y$204,3*($C$8-1)+2) -> 7783.7 | J169: =VLOOKUP($H169,P_All!$A$5:$Y$204,3*($C$8-1)+3) -> 9198.2 | K169: =VLOOKUP($H169,P_All!$A$5:$Y$204,3*($C$8-1)+4) -> 16396 | L169: =VLOOKUP($H169,NA_All!$A$5:$Y$204,3*($C$8-1)+2) -> 8554.3 | M169: =VLOOKUP($H169,NA_All!$A$5:$Y$204,3*($C$8-1)+3) -> 13458 | N169: =VLOOKUP($H169,NA_All!$A$5:$Y$204,3*($C$8-1)+4) -> 18947 | O169: =IF(ISNA(VLOOKUP($B$6,$A$25:$E$52,IF($B$8=$A$22,3,2))),EXP(VLOOKUP($B$6,$A$25:$E$52,4)*LN(VLOOKUP($H169,P_Hard!$A$5:$Y$204,3*($C$8-1)+2)/1000)+VLOOKUP($B$6,$A$25:$E$52,5)),NA()) ->  | Q169: =IF(ISNA(VLOOKUP($B$6,$A$25:$E$52,IF($B$8=$A$22,3,2))),EXP(VLOOKUP($B$6,$A$25:$E$52,4)*LN(VLOOKUP($H169,P_Hard!$A$5:$Y$204,3*($C$8-1)+4)/1000)+VLOOKUP($B$6,$A$25:$E$52,5)),NA()) ->  | S169: 12 | T169: =VLOOKUP($S169,P_All!$AA$5:$AY$245,3*($C$8-1)+2) -> 8485 | U169: =VLOOKUP($S169,P_All!$AA$5:$AY$245,3*($C$8-1)+3) -> 13401 | V169: =VLOOKUP($S169,P_All!$AA$5:$AY$245,3*($C$8-1)+4) -> 17135 | W169: =VLOOKUP($S169,NA_All!$AA$5:$AY$245,3*($C$8-1)+2) -> 4571.3 | X169: =VLOOKUP($S169,NA_All!$AA$5:$AY$245,3*($C$8-1)+3) -> 8860.8 | Y169: =VLOOKUP($S169,NA_All!$AA$5:$AY$245,3*($C$8-1)+4) -> 16626 | Z169: =IF(AND($B$8=$A$20,$B$6=$A$48),$B$54,IF(ISNA(VLOOKUP($B$6,$A$25:$E$52,IF($B$8=$A$22,3,2),FALSE)),EXP(VLOOKUP($B$6,$A$25:$E$52,4,FALSE)*LN(VLOOKUP($H169,P_Hard!$A$5:$Y$204,3*($C$8-1)+3,FALSE)/1000)+VLOOKUP($B$6,$A$25:$E$52,5,FALSE)),VLOOKUP($B$6,$A$25:$E$52,IF($B$8=$A$22,3,2),FALSE))) -> 
H170: 146 | I170: =VLOOKUP($H170,P_All!$A$5:$Y$204,3*($C$8-1)+2) -> 7290.3 | J170: =VLOOKUP($H170,P_All!$A$5:$Y$204,3*($C$8-1)+3) -> 9153.3 | K170: =VLOOKUP($H170,P_All!$A$5:$Y$204,3*($C$8-1)+4) -> 15362 | L170: =VLOOKUP($H170,NA_All!$A$5:$Y$204,3*($C$8-1)+2) -> 8526.4 | M170: =VLOOKUP($H170,NA_All!$A$5:$Y$204,3*($C$8-1)+3) -> 13483 | N170: =VLOOKUP($H170,NA_All!$A$5:$Y$204,3*($C$8-1)+4) -> 19281 | O170: =IF(ISNA(VLOOKUP($B$6,$A$25:$E$52,IF($B$8=$A$22,3,2))),EXP(VLOOKUP($B$6,$A$25:$E$52,4)*LN(VLOOKUP($H170,P_Hard!$A$5:$Y$204,3*($C$8-1)+2)/1000)+VLOOKUP($B$6,$A$25:$E$52,5)),NA()) ->  | Q170: =IF(ISNA(VLOOKUP($B$6,$A$25:$E$52,IF($B$8=$A$22,3,2))),EXP(VLOOKUP($B$6,$A$25:$E$52,4)*LN(VLOOKUP($H170,P_Hard!$A$5:$Y$204,3*($C$8-1)+4)/1000)+VLOOKUP($B$6,$A$25:$E$52,5)),NA()) ->  | S170: 12.08333333 | T170: =VLOOKUP($S170,P_All!$AA$5:$AY$245,3*($C$8-1)+2) -> 12262 | U170: =VLOOKUP($S170,P_All!$AA$5:$AY$245,3*($C$8-1)+3) -> 16650 | V170: =VLOOKUP($S170,P_All!$AA$5:$AY$245,3*($C$8-1)+4) -> 21668 | W170: =VLOOKUP($S170,NA_All!$AA$5:$AY$245,3*($C$8-1)+2) -> 7053.8 | X170: =VLOOKUP($S170,NA_All!$AA$5:$AY$245,3*($C$8-1)+3) -> 11674 | Y170: =VLOOKUP($S170,NA_All!$AA$5:$AY$245,3*($C$8-1)+4) -> 15938 | Z170: =IF(AND($B$8=$A$20,$B$6=$A$48),$B$54,IF(ISNA(VLOOKUP($B$6,$A$25:$E$52,IF($B$8=$A$22,3,2),FALSE)),EXP(VLOOKUP($B$6,$A$25:$E$52,4,FALSE)*LN(VLOOKUP($H170,P_Hard!$A$5:$Y$204,3*($C$8-1)+3,FALSE)/1000)+VLOOKUP($B$6,$A$25:$E$52,5,FALSE)),VLOOKUP($B$6,$A$25:$E$52,IF($B$8=$A$22,3,2),FALSE))) -> 
H171: 147 | I171: =VLOOKUP($H171,P_All!$A$5:$Y$204,3*($C$8-1)+2) -> 6981 | J171: =VLOOKUP($H171,P_All!$A$5:$Y$204,3*($C$8-1)+3) -> 9213.4 | K171: =VLOOKUP($H171,P_All!$A$5:$Y$204,3*($C$8-1)+4) -> 16290 | L171: =VLOOKUP($H171,NA_All!$A$5:$Y$204,3*($C$8-1)+2) -> 8261.7 | M171: =VLOOKUP($H171,NA_All!$A$5:$Y$204,3*($C$8-1)+3) -> 13379 | N171: =VLOOKUP($H171,NA_All!$A$5:$Y$204,3*($C$8-1)+4) -> 19068 | O171: =IF(ISNA(VLOOKUP($B$6,$A$25:$E$52,IF($B$8=$A$22,3,2))),EXP(VLOOKUP($B$6,$A$25:$E$52,4)*LN(VLOOKUP($H171,P_Hard!$A$5:$Y$204,3*($C$8-1)+2)/1000)+VLOOKUP($B$6,$A$25:$E$52,5)),NA()) ->  | Q171: =IF(ISNA(VLOOKUP($B$6,$A$25:$E$52,IF($B$8=$A$22,3,2))),EXP(VLOOKUP($B$6,$A$25:$E$52,4)*LN(VLOOKUP($H171,P_Hard!$A$5:$Y$204,3*($C$8-1)+4)/1000)+VLOOKUP($B$6,$A$25:$E$52,5)),NA()) ->  | S171: 12.16666667 | T171: =VLOOKUP($S171,P_All!$AA$5:$AY$245,3*($C$8-1)+2) -> 13232 | U171: =VLOOKUP($S171,P_All!$AA$5:$AY$245,3*($C$8-1)+3) -> 20860 | V171: =VLOOKUP($S171,P_All!$AA$5:$AY$245,3*($C$8-1)+4) -> 23680 | W171: =VLOOKUP($S171,NA_All!$AA$5:$AY$245,3*($C$8-1)+2) -> 7873.2 | X171: =VLOOKUP($S171,NA_All!$AA$5:$AY$245,3*($C$8-1)+3) -> 14019 | Y171: =VLOOKUP($S171,NA_All!$AA$5:$AY$245,3*($C$8-1)+4) -> 16770 | Z171: =IF(AND($B$8=$A$20,$B$6=$A$48),$B$54,IF(ISNA(VLOOKUP($B$6,$A$25:$E$52,IF($B$8=$A$22,3,2),FALSE)),EXP(VLOOKUP($B$6,$A$25:$E$52,4,FALSE)*LN(VLOOKUP($H171,P_Hard!$A$5:$Y$204,3*($C$8-1)+3,FALSE)/1000)+VLOOKUP($B$6,$A$25:$E$52,5,FALSE)),VLOOKUP($B$6,$A$25:$E$52,IF($B$8=$A$22,3,2),FALSE))) -> 
H172: 148 | I172: =VLOOKUP($H172,P_All!$A$5:$Y$204,3*($C$8-1)+2) -> 7154.6 | J172: =VLOOKUP($H172,P_All!$A$5:$Y$204,3*($C$8-1)+3) -> 9200.1 | K172: =VLOOKUP($H172,P_All!$A$5:$Y$204,3*($C$8-1)+4) -> 16175 | L172: =VLOOKUP($H172,NA_All!$A$5:$Y$204,3*($C$8-1)+2) -> 8332.4 | M172: =VLOOKUP($H172,NA_All!$A$5:$Y$204,3*($C$8-1)+3) -> 13523 | N172: =VLOOKUP($H172,NA_All!$A$5:$Y$204,3*($C$8-1)+4) -> 19204 | O172: =IF(ISNA(VLOOKUP($B$6,$A$25:$E$52,IF($B$8=$A$22,3,2))),EXP(VLOOKUP($B$6,$A$25:$E$52,4)*LN(VLOOKUP($H172,P_Hard!$A$5:$Y$204,3*($C$8-1)+2)/1000)+VLOOKUP($B$6,$A$25:$E$52,5)),NA()) ->  | Q172: =IF(ISNA(VLOOKUP($B$6,$A$25:$E$52,IF($B$8=$A$22,3,2))),EXP(VLOOKUP($B$6,$A$25:$E$52,4)*LN(VLOOKUP($H172,P_Hard!$A$5:$Y$204,3*($C$8-1)+4)/1000)+VLOOKUP($B$6,$A$25:$E$52,5)),NA()) ->  | S172: 12.25 | T172: =VLOOKUP($S172,P_All!$AA$5:$AY$245,3*($C$8-1)+2) -> 6125 | U172: =VLOOKUP($S172,P_All!$AA$5:$AY$245,3*($C$8-1)+3) -> 17751 | V172: =VLOOKUP($S172,P_All!$AA$5:$AY$245,3*($C$8-1)+4) -> 24188 | W172: =VLOOKUP($S172,NA_All!$AA$5:$AY$245,3*($C$8-1)+2) -> 3658.9 | X172: =VLOOKUP($S172,NA_All!$AA$5:$AY$245,3*($C$8-1)+3) -> 12555 | Y172: =VLOOKUP($S172,NA_All!$AA$5:$AY$245,3*($C$8-1)+4) -> 17839 | Z172: =IF(AND($B$8=$A$20,$B$6=$A$48),$B$54,IF(ISNA(VLOOKUP($B$6,$A$25:$E$52,IF($B$8=$A$22,3,2),FALSE)),EXP(VLOOKUP($B$6,$A$25:$E$52,4,FALSE)*LN(VLOOKUP($H172,P_Hard!$A$5:$Y$204,3*($C$8-1)+3,FALSE)/1000)+VLOOKUP($B$6,$A$25:$E$52,5,FALSE)),VLOOKUP($B$6,$A$25:$E$52,IF($B$8=$A$22,3,2),FALSE))) -> 
H173: 149 | I173: =VLOOKUP($H173,P_All!$A$5:$Y$204,3*($C$8-1)+2) -> 7151.3 | J173: =VLOOKUP($H173,P_All!$A$5:$Y$204,3*($C$8-1)+3) -> 9127.7 | K173: =VLOOKUP($H173,P_All!$A$5:$Y$204,3*($C$8-1)+4) -> 15406 | L173: =VLOOKUP($H173,NA_All!$A$5:$Y$204,3*($C$8-1)+2) -> 8753.9 | M173: =VLOOKUP($H173,NA_All!$A$5:$Y$204,3*($C$8-1)+3) -> 13387 | N173: =VLOOKUP($H173,NA_All!$A$5:$Y$204,3*($C$8-1)+4) -> 19347 | O173: =IF(ISNA(VLOOKUP($B$6,$A$25:$E$52,IF($B$8=$A$22,3,2))),EXP(VLOOKUP($B$6,$A$25:$E$52,4)*LN(VLOOKUP($H173,P_Hard!$A$5:$Y$204,3*($C$8-1)+2)/1000)+VLOOKUP($B$6,$A$25:$E$52,5)),NA()) ->  | Q173: =IF(ISNA(VLOOKUP($B$6,$A$25:$E$52,IF($B$8=$A$22,3,2))),EXP(VLOOKUP($B$6,$A$25:$E$52,4)*LN(VLOOKUP($H173,P_Hard!$A$5:$Y$204,3*($C$8-1)+4)/1000)+VLOOKUP($B$6,$A$25:$E$52,5)),NA()) ->  | S173: 12.33333333 | T173: =VLOOKUP($S173,P_All!$AA$5:$AY$245,3*($C$8-1)+2) -> 3230.8 | U173: =VLOOKUP($S173,P_All!$AA$5:$AY$245,3*($C$8-1)+3) -> 7378.5 | V173: =VLOOKUP($S173,P_All!$AA$5:$AY$245,3*($C$8-1)+4) -> 17985 | W173: =VLOOKUP($S173,NA_All!$AA$5:$AY$245,3*($C$8-1)+2) -> 1512.2 | X173: =VLOOKUP($S173,NA_All!$AA$5:$AY$245,3*($C$8-1)+3) -> 4556.3 | Y173: =VLOOKUP($S173,NA_All!$AA$5:$AY$245,3*($C$8-1)+4) -> 18708 | Z173: =IF(AND($B$8=$A$20,$B$6=$A$48),$B$54,IF(ISNA(VLOOKUP($B$6,$A$25:$E$52,IF($B$8=$A$22,3,2),FALSE)),EXP(VLOOKUP($B$6,$A$25:$E$52,4,FALSE)*LN(VLOOKUP($H173,P_Hard!$A$5:$Y$204,3*($C$8-1)+3,FALSE)/1000)+VLOOKUP($B$6,$A$25:$E$52,5,FALSE)),VLOOKUP($B$6,$A$25:$E$52,IF($B$8=$A$22,3,2),FALSE))) -> 
H174: 150 | I174: =VLOOKUP($H174,P_All!$A$5:$Y$204,3*($C$8-1)+2) -> 7004.9 | J174: =VLOOKUP($H174,P_All!$A$5:$Y$204,3*($C$8-1)+3) -> 9192 | K174: =VLOOKUP($H174,P_All!$A$5:$Y$204,3*($C$8-1)+4) -> 16392 | L174: =VLOOKUP($H174,NA_All!$A$5:$Y$204,3*($C$8-1)+2) -> 8090.3 | M174: =VLOOKUP($H174,NA_All!$A$5:$Y$204,3*($C$8-1)+3) -> 13451 | N174: =VLOOKUP($H174,NA_All!$A$5:$Y$204,3*($C$8-1)+4) -> 18622 | O174: =IF(ISNA(VLOOKUP($B$6,$A$25:$E$52,IF($B$8=$A$22,3,2))),EXP(VLOOKUP($B$6,$A$25:$E$52,4)*LN(VLOOKUP($H174,P_Hard!$A$5:$Y$204,3*($C$8-1)+2)/1000)+VLOOKUP($B$6,$A$25:$E$52,5)),NA()) ->  | Q174: =IF(ISNA(VLOOKUP($B$6,$A$25:$E$52,IF($B$8=$A$22,3,2))),EXP(VLOOKUP($B$6,$A$25:$E$52,4)*LN(VLOOKUP($H174,P_Hard!$A$5:$Y$204,3*($C$8-1)+4)/1000)+VLOOKUP($B$6,$A$25:$E$52,5)),NA()) ->  | S174: 12.41666667 | T174: =VLOOKUP($S174,P_All!$AA$5:$AY$245,3*($C$8-1)+2) -> 2886.3 | U174: =VLOOKUP($S174,P_All!$AA$5:$AY$245,3*($C$8-1)+3) -> 7424.3 | V174: =VLOOKUP($S174,P_All!$AA$5:$AY$245,3*($C$8-1)+4) -> 15428 | W174: =VLOOKUP($S174,NA_All!$AA$5:$AY$245,3*($C$8-1)+2) -> 1312.6 | X174: =VLOOKUP($S174,NA_All!$AA$5:$AY$245,3*($C$8-1)+3) -> 4712.3 | Y174: =VLOOKUP($S174,NA_All!$AA$5:$AY$245,3*($C$8-1)+4) -> 19433 | Z174: =IF(AND($B$8=$A$20,$B$6=$A$48),$B$54,IF(ISNA(VLOOKUP($B$6,$A$25:$E$52,IF($B$8=$A$22,3,2),FALSE)),EXP(VLOOKUP($B$6,$A$25:$E$52,4,FALSE)*LN(VLOOKUP($H174,P_Hard!$A$5:$Y$204,3*($C$8-1)+3,FALSE)/1000)+VLOOKUP($B$6,$A$25:$E$52,5,FALSE)),VLOOKUP($B$6,$A$25:$E$52,IF($B$8=$A$22,3,2),FALSE))) -> 
H175: 151 | I175: =VLOOKUP($H175,P_All!$A$5:$Y$204,3*($C$8-1)+2) -> 6972.3 | J175: =VLOOKUP($H175,P_All!$A$5:$Y$204,3*($C$8-1)+3) -> 9141.5 | K175: =VLOOKUP($H175,P_All!$A$5:$Y$204,3*($C$8-1)+4) -> 17356 | L175: =VLOOKUP($H175,NA_All!$A$5:$Y$204,3*($C$8-1)+2) -> 8233.6 | M175: =VLOOKUP($H175,NA_All!$A$5:$Y$204,3*($C$8-1)+3) -> 13249 | N175: =VLOOKUP($H175,NA_All!$A$5:$Y$204,3*($C$8-1)+4) -> 18901 | O175: =IF(ISNA(VLOOKUP($B$6,$A$25:$E$52,IF($B$8=$A$22,3,2))),EXP(VLOOKUP($B$6,$A$25:$E$52,4)*LN(VLOOKUP($H175,P_Hard!$A$5:$Y$204,3*($C$8-1)+2)/1000)+VLOOKUP($B$6,$A$25:$E$52,5)),NA()) ->  | Q175: =IF(ISNA(VLOOKUP($B$6,$A$25:$E$52,IF($B$8=$A$22,3,2))),EXP(VLOOKUP($B$6,$A$25:$E$52,4)*LN(VLOOKUP($H175,P_Hard!$A$5:$Y$204,3*($C$8-1)+4)/1000)+VLOOKUP($B$6,$A$25:$E$52,5)),NA()) ->  | S175: 12.5 | T175: =VLOOKUP($S175,P_All!$AA$5:$AY$245,3*($C$8-1)+2) -> 3682.1 | U175: =VLOOKUP($S175,P_All!$AA$5:$AY$245,3*($C$8-1)+3) -> 8603.8 | V175: =VLOOKUP($S175,P_All!$AA$5:$AY$245,3*($C$8-1)+4) -> 16334 | W175: =VLOOKUP($S175,NA_All!$AA$5:$AY$245,3*($C$8-1)+2) -> 1556.5 | X175: =VLOOKUP($S175,NA_All!$AA$5:$AY$245,3*($C$8-1)+3) -> 5758.8 | Y175: =VLOOKUP($S175,NA_All!$AA$5:$AY$245,3*($C$8-1)+4) -> 17864 | Z175: =IF(AND($B$8=$A$20,$B$6=$A$48),$B$54,IF(ISNA(VLOOKUP($B$6,$A$25:$E$52,IF($B$8=$A$22,3,2),FALSE)),EXP(VLOOKUP($B$6,$A$25:$E$52,4,FALSE)*LN(VLOOKUP($H175,P_Hard!$A$5:$Y$204,3*($C$8-1)+3,FALSE)/1000)+VLOOKUP($B$6,$A$25:$E$52,5,FALSE)),VLOOKUP($B$6,$A$25:$E$52,IF($B$8=$A$22,3,2),FALSE))) -> 
H176: 152 | I176: =VLOOKUP($H176,P_All!$A$5:$Y$204,3*($C$8-1)+2) -> 7233.7 | J176: =VLOOKUP($H176,P_All!$A$5:$Y$204,3*($C$8-1)+3) -> 9170.5 | K176: =VLOOKUP($H176,P_All!$A$5:$Y$204,3*($C$8-1)+4) -> 15978 | L176: =VLOOKUP($H176,NA_All!$A$5:$Y$204,3*($C$8-1)+2) -> 8349.6 | M176: =VLOOKUP($H176,NA_All!$A$5:$Y$204,3*($C$8-1)+3) -> 13498 | N176: =VLOOKUP($H176,NA_All!$A$5:$Y$204,3*($C$8-1)+4) -> 18702 | O176: =IF(ISNA(VLOOKUP($B$6,$A$25:$E$52,IF($B$8=$A$22,3,2))),EXP(VLOOKUP($B$6,$A$25:$E$52,4)*LN(VLOOKUP($H176,P_Hard!$A$5:$Y$204,3*($C$8-1)+2)/1000)+VLOOKUP($B$6,$A$25:$E$52,5)),NA()) ->  | Q176: =IF(ISNA(VLOOKUP($B$6,$A$25:$E$52,IF($B$8=$A$22,3,2))),EXP(VLOOKUP($B$6,$A$25:$E$52,4)*LN(VLOOKUP($H176,P_Hard!$A$5:$Y$204,3*($C$8-1)+4)/1000)+VLOOKUP($B$6,$A$25:$E$52,5)),NA()) ->  | S176: 12.58333333 | T176: =VLOOKUP($S176,P_All!$AA$5:$AY$245,3*($C$8-1)+2) -> 4333.8 | U176: =VLOOKUP($S176,P_All!$AA$5:$AY$245,3*($C$8-1)+3) -> 10783 | V176: =VLOOKUP($S176,P_All!$AA$5:$AY$245,3*($C$8-1)+4) -> 20204 | W176: =VLOOKUP($S176,NA_All!$AA$5:$AY$245,3*($C$8-1)+2) -> 2060.6 | X176: =VLOOKUP($S176,NA_All!$AA$5:$AY$245,3*($C$8-1)+3) -> 7208.9 | Y176: =VLOOKUP($S176,NA_All!$AA$5:$AY$245,3*($C$8-1)+4) -> 17247 | Z176: =IF(AND($B$8=$A$20,$B$6=$A$48),$B$54,IF(ISNA(VLOOKUP($B$6,$A$25:$E$52,IF($B$8=$A$22,3,2),FALSE)),EXP(VLOOKUP($B$6,$A$25:$E$52,4,FALSE)*LN(VLOOKUP($H176,P_Hard!$A$5:$Y$204,3*($C$8-1)+3,FALSE)/1000)+VLOOKUP($B$6,$A$25:$E$52,5,FALSE)),VLOOKUP($B$6,$A$25:$E$52,IF($B$8=$A$22,3,2),FALSE))) -> 
H177: 153 | I177: =VLOOKUP($H177,P_All!$A$5:$Y$204,3*($C$8-1)+2) -> 7220.7 | J177: =VLOOKUP($H177,P_All!$A$5:$Y$204,3*($C$8-1)+3) -> 9135.9 | K177: =VLOOKUP($H177,P_All!$A$5:$Y$204,3*($C$8-1)+4) -> 16045 | L177: =VLOOKUP($H177,NA_All!$A$5:$Y$204,3*($C$8-1)+2) -> 8651.3 | M177: =VLOOKUP($H177,NA_All!$A$5:$Y$204,3*($C$8-1)+3) -> 13421 | N177: =VLOOKUP($H177,NA_All!$A$5:$Y$204,3*($C$8-1)+4) -> 19150 | O177: =IF(ISNA(VLOOKUP($B$6,$A$25:$E$52,IF($B$8=$A$22,3,2))),EXP(VLOOKUP($B$6,$A$25:$E$52,4)*LN(VLOOKUP($H177,P_Hard!$A$5:$Y$204,3*($C$8-1)+2)/1000)+VLOOKUP($B$6,$A$25:$E$52,5)),NA()) ->  | Q177: =IF(ISNA(VLOOKUP($B$6,$A$25:$E$52,IF($B$8=$A$22,3,2))),EXP(VLOOKUP($B$6,$A$25:$E$52,4)*LN(VLOOKUP($H177,P_Hard!$A$5:$Y$204,3*($C$8-1)+4)/1000)+VLOOKUP($B$6,$A$25:$E$52,5)),NA()) ->  | S177: 12.66666667 | T177: =VLOOKUP($S177,P_All!$AA$5:$AY$245,3*($C$8-1)+2) -> 3773.5 | U177: =VLOOKUP($S177,P_All!$AA$5:$AY$245,3*($C$8-1)+3) -> 9904 | V177: =VLOOKUP($S177,P_All!$AA$5:$AY$245,3*($C$8-1)+4) -> 20562 | W177: =VLOOKUP($S177,NA_All!$AA$5:$AY$245,3*($C$8-1)+2) -> 1967.4 | X177: =VLOOKUP($S177,NA_All!$AA$5:$AY$245,3*($C$8-1)+3) -> 6621.6 | Y177: =VLOOKUP($S177,NA_All!$AA$5:$AY$245,3*($C$8-1)+4) -> 18323 | Z177: =IF(AND($B$8=$A$20,$B$6=$A$48),$B$54,IF(ISNA(VLOOKUP($B$6,$A$25:$E$52,IF($B$8=$A$22,3,2),FALSE)),EXP(VLOOKUP($B$6,$A$25:$E$52,4,FALSE)*LN(VLOOKUP($H177,P_Hard!$A$5:$Y$204,3*($C$8-1)+3,FALSE)/1000)+VLOOKUP($B$6,$A$25:$E$52,5,FALSE)),VLOOKUP($B$6,$A$25:$E$52,IF($B$8=$A$22,3,2),FALSE))) -> 
H178: 154 | I178: =VLOOKUP($H178,P_All!$A$5:$Y$204,3*($C$8-1)+2) -> 6924.2 | J178: =VLOOKUP($H178,P_All!$A$5:$Y$204,3*($C$8-1)+3) -> 9141.5 | K178: =VLOOKUP($H178,P_All!$A$5:$Y$204,3*($C$8-1)+4) -> 16782 | L178: =VLOOKUP($H178,NA_All!$A$5:$Y$204,3*($C$8-1)+2) -> 8266.5 | M178: =VLOOKUP($H178,NA_All!$A$5:$Y$204,3*($C$8-1)+3) -> 13477 | N178: =VLOOKUP($H178,NA_All!$A$5:$Y$204,3*($C$8-1)+4) -> 19111 | O178: =IF(ISNA(VLOOKUP($B$6,$A$25:$E$52,IF($B$8=$A$22,3,2))),EXP(VLOOKUP($B$6,$A$25:$E$52,4)*LN(VLOOKUP($H178,P_Hard!$A$5:$Y$204,3*($C$8-1)+2)/1000)+VLOOKUP($B$6,$A$25:$E$52,5)),NA()) ->  | Q178: =IF(ISNA(VLOOKUP($B$6,$A$25:$E$52,IF($B$8=$A$22,3,2))),EXP(VLOOKUP($B$6,$A$25:$E$52,4)*LN(VLOOKUP($H178,P_Hard!$A$5:$Y$204,3*($C$8-1)+4)/1000)+VLOOKUP($B$6,$A$25:$E$52,5)),NA()) ->  | S178: 12.75 | T178: =VLOOKUP($S178,P_All!$AA$5:$AY$245,3*($C$8-1)+2) -> 4326.3 | U178: =VLOOKUP($S178,P_All!$AA$5:$AY$245,3*($C$8-1)+3) -> 8755.3 | V178: =VLOOKUP($S178,P_All!$AA$5:$AY$245,3*($C$8-1)+4) -> 17469 | W178: =VLOOKUP($S178,NA_All!$AA$5:$AY$245,3*($C$8-1)+2) -> 1878.9 | X178: =VLOOKUP($S178,NA_All!$AA$5:$AY$245,3*($C$8-1)+3) -> 6003.3 | Y178: =VLOOKUP($S178,NA_All!$AA$5:$AY$245,3*($C$8-1)+4) -> 18884 | Z178: =IF(AND($B$8=$A$20,$B$6=$A$48),$B$54,IF(ISNA(VLOOKUP($B$6,$A$25:$E$52,IF($B$8=$A$22,3,2),FALSE)),EXP(VLOOKUP($B$6,$A$25:$E$52,4,FALSE)*LN(VLOOKUP($H178,P_Hard!$A$5:$Y$204,3*($C$8-1)+3,FALSE)/1000)+VLOOKUP($B$6,$A$25:$E$52,5,FALSE)),VLOOKUP($B$6,$A$25:$E$52,IF($B$8=$A$22,3,2),FALSE))) -> 
H179: 155 | I179: =VLOOKUP($H179,P_All!$A$5:$Y$204,3*($C$8-1)+2) -> 7052.3 | J179: =VLOOKUP($H179,P_All!$A$5:$Y$204,3*($C$8-1)+3) -> 9240.3 | K179: =VLOOKUP($H179,P_All!$A$5:$Y$204,3*($C$8-1)+4) -> 16156 | L179: =VLOOKUP($H179,NA_All!$A$5:$Y$204,3*($C$8-1)+2) -> 8175.6 | M179: =VLOOKUP($H179,NA_All!$A$5:$Y$204,3*($C$8-1)+3) -> 13449 | N179: =VLOOKUP($H179,NA_All!$A$5:$Y$204,3*($C$8-1)+4) -> 19044 | O179: =IF(ISNA(VLOOKUP($B$6,$A$25:$E$52,IF($B$8=$A$22,3,2))),EXP(VLOOKUP($B$6,$A$25:$E$52,4)*LN(VLOOKUP($H179,P_Hard!$A$5:$Y$204,3*($C$8-1)+2)/1000)+VLOOKUP($B$6,$A$25:$E$52,5)),NA()) ->  | Q179: =IF(ISNA(VLOOKUP($B$6,$A$25:$E$52,IF($B$8=$A$22,3,2))),EXP(VLOOKUP($B$6,$A$25:$E$52,4)*LN(VLOOKUP($H179,P_Hard!$A$5:$Y$204,3*($C$8-1)+4)/1000)+VLOOKUP($B$6,$A$25:$E$52,5)),NA()) ->  | S179: 12.83333333 | T179: =VLOOKUP($S179,P_All!$AA$5:$AY$245,3*($C$8-1)+2) -> 3831.6 | U179: =VLOOKUP($S179,P_All!$AA$5:$AY$245,3*($C$8-1)+3) -> 8403.2 | V179: =VLOOKUP($S179,P_All!$AA$5:$AY$245,3*($C$8-1)+4) -> 15416 | W179: =VLOOKUP($S179,NA_All!$AA$5:$AY$245,3*($C$8-1)+2) -> 1822 | X179: =VLOOKUP($S179,NA_All!$AA$5:$AY$245,3*($C$8-1)+3) -> 5283.9 | Y179: =VLOOKUP($S179,NA_All!$AA$5:$AY$245,3*($C$8-1)+4) -> 18770 | Z179: =IF(AND($B$8=$A$20,$B$6=$A$48),$B$54,IF(ISNA(VLOOKUP($B$6,$A$25:$E$52,IF($B$8=$A$22,3,2),FALSE)),EXP(VLOOKUP($B$6,$A$25:$E$52,4,FALSE)*LN(VLOOKUP($H179,P_Hard!$A$5:$Y$204,3*($C$8-1)+3,FALSE)/1000)+VLOOKUP($B$6,$A$25:$E$52,5,FALSE)),VLOOKUP($B$6,$A$25:$E$52,IF($B$8=$A$22,3,2),FALSE))) -> 
H180: 156 | I180: =VLOOKUP($H180,P_All!$A$5:$Y$204,3*($C$8-1)+2) -> 7233.3 | J180: =VLOOKUP($H180,P_All!$A$5:$Y$204,3*($C$8-1)+3) -> 9117.9 | K180: =VLOOKUP($H180,P_All!$A$5:$Y$204,3*($C$8-1)+4) -> 15372 | L180: =VLOOKUP($H180,NA_All!$A$5:$Y$204,3*($C$8-1)+2) -> 8253.5 | M180: =VLOOKUP($H180,NA_All!$A$5:$Y$204,3*($C$8-1)+3) -> 13471 | N180: =VLOOKUP($H180,NA_All!$A$5:$Y$204,3*($C$8-1)+4) -> 18808 | O180: =IF(ISNA(VLOOKUP($B$6,$A$25:$E$52,IF($B$8=$A$22,3,2))),EXP(VLOOKUP($B$6,$A$25:$E$52,4)*LN(VLOOKUP($H180,P_Hard!$A$5:$Y$204,3*($C$8-1)+2)/1000)+VLOOKUP($B$6,$A$25:$E$52,5)),NA()) ->  | Q180: =IF(ISNA(VLOOKUP($B$6,$A$25:$E$52,IF($B$8=$A$22,3,2))),EXP(VLOOKUP($B$6,$A$25:$E$52,4)*LN(VLOOKUP($H180,P_Hard!$A$5:$Y$204,3*($C$8-1)+4)/1000)+VLOOKUP($B$6,$A$25:$E$52,5)),NA()) ->  | S180: 12.91666667 | T180: =VLOOKUP($S180,P_All!$AA$5:$AY$245,3*($C$8-1)+2) -> 4928.4 | U180: =VLOOKUP($S180,P_All!$AA$5:$AY$245,3*($C$8-1)+3) -> 10127 | V180: =VLOOKUP($S180,P_All!$AA$5:$AY$245,3*($C$8-1)+4) -> 16561 | W180: =VLOOKUP($S180,NA_All!$AA$5:$AY$245,3*($C$8-1)+2) -> 2932.6 | X180: =VLOOKUP($S180,NA_All!$AA$5:$AY$245,3*($C$8-1)+3) -> 6139.8 | Y180: =VLOOKUP($S180,NA_All!$AA$5:$AY$245,3*($C$8-1)+4) -> 18422 | Z180: =IF(AND($B$8=$A$20,$B$6=$A$48),$B$54,IF(ISNA(VLOOKUP($B$6,$A$25:$E$52,IF($B$8=$A$22,3,2),FALSE)),EXP(VLOOKUP($B$6,$A$25:$E$52,4,FALSE)*LN(VLOOKUP($H180,P_Hard!$A$5:$Y$204,3*($C$8-1)+3,FALSE)/1000)+VLOOKUP($B$6,$A$25:$E$52,5,FALSE)),VLOOKUP($B$6,$A$25:$E$52,IF($B$8=$A$22,3,2),FALSE))) -> 
H181: 157 | I181: =VLOOKUP($H181,P_All!$A$5:$Y$204,3*($C$8-1)+2) -> 6966.3 | J181: =VLOOKUP($H181,P_All!$A$5:$Y$204,3*($C$8-1)+3) -> 9123.2 | K181: =VLOOKUP($H181,P_All!$A$5:$Y$204,3*($C$8-1)+4) -> 15820 | L181: =VLOOKUP($H181,NA_All!$A$5:$Y$204,3*($C$8-1)+2) -> 8187 | M181: =VLOOKUP($H181,NA_All!$A$5:$Y$204,3*($C$8-1)+3) -> 13369 | N181: =VLOOKUP($H181,NA_All!$A$5:$Y$204,3*($C$8-1)+4) -> 19034 | O181: =IF(ISNA(VLOOKUP($B$6,$A$25:$E$52,IF($B$8=$A$22,3,2))),EXP(VLOOKUP($B$6,$A$25:$E$52,4)*LN(VLOOKUP($H181,P_Hard!$A$5:$Y$204,3*($C$8-1)+2)/1000)+VLOOKUP($B$6,$A$25:$E$52,5)),NA()) ->  | Q181: =IF(ISNA(VLOOKUP($B$6,$A$25:$E$52,IF($B$8=$A$22,3,2))),EXP(VLOOKUP($B$6,$A$25:$E$52,4)*LN(VLOOKUP($H181,P_Hard!$A$5:$Y$204,3*($C$8-1)+4)/1000)+VLOOKUP($B$6,$A$25:$E$52,5)),NA()) ->  | S181: 13 | T181: =VLOOKUP($S181,P_All!$AA$5:$AY$245,3*($C$8-1)+2) -> 8590 | U181: =VLOOKUP($S181,P_All!$AA$5:$AY$245,3*($C$8-1)+3) -> 13747 | V181: =VLOOKUP($S181,P_All!$AA$5:$AY$245,3*($C$8-1)+4) -> 17869 | W181: =VLOOKUP($S181,NA_All!$AA$5:$AY$245,3*($C$8-1)+2) -> 4910.6 | X181: =VLOOKUP($S181,NA_All!$AA$5:$AY$245,3*($C$8-1)+3) -> 8957.3 | Y181: =VLOOKUP($S181,NA_All!$AA$5:$AY$245,3*($C$8-1)+4) -> 16715 | Z181: =IF(AND($B$8=$A$20,$B$6=$A$48),$B$54,IF(ISNA(VLOOKUP($B$6,$A$25:$E$52,IF($B$8=$A$22,3,2),FALSE)),EXP(VLOOKUP($B$6,$A$25:$E$52,4,FALSE)*LN(VLOOKUP($H181,P_Hard!$A$5:$Y$204,3*($C$8-1)+3,FALSE)/1000)+VLOOKUP($B$6,$A$25:$E$52,5,FALSE)),VLOOKUP($B$6,$A$25:$E$52,IF($B$8=$A$22,3,2),FALSE))) -> 
H182: 158 | I182: =VLOOKUP($H182,P_All!$A$5:$Y$204,3*($C$8-1)+2) -> 7231.5 | J182: =VLOOKUP($H182,P_All!$A$5:$Y$204,3*($C$8-1)+3) -> 9193 | K182: =VLOOKUP($H182,P_All!$A$5:$Y$204,3*($C$8-1)+4) -> 15150 | L182: =VLOOKUP($H182,NA_All!$A$5:$Y$204,3*($C$8-1)+2) -> 8403.8 | M182: =VLOOKUP($H182,NA_All!$A$5:$Y$204,3*($C$8-1)+3) -> 13463 | N182: =VLOOKUP($H182,NA_All!$A$5:$Y$204,3*($C$8-1)+4) -> 19044 | O182: =IF(ISNA(VLOOKUP($B$6,$A$25:$E$52,IF($B$8=$A$22,3,2))),EXP(VLOOKUP($B$6,$A$25:$E$52,4)*LN(VLOOKUP($H182,P_Hard!$A$5:$Y$204,3*($C$8-1)+2)/1000)+VLOOKUP($B$6,$A$25:$E$52,5)),NA()) ->  | Q182: =IF(ISNA(VLOOKUP($B$6,$A$25:$E$52,IF($B$8=$A$22,3,2))),EXP(VLOOKUP($B$6,$A$25:$E$52,4)*LN(VLOOKUP($H182,P_Hard!$A$5:$Y$204,3*($C$8-1)+4)/1000)+VLOOKUP($B$6,$A$25:$E$52,5)),NA()) ->  | S182: 13.08333333 | T182: =VLOOKUP($S182,P_All!$AA$5:$AY$245,3*($C$8-1)+2) -> 12181 | U182: =VLOOKUP($S182,P_All!$AA$5:$AY$245,3*($C$8-1)+3) -> 17225 | V182: =VLOOKUP($S182,P_All!$AA$5:$AY$245,3*($C$8-1)+4) -> 21760 | W182: =VLOOKUP($S182,NA_All!$AA$5:$AY$245,3*($C$8-1)+2) -> 7334.9 | X182: =VLOOKUP($S182,NA_All!$AA$5:$AY$245,3*($C$8-1)+3) -> 12214 | Y182: =VLOOKUP($S182,NA_All!$AA$5:$AY$245,3*($C$8-1)+4) -> 15887 | Z182: =IF(AND($B$8=$A$20,$B$6=$A$48),$B$54,IF(ISNA(VLOOKUP($B$6,$A$25:$E$52,IF($B$8=$A$22,3,2),FALSE)),EXP(VLOOKUP($B$6,$A$25:$E$52,4,FALSE)*LN(VLOOKUP($H182,P_Hard!$A$5:$Y$204,3*($C$8-1)+3,FALSE)/1000)+VLOOKUP($B$6,$A$25:$E$52,5,FALSE)),VLOOKUP($B$6,$A$25:$E$52,IF($B$8=$A$22,3,2),FALSE))) -> 
H183: 159 | I183: =VLOOKUP($H183,P_All!$A$5:$Y$204,3*($C$8-1)+2) -> 7130 | J183: =VLOOKUP($H183,P_All!$A$5:$Y$204,3*($C$8-1)+3) -> 9188.3 | K183: =VLOOKUP($H183,P_All!$A$5:$Y$204,3*($C$8-1)+4) -> 16296 | L183: =VLOOKUP($H183,NA_All!$A$5:$Y$204,3*($C$8-1)+2) -> 8199.6 | M183: =VLOOKUP($H183,NA_All!$A$5:$Y$204,3*($C$8-1)+3) -> 13463 | N183: =VLOOKUP($H183,NA_All!$A$5:$Y$204,3*($C$8-1)+4) -> 18939 | O183: =IF(ISNA(VLOOKUP($B$6,$A$25:$E$52,IF($B$8=$A$22,3,2))),EXP(VLOOKUP($B$6,$A$25:$E$52,4)*LN(VLOOKUP($H183,P_Hard!$A$5:$Y$204,3*($C$8-1)+2)/1000)+VLOOKUP($B$6,$A$25:$E$52,5)),NA()) ->  | Q183: =IF(ISNA(VLOOKUP($B$6,$A$25:$E$52,IF($B$8=$A$22,3,2))),EXP(VLOOKUP($B$6,$A$25:$E$52,4)*LN(VLOOKUP($H183,P_Hard!$A$5:$Y$204,3*($C$8-1)+4)/1000)+VLOOKUP($B$6,$A$25:$E$52,5)),NA()) ->  | S183: 13.16666667 | T183: =VLOOKUP($S183,P_All!$AA$5:$AY$245,3*($C$8-1)+2) -> 13799 | U183: =VLOOKUP($S183,P_All!$AA$5:$AY$245,3*($C$8-1)+3) -> 21560 | V183: =VLOOKUP($S183,P_All!$AA$5:$AY$245,3*($C$8-1)+4) -> 23724 | W183: =VLOOKUP($S183,NA_All!$AA$5:$AY$245,3*($C$8-1)+2) -> 8744.8 | X183: =VLOOKUP($S183,NA_All!$AA$5:$AY$245,3*($C$8-1)+3) -> 14351 | Y183: =VLOOKUP($S183,NA_All!$AA$5:$AY$245,3*($C$8-1)+4) -> 17043 | Z183: =IF(AND($B$8=$A$20,$B$6=$A$48),$B$54,IF(ISNA(VLOOKUP($B$6,$A$25:$E$52,IF($B$8=$A$22,3,2),FALSE)),EXP(VLOOKUP($B$6,$A$25:$E$52,4,FALSE)*LN(VLOOKUP($H183,P_Hard!$A$5:$Y$204,3*($C$8-1)+3,FALSE)/1000)+VLOOKUP($B$6,$A$25:$E$52,5,FALSE)),VLOOKUP($B$6,$A$25:$E$52,IF($B$8=$A$22,3,2),FALSE))) -> 
H184: 160 | I184: =VLOOKUP($H184,P_All!$A$5:$Y$204,3*($C$8-1)+2) -> 6834 | J184: =VLOOKUP($H184,P_All!$A$5:$Y$204,3*($C$8-1)+3) -> 9129.4 | K184: =VLOOKUP($H184,P_All!$A$5:$Y$204,3*($C$8-1)+4) -> 15376 | L184: =VLOOKUP($H184,NA_All!$A$5:$Y$204,3*($C$8-1)+2) -> 8088 | M184: =VLOOKUP($H184,NA_All!$A$5:$Y$204,3*($C$8-1)+3) -> 13382 | N184: =VLOOKUP($H184,NA_All!$A$5:$Y$204,3*($C$8-1)+4) -> 18920 | O184: =IF(ISNA(VLOOKUP($B$6,$A$25:$E$52,IF($B$8=$A$22,3,2))),EXP(VLOOKUP($B$6,$A$25:$E$52,4)*LN(VLOOKUP($H184,P_Hard!$A$5:$Y$204,3*($C$8-1)+2)/1000)+VLOOKUP($B$6,$A$25:$E$52,5)),NA()) ->  | Q184: =IF(ISNA(VLOOKUP($B$6,$A$25:$E$52,IF($B$8=$A$22,3,2))),EXP(VLOOKUP($B$6,$A$25:$E$52,4)*LN(VLOOKUP($H184,P_Hard!$A$5:$Y$204,3*($C$8-1)+4)/1000)+VLOOKUP($B$6,$A$25:$E$52,5)),NA()) ->  | S184: 13.25 | T184: =VLOOKUP($S184,P_All!$AA$5:$AY$245,3*($C$8-1)+2) -> 6826.6 | U184: =VLOOKUP($S184,P_All!$AA$5:$AY$245,3*($C$8-1)+3) -> 18196 | V184: =VLOOKUP($S184,P_All!$AA$5:$AY$245,3*($C$8-1)+4) -> 23926 | W184: =VLOOKUP($S184,NA_All!$AA$5:$AY$245,3*($C$8-1)+2) -> 4098.8 | X184: =VLOOKUP($S184,NA_All!$AA$5:$AY$245,3*($C$8-1)+3) -> 13009 | Y184: =VLOOKUP($S184,NA_All!$AA$5:$AY$245,3*($C$8-1)+4) -> 17584 | Z184: =IF(AND($B$8=$A$20,$B$6=$A$48),$B$54,IF(ISNA(VLOOKUP($B$6,$A$25:$E$52,IF($B$8=$A$22,3,2),FALSE)),EXP(VLOOKUP($B$6,$A$25:$E$52,4,FALSE)*LN(VLOOKUP($H184,P_Hard!$A$5:$Y$204,3*($C$8-1)+3,FALSE)/1000)+VLOOKUP($B$6,$A$25:$E$52,5,FALSE)),VLOOKUP($B$6,$A$25:$E$52,IF($B$8=$A$22,3,2),FALSE))) -> 
H185: 161 | I185: =VLOOKUP($H185,P_All!$A$5:$Y$204,3*($C$8-1)+2) -> 7268.7 | J185: =VLOOKUP($H185,P_All!$A$5:$Y$204,3*($C$8-1)+3) -> 9149.1 | K185: =VLOOKUP($H185,P_All!$A$5:$Y$204,3*($C$8-1)+4) -> 15334 | L185: =VLOOKUP($H185,NA_All!$A$5:$Y$204,3*($C$8-1)+2) -> 8814.2 | M185: =VLOOKUP($H185,NA_All!$A$5:$Y$204,3*($C$8-1)+3) -> 13487 | N185: =VLOOKUP($H185,NA_All!$A$5:$Y$204,3*($C$8-1)+4) -> 18699 | O185: =IF(ISNA(VLOOKUP($B$6,$A$25:$E$52,IF($B$8=$A$22,3,2))),EXP(VLOOKUP($B$6,$A$25:$E$52,4)*LN(VLOOKUP($H185,P_Hard!$A$5:$Y$204,3*($C$8-1)+2)/1000)+VLOOKUP($B$6,$A$25:$E$52,5)),NA()) ->  | Q185: =IF(ISNA(VLOOKUP($B$6,$A$25:$E$52,IF($B$8=$A$22,3,2))),EXP(VLOOKUP($B$6,$A$25:$E$52,4)*LN(VLOOKUP($H185,P_Hard!$A$5:$Y$204,3*($C$8-1)+4)/1000)+VLOOKUP($B$6,$A$25:$E$52,5)),NA()) ->  | S185: 13.33333333 | T185: =VLOOKUP($S185,P_All!$AA$5:$AY$245,3*($C$8-1)+2) -> 2973.7 | U185: =VLOOKUP($S185,P_All!$AA$5:$AY$245,3*($C$8-1)+3) -> 7304.9 | V185: =VLOOKUP($S185,P_All!$AA$5:$AY$245,3*($C$8-1)+4) -> 17286 | W185: =VLOOKUP($S185,NA_All!$AA$5:$AY$245,3*($C$8-1)+2) -> 1315.6 | X185: =VLOOKUP($S185,NA_All!$AA$5:$AY$245,3*($C$8-1)+3) -> 4623.4 | Y185: =VLOOKUP($S185,NA_All!$AA$5:$AY$245,3*($C$8-1)+4) -> 18489 | Z185: =IF(AND($B$8=$A$20,$B$6=$A$48),$B$54,IF(ISNA(VLOOKUP($B$6,$A$25:$E$52,IF($B$8=$A$22,3,2),FALSE)),EXP(VLOOKUP($B$6,$A$25:$E$52,4,FALSE)*LN(VLOOKUP($H185,P_Hard!$A$5:$Y$204,3*($C$8-1)+3,FALSE)/1000)+VLOOKUP($B$6,$A$25:$E$52,5,FALSE)),VLOOKUP($B$6,$A$25:$E$52,IF($B$8=$A$22,3,2),FALSE))) -> 
H186: 162 | I186: =VLOOKUP($H186,P_All!$A$5:$Y$204,3*($C$8-1)+2) -> 6983.6 | J186: =VLOOKUP($H186,P_All!$A$5:$Y$204,3*($C$8-1)+3) -> 9199.4 | K186: =VLOOKUP($H186,P_All!$A$5:$Y$204,3*($C$8-1)+4) -> 15615 | L186: =VLOOKUP($H186,NA_All!$A$5:$Y$204,3*($C$8-1)+2) -> 7912.8 | M186: =VLOOKUP($H186,NA_All!$A$5:$Y$204,3*($C$8-1)+3) -> 13560 | N186: =VLOOKUP($H186,NA_All!$A$5:$Y$204,3*($C$8-1)+4) -> 18830 | O186: =IF(ISNA(VLOOKUP($B$6,$A$25:$E$52,IF($B$8=$A$22,3,2))),EXP(VLOOKUP($B$6,$A$25:$E$52,4)*LN(VLOOKUP($H186,P_Hard!$A$5:$Y$204,3*($C$8-1)+2)/1000)+VLOOKUP($B$6,$A$25:$E$52,5)),NA()) ->  | Q186: =IF(ISNA(VLOOKUP($B$6,$A$25:$E$52,IF($B$8=$A$22,3,2))),EXP(VLOOKUP($B$6,$A$25:$E$52,4)*LN(VLOOKUP($H186,P_Hard!$A$5:$Y$204,3*($C$8-1)+4)/1000)+VLOOKUP($B$6,$A$25:$E$52,5)),NA()) ->  | S186: 13.41666667 | T186: =VLOOKUP($S186,P_All!$AA$5:$AY$245,3*($C$8-1)+2) -> 2799.5 | U186: =VLOOKUP($S186,P_All!$AA$5:$AY$245,3*($C$8-1)+3) -> 7212.9 | V186: =VLOOKUP($S186,P_All!$AA$5:$AY$245,3*($C$8-1)+4) -> 15005 | W186: =VLOOKUP($S186,NA_All!$AA$5:$AY$245,3*($C$8-1)+2) -> 1338.4 | X186: =VLOOKUP($S186,NA_All!$AA$5:$AY$245,3*($C$8-1)+3) -> 4555.8 | Y186: =VLOOKUP($S186,NA_All!$AA$5:$AY$245,3*($C$8-1)+4) -> 19156 | Z186: =IF(AND($B$8=$A$20,$B$6=$A$48),$B$54,IF(ISNA(VLOOKUP($B$6,$A$25:$E$52,IF($B$8=$A$22,3,2),FALSE)),EXP(VLOOKUP($B$6,$A$25:$E$52,4,FALSE)*LN(VLOOKUP($H186,P_Hard!$A$5:$Y$204,3*($C$8-1)+3,FALSE)/1000)+VLOOKUP($B$6,$A$25:$E$52,5,FALSE)),VLOOKUP($B$6,$A$25:$E$52,IF($B$8=$A$22,3,2),FALSE))) -> 
H187: 163 | I187: =VLOOKUP($H187,P_All!$A$5:$Y$204,3*($C$8-1)+2) -> 7063.2 | J187: =VLOOKUP($H187,P_All!$A$5:$Y$204,3*($C$8-1)+3) -> 9148.6 | K187: =VLOOKUP($H187,P_All!$A$5:$Y$204,3*($C$8-1)+4) -> 15934 | L187: =VLOOKUP($H187,NA_All!$A$5:$Y$204,3*($C$8-1)+2) -> 8192.4 | M187: =VLOOKUP($H187,NA_All!$A$5:$Y$204,3*($C$8-1)+3) -> 13587 | N187: =VLOOKUP($H187,NA_All!$A$5:$Y$204,3*($C$8-1)+4) -> 18875 | O187: =IF(ISNA(VLOOKUP($B$6,$A$25:$E$52,IF($B$8=$A$22,3,2))),EXP(VLOOKUP($B$6,$A$25:$E$52,4)*LN(VLOOKUP($H187,P_Hard!$A$5:$Y$204,3*($C$8-1)+2)/1000)+VLOOKUP($B$6,$A$25:$E$52,5)),NA()) ->  | Q187: =IF(ISNA(VLOOKUP($B$6,$A$25:$E$52,IF($B$8=$A$22,3,2))),EXP(VLOOKUP($B$6,$A$25:$E$52,4)*LN(VLOOKUP($H187,P_Hard!$A$5:$Y$204,3*($C$8-1)+4)/1000)+VLOOKUP($B$6,$A$25:$E$52,5)),NA()) ->  | S187: 13.5 | T187: =VLOOKUP($S187,P_All!$AA$5:$AY$245,3*($C$8-1)+2) -> 3552.6 | U187: =VLOOKUP($S187,P_All!$AA$5:$AY$245,3*($C$8-1)+3) -> 8644.2 | V187: =VLOOKUP($S187,P_All!$AA$5:$AY$245,3*($C$8-1)+4) -> 16595 | W187: =VLOOKUP($S187,NA_All!$AA$5:$AY$245,3*($C$8-1)+2) -> 1602.7 | X187: =VLOOKUP($S187,NA_All!$AA$5:$AY$245,3*($C$8-1)+3) -> 5422.9 | Y187: =VLOOKUP($S187,NA_All!$AA$5:$AY$245,3*($C$8-1)+4) -> 18153 | Z187: =IF(AND($B$8=$A$20,$B$6=$A$48),$B$54,IF(ISNA(VLOOKUP($B$6,$A$25:$E$52,IF($B$8=$A$22,3,2),FALSE)),EXP(VLOOKUP($B$6,$A$25:$E$52,4,FALSE)*LN(VLOOKUP($H187,P_Hard!$A$5:$Y$204,3*($C$8-1)+3,FALSE)/1000)+VLOOKUP($B$6,$A$25:$E$52,5,FALSE)),VLOOKUP($B$6,$A$25:$E$52,IF($B$8=$A$22,3,2),FALSE))) -> 
H188: 164 | I188: =VLOOKUP($H188,P_All!$A$5:$Y$204,3*($C$8-1)+2) -> 6939.7 | J188: =VLOOKUP($H188,P_All!$A$5:$Y$204,3*($C$8-1)+3) -> 9163.4 | K188: =VLOOKUP($H188,P_All!$A$5:$Y$204,3*($C$8-1)+4) -> 15496 | L188: =VLOOKUP($H188,NA_All!$A$5:$Y$204,3*($C$8-1)+2) -> 7813 | M188: =VLOOKUP($H188,NA_All!$A$5:$Y$204,3*($C$8-1)+3) -> 13342 | N188: =VLOOKUP($H188,NA_All!$A$5:$Y$204,3*($C$8-1)+4) -> 18679 | O188: =IF(ISNA(VLOOKUP($B$6,$A$25:$E$52,IF($B$8=$A$22,3,2))),EXP(VLOOKUP($B$6,$A$25:$E$52,4)*LN(VLOOKUP($H188,P_Hard!$A$5:$Y$204,3*($C$8-1)+2)/1000)+VLOOKUP($B$6,$A$25:$E$52,5)),NA()) ->  | Q188: =IF(ISNA(VLOOKUP($B$6,$A$25:$E$52,IF($B$8=$A$22,3,2))),EXP(VLOOKUP($B$6,$A$25:$E$52,4)*LN(VLOOKUP($H188,P_Hard!$A$5:$Y$204,3*($C$8-1)+4)/1000)+VLOOKUP($B$6,$A$25:$E$52,5)),NA()) ->  | S188: 13.58333333 | T188: =VLOOKUP($S188,P_All!$AA$5:$AY$245,3*($C$8-1)+2) -> 4119.8 | U188: =VLOOKUP($S188,P_All!$AA$5:$AY$245,3*($C$8-1)+3) -> 10350 | V188: =VLOOKUP($S188,P_All!$AA$5:$AY$245,3*($C$8-1)+4) -> 19980 | W188: =VLOOKUP($S188,NA_All!$AA$5:$AY$245,3*($C$8-1)+2) -> 2008 | X188: =VLOOKUP($S188,NA_All!$AA$5:$AY$245,3*($C$8-1)+3) -> 7499.7 | Y188: =VLOOKUP($S188,NA_All!$AA$5:$AY$245,3*($C$8-1)+4) -> 18347 | Z188: =IF(AND($B$8=$A$20,$B$6=$A$48),$B$54,IF(ISNA(VLOOKUP($B$6,$A$25:$E$52,IF($B$8=$A$22,3,2),FALSE)),EXP(VLOOKUP($B$6,$A$25:$E$52,4,FALSE)*LN(VLOOKUP($H188,P_Hard!$A$5:$Y$204,3*($C$8-1)+3,FALSE)/1000)+VLOOKUP($B$6,$A$25:$E$52,5,FALSE)),VLOOKUP($B$6,$A$25:$E$52,IF($B$8=$A$22,3,2),FALSE))) -> 
H189: 165 | I189: =VLOOKUP($H189,P_All!$A$5:$Y$204,3*($C$8-1)+2) -> 7102 | J189: =VLOOKUP($H189,P_All!$A$5:$Y$204,3*($C$8-1)+3) -> 9168.6 | K189: =VLOOKUP($H189,P_All!$A$5:$Y$204,3*($C$8-1)+4) -> 15059 | L189: =VLOOKUP($H189,NA_All!$A$5:$Y$204,3*($C$8-1)+2) -> 8083.6 | M189: =VLOOKUP($H189,NA_All!$A$5:$Y$204,3*($C$8-1)+3) -> 13520 | N189: =VLOOKUP($H189,NA_All!$A$5:$Y$204,3*($C$8-1)+4) -> 18886 | O189: =IF(ISNA(VLOOKUP($B$6,$A$25:$E$52,IF($B$8=$A$22,3,2))),EXP(VLOOKUP($B$6,$A$25:$E$52,4)*LN(VLOOKUP($H189,P_Hard!$A$5:$Y$204,3*($C$8-1)+2)/1000)+VLOOKUP($B$6,$A$25:$E$52,5)),NA()) ->  | Q189: =IF(ISNA(VLOOKUP($B$6,$A$25:$E$52,IF($B$8=$A$22,3,2))),EXP(VLOOKUP($B$6,$A$25:$E$52,4)*LN(VLOOKUP($H189,P_Hard!$A$5:$Y$204,3*($C$8-1)+4)/1000)+VLOOKUP($B$6,$A$25:$E$52,5)),NA()) ->  | S189: 13.66666667 | T189: =VLOOKUP($S189,P_All!$AA$5:$AY$245,3*($C$8-1)+2) -> 4190.3 | U189: =VLOOKUP($S189,P_All!$AA$5:$AY$245,3*($C$8-1)+3) -> 10713 | V189: =VLOOKUP($S189,P_All!$AA$5:$AY$245,3*($C$8-1)+4) -> 19551 | W189: =VLOOKUP($S189,NA_All!$AA$5:$AY$245,3*($C$8-1)+2) -> 2063.1 | X189: =VLOOKUP($S189,NA_All!$AA$5:$AY$245,3*($C$8-1)+3) -> 6880.3 | Y189: =VLOOKUP($S189,NA_All!$AA$5:$AY$245,3*($C$8-1)+4) -> 18777 | Z189: =IF(AND($B$8=$A$20,$B$6=$A$48),$B$54,IF(ISNA(VLOOKUP($B$6,$A$25:$E$52,IF($B$8=$A$22,3,2),FALSE)),EXP(VLOOKUP($B$6,$A$25:$E$52,4,FALSE)*LN(VLOOKUP($H189,P_Hard!$A$5:$Y$204,3*($C$8-1)+3,FALSE)/1000)+VLOOKUP($B$6,$A$25:$E$52,5,FALSE)),VLOOKUP($B$6,$A$25:$E$52,IF($B$8=$A$22,3,2),FALSE))) -> 
H190: 166 | I190: =VLOOKUP($H190,P_All!$A$5:$Y$204,3*($C$8-1)+2) -> 6974.4 | J190: =VLOOKUP($H190,P_All!$A$5:$Y$204,3*($C$8-1)+3) -> 9193.4 | K190: =VLOOKUP($H190,P_All!$A$5:$Y$204,3*($C$8-1)+4) -> 15534 | L190: =VLOOKUP($H190,NA_All!$A$5:$Y$204,3*($C$8-1)+2) -> 8574.3 | M190: =VLOOKUP($H190,NA_All!$A$5:$Y$204,3*($C$8-1)+3) -> 13393 | N190: =VLOOKUP($H190,NA_All!$A$5:$Y$204,3*($C$8-1)+4) -> 19056 | O190: =IF(ISNA(VLOOKUP($B$6,$A$25:$E$52,IF($B$8=$A$22,3,2))),EXP(VLOOKUP($B$6,$A$25:$E$52,4)*LN(VLOOKUP($H190,P_Hard!$A$5:$Y$204,3*($C$8-1)+2)/1000)+VLOOKUP($B$6,$A$25:$E$52,5)),NA()) ->  | Q190: =IF(ISNA(VLOOKUP($B$6,$A$25:$E$52,IF($B$8=$A$22,3,2))),EXP(VLOOKUP($B$6,$A$25:$E$52,4)*LN(VLOOKUP($H190,P_Hard!$A$5:$Y$204,3*($C$8-1)+4)/1000)+VLOOKUP($B$6,$A$25:$E$52,5)),NA()) ->  | S190: 13.75 | T190: =VLOOKUP($S190,P_All!$AA$5:$AY$245,3*($C$8-1)+2) -> 4462.1 | U190: =VLOOKUP($S190,P_All!$AA$5:$AY$245,3*($C$8-1)+3) -> 9898.6 | V190: =VLOOKUP($S190,P_All!$AA$5:$AY$245,3*($C$8-1)+4) -> 17488 | W190: =VLOOKUP($S190,NA_All!$AA$5:$AY$245,3*($C$8-1)+2) -> 1912 | X190: =VLOOKUP($S190,NA_All!$AA$5:$AY$245,3*($C$8-1)+3) -> 6538.4 | Y190: =VLOOKUP($S190,NA_All!$AA$5:$AY$245,3*($C$8-1)+4) -> 18110 | Z190: =IF(AND($B$8=$A$20,$B$6=$A$48),$B$54,IF(ISNA(VLOOKUP($B$6,$A$25:$E$52,IF($B$8=$A$22,3,2),FALSE)),EXP(VLOOKUP($B$6,$A$25:$E$52,4,FALSE)*LN(VLOOKUP($H190,P_Hard!$A$5:$Y$204,3*($C$8-1)+3,FALSE)/1000)+VLOOKUP($B$6,$A$25:$E$52,5,FALSE)),VLOOKUP($B$6,$A$25:$E$52,IF($B$8=$A$22,3,2),FALSE))) -> 
H191: 167 | I191: =VLOOKUP($H191,P_All!$A$5:$Y$204,3*($C$8-1)+2) -> 6833.2 | J191: =VLOOKUP($H191,P_All!$A$5:$Y$204,3*($C$8-1)+3) -> 9176.5 | K191: =VLOOKUP($H191,P_All!$A$5:$Y$204,3*($C$8-1)+4) -> 15427 | L191: =VLOOKUP($H191,NA_All!$A$5:$Y$204,3*($C$8-1)+2) -> 8761.2 | M191: =VLOOKUP($H191,NA_All!$A$5:$Y$204,3*($C$8-1)+3) -> 13497 | N191: =VLOOKUP($H191,NA_All!$A$5:$Y$204,3*($C$8-1)+4) -> 19187 | O191: =IF(ISNA(VLOOKUP($B$6,$A$25:$E$52,IF($B$8=$A$22,3,2))),EXP(VLOOKUP($B$6,$A$25:$E$52,4)*LN(VLOOKUP($H191,P_Hard!$A$5:$Y$204,3*($C$8-1)+2)/1000)+VLOOKUP($B$6,$A$25:$E$52,5)),NA()) ->  | Q191: =IF(ISNA(VLOOKUP($B$6,$A$25:$E$52,IF($B$8=$A$22,3,2))),EXP(VLOOKUP($B$6,$A$25:$E$52,4)*LN(VLOOKUP($H191,P_Hard!$A$5:$Y$204,3*($C$8-1)+4)/1000)+VLOOKUP($B$6,$A$25:$E$52,5)),NA()) ->  | S191: 13.83333333 | T191: =VLOOKUP($S191,P_All!$AA$5:$AY$245,3*($C$8-1)+2) -> 4383.7 | U191: =VLOOKUP($S191,P_All!$AA$5:$AY$245,3*($C$8-1)+3) -> 8842 | V191: =VLOOKUP($S191,P_All!$AA$5:$AY$245,3*($C$8-1)+4) -> 15688 | W191: =VLOOKUP($S191,NA_All!$AA$5:$AY$245,3*($C$8-1)+2) -> 1938.2 | X191: =VLOOKUP($S191,NA_All!$AA$5:$AY$245,3*($C$8-1)+3) -> 5462.1 | Y191: =VLOOKUP($S191,NA_All!$AA$5:$AY$245,3*($C$8-1)+4) -> 18754 | Z191: =IF(AND($B$8=$A$20,$B$6=$A$48),$B$54,IF(ISNA(VLOOKUP($B$6,$A$25:$E$52,IF($B$8=$A$22,3,2),FALSE)),EXP(VLOOKUP($B$6,$A$25:$E$52,4,FALSE)*LN(VLOOKUP($H191,P_Hard!$A$5:$Y$204,3*($C$8-1)+3,FALSE)/1000)+VLOOKUP($B$6,$A$25:$E$52,5,FALSE)),VLOOKUP($B$6,$A$25:$E$52,IF($B$8=$A$22,3,2),FALSE))) -> 
H192: 168 | I192: =VLOOKUP($H192,P_All!$A$5:$Y$204,3*($C$8-1)+2) -> 7121.6 | J192: =VLOOKUP($H192,P_All!$A$5:$Y$204,3*($C$8-1)+3) -> 9134.8 | K192: =VLOOKUP($H192,P_All!$A$5:$Y$204,3*($C$8-1)+4) -> 15839 | L192: =VLOOKUP($H192,NA_All!$A$5:$Y$204,3*($C$8-1)+2) -> 8338.5 | M192: =VLOOKUP($H192,NA_All!$A$5:$Y$204,3*($C$8-1)+3) -> 13589 | N192: =VLOOKUP($H192,NA_All!$A$5:$Y$204,3*($C$8-1)+4) -> 19063 | O192: =IF(ISNA(VLOOKUP($B$6,$A$25:$E$52,IF($B$8=$A$22,3,2))),EXP(VLOOKUP($B$6,$A$25:$E$52,4)*LN(VLOOKUP($H192,P_Hard!$A$5:$Y$204,3*($C$8-1)+2)/1000)+VLOOKUP($B$6,$A$25:$E$52,5)),NA()) ->  | Q192: =IF(ISNA(VLOOKUP($B$6,$A$25:$E$52,IF($B$8=$A$22,3,2))),EXP(VLOOKUP($B$6,$A$25:$E$52,4)*LN(VLOOKUP($H192,P_Hard!$A$5:$Y$204,3*($C$8-1)+4)/1000)+VLOOKUP($B$6,$A$25:$E$52,5)),NA()) ->  | S192: 13.91666667 | T192: =VLOOKUP($S192,P_All!$AA$5:$AY$245,3*($C$8-1)+2) -> 5137.4 | U192: =VLOOKUP($S192,P_All!$AA$5:$AY$245,3*($C$8-1)+3) -> 10317 | V192: =VLOOKUP($S192,P_All!$AA$5:$AY$245,3*($C$8-1)+4) -> 16480 | W192: =VLOOKUP($S192,NA_All!$AA$5:$AY$245,3*($C$8-1)+2) -> 2636.5 | X192: =VLOOKUP($S192,NA_All!$AA$5:$AY$245,3*($C$8-1)+3) -> 6419.2 | Y192: =VLOOKUP($S192,NA_All!$AA$5:$AY$245,3*($C$8-1)+4) -> 18056 | Z192: =IF(AND($B$8=$A$20,$B$6=$A$48),$B$54,IF(ISNA(VLOOKUP($B$6,$A$25:$E$52,IF($B$8=$A$22,3,2),FALSE)),EXP(VLOOKUP($B$6,$A$25:$E$52,4,FALSE)*LN(VLOOKUP($H192,P_Hard!$A$5:$Y$204,3*($C$8-1)+3,FALSE)/1000)+VLOOKUP($B$6,$A$25:$E$52,5,FALSE)),VLOOKUP($B$6,$A$25:$E$52,IF($B$8=$A$22,3,2),FALSE))) -> 
H193: 169 | I193: =VLOOKUP($H193,P_All!$A$5:$Y$204,3*($C$8-1)+2) -> 6901.5 | J193: =VLOOKUP($H193,P_All!$A$5:$Y$204,3*($C$8-1)+3) -> 9134.2 | K193: =VLOOKUP($H193,P_All!$A$5:$Y$204,3*($C$8-1)+4) -> 15451 | L193: =VLOOKUP($H193,NA_All!$A$5:$Y$204,3*($C$8-1)+2) -> 8331.3 | M193: =VLOOKUP($H193,NA_All!$A$5:$Y$204,3*($C$8-1)+3) -> 13372 | N193: =VLOOKUP($H193,NA_All!$A$5:$Y$204,3*($C$8-1)+4) -> 19248 | O193: =IF(ISNA(VLOOKUP($B$6,$A$25:$E$52,IF($B$8=$A$22,3,2))),EXP(VLOOKUP($B$6,$A$25:$E$52,4)*LN(VLOOKUP($H193,P_Hard!$A$5:$Y$204,3*($C$8-1)+2)/1000)+VLOOKUP($B$6,$A$25:$E$52,5)),NA()) ->  | Q193: =IF(ISNA(VLOOKUP($B$6,$A$25:$E$52,IF($B$8=$A$22,3,2))),EXP(VLOOKUP($B$6,$A$25:$E$52,4)*LN(VLOOKUP($H193,P_Hard!$A$5:$Y$204,3*($C$8-1)+4)/1000)+VLOOKUP($B$6,$A$25:$E$52,5)),NA()) ->  | S193: 14 | T193: =VLOOKUP($S193,P_All!$AA$5:$AY$245,3*($C$8-1)+2) -> 8549.9 | U193: =VLOOKUP($S193,P_All!$AA$5:$AY$245,3*($C$8-1)+3) -> 14174 | V193: =VLOOKUP($S193,P_All!$AA$5:$AY$245,3*($C$8-1)+4) -> 17332 | W193: =VLOOKUP($S193,NA_All!$AA$5:$AY$245,3*($C$8-1)+2) -> 5068.1 | X193: =VLOOKUP($S193,NA_All!$AA$5:$AY$245,3*($C$8-1)+3) -> 9241.3 | Y193: =VLOOKUP($S193,NA_All!$AA$5:$AY$245,3*($C$8-1)+4) -> 17019 | Z193: =IF(AND($B$8=$A$20,$B$6=$A$48),$B$54,IF(ISNA(VLOOKUP($B$6,$A$25:$E$52,IF($B$8=$A$22,3,2),FALSE)),EXP(VLOOKUP($B$6,$A$25:$E$52,4,FALSE)*LN(VLOOKUP($H193,P_Hard!$A$5:$Y$204,3*($C$8-1)+3,FALSE)/1000)+VLOOKUP($B$6,$A$25:$E$52,5,FALSE)),VLOOKUP($B$6,$A$25:$E$52,IF($B$8=$A$22,3,2),FALSE))) -> 
H194: 170 | I194: =VLOOKUP($H194,P_All!$A$5:$Y$204,3*($C$8-1)+2) -> 6955.5 | J194: =VLOOKUP($H194,P_All!$A$5:$Y$204,3*($C$8-1)+3) -> 9178 | K194: =VLOOKUP($H194,P_All!$A$5:$Y$204,3*($C$8-1)+4) -> 16324 | L194: =VLOOKUP($H194,NA_All!$A$5:$Y$204,3*($C$8-1)+2) -> 8161 | M194: =VLOOKUP($H194,NA_All!$A$5:$Y$204,3*($C$8-1)+3) -> 13361 | N194: =VLOOKUP($H194,NA_All!$A$5:$Y$204,3*($C$8-1)+4) -> 18516 | O194: =IF(ISNA(VLOOKUP($B$6,$A$25:$E$52,IF($B$8=$A$22,3,2))),EXP(VLOOKUP($B$6,$A$25:$E$52,4)*LN(VLOOKUP($H194,P_Hard!$A$5:$Y$204,3*($C$8-1)+2)/1000)+VLOOKUP($B$6,$A$25:$E$52,5)),NA()) ->  | Q194: =IF(ISNA(VLOOKUP($B$6,$A$25:$E$52,IF($B$8=$A$22,3,2))),EXP(VLOOKUP($B$6,$A$25:$E$52,4)*LN(VLOOKUP($H194,P_Hard!$A$5:$Y$204,3*($C$8-1)+4)/1000)+VLOOKUP($B$6,$A$25:$E$52,5)),NA()) ->  | S194: 14.08333333 | T194: =VLOOKUP($S194,P_All!$AA$5:$AY$245,3*($C$8-1)+2) -> 12289 | U194: =VLOOKUP($S194,P_All!$AA$5:$AY$245,3*($C$8-1)+3) -> 17436 | V194: =VLOOKUP($S194,P_All!$AA$5:$AY$245,3*($C$8-1)+4) -> 21713 | W194: =VLOOKUP($S194,NA_All!$AA$5:$AY$245,3*($C$8-1)+2) -> 7167.7 | X194: =VLOOKUP($S194,NA_All!$AA$5:$AY$245,3*($C$8-1)+3) -> 12025 | Y194: =VLOOKUP($S194,NA_All!$AA$5:$AY$245,3*($C$8-1)+4) -> 15865 | Z194: =IF(AND($B$8=$A$20,$B$6=$A$48),$B$54,IF(ISNA(VLOOKUP($B$6,$A$25:$E$52,IF($B$8=$A$22,3,2),FALSE)),EXP(VLOOKUP($B$6,$A$25:$E$52,4,FALSE)*LN(VLOOKUP($H194,P_Hard!$A$5:$Y$204,3*($C$8-1)+3,FALSE)/1000)+VLOOKUP($B$6,$A$25:$E$52,5,FALSE)),VLOOKUP($B$6,$A$25:$E$52,IF($B$8=$A$22,3,2),FALSE))) -> 
H195: 171 | I195: =VLOOKUP($H195,P_All!$A$5:$Y$204,3*($C$8-1)+2) -> 7132.8 | J195: =VLOOKUP($H195,P_All!$A$5:$Y$204,3*($C$8-1)+3) -> 9115.6 | K195: =VLOOKUP($H195,P_All!$A$5:$Y$204,3*($C$8-1)+4) -> 15775 | L195: =VLOOKUP($H195,NA_All!$A$5:$Y$204,3*($C$8-1)+2) -> 8357.2 | M195: =VLOOKUP($H195,NA_All!$A$5:$Y$204,3*($C$8-1)+3) -> 13510 | N195: =VLOOKUP($H195,NA_All!$A$5:$Y$204,3*($C$8-1)+4) -> 18792 | O195: =IF(ISNA(VLOOKUP($B$6,$A$25:$E$52,IF($B$8=$A$22,3,2))),EXP(VLOOKUP($B$6,$A$25:$E$52,4)*LN(VLOOKUP($H195,P_Hard!$A$5:$Y$204,3*($C$8-1)+2)/1000)+VLOOKUP($B$6,$A$25:$E$52,5)),NA()) ->  | Q195: =IF(ISNA(VLOOKUP($B$6,$A$25:$E$52,IF($B$8=$A$22,3,2))),EXP(VLOOKUP($B$6,$A$25:$E$52,4)*LN(VLOOKUP($H195,P_Hard!$A$5:$Y$204,3*($C$8-1)+4)/1000)+VLOOKUP($B$6,$A$25:$E$52,5)),NA()) ->  | S195: 14.16666667 | T195: =VLOOKUP($S195,P_All!$AA$5:$AY$245,3*($C$8-1)+2) -> 13394 | U195: =VLOOKUP($S195,P_All!$AA$5:$AY$245,3*($C$8-1)+3) -> 21798 | V195: =VLOOKUP($S195,P_All!$AA$5:$AY$245,3*($C$8-1)+4) -> 23647 | W195: =VLOOKUP($S195,NA_All!$AA$5:$AY$245,3*($C$8-1)+2) -> 8194.2 | X195: =VLOOKUP($S195,NA_All!$AA$5:$AY$245,3*($C$8-1)+3) -> 14358 | Y195: =VLOOKUP($S195,NA_All!$AA$5:$AY$245,3*($C$8-1)+4) -> 16890 | Z195: =IF(AND($B$8=$A$20,$B$6=$A$48),$B$54,IF(ISNA(VLOOKUP($B$6,$A$25:$E$52,IF($B$8=$A$22,3,2),FALSE)),EXP(VLOOKUP($B$6,$A$25:$E$52,4,FALSE)*LN(VLOOKUP($H195,P_Hard!$A$5:$Y$204,3*($C$8-1)+3,FALSE)/1000)+VLOOKUP($B$6,$A$25:$E$52,5,FALSE)),VLOOKUP($B$6,$A$25:$E$52,IF($B$8=$A$22,3,2),FALSE))) -> 
H196: 172 | I196: =VLOOKUP($H196,P_All!$A$5:$Y$204,3*($C$8-1)+2) -> 7276.9 | J196: =VLOOKUP($H196,P_All!$A$5:$Y$204,3*($C$8-1)+3) -> 9152.4 | K196: =VLOOKUP($H196,P_All!$A$5:$Y$204,3*($C$8-1)+4) -> 16835 | L196: =VLOOKUP($H196,NA_All!$A$5:$Y$204,3*($C$8-1)+2) -> 8473.3 | M196: =VLOOKUP($H196,NA_All!$A$5:$Y$204,3*($C$8-1)+3) -> 13418 | N196: =VLOOKUP($H196,NA_All!$A$5:$Y$204,3*($C$8-1)+4) -> 19017 | O196: =IF(ISNA(VLOOKUP($B$6,$A$25:$E$52,IF($B$8=$A$22,3,2))),EXP(VLOOKUP($B$6,$A$25:$E$52,4)*LN(VLOOKUP($H196,P_Hard!$A$5:$Y$204,3*($C$8-1)+2)/1000)+VLOOKUP($B$6,$A$25:$E$52,5)),NA()) ->  | Q196: =IF(ISNA(VLOOKUP($B$6,$A$25:$E$52,IF($B$8=$A$22,3,2))),EXP(VLOOKUP($B$6,$A$25:$E$52,4)*LN(VLOOKUP($H196,P_Hard!$A$5:$Y$204,3*($C$8-1)+4)/1000)+VLOOKUP($B$6,$A$25:$E$52,5)),NA()) ->  | S196: 14.25 | T196: =VLOOKUP($S196,P_All!$AA$5:$AY$245,3*($C$8-1)+2) -> 6238.6 | U196: =VLOOKUP($S196,P_All!$AA$5:$AY$245,3*($C$8-1)+3) -> 18537 | V196: =VLOOKUP($S196,P_All!$AA$5:$AY$245,3*($C$8-1)+4) -> 24153 | W196: =VLOOKUP($S196,NA_All!$AA$5:$AY$245,3*($C$8-1)+2) -> 3420 | X196: =VLOOKUP($S196,NA_All!$AA$5:$AY$245,3*($C$8-1)+3) -> 13469 | Y196: =VLOOKUP($S196,NA_All!$AA$5:$AY$245,3*($C$8-1)+4) -> 17587 | Z196: =IF(AND($B$8=$A$20,$B$6=$A$48),$B$54,IF(ISNA(VLOOKUP($B$6,$A$25:$E$52,IF($B$8=$A$22,3,2),FALSE)),EXP(VLOOKUP($B$6,$A$25:$E$52,4,FALSE)*LN(VLOOKUP($H196,P_Hard!$A$5:$Y$204,3*($C$8-1)+3,FALSE)/1000)+VLOOKUP($B$6,$A$25:$E$52,5,FALSE)),VLOOKUP($B$6,$A$25:$E$52,IF($B$8=$A$22,3,2),FALSE))) -> 
H197: 173 | I197: =VLOOKUP($H197,P_All!$A$5:$Y$204,3*($C$8-1)+2) -> 7045.7 | J197: =VLOOKUP($H197,P_All!$A$5:$Y$204,3*($C$8-1)+3) -> 9171.1 | K197: =VLOOKUP($H197,P_All!$A$5:$Y$204,3*($C$8-1)+4) -> 16372 | L197: =VLOOKUP($H197,NA_All!$A$5:$Y$204,3*($C$8-1)+2) -> 8155.8 | M197: =VLOOKUP($H197,NA_All!$A$5:$Y$204,3*($C$8-1)+3) -> 13389 | N197: =VLOOKUP($H197,NA_All!$A$5:$Y$204,3*($C$8-1)+4) -> 19167 | O197: =IF(ISNA(VLOOKUP($B$6,$A$25:$E$52,IF($B$8=$A$22,3,2))),EXP(VLOOKUP($B$6,$A$25:$E$52,4)*LN(VLOOKUP($H197,P_Hard!$A$5:$Y$204,3*($C$8-1)+2)/1000)+VLOOKUP($B$6,$A$25:$E$52,5)),NA()) ->  | Q197: =IF(ISNA(VLOOKUP($B$6,$A$25:$E$52,IF($B$8=$A$22,3,2))),EXP(VLOOKUP($B$6,$A$25:$E$52,4)*LN(VLOOKUP($H197,P_Hard!$A$5:$Y$204,3*($C$8-1)+4)/1000)+VLOOKUP($B$6,$A$25:$E$52,5)),NA()) ->  | S197: 14.33333333 | T197: =VLOOKUP($S197,P_All!$AA$5:$AY$245,3*($C$8-1)+2) -> 3283 | U197: =VLOOKUP($S197,P_All!$AA$5:$AY$245,3*($C$8-1)+3) -> 7929.8 | V197: =VLOOKUP($S197,P_All!$AA$5:$AY$245,3*($C$8-1)+4) -> 17280 | W197: =VLOOKUP($S197,NA_All!$AA$5:$AY$245,3*($C$8-1)+2) -> 1480.5 | X197: =VLOOKUP($S197,NA_All!$AA$5:$AY$245,3*($C$8-1)+3) -> 4942.9 | Y197: =VLOOKUP($S197,NA_All!$AA$5:$AY$245,3*($C$8-1)+4) -> 19085 | Z197: =IF(AND($B$8=$A$20,$B$6=$A$48),$B$54,IF(ISNA(VLOOKUP($B$6,$A$25:$E$52,IF($B$8=$A$22,3,2),FALSE)),EXP(VLOOKUP($B$6,$A$25:$E$52,4,FALSE)*LN(VLOOKUP($H197,P_Hard!$A$5:$Y$204,3*($C$8-1)+3,FALSE)/1000)+VLOOKUP($B$6,$A$25:$E$52,5,FALSE)),VLOOKUP($B$6,$A$25:$E$52,IF($B$8=$A$22,3,2),FALSE))) -> 
H198: 174 | I198: =VLOOKUP($H198,P_All!$A$5:$Y$204,3*($C$8-1)+2) -> 7079 | J198: =VLOOKUP($H198,P_All!$A$5:$Y$204,3*($C$8-1)+3) -> 9170.2 | K198: =VLOOKUP($H198,P_All!$A$5:$Y$204,3*($C$8-1)+4) -> 16007 | L198: =VLOOKUP($H198,NA_All!$A$5:$Y$204,3*($C$8-1)+2) -> 8276.4 | M198: =VLOOKUP($H198,NA_All!$A$5:$Y$204,3*($C$8-1)+3) -> 13336 | N198: =VLOOKUP($H198,NA_All!$A$5:$Y$204,3*($C$8-1)+4) -> 18504 | O198: =IF(ISNA(VLOOKUP($B$6,$A$25:$E$52,IF($B$8=$A$22,3,2))),EXP(VLOOKUP($B$6,$A$25:$E$52,4)*LN(VLOOKUP($H198,P_Hard!$A$5:$Y$204,3*($C$8-1)+2)/1000)+VLOOKUP($B$6,$A$25:$E$52,5)),NA()) ->  | Q198: =IF(ISNA(VLOOKUP($B$6,$A$25:$E$52,IF($B$8=$A$22,3,2))),EXP(VLOOKUP($B$6,$A$25:$E$52,4)*LN(VLOOKUP($H198,P_Hard!$A$5:$Y$204,3*($C$8-1)+4)/1000)+VLOOKUP($B$6,$A$25:$E$52,5)),NA()) ->  | S198: 14.41666667 | T198: =VLOOKUP($S198,P_All!$AA$5:$AY$245,3*($C$8-1)+2) -> 2999.6 | U198: =VLOOKUP($S198,P_All!$AA$5:$AY$245,3*($C$8-1)+3) -> 7281.5 | V198: =VLOOKUP($S198,P_All!$AA$5:$AY$245,3*($C$8-1)+4) -> 17014 | W198: =VLOOKUP($S198,NA_All!$AA$5:$AY$245,3*($C$8-1)+2) -> 1403 | X198: =VLOOKUP($S198,NA_All!$AA$5:$AY$245,3*($C$8-1)+3) -> 4570.2 | Y198: =VLOOKUP($S198,NA_All!$AA$5:$AY$245,3*($C$8-1)+4) -> 18982 | Z198: =IF(AND($B$8=$A$20,$B$6=$A$48),$B$54,IF(ISNA(VLOOKUP($B$6,$A$25:$E$52,IF($B$8=$A$22,3,2),FALSE)),EXP(VLOOKUP($B$6,$A$25:$E$52,4,FALSE)*LN(VLOOKUP($H198,P_Hard!$A$5:$Y$204,3*($C$8-1)+3,FALSE)/1000)+VLOOKUP($B$6,$A$25:$E$52,5,FALSE)),VLOOKUP($B$6,$A$25:$E$52,IF($B$8=$A$22,3,2),FALSE))) -> 
H199: 175 | I199: =VLOOKUP($H199,P_All!$A$5:$Y$204,3*($C$8-1)+2) -> 7074 | J199: =VLOOKUP($H199,P_All!$A$5:$Y$204,3*($C$8-1)+3) -> 9183.8 | K199: =VLOOKUP($H199,P_All!$A$5:$Y$204,3*($C$8-1)+4) -> 16058 | L199: =VLOOKUP($H199,NA_All!$A$5:$Y$204,3*($C$8-1)+2) -> 8179.8 | M199: =VLOOKUP($H199,NA_All!$A$5:$Y$204,3*($C$8-1)+3) -> 13383 | N199: =VLOOKUP($H199,NA_All!$A$5:$Y$204,3*($C$8-1)+4) -> 19241 | O199: =IF(ISNA(VLOOKUP($B$6,$A$25:$E$52,IF($B$8=$A$22,3,2))),EXP(VLOOKUP($B$6,$A$25:$E$52,4)*LN(VLOOKUP($H199,P_Hard!$A$5:$Y$204,3*($C$8-1)+2)/1000)+VLOOKUP($B$6,$A$25:$E$52,5)),NA()) ->  | Q199: =IF(ISNA(VLOOKUP($B$6,$A$25:$E$52,IF($B$8=$A$22,3,2))),EXP(VLOOKUP($B$6,$A$25:$E$52,4)*LN(VLOOKUP($H199,P_Hard!$A$5:$Y$204,3*($C$8-1)+4)/1000)+VLOOKUP($B$6,$A$25:$E$52,5)),NA()) ->  | S199: 14.5 | T199: =VLOOKUP($S199,P_All!$AA$5:$AY$245,3*($C$8-1)+2) -> 3554 | U199: =VLOOKUP($S199,P_All!$AA$5:$AY$245,3*($C$8-1)+3) -> 8491.3 | V199: =VLOOKUP($S199,P_All!$AA$5:$AY$245,3*($C$8-1)+4) -> 16692 | W199: =VLOOKUP($S199,NA_All!$AA$5:$AY$245,3*($C$8-1)+2) -> 1668.7 | X199: =VLOOKUP($S199,NA_All!$AA$5:$AY$245,3*($C$8-1)+3) -> 5998.3 | Y199: =VLOOKUP($S199,NA_All!$AA$5:$AY$245,3*($C$8-1)+4) -> 18647 | Z199: =IF(AND($B$8=$A$20,$B$6=$A$48),$B$54,IF(ISNA(VLOOKUP($B$6,$A$25:$E$52,IF($B$8=$A$22,3,2),FALSE)),EXP(VLOOKUP($B$6,$A$25:$E$52,4,FALSE)*LN(VLOOKUP($H199,P_Hard!$A$5:$Y$204,3*($C$8-1)+3,FALSE)/1000)+VLOOKUP($B$6,$A$25:$E$52,5,FALSE)),VLOOKUP($B$6,$A$25:$E$52,IF($B$8=$A$22,3,2),FALSE))) -> 
H200: 176 | I200: =VLOOKUP($H200,P_All!$A$5:$Y$204,3*($C$8-1)+2) -> 7260.9 | J200: =VLOOKUP($H200,P_All!$A$5:$Y$204,3*($C$8-1)+3) -> 9127.4 | K200: =VLOOKUP($H200,P_All!$A$5:$Y$204,3*($C$8-1)+4) -> 16056 | L200: =VLOOKUP($H200,NA_All!$A$5:$Y$204,3*($C$8-1)+2) -> 8659 | M200: =VLOOKUP($H200,NA_All!$A$5:$Y$204,3*($C$8-1)+3) -> 13445 | N200: =VLOOKUP($H200,NA_All!$A$5:$Y$204,3*($C$8-1)+4) -> 19043 | O200: =IF(ISNA(VLOOKUP($B$6,$A$25:$E$52,IF($B$8=$A$22,3,2))),EXP(VLOOKUP($B$6,$A$25:$E$52,4)*LN(VLOOKUP($H200,P_Hard!$A$5:$Y$204,3*($C$8-1)+2)/1000)+VLOOKUP($B$6,$A$25:$E$52,5)),NA()) ->  | Q200: =IF(ISNA(VLOOKUP($B$6,$A$25:$E$52,IF($B$8=$A$22,3,2))),EXP(VLOOKUP($B$6,$A$25:$E$52,4)*LN(VLOOKUP($H200,P_Hard!$A$5:$Y$204,3*($C$8-1)+4)/1000)+VLOOKUP($B$6,$A$25:$E$52,5)),NA()) ->  | S200: 14.58333333 | T200: =VLOOKUP($S200,P_All!$AA$5:$AY$245,3*($C$8-1)+2) -> 3940.1 | U200: =VLOOKUP($S200,P_All!$AA$5:$AY$245,3*($C$8-1)+3) -> 10567 | V200: =VLOOKUP($S200,P_All!$AA$5:$AY$245,3*($C$8-1)+4) -> 20049 | W200: =VLOOKUP($S200,NA_All!$AA$5:$AY$245,3*($C$8-1)+2) -> 2036 | X200: =VLOOKUP($S200,NA_All!$AA$5:$AY$245,3*($C$8-1)+3) -> 7219 | Y200: =VLOOKUP($S200,NA_All!$AA$5:$AY$245,3*($C$8-1)+4) -> 17685 | Z200: =IF(AND($B$8=$A$20,$B$6=$A$48),$B$54,IF(ISNA(VLOOKUP($B$6,$A$25:$E$52,IF($B$8=$A$22,3,2),FALSE)),EXP(VLOOKUP($B$6,$A$25:$E$52,4,FALSE)*LN(VLOOKUP($H200,P_Hard!$A$5:$Y$204,3*($C$8-1)+3,FALSE)/1000)+VLOOKUP($B$6,$A$25:$E$52,5,FALSE)),VLOOKUP($B$6,$A$25:$E$52,IF($B$8=$A$22,3,2),FALSE))) -> 
H201: 177 | I201: =VLOOKUP($H201,P_All!$A$5:$Y$204,3*($C$8-1)+2) -> 7297.1 | J201: =VLOOKUP($H201,P_All!$A$5:$Y$204,3*($C$8-1)+3) -> 9133.6 | K201: =VLOOKUP($H201,P_All!$A$5:$Y$204,3*($C$8-1)+4) -> 14888 | L201: =VLOOKUP($H201,NA_All!$A$5:$Y$204,3*($C$8-1)+2) -> 8350.3 | M201: =VLOOKUP($H201,NA_All!$A$5:$Y$204,3*($C$8-1)+3) -> 13507 | N201: =VLOOKUP($H201,NA_All!$A$5:$Y$204,3*($C$8-1)+4) -> 19149 | O201: =IF(ISNA(VLOOKUP($B$6,$A$25:$E$52,IF($B$8=$A$22,3,2))),EXP(VLOOKUP($B$6,$A$25:$E$52,4)*LN(VLOOKUP($H201,P_Hard!$A$5:$Y$204,3*($C$8-1)+2)/1000)+VLOOKUP($B$6,$A$25:$E$52,5)),NA()) ->  | Q201: =IF(ISNA(VLOOKUP($B$6,$A$25:$E$52,IF($B$8=$A$22,3,2))),EXP(VLOOKUP($B$6,$A$25:$E$52,4)*LN(VLOOKUP($H201,P_Hard!$A$5:$Y$204,3*($C$8-1)+4)/1000)+VLOOKUP($B$6,$A$25:$E$52,5)),NA()) ->  | S201: 14.66666667 | T201: =VLOOKUP($S201,P_All!$AA$5:$AY$245,3*($C$8-1)+2) -> 4076 | U201: =VLOOKUP($S201,P_All!$AA$5:$AY$245,3*($C$8-1)+3) -> 9830.3 | V201: =VLOOKUP($S201,P_All!$AA$5:$AY$245,3*($C$8-1)+4) -> 20303 | W201: =VLOOKUP($S201,NA_All!$AA$5:$AY$245,3*($C$8-1)+2) -> 1888.6 | X201: =VLOOKUP($S201,NA_All!$AA$5:$AY$245,3*($C$8-1)+3) -> 6499.7 | Y201: =VLOOKUP($S201,NA_All!$AA$5:$AY$245,3*($C$8-1)+4) -> 17789 | Z201: =IF(AND($B$8=$A$20,$B$6=$A$48),$B$54,IF(ISNA(VLOOKUP($B$6,$A$25:$E$52,IF($B$8=$A$22,3,2),FALSE)),EXP(VLOOKUP($B$6,$A$25:$E$52,4,FALSE)*LN(VLOOKUP($H201,P_Hard!$A$5:$Y$204,3*($C$8-1)+3,FALSE)/1000)+VLOOKUP($B$6,$A$25:$E$52,5,FALSE)),VLOOKUP($B$6,$A$25:$E$52,IF($B$8=$A$22,3,2),FALSE))) -> 
H202: 178 | I202: =VLOOKUP($H202,P_All!$A$5:$Y$204,3*($C$8-1)+2) -> 6950.8 | J202: =VLOOKUP($H202,P_All!$A$5:$Y$204,3*($C$8-1)+3) -> 9100.7 | K202: =VLOOKUP($H202,P_All!$A$5:$Y$204,3*($C$8-1)+4) -> 15170 | L202: =VLOOKUP($H202,NA_All!$A$5:$Y$204,3*($C$8-1)+2) -> 8279 | M202: =VLOOKUP($H202,NA_All!$A$5:$Y$204,3*($C$8-1)+3) -> 13351 | N202: =VLOOKUP($H202,NA_All!$A$5:$Y$204,3*($C$8-1)+4) -> 18916 | O202: =IF(ISNA(VLOOKUP($B$6,$A$25:$E$52,IF($B$8=$A$22,3,2))),EXP(VLOOKUP($B$6,$A$25:$E$52,4)*LN(VLOOKUP($H202,P_Hard!$A$5:$Y$204,3*($C$8-1)+2)/1000)+VLOOKUP($B$6,$A$25:$E$52,5)),NA()) ->  | Q202: =IF(ISNA(VLOOKUP($B$6,$A$25:$E$52,IF($B$8=$A$22,3,2))),EXP(VLOOKUP($B$6,$A$25:$E$52,4)*LN(VLOOKUP($H202,P_Hard!$A$5:$Y$204,3*($C$8-1)+4)/1000)+VLOOKUP($B$6,$A$25:$E$52,5)),NA()) ->  | S202: 14.75 | T202: =VLOOKUP($S202,P_All!$AA$5:$AY$245,3*($C$8-1)+2) -> 4178.2 | U202: =VLOOKUP($S202,P_All!$AA$5:$AY$245,3*($C$8-1)+3) -> 9047.6 | V202: =VLOOKUP($S202,P_All!$AA$5:$AY$245,3*($C$8-1)+4) -> 17345 | W202: =VLOOKUP($S202,NA_All!$AA$5:$AY$245,3*($C$8-1)+2) -> 2059.7 | X202: =VLOOKUP($S202,NA_All!$AA$5:$AY$245,3*($C$8-1)+3) -> 6242.8 | Y202: =VLOOKUP($S202,NA_All!$AA$5:$AY$245,3*($C$8-1)+4) -> 17899 | Z202: =IF(AND($B$8=$A$20,$B$6=$A$48),$B$54,IF(ISNA(VLOOKUP($B$6,$A$25:$E$52,IF($B$8=$A$22,3,2),FALSE)),EXP(VLOOKUP($B$6,$A$25:$E$52,4,FALSE)*LN(VLOOKUP($H202,P_Hard!$A$5:$Y$204,3*($C$8-1)+3,FALSE)/1000)+VLOOKUP($B$6,$A$25:$E$52,5,FALSE)),VLOOKUP($B$6,$A$25:$E$52,IF($B$8=$A$22,3,2),FALSE))) -> 
H203: 179 | I203: =VLOOKUP($H203,P_All!$A$5:$Y$204,3*($C$8-1)+2) -> 7420.3 | J203: =VLOOKUP($H203,P_All!$A$5:$Y$204,3*($C$8-1)+3) -> 9174.9 | K203: =VLOOKUP($H203,P_All!$A$5:$Y$204,3*($C$8-1)+4) -> 15977 | L203: =VLOOKUP($H203,NA_All!$A$5:$Y$204,3*($C$8-1)+2) -> 8376.4 | M203: =VLOOKUP($H203,NA_All!$A$5:$Y$204,3*($C$8-1)+3) -> 13464 | N203: =VLOOKUP($H203,NA_All!$A$5:$Y$204,3*($C$8-1)+4) -> 19223 | O203: =IF(ISNA(VLOOKUP($B$6,$A$25:$E$52,IF($B$8=$A$22,3,2))),EXP(VLOOKUP($B$6,$A$25:$E$52,4)*LN(VLOOKUP($H203,P_Hard!$A$5:$Y$204,3*($C$8-1)+2)/1000)+VLOOKUP($B$6,$A$25:$E$52,5)),NA()) ->  | Q203: =IF(ISNA(VLOOKUP($B$6,$A$25:$E$52,IF($B$8=$A$22,3,2))),EXP(VLOOKUP($B$6,$A$25:$E$52,4)*LN(VLOOKUP($H203,P_Hard!$A$5:$Y$204,3*($C$8-1)+4)/1000)+VLOOKUP($B$6,$A$25:$E$52,5)),NA()) ->  | S203: 14.83333333 | T203: =VLOOKUP($S203,P_All!$AA$5:$AY$245,3*($C$8-1)+2) -> 4083.1 | U203: =VLOOKUP($S203,P_All!$AA$5:$AY$245,3*($C$8-1)+3) -> 8863.4 | V203: =VLOOKUP($S203,P_All!$AA$5:$AY$245,3*($C$8-1)+4) -> 16843 | W203: =VLOOKUP($S203,NA_All!$AA$5:$AY$245,3*($C$8-1)+2) -> 1907.2 | X203: =VLOOKUP($S203,NA_All!$AA$5:$AY$245,3*($C$8-1)+3) -> 5509.3 | Y203: =VLOOKUP($S203,NA_All!$AA$5:$AY$245,3*($C$8-1)+4) -> 18969 | Z203: =IF(AND($B$8=$A$20,$B$6=$A$48),$B$54,IF(ISNA(VLOOKUP($B$6,$A$25:$E$52,IF($B$8=$A$22,3,2),FALSE)),EXP(VLOOKUP($B$6,$A$25:$E$52,4,FALSE)*LN(VLOOKUP($H203,P_Hard!$A$5:$Y$204,3*($C$8-1)+3,FALSE)/1000)+VLOOKUP($B$6,$A$25:$E$52,5,FALSE)),VLOOKUP($B$6,$A$25:$E$52,IF($B$8=$A$22,3,2),FALSE))) -> 
H204: 180 | I204: =VLOOKUP($H204,P_All!$A$5:$Y$204,3*($C$8-1)+2) -> 7056.8 | J204: =VLOOKUP($H204,P_All!$A$5:$Y$204,3*($C$8-1)+3) -> 9195.9 | K204: =VLOOKUP($H204,P_All!$A$5:$Y$204,3*($C$8-1)+4) -> 15417 | L204: =VLOOKUP($H204,NA_All!$A$5:$Y$204,3*($C$8-1)+2) -> 8262.3 | M204: =VLOOKUP($H204,NA_All!$A$5:$Y$204,3*($C$8-1)+3) -> 13627 | N204: =VLOOKUP($H204,NA_All!$A$5:$Y$204,3*($C$8-1)+4) -> 19350 | O204: =IF(ISNA(VLOOKUP($B$6,$A$25:$E$52,IF($B$8=$A$22,3,2))),EXP(VLOOKUP($B$6,$A$25:$E$52,4)*LN(VLOOKUP($H204,P_Hard!$A$5:$Y$204,3*($C$8-1)+2)/1000)+VLOOKUP($B$6,$A$25:$E$52,5)),NA()) ->  | Q204: =IF(ISNA(VLOOKUP($B$6,$A$25:$E$52,IF($B$8=$A$22,3,2))),EXP(VLOOKUP($B$6,$A$25:$E$52,4)*LN(VLOOKUP($H204,P_Hard!$A$5:$Y$204,3*($C$8-1)+4)/1000)+VLOOKUP($B$6,$A$25:$E$52,5)),NA()) ->  | S204: 14.91666667 | T204: =VLOOKUP($S204,P_All!$AA$5:$AY$245,3*($C$8-1)+2) -> 4814.4 | U204: =VLOOKUP($S204,P_All!$AA$5:$AY$245,3*($C$8-1)+3) -> 10405 | V204: =VLOOKUP($S204,P_All!$AA$5:$AY$245,3*($C$8-1)+4) -> 17199 | W204: =VLOOKUP($S204,NA_All!$AA$5:$AY$245,3*($C$8-1)+2) -> 2417.2 | X204: =VLOOKUP($S204,NA_All!$AA$5:$AY$245,3*($C$8-1)+3) -> 6322.8 | Y204: =VLOOKUP($S204,NA_All!$AA$5:$AY$245,3*($C$8-1)+4) -> 18388 | Z204: =IF(AND($B$8=$A$20,$B$6=$A$48),$B$54,IF(ISNA(VLOOKUP($B$6,$A$25:$E$52,IF($B$8=$A$22,3,2),FALSE)),EXP(VLOOKUP($B$6,$A$25:$E$52,4,FALSE)*LN(VLOOKUP($H204,P_Hard!$A$5:$Y$204,3*($C$8-1)+3,FALSE)/1000)+VLOOKUP($B$6,$A$25:$E$52,5,FALSE)),VLOOKUP($B$6,$A$25:$E$52,IF($B$8=$A$22,3,2),FALSE))) -> 
H205: 181 | I205: =VLOOKUP($H205,P_All!$A$5:$Y$204,3*($C$8-1)+2) -> 7243.2 | J205: =VLOOKUP($H205,P_All!$A$5:$Y$204,3*($C$8-1)+3) -> 9129.8 | K205: =VLOOKUP($H205,P_All!$A$5:$Y$204,3*($C$8-1)+4) -> 15657 | L205: =VLOOKUP($H205,NA_All!$A$5:$Y$204,3*($C$8-1)+2) -> 8422.4 | M205: =VLOOKUP($H205,NA_All!$A$5:$Y$204,3*($C$8-1)+3) -> 13409 | N205: =VLOOKUP($H205,NA_All!$A$5:$Y$204,3*($C$8-1)+4) -> 19068 | O205: =IF(ISNA(VLOOKUP($B$6,$A$25:$E$52,IF($B$8=$A$22,3,2))),EXP(VLOOKUP($B$6,$A$25:$E$52,4)*LN(VLOOKUP($H205,P_Hard!$A$5:$Y$204,3*($C$8-1)+2)/1000)+VLOOKUP($B$6,$A$25:$E$52,5)),NA()) ->  | Q205: =IF(ISNA(VLOOKUP($B$6,$A$25:$E$52,IF($B$8=$A$22,3,2))),EXP(VLOOKUP($B$6,$A$25:$E$52,4)*LN(VLOOKUP($H205,P_Hard!$A$5:$Y$204,3*($C$8-1)+4)/1000)+VLOOKUP($B$6,$A$25:$E$52,5)),NA()) ->  | S205: 15 | T205: =VLOOKUP($S205,P_All!$AA$5:$AY$245,3*($C$8-1)+2) -> 8998.9 | U205: =VLOOKUP($S205,P_All!$AA$5:$AY$245,3*($C$8-1)+3) -> 13911 | V205: =VLOOKUP($S205,P_All!$AA$5:$AY$245,3*($C$8-1)+4) -> 18273 | W205: =VLOOKUP($S205,NA_All!$AA$5:$AY$245,3*($C$8-1)+2) -> 4670.4 | X205: =VLOOKUP($S205,NA_All!$AA$5:$AY$245,3*($C$8-1)+3) -> 8989.4 | Y205: =VLOOKUP($S205,NA_All!$AA$5:$AY$245,3*($C$8-1)+4) -> 15996 | Z205: =IF(AND($B$8=$A$20,$B$6=$A$48),$B$54,IF(ISNA(VLOOKUP($B$6,$A$25:$E$52,IF($B$8=$A$22,3,2),FALSE)),EXP(VLOOKUP($B$6,$A$25:$E$52,4,FALSE)*LN(VLOOKUP($H205,P_Hard!$A$5:$Y$204,3*($C$8-1)+3,FALSE)/1000)+VLOOKUP($B$6,$A$25:$E$52,5,FALSE)),VLOOKUP($B$6,$A$25:$E$52,IF($B$8=$A$22,3,2),FALSE))) -> 
... 60 more rows

Sheet P_All
B1: Values shown for constituent selected on PlotControl tab | AB1: Values shown for constituent selected on PlotControl tab
B2: =PlotControl!$A$15 -> SW002 | E2: =PlotControl!$A$16 -> SW003 | H2: =PlotControl!$A$17 -> SW004 | K2: =PlotControl!$A$18 -> SW004a | N2: =PlotControl!$A$19 -> SW004b | Q2: =PlotControl!$A$20 -> SW005 | T2: =PlotControl!$A$21 -> SW006 | W2: =PlotControl!$A$22 -> Colby Lake | AB2: =PlotControl!$A$15 -> SW002 | AE2: =PlotControl!$A$16 -> SW003 | AH2: =PlotControl!$A$17 -> SW004 | AK2: =PlotControl!$A$18 -> SW004a | AN2: =PlotControl!$A$19 -> SW004b | AQ2: =PlotControl!$A$20 -> SW005 | AT2: =PlotControl!$A$21 -> SW006 | AW2: =PlotControl!$A$22 -> Colby Lake
B3: Annual Project Results | E3: Annual Project Results | H3: Annual Project Results | K3: Annual Project Results | N3: Annual Project Results | Q3: Annual Project Results | T3: Annual Project Results | W3: Annual Project Results | AB3: Monthly Project Results | AE3: Monthly Project Results | AH3: Monthly Project Results | AK3: Monthly Project Results | AN3: Monthly Project Results | AQ3: Monthly Project Results | AT3: Monthly Project Results | AW3: Monthly Project Results
A4: Time | B4: P10 | C4: P50 | D4: P90 | E4: P10 | F4: P50 | G4: P90 | H4: P10 | I4: P50 | J4: P90 | K4: P10 | L4: P50 | M4: P90 | N4: P10 | O4: P50 | P4: P90 | Q4: P10 | R4: P50 | S4: P90 | T4: P10 | U4: P50 | V4: P90 | W4: P10 | X4: P50 | Y4: P90 | AA4: Time | AB4: P10 | AC4: P50 | AD4: P90 | AE4: P10 | AF4: P50 | AG4: P90 | AH4: P10 | AI4: P50 | AJ4: P90 | AK4: P10 | AL4: P50 | AM4: P90 | AN4: P10 | AO4: P50 | AP4: P90 | AQ4: P10 | AR4: P50 | AS4: P90 | AT4: P10 | AU4: P50 | AV4: P90 | AW4: P10 | AX4: P50 | AY4: P90
A5: 1 | B5: =IF(PlotControl!$B$4 = "Annual Max",MAX(OFFSET(P_SW002!$C$10,12*($A5-1),4*(PlotControl!$C$6-1),12,1)),AVERAGE(OFFSET(P_SW002!$C$10,12*($A5-1),4*(PlotControl!$C$6-1),12,1))) -> 32608 | C5: =IF(PlotControl!$B$4 = "Annual Max",MAX(OFFSET(P_SW002!$D$10,12*($A5-1),4*(PlotControl!$C$6-1),12,1)),AVERAGE(OFFSET(P_SW002!$D$10,12*($A5-1),4*(PlotControl!$C$6-1),12,1))) -> 32608 | D5: =IF(PlotControl!$B$4 = "Annual Max",MAX(OFFSET(P_SW002!$E$10,12*($A5-1),4*(PlotControl!$C$6-1),12,1)),AVERAGE(OFFSET(P_SW002!$E$10,12*($A5-1),4*(PlotControl!$C$6-1),12,1))) -> 32608 | E5: =IF(PlotControl!$B$4 = "Annual Max",MAX(OFFSET(P_SW003!$C$10,12*($A5-1),4*(PlotControl!$C$6-1),12,1)),AVERAGE(OFFSET(P_SW003!$C$10,12*($A5-1),4*(PlotControl!$C$6-1),12,1))) -> 21399 | F5: =IF(PlotControl!$B$4 = "Annual Max",MAX(OFFSET(P_SW003!$D$10,12*($A5-1),4*(PlotControl!$C$6-1),12,1)),AVERAGE(OFFSET(P_SW003!$D$10,12*($A5-1),4*(PlotControl!$C$6-1),12,1))) -> 26446 | G5: =IF(PlotControl!$B$4 = "Annual Max",MAX(OFFSET(P_SW003!$E$10,12*($A5-1),4*(PlotControl!$C$6-1),12,1)),AVERAGE(OFFSET(P_SW003!$E$10,12*($A5-1),4*(PlotControl!$C$6-1),12,1))) -> 27074 | H5: =IF(PlotControl!$B$4 = "Annual Max",MAX(OFFSET(P_SW004!$C$10,12*($A5-1),4*(PlotControl!$C$6-1),12,1)),AVERAGE(OFFSET(P_SW004!$C$10,12*($A5-1),4*(PlotControl!$C$6-1),12,1))) -> 18392 | I5: =IF(PlotControl!$B$4 = "Annual Max",MAX(OFFSET(P_SW004!$D$10,12*($A5-1),4*(PlotControl!$C$6-1),12,1)),AVERAGE(OFFSET(P_SW004!$D$10,12*($A5-1),4*(PlotControl!$C$6-1),12,1))) -> 24866 | J5: =IF(PlotControl!$B$4 = "Annual Max",MAX(OFFSET(P_SW004!$E$10,12*($A5-1),4*(PlotControl!$C$6-1),12,1)),AVERAGE(OFFSET(P_SW004!$E$10,12*($A5-1),4*(PlotControl!$C$6-1),12,1))) -> 26341 | K5: =IF(PlotControl!$B$4 = "Annual Max",MAX(OFFSET(P_SW004a!$C$10,12*($A5-1),4*(PlotControl!$C$6-1),12,1)),AVERAGE(OFFSET(P_SW004a!$C$10,12*($A5-1),4*(PlotControl!$C$6-1),12,1))) -> 15857 | L5: =IF(PlotControl!$B$4 = "Annual Max",MAX(OFFSET(P_SW004a!$D$10,12*($A5-1),4*(PlotControl!$C$6-1),12,1)),AVERAGE(OFFSET(P_SW004a!$D$10,12*($A5-1),4*(PlotControl!$C$6-1),12,1))) -> 21850 | M5: =IF(PlotControl!$B$4 = "Annual Max",MAX(OFFSET(P_SW004a!$E$10,12*($A5-1),4*(PlotControl!$C$6-1),12,1)),AVERAGE(OFFSET(P_SW004a!$E$10,12*($A5-1),4*(PlotControl!$C$6-1),12,1))) -> 24217 | N5: =IF(PlotControl!$B$4 = "Annual Max",MAX(OFFSET(P_SW004b!$C$10,12*($A5-1),4*(PlotControl!$C$6-1),12,1)),AVERAGE(OFFSET(P_SW004b!$C$10,12*($A5-1),4*(PlotControl!$C$6-1),12,1))) -> 12018 | O5: =IF(PlotControl!$B$4 = "Annual Max",MAX(OFFSET(P_SW004b!$D$10,12*($A5-1),4*(PlotControl!$C$6-1),12,1)),AVERAGE(OFFSET(P_SW004b!$D$10,12*($A5-1),4*(PlotControl!$C$6-1),12,1))) -> 18203 | P5: =IF(PlotControl!$B$4 = "Annual Max",MAX(OFFSET(P_SW004b!$E$10,12*($A5-1),4*(PlotControl!$C$6-1),12,1)),AVERAGE(OFFSET(P_SW004b!$E$10,12*($A5-1),4*(PlotControl!$C$6-1),12,1))) -> 21836 | Q5: =IF(PlotControl!$B$4 = "Annual Max",MAX(OFFSET(P_SW005!$C$10,12*($A5-1),4*(PlotControl!$C$6-1),12,1)),AVERAGE(OFFSET(P_SW005!$C$10,12*($A5-1),4*(PlotControl!$C$6-1),12,1))) -> 11150 | R5: =IF(PlotControl!$B$4 = "Annual Max",MAX(OFFSET(P_SW005!$D$10,12*($A5-1),4*(PlotControl!$C$6-1),12,1)),AVERAGE(OFFSET(P_SW005!$D$10,12*($A5-1),4*(PlotControl!$C$6-1),12,1))) -> 14490 | S5: =IF(PlotControl!$B$4 = "Annual Max",MAX(OFFSET(P_SW005!$E$10,12*($A5-1),4*(PlotControl!$C$6-1),12,1)),AVERAGE(OFFSET(P_SW005!$E$10,12*($A5-1),4*(PlotControl!$C$6-1),12,1))) -> 17849 | T5: =IF(PlotControl!$B$4 = "Annual Max",MAX(OFFSET(P_SW006!$C$10,12*($A5-1),4*(PlotControl!$C$6-1),12,1)),AVERAGE(OFFSET(P_SW006!$C$10,12*($A5-1),4*(PlotControl!$C$6-1),12,1))) -> 10799 | U5: =IF(PlotControl!$B$4 = "Annual Max",MAX(OFFSET(P_SW006!$D$10,12*($A5-1),4*(PlotControl!$C$6-1),12,1)),AVERAGE(OFFSET(P_SW006!$D$10,12*($A5-1),4*(PlotControl!$C$6-1),12,1))) -> 13653 | V5: =IF(PlotControl!$B$4 = "Annual Max",MAX(OFFSET(P_SW006!$E$10,12*($A5-1),4*(PlotControl!$C$6-1),12,1)),AVERAGE(OFFSET(P_SW006!$E$10,12*($A5-1),4*(PlotControl!$C$6-1),12,1))) -> 16799 | W5: =IF(PlotControl!$B$4 = "Annual Max",MAX(OFFSET(P_ColbyLake!$C$10,12*($A5-1),4*(PlotControl!$C$6-1),12,1)),AVERAGE(OFFSET(P_ColbyLake!$C$10,12*($A5-1),4*(PlotControl!$C$6-1),12,1))) -> 42824 | X5: =IF(PlotControl!$B$4 = "Annual Max",MAX(OFFSET(P_ColbyLake!$D$10,12*($A5-1),4*(PlotControl!$C$6-1),12,1)),AVERAGE(OFFSET(P_ColbyLake!$D$10,12*($A5-1),4*(PlotControl!$C$6-1),12,1))) -> 52472 | Y5: =IF(PlotControl!$B$4 = "Annual Max",MAX(OFFSET(P_ColbyLake!$E$10,12*($A5-1),4*(PlotControl!$C$6-1),12,1)),AVERAGE(OFFSET(P_ColbyLake!$E$10,12*($A5-1),4*(PlotControl!$C$6-1),12,1))) -> 59241 | AA5: =PlotControl!$B$10 -> 0 | AB5: =OFFSET(P_SW002!$C$10,ROUND(12*$AA5,0),4*(PlotControl!$C$6-1),1,1) -> 32608 | AC5: =OFFSET(P_SW002!$D$10,ROUND(12*$AA5,0),4*(PlotControl!$C$6-1),1,1) -> 32608 | AD5: =OFFSET(P_SW002!$E$10,ROUND(12*$AA5,0),4*(PlotControl!$C$6-1),1,1) -> 32608 | AE5: =OFFSET(P_SW003!$C$10,ROUND(12*$AA5,0),4*(PlotControl!$C$6-1),1,1) -> 15141 | AF5: =OFFSET(P_SW003!$D$10,ROUND(12*$AA5,0),4*(PlotControl!$C$6-1),1,1) -> 15141 | AG5: =OFFSET(P_SW003!$E$10,ROUND(12*$AA5,0),4*(PlotControl!$C$6-1),1,1) -> 15141 | AH5: =OFFSET(P_SW004!$C$10,ROUND(12*$AA5,0),4*(PlotControl!$C$6-1),1,1) -> 13872 | AI5: =OFFSET(P_SW004!$D$10,ROUND(12*$AA5,0),4*(PlotControl!$C$6-1),1,1) -> 13872 | AJ5: =OFFSET(P_SW004!$E$10,ROUND(12*$AA5,0),4*(PlotControl!$C$6-1),1,1) -> 13872 | AK5: =OFFSET(P_SW004a!$C$10,ROUND(12*$AA5,0),4*(PlotControl!$C$6-1),1,1) -> 15857 | AL5: =OFFSET(P_SW004a!$D$10,ROUND(12*$AA5,0),4*(PlotControl!$C$6-1),1,1) -> 15857 | AM5: =OFFSET(P_SW004a!$E$10,ROUND(12*$AA5,0),4*(PlotControl!$C$6-1),1,1) -> 15857 | AN5: =OFFSET(P_SW004b!$C$10,ROUND(12*$AA5,0),4*(PlotControl!$C$6-1),1,1) -> 11348 | AO5: =OFFSET(P_SW004b!$D$10,ROUND(12*$AA5,0),4*(PlotControl!$C$6-1),1,1) -> 11348 | AP5: =OFFSET(P_SW004b!$E$10,ROUND(12*$AA5,0),4*(PlotControl!$C$6-1),1,1) -> 11348 | AQ5: =OFFSET(P_SW005!$C$10,ROUND(12*$AA5,0),4*(PlotControl!$C$6-1),1,1) -> 10109 | AR5: =OFFSET(P_SW005!$D$10,ROUND(12*$AA5,0),4*(PlotControl!$C$6-1),1,1) -> 10109 | AS5: =OFFSET(P_SW005!$E$10,ROUND(12*$AA5,0),4*(PlotControl!$C$6-1),1,1) -> 10109 | AT5: =OFFSET(P_SW006!$C$10,ROUND(12*$AA5,0),4*(PlotControl!$C$6-1),1,1) -> 10109 | AU5: =OFFSET(P_SW005!$D$10,ROUND(12*$AA5,0),4*(PlotControl!$C$6-1),1,1) -> 10109 | AV5: =OFFSET(P_SW006!$E$10,ROUND(12*$AA5,0),4*(PlotControl!$C$6-1),1,1) -> 10109 | AW5: =OFFSET(P_ColbyLake!$C$10,ROUND(12*$AA5,0),4*(PlotControl!$C$6-1),1,1) -> 28661 | AX5: =OFFSET(P_ColbyLake!$D$10,ROUND(12*$AA5,0),4*(PlotControl!$C$6-1),1,1) -> 28661 | AY5: =OFFSET(P_ColbyLake!$E$10,ROUND(12*$AA5,0),4*(PlotControl!$C$6-1),1,1) -> 28661
A6: 2 | B6: =IF(PlotControl!$B$4 = "Annual Max",MAX(OFFSET(P_SW002!$C$10,12*($A6-1),4*(PlotControl!$C$6-1),12,1)),AVERAGE(OFFSET(P_SW002!$C$10,12*($A6-1),4*(PlotControl!$C$6-1),12,1))) -> 21775 | C6: =IF(PlotControl!$B$4 = "Annual Max",MAX(OFFSET(P_SW002!$D$10,12*($A6-1),4*(PlotControl!$C$6-1),12,1)),AVERAGE(OFFSET(P_SW002!$D$10,12*($A6-1),4*(PlotControl!$C$6-1),12,1))) -> 26818 | D6: =IF(PlotControl!$B$4 = "Annual Max",MAX(OFFSET(P_SW002!$E$10,12*($A6-1),4*(PlotControl!$C$6-1),12,1)),AVERAGE(OFFSET(P_SW002!$E$10,12*($A6-1),4*(PlotControl!$C$6-1),12,1))) -> 27304 | E6: =IF(PlotControl!$B$4 = "Annual Max",MAX(OFFSET(P_SW003!$C$10,12*($A6-1),4*(PlotControl!$C$6-1),12,1)),AVERAGE(OFFSET(P_SW003!$C$10,12*($A6-1),4*(PlotControl!$C$6-1),12,1))) -> 20905 | F6: =IF(PlotControl!$B$4 = "Annual Max",MAX(OFFSET(P_SW003!$D$10,12*($A6-1),4*(PlotControl!$C$6-1),12,1)),AVERAGE(OFFSET(P_SW003!$D$10,12*($A6-1),4*(PlotControl!$C$6-1),12,1))) -> 26343 | G6: =IF(PlotControl!$B$4 = "Annual Max",MAX(OFFSET(P_SW003!$E$10,12*($A6-1),4*(PlotControl!$C$6-1),12,1)),AVERAGE(OFFSET(P_SW003!$E$10,12*($A6-1),4*(PlotControl!$C$6-1),12,1))) -> 27095 | H6: =IF(PlotControl!$B$4 = "Annual Max",MAX(OFFSET(P_SW004!$C$10,12*($A6-1),4*(PlotControl!$C$6-1),12,1)),AVERAGE(OFFSET(P_SW004!$C$10,12*($A6-1),4*(PlotControl!$C$6-1),12,1))) -> 18095 | I6: =IF(PlotControl!$B$4 = "Annual Max",MAX(OFFSET(P_SW004!$D$10,12*($A6-1),4*(PlotControl!$C$6-1),12,1)),AVERAGE(OFFSET(P_SW004!$D$10,12*($A6-1),4*(PlotControl!$C$6-1),12,1))) -> 24601 | J6: =IF(PlotControl!$B$4 = "Annual Max",MAX(OFFSET(P_SW004!$E$10,12*($A6-1),4*(PlotControl!$C$6-1),12,1)),AVERAGE(OFFSET(P_SW004!$E$10,12*($A6-1),4*(PlotControl!$C$6-1),12,1))) -> 26252 | K6: =IF(PlotControl!$B$4 = "Annual Max",MAX(OFFSET(P_SW004a!$C$10,12*($A6-1),4*(PlotControl!$C$6-1),12,1)),AVERAGE(OFFSET(P_SW004a!$C$10,12*($A6-1),4*(PlotControl!$C$6-1),12,1))) -> 13095 | L6: =IF(PlotControl!$B$4 = "Annual Max",MAX(OFFSET(P_SW004a!$D$10,12*($A6-1),4*(PlotControl!$C$6-1),12,1)),AVERAGE(OFFSET(P_SW004a!$D$10,12*($A6-1),4*(PlotControl!$C$6-1),12,1))) -> 21512 | M6: =IF(PlotControl!$B$4 = "Annual Max",MAX(OFFSET(P_SW004a!$E$10,12*($A6-1),4*(PlotControl!$C$6-1),12,1)),AVERAGE(OFFSET(P_SW004a!$E$10,12*($A6-1),4*(PlotControl!$C$6-1),12,1))) -> 24203 | N6: =IF(PlotControl!$B$4 = "Annual Max",MAX(OFFSET(P_SW004b!$C$10,12*($A6-1),4*(PlotControl!$C$6-1),12,1)),AVERAGE(OFFSET(P_SW004b!$C$10,12*($A6-1),4*(PlotControl!$C$6-1),12,1))) -> 11722 | O6: =IF(PlotControl!$B$4 = "Annual Max",MAX(OFFSET(P_SW004b!$D$10,12*($A6-1),4*(PlotControl!$C$6-1),12,1)),AVERAGE(OFFSET(P_SW004b!$D$10,12*($A6-1),4*(PlotControl!$C$6-1),12,1))) -> 17855 | P6: =IF(PlotControl!$B$4 = "Annual Max",MAX(OFFSET(P_SW004b!$E$10,12*($A6-1),4*(PlotControl!$C$6-1),12,1)),AVERAGE(OFFSET(P_SW004b!$E$10,12*($A6-1),4*(PlotControl!$C$6-1),12,1))) -> 21696 | Q6: =IF(PlotControl!$B$4 = "Annual Max",MAX(OFFSET(P_SW005!$C$10,12*($A6-1),4*(PlotControl!$C$6-1),12,1)),AVERAGE(OFFSET(P_SW005!$C$10,12*($A6-1),4*(PlotControl!$C$6-1),12,1))) -> 10843 | R6: =IF(PlotControl!$B$4 = "Annual Max",MAX(OFFSET(P_SW005!$D$10,12*($A6-1),4*(PlotControl!$C$6-1),12,1)),AVERAGE(OFFSET(P_SW005!$D$10,12*($A6-1),4*(PlotControl!$C$6-1),12,1))) -> 14535 | S6: =IF(PlotControl!$B$4 = "Annual Max",MAX(OFFSET(P_SW005!$E$10,12*($A6-1),4*(PlotControl!$C$6-1),12,1)),AVERAGE(OFFSET(P_SW005!$E$10,12*($A6-1),4*(PlotControl!$C$6-1),12,1))) -> 18094 | T6: =IF(PlotControl!$B$4 = "Annual Max",MAX(OFFSET(P_SW006!$C$10,12*($A6-1),4*(PlotControl!$C$6-1),12,1)),AVERAGE(OFFSET(P_SW006!$C$10,12*($A6-1),4*(PlotControl!$C$6-1),12,1))) -> 10507 | U6: =IF(PlotControl!$B$4 = "Annual Max",MAX(OFFSET(P_SW006!$D$10,12*($A6-1),4*(PlotControl!$C$6-1),12,1)),AVERAGE(OFFSET(P_SW006!$D$10,12*($A6-1),4*(PlotControl!$C$6-1),12,1))) -> 13835 | V6: =IF(PlotControl!$B$4 = "Annual Max",MAX(OFFSET(P_SW006!$E$10,12*($A6-1),4*(PlotControl!$C$6-1),12,1)),AVERAGE(OFFSET(P_SW006!$E$10,12*($A6-1),4*(PlotControl!$C$6-1),12,1))) -> 17049 | W6: =IF(PlotControl!$B$4 = "Annual Max",MAX(OFFSET(P_ColbyLake!$C$10,12*($A6-1),4*(PlotControl!$C$6-1),12,1)),AVERAGE(OFFSET(P_ColbyLake!$C$10,12*($A6-1),4*(PlotControl!$C$6-1),12,1))) -> 41311 | X6: =IF(PlotControl!$B$4 = "Annual Max",MAX(OFFSET(P_ColbyLake!$D$10,12*($A6-1),4*(PlotControl!$C$6-1),12,1)),AVERAGE(OFFSET(P_ColbyLake!$D$10,12*($A6-1),4*(PlotControl!$C$6-1),12,1))) -> 54938 | Y6: =IF(PlotControl!$B$4 = "Annual Max",MAX(OFFSET(P_ColbyLake!$E$10,12*($A6-1),4*(PlotControl!$C$6-1),12,1)),AVERAGE(OFFSET(P_ColbyLake!$E$10,12*($A6-1),4*(PlotControl!$C$6-1),12,1))) -> 63811 | AA6: =AA5+1/12 -> 0.08333333333 | AB6: =OFFSET(P_SW002!$C$10,ROUND(12*$AA6,0),4*(PlotControl!$C$6-1),1,1) -> 22238 | AC6: =OFFSET(P_SW002!$D$10,ROUND(12*$AA6,0),4*(PlotControl!$C$6-1),1,1) -> 25113 | AD6: =OFFSET(P_SW002!$E$10,ROUND(12*$AA6,0),4*(PlotControl!$C$6-1),1,1) -> 27308 | AE6: =OFFSET(P_SW003!$C$10,ROUND(12*$AA6,0),4*(PlotControl!$C$6-1),1,1) -> 20803 | AF6: =OFFSET(P_SW003!$D$10,ROUND(12*$AA6,0),4*(PlotControl!$C$6-1),1,1) -> 23972 | AG6: =OFFSET(P_SW003!$E$10,ROUND(12*$AA6,0),4*(PlotControl!$C$6-1),1,1) -> 26474 | AH6: =OFFSET(P_SW004!$C$10,ROUND(12*$AA6,0),4*(PlotControl!$C$6-1),1,1) -> 17316 | AI6: =OFFSET(P_SW004!$D$10,ROUND(12*$AA6,0),4*(PlotControl!$C$6-1),1,1) -> 21032 | AJ6: =OFFSET(P_SW004!$E$10,ROUND(12*$AA6,0),4*(PlotControl!$C$6-1),1,1) -> 24151 | AK6: =OFFSET(P_SW004a!$C$10,ROUND(12*$AA6,0),4*(PlotControl!$C$6-1),1,1) -> 11983 | AL6: =OFFSET(P_SW004a!$D$10,ROUND(12*$AA6,0),4*(PlotControl!$C$6-1),1,1) -> 16629 | AM6: =OFFSET(P_SW004a!$E$10,ROUND(12*$AA6,0),4*(PlotControl!$C$6-1),1,1) -> 21231 | AN6: =OFFSET(P_SW004b!$C$10,ROUND(12*$AA6,0),4*(PlotControl!$C$6-1),1,1) -> 10439 | AO6: =OFFSET(P_SW004b!$D$10,ROUND(12*$AA6,0),4*(PlotControl!$C$6-1),1,1) -> 14491 | AP6: =OFFSET(P_SW004b!$E$10,ROUND(12*$AA6,0),4*(PlotControl!$C$6-1),1,1) -> 17604 | AQ6: =OFFSET(P_SW005!$C$10,ROUND(12*$AA6,0),4*(PlotControl!$C$6-1),1,1) -> 9653 | AR6: =OFFSET(P_SW005!$D$10,ROUND(12*$AA6,0),4*(PlotControl!$C$6-1),1,1) -> 12440 | AS6: =OFFSET(P_SW005!$E$10,ROUND(12*$AA6,0),4*(PlotControl!$C$6-1),1,1) -> 13187 | AT6: =OFFSET(P_SW006!$C$10,ROUND(12*$AA6,0),4*(PlotControl!$C$6-1),1,1) -> 9609.3 | AU6: =OFFSET(P_SW005!$D$10,ROUND(12*$AA6,0),4*(PlotControl!$C$6-1),1,1) -> 12440 | AV6: =OFFSET(P_SW006!$E$10,ROUND(12*$AA6,0),4*(PlotControl!$C$6-1),1,1) -> 12291 | AW6: =OFFSET(P_ColbyLake!$C$10,ROUND(12*$AA6,0),4*(PlotControl!$C$6-1),1,1) -> 35459 | AX6: =OFFSET(P_ColbyLake!$D$10,ROUND(12*$AA6,0),4*(PlotControl!$C$6-1),1,1) -> 37702 | AY6: =OFFSET(P_ColbyLake!$E$10,ROUND(12*$AA6,0),4*(PlotControl!$C$6-1),1,1) -> 39118
A7: 3 | B7: =IF(PlotControl!$B$4 = "Annual Max",MAX(OFFSET(P_SW002!$C$10,12*($A7-1),4*(PlotControl!$C$6-1),12,1)),AVERAGE(OFFSET(P_SW002!$C$10,12*($A7-1),4*(PlotControl!$C$6-1),12,1))) -> 22394 | C7: =IF(PlotControl!$B$4 = "Annual Max",MAX(OFFSET(P_SW002!$D$10,12*($A7-1),4*(PlotControl!$C$6-1),12,1)),AVERAGE(OFFSET(P_SW002!$D$10,12*($A7-1),4*(PlotControl!$C$6-1),12,1))) -> 26829 | D7: =IF(PlotControl!$B$4 = "Annual Max",MAX(OFFSET(P_SW002!$E$10,12*($A7-1),4*(PlotControl!$C$6-1),12,1)),AVERAGE(OFFSET(P_SW002!$E$10,12*($A7-1),4*(PlotControl!$C$6-1),12,1))) -> 27288 | E7: =IF(PlotControl!$B$4 = "Annual Max",MAX(OFFSET(P_SW003!$C$10,12*($A7-1),4*(PlotControl!$C$6-1),12,1)),AVERAGE(OFFSET(P_SW003!$C$10,12*($A7-1),4*(PlotControl!$C$6-1),12,1))) -> 21620 | F7: =IF(PlotControl!$B$4 = "Annual Max",MAX(OFFSET(P_SW003!$D$10,12*($A7-1),4*(PlotControl!$C$6-1),12,1)),AVERAGE(OFFSET(P_SW003!$D$10,12*($A7-1),4*(PlotControl!$C$6-1),12,1))) -> 26389 | G7: =IF(PlotControl!$B$4 = "Annual Max",MAX(OFFSET(P_SW003!$E$10,12*($A7-1),4*(PlotControl!$C$6-1),12,1)),AVERAGE(OFFSET(P_SW003!$E$10,12*($A7-1),4*(PlotControl!$C$6-1),12,1))) -> 27080 | H7: =IF(PlotControl!$B$4 = "Annual Max",MAX(OFFSET(P_SW004!$C$10,12*($A7-1),4*(PlotControl!$C$6-1),12,1)),AVERAGE(OFFSET(P_SW004!$C$10,12*($A7-1),4*(PlotControl!$C$6-1),12,1))) -> 18946 | I7: =IF(PlotControl!$B$4 = "Annual Max",MAX(OFFSET(P_SW004!$D$10,12*($A7-1),4*(PlotControl!$C$6-1),12,1)),AVERAGE(OFFSET(P_SW004!$D$10,12*($A7-1),4*(PlotControl!$C$6-1),12,1))) -> 24761 | J7: =IF(PlotControl!$B$4 = "Annual Max",MAX(OFFSET(P_SW004!$E$10,12*($A7-1),4*(PlotControl!$C$6-1),12,1)),AVERAGE(OFFSET(P_SW004!$E$10,12*($A7-1),4*(PlotControl!$C$6-1),12,1))) -> 26243 | K7: =IF(PlotControl!$B$4 = "Annual Max",MAX(OFFSET(P_SW004a!$C$10,12*($A7-1),4*(PlotControl!$C$6-1),12,1)),AVERAGE(OFFSET(P_SW004a!$C$10,12*($A7-1),4*(PlotControl!$C$6-1),12,1))) -> 13803 | L7: =IF(PlotControl!$B$4 = "Annual Max",MAX(OFFSET(P_SW004a!$D$10,12*($A7-1),4*(PlotControl!$C$6-1),12,1)),AVERAGE(OFFSET(P_SW004a!$D$10,12*($A7-1),4*(PlotControl!$C$6-1),12,1))) -> 21681 | M7: =IF(PlotControl!$B$4 = "Annual Max",MAX(OFFSET(P_SW004a!$E$10,12*($A7-1),4*(PlotControl!$C$6-1),12,1)),AVERAGE(OFFSET(P_SW004a!$E$10,12*($A7-1),4*(PlotControl!$C$6-1),12,1))) -> 24096 | N7: =IF(PlotControl!$B$4 = "Annual Max",MAX(OFFSET(P_SW004b!$C$10,12*($A7-1),4*(PlotControl!$C$6-1),12,1)),AVERAGE(OFFSET(P_SW004b!$C$10,12*($A7-1),4*(PlotControl!$C$6-1),12,1))) -> 12462 | O7: =IF(PlotControl!$B$4 = "Annual Max",MAX(OFFSET(P_SW004b!$D$10,12*($A7-1),4*(PlotControl!$C$6-1),12,1)),AVERAGE(OFFSET(P_SW004b!$D$10,12*($A7-1),4*(PlotControl!$C$6-1),12,1))) -> 18161 | P7: =IF(PlotControl!$B$4 = "Annual Max",MAX(OFFSET(P_SW004b!$E$10,12*($A7-1),4*(PlotControl!$C$6-1),12,1)),AVERAGE(OFFSET(P_SW004b!$E$10,12*($A7-1),4*(PlotControl!$C$6-1),12,1))) -> 21785 | Q7: =IF(PlotControl!$B$4 = "Annual Max",MAX(OFFSET(P_SW005!$C$10,12*($A7-1),4*(PlotControl!$C$6-1),12,1)),AVERAGE(OFFSET(P_SW005!$C$10,12*($A7-1),4*(PlotControl!$C$6-1),12,1))) -> 11385 | R7: =IF(PlotControl!$B$4 = "Annual Max",MAX(OFFSET(P_SW005!$D$10,12*($A7-1),4*(PlotControl!$C$6-1),12,1)),AVERAGE(OFFSET(P_SW005!$D$10,12*($A7-1),4*(PlotControl!$C$6-1),12,1))) -> 14414 | S7: =IF(PlotControl!$B$4 = "Annual Max",MAX(OFFSET(P_SW005!$E$10,12*($A7-1),4*(PlotControl!$C$6-1),12,1)),AVERAGE(OFFSET(P_SW005!$E$10,12*($A7-1),4*(PlotControl!$C$6-1),12,1))) -> 17826 | T7: =IF(PlotControl!$B$4 = "Annual Max",MAX(OFFSET(P_SW006!$C$10,12*($A7-1),4*(PlotControl!$C$6-1),12,1)),AVERAGE(OFFSET(P_SW006!$C$10,12*($A7-1),4*(PlotControl!$C$6-1),12,1))) -> 10819 | U7: =IF(PlotControl!$B$4 = "Annual Max",MAX(OFFSET(P_SW006!$D$10,12*($A7-1),4*(PlotControl!$C$6-1),12,1)),AVERAGE(OFFSET(P_SW006!$D$10,12*($A7-1),4*(PlotControl!$C$6-1),12,1))) -> 13663 | V7: =IF(PlotControl!$B$4 = "Annual Max",MAX(OFFSET(P_SW006!$E$10,12*($A7-1),4*(PlotControl!$C$6-1),12,1)),AVERAGE(OFFSET(P_SW006!$E$10,12*($A7-1),4*(PlotControl!$C$6-1),12,1))) -> 16972 | W7: =IF(PlotControl!$B$4 = "Annual Max",MAX(OFFSET(P_ColbyLake!$C$10,12*($A7-1),4*(PlotControl!$C$6-1),12,1)),AVERAGE(OFFSET(P_ColbyLake!$C$10,12*($A7-1),4*(PlotControl!$C$6-1),12,1))) -> 41898 | X7: =IF(PlotControl!$B$4 = "Annual Max",MAX(OFFSET(P_ColbyLake!$D$10,12*($A7-1),4*(PlotControl!$C$6-1),12,1)),AVERAGE(OFFSET(P_ColbyLake!$D$10,12*($A7-1),4*(PlotControl!$C$6-1),12,1))) -> 53463 | Y7: =IF(PlotControl!$B$4 = "Annual Max",MAX(OFFSET(P_ColbyLake!$E$10,12*($A7-1),4*(PlotControl!$C$6-1),12,1)),AVERAGE(OFFSET(P_ColbyLake!$E$10,12*($A7-1),4*(PlotControl!$C$6-1),12,1))) -> 64995 | AA7: =AA6+1/12 -> 0.1666666667 | AB7: =OFFSET(P_SW002!$C$10,ROUND(12*$AA7,0),4*(PlotControl!$C$6-1),1,1) -> 22045 | AC7: =OFFSET(P_SW002!$D$10,ROUND(12*$AA7,0),4*(PlotControl!$C$6-1),1,1) -> 26856 | AD7: =OFFSET(P_SW002!$E$10,ROUND(12*$AA7,0),4*(PlotControl!$C$6-1),1,1) -> 27282 | AE7: =OFFSET(P_SW003!$C$10,ROUND(12*$AA7,0),4*(PlotControl!$C$6-1),1,1) -> 21399 | AF7: =OFFSET(P_SW003!$D$10,ROUND(12*$AA7,0),4*(PlotControl!$C$6-1),1,1) -> 26446 | AG7: =OFFSET(P_SW003!$E$10,ROUND(12*$AA7,0),4*(PlotControl!$C$6-1),1,1) -> 27031 | AH7: =OFFSET(P_SW004!$C$10,ROUND(12*$AA7,0),4*(PlotControl!$C$6-1),1,1) -> 18392 | AI7: =OFFSET(P_SW004!$D$10,ROUND(12*$AA7,0),4*(PlotControl!$C$6-1),1,1) -> 24866 | AJ7: =OFFSET(P_SW004!$E$10,ROUND(12*$AA7,0),4*(PlotControl!$C$6-1),1,1) -> 26040 | AK7: =OFFSET(P_SW004a!$C$10,ROUND(12*$AA7,0),4*(PlotControl!$C$6-1),1,1) -> 13180 | AL7: =OFFSET(P_SW004a!$D$10,ROUND(12*$AA7,0),4*(PlotControl!$C$6-1),1,1) -> 21850 | AM7: =OFFSET(P_SW004a!$E$10,ROUND(12*$AA7,0),4*(PlotControl!$C$6-1),1,1) -> 23685 | AN7: =OFFSET(P_SW004b!$C$10,ROUND(12*$AA7,0),4*(PlotControl!$C$6-1),1,1) -> 12018 | AO7: =OFFSET(P_SW004b!$D$10,ROUND(12*$AA7,0),4*(PlotControl!$C$6-1),1,1) -> 18203 | AP7: =OFFSET(P_SW004b!$E$10,ROUND(12*$AA7,0),4*(PlotControl!$C$6-1),1,1) -> 20780 | AQ7: =OFFSET(P_SW005!$C$10,ROUND(12*$AA7,0),4*(PlotControl!$C$6-1),1,1) -> 11150 | AR7: =OFFSET(P_SW005!$D$10,ROUND(12*$AA7,0),4*(PlotControl!$C$6-1),1,1) -> 14226 | AS7: =OFFSET(P_SW005!$E$10,ROUND(12*$AA7,0),4*(PlotControl!$C$6-1),1,1) -> 16043 | AT7: =OFFSET(P_SW006!$C$10,ROUND(12*$AA7,0),4*(PlotControl!$C$6-1),1,1) -> 10799 | AU7: =OFFSET(P_SW005!$D$10,ROUND(12*$AA7,0),4*(PlotControl!$C$6-1),1,1) -> 14226 | AV7: =OFFSET(P_SW006!$E$10,ROUND(12*$AA7,0),4*(PlotControl!$C$6-1),1,1) -> 14719 | AW7: =OFFSET(P_ColbyLake!$C$10,ROUND(12*$AA7,0),4*(PlotControl!$C$6-1),1,1) -> 42824 | AX7: =OFFSET(P_ColbyLake!$D$10,ROUND(12*$AA7,0),4*(PlotControl!$C$6-1),1,1) -> 47156 | AY7: =OFFSET(P_ColbyLake!$E$10,ROUND(12*$AA7,0),4*(PlotControl!$C$6-1),1,1) -> 49986
